Workbook

Sheet Set-up
A1: ECONOMIC MODEL TO ACCOMPANY THE 2011 NREL BIOCHEM DESIGN REPORT
A2: This spreadsheet contains macros. These macros expect Aspen V7.2
A3: To change Aspen version, you must update all instances of the toolkit paths at the top of VBA module EconAspenSummary
A4: This may also apply to you if you are using Windows 7
A5: Find the design report at: http://www.nrel.gov/docs/fy11osti/47764.pdf
A6: Tables in this report may vary slightly from those published due to small corrections made after publication
A8: Mechanical Instructions
A9: Use "Update file name" button to browse to .bkp file
A10: Tab "aspen" pulls minimal data for MESP calculations
A11: Tab "DCFROR" has a goal seek macro to determine MESP for zero NPV
A12: Tab "aspen2" and "aspenqw" pull all material and heat/work streams from the backup file for full energy balance.
B14: C:\Users\dhumbird\Documents\13374S\Projects-current\next BC model\DW1111A.bkp
B15: C:\Users\dhumbird\Documents\13374S\Projects-current\next BC model\ | C15: DW1111A | D15: .bkp
A19: Identifier String | B19: =B21&" "&B22&" Case: "&B23&" model "&IF(B25="",B24,B25) -> Corn Stover Design Report Case: 2012 model DW1111A
A20: Input:
A21: Feedstock | B21: Corn Stover
A22: Report Type | B22: Design Report
A23: Year modeled | B23: 2012
A24: Case ID: Auto | B24: =IF(B25<>"",B25,BASECASE) -> DW1111A
A25: or override
A27: LOOKUP strings
A28: Data Set | B28: Sheet | C28: Start Col | D28: Start Row | E28: End Col | F28: End row | G28: Lookup String
A29: Sensitivity | B29: aspen | C29: C | D29: 7 | E29: E | F29: =COUNTA(INDIRECT(B29&"!"&C29&D29&":"&C29&65556))+D29-1 -> 617 | G29: =B29&"!"&C29&D29&":"&E29&F29 -> aspen!C7:E617
A30: Material streams | B30: aspen2 | C30: B | D30: 9 | E30: HT | F30: =COUNTA(INDIRECT(B30&"!"&C30&D30&":"&C30&65556))+D30-1 -> 420 | G30: =B30&"!"&C30&D30&":"&E30&F30 -> aspen2!B9:HT420
A31: Heat streams | B31: aspenqw | C31: B | D31: 7 | E31: D | F31: =COUNTA(INDIRECT(B31&"!"&C31&D31&":"&C31&65556))+D31-1 -> 154 | G31: =B31&"!"&C31&D31&":"&E31&F31 -> aspenqw!B7:D154
A32: Work Streams | B32: aspenqw | C32: F | D32: 7 | E32: H | F32: =COUNTA(INDIRECT(B32&"!"&C32&D32&":"&C32&65556))+D32-1 -> 274 | G32: =B32&"!"&C32&D32&":"&E32&F32 -> aspenqw!F7:H274
A34: Index-Capital | G34: INDICES!b14:e39
A35: Index-Chemical | G35: INDICES!b56:e87
A36: Index-Labor | G36: INDICES!b108:e139
A37: Index-Electricity | G37: INDICES!q5:r13
A39: Ethanol density | B39: 0.789 | C39: kg/L
A41: Desired Units: In theory, you can change these, but note that all subsequent calculations will be wrong.
A42: Quantity | B42: Units
A43: MASS-FLOW | B43: KG/HR
A44: ENTHALPY-FLO | B44: MMKCAL/HR
A45: MOLE-FLOW | B45: KMOL/HR
A46: VOLUME-FLOW | B46: L/MIN
A47: TEMPERATURE | B47: C
A48: PRESSURE | B48: ATM
A49: MOLE-ENTHALP | B49: CAL/MOL
A50: MASS-ENTHALP | B50: KCAL/KG
A51: MOLE-ENTROPY | B51: CAL/MOL-K
A52: MASS-ENTROPY | B52: KCAL/KG-K
A53: MOLE-DENSITY | B53: MOL/CC
A54: MASS-DENSITY | B54: GM/CC
A55: POWER | B55: KW

Sheet Summary
A1: Ethanol Production Process Engineering Analysis
A2: ='Set-up'!B19 -> Corn Stover Design Report Case: 2012 model DW1111A
A3: Dilute Acid Pretreatment with Enzymatic Hydrolysis and Co-Fermentation
A4: ="All Values in "&DCFROR!B34&"$" -> All Values in 2007$
C5: Minimum Ethanol Selling Price (MESP): | D5: =IF((ABS(DCFROR!B37)<0.1),DCFROR!B35,"") -> 2.160891665 | E5: /gal
C6: Gasoline-Equivalent MESP: | D6: =D5/0.658 -> 3.284029886 | E6: /gal gasoline equivalent
B8: Contributions: | C8: Feedstock | D8: =F19/100 -> 0.7473901822 | E8: /gal
C9: Enzymes | D9: ='Cost Breakdown'!I6 -> 0.3324757037 | E9: /gal
C10: Non-Enzyme Conversion | D10: =D5-D8-D9 -> 1.081025779 | E10: /gal
C12: Ethanol Production | D12: =OPEX!B3 -> 60.47861365 | E12: MMgal/yr (Ethanol at 68 °F)
C13: Ethanol Yield | D13: =OPEX!E4 -> 78.28586027 | E13: gal / dry U.S. ton feedstock
C14: Feedstock + Handling Cost | D14: =OPEX!$G$12*(0.01/(1-OPEX!$M$7)) -> 58.5 | E14: /dry U.S. ton
C15: Internal Rate of Return (After-Tax) | D15: =DCFROR!B31 -> 0.1
C16: Equity Percent of Total Investment | D16: =DCFROR!B8 -> 0.4
A18: Capital Costs | D18: Manufacturing Costs (cents/gal ethanol)
A19: Pretreatment | B19: =ROUND(CAPEXpt,-5) -> 29900000 | D19: Feedstock + Handling | F19: =OPEX!M12 -> 74.73901822
A20: Neutralization/Conditioning | B20: =ROUND(CAPEX200-CAPEXpt, -5) -> 3000000 | D20: Sulfuric Acid | F20: =OPEX!M13 -> 2.47147099
A21: Saccharification & Fermentation | B21: =ROUND(CAPEX300,-5) -> 31200000 | D21: Ammonia | F21: =OPEX!M14 -> 6.533122781
A22: On-site Enzyme Production | B22: =ROUND(CAPEX400,-5) -> 17000000 | D22: Glucose (enzyme production) | F22: =OPEX!M19 -> 19.3426552
A23: Distillation and Solids Recovery | B23: =ROUND(CAPEX500,-5) -> 22300000 | D23: Other Raw Materials | F23: =SUM(OPEX!M16:M18)+SUM(OPEX!M20:M29)+OPEX!M15 -> 13.01715116
A24: Wastewater Treatment | B24: =ROUND(CAPEX600,-5) -> 49200000 | D24: Waste Disposal | F24: =SUM(OPEX!M32:M32) -> 2.516260441
A25: Storage | B25: =ROUND(CAPEX700,-5) -> 4900000 | D25: Net Electricity | F25: =-OPEX!M37 -> -11.12337855
A26: Boiler/Turbogenerator | B26: =ROUND(CAPEX800,-5) -> 66000000 | D26: Fixed Costs | F26: =OPEX!M59 -> 17.52466286
A27: Utilities | B27: =ROUND(CAPEX900,-5) -> 6900000 | D27: Capital Depreciation | F27: =F40/(D12*1000000)*100 -> 21.99124483
A28: Total Installed Equipment Cost | B28: =SUM(B19:B27) -> 230400000 | D28: Average Income Tax | F28: =D5*DCFROR!B79/DCFROR!B80*100 -> 12.3107302
D29: Average Return on Investment | F29: =D5*100-SUM(F19:F28) -> 56.76622835
A30: Added Direct + Indirect Costs | B30: =B33-B28 -> 189300000
A31: (% of TCI) | B31: =B30/B33 -> 0.4510364546 | D31: Manufacturing Costs ($/yr)
D32: Feedstock + Handling | F32: =ROUND(OPEX!L12*1000000,-5) -> 45200000
A33: Total Capital Investment (TCI) | B33: =ROUND(DCFROR!K27,-5) -> 419700000 | D33: Sulfuric Acid | F33: =ROUND(SUM(OPEX!L13)*1000000,-5) -> 1500000
D34: Ammonia | F34: =ROUND(SUM(OPEX!L14)*1000000,-5) -> 4000000
A35: Installed Equipment Cost/Annual Gallon | B35: =B28/(D12*1000000) -> 3.809611135 | D35: Glucose (enzyme production) | F35: =ROUND(SUM(OPEX!L19)*1000000,-5) -> 11700000
A36: Total Capital Investment/Annual Gallon | B36: =B33/(D12*1000000) -> 6.939643201 | D36: Other Raw Materials | F36: =ROUND((SUM(OPEX!L15:L18,OPEX!L20:L29))*1000000,-5) -> 7900000
D37: Waste Disposal | F37: =ROUND(OPEX!L32*1000000,-5) -> 1500000
A38: Loan Rate | B38: =IF(D16<0.999,DCFROR!B9,"N/A") -> 0.08 | D38: Net Electricity | F38: =-ROUND(OPEX!L37*1000000,-5) -> -6700000
A39: Term (years) | B39: =IF(D16<0.999,DCFROR!B10,"N/A") -> 10 | D39: Fixed Costs | F39: =ROUND(OPEX!L59*1000000,-5) -> 10600000
A40: Capital Charge Factor (Computed) | B40: =(F40+F41+F42)/B33 -> 0.1310459852 | D40: Capital Depreciation | F40: =ROUND(DCFROR!B4/30,-5) -> 13300000
D41: Average Income Tax | F41: =ROUND(F28*$F$32/F19,-5) -> 7400000
A42: Denatured Fuel Production (MMgal/yr) | B42: =OPEX!E75 -> 61.09919985 | D42: Average Return on Investment | F42: =ROUND(F29*F32/F19,-5) -> 34300000
A43: Denatured Fuel Min. Sales Price | B43: =OPEX!C84 -> 2.190260679
A44: Denaturant Cost ($/gal denaturant) | B44: =OPEX!C85 -> 2.1 | D44: Specific Operating Conditions
D45: Enzyme Loading (mg/g cellulose) | F45: ='Operating Summaries'!D41 -> 19.92485548
A46: Maximum Yields (100% of Theoretical) | D46: Saccharification Time (days) | F46: =VLOOKUP("SACHDAYS",INDIRECT(LU_SENS),2,FALSE) -> 3.5
A47: Ethanol Production (MMgal/yr) | B47: ='Operating Summaries'!N11 -> 79.57360408 | D47: Fermentation Time (days) | F47: =VLOOKUP("FERMDAYS",INDIRECT(LU_SENS),2,FALSE) -> 1.5
A48: Theoretical Yield (gal/U.S. ton) | B48: ='Operating Summaries'!N12 -> 103.0031556 | D48: Ethanol titer (wt%) | F48: ='Operating Summaries'!F53 -> 0.05342919507
A49: Current Yield (Actual/Theoretical) | B49: =D13/B48 -> 0.760033611 | D49: Excess Electricity (kWh/gal) | F49: =OPEX!E35*OPHOURS/(ETHMMGAL*1000000) -> 1.826232744
D50: Plant Electricity Use (kWh/gal) | F50: =(-'Operating Summaries'!H15-OPEX!E35)*OPHOURS/(ETHMMGAL*1000000) -> 3.960668711
D51: Plant Water Usage (gal/gal) | F51: =OPEX!E29/3.7854*OPEX!B7/Summary!D12/1000000 -> 5.472809209

Sheet CB_DATA_ (hidden)
A1: Crystal Ball Data
P2: =_xll.CB.RecalcCounterFN() -> 
A3: Workbook Variables | B3: Last Var Column | C3: 0
A4: Name:
A5: Value:
A7: Worksheet Data | B7: Last Data Column Used
B8: 2
A10: Sheet Ref
A11: =CB_DATA_!#REF! ->  | B11: =#REF! -> 
A13: Sheet Guid
A14: 4bf45a57-6292-458b-8940-e5e9c9582e73 | B14: c56c15b3-aa1a-46af-82d5-6065da42a48b
A16: Deleted sheet count
A19: Last row used
A20: 34 | B20: 34
A25: Data blocks
A26: CB_Block_0 | B26: CB_Block_7.0.0.0:2
A27: 㜸〱敤㕣㕢㙣ㅣ㔷ㄹ摥㌳摥㔹敦慣敤搸㡤搳㑢㑡㘹つ愵㉤搴挱㡤搳㠴戶㐰〸扥㌴㌷㥣搸㡤㥤ㄴ〴㘸㌳摥㍤ㄳ㑦戳㌳攳捥捣㍡㜱愹搴〸ち〵㐱愹挴㑤ㄴ捡㐵ㄵ㐲攲㠵换㑢戹扥㈰㈱㠱㔰㤱㐰挰〳ㄲて〵㈱㜸〰愱㐸扣昰㠰〴摦㜷㘶㘶㜷㜶搷㍢㜶户㉤戸挸挷昱敦㌳攷㌶攷㥣晦㝡晥晦㑣㜲㈲㤷换晤ㅢ㠹㝦㤹昲捣摣戴戸ㅥ㠴搲㤹㤸昱㙡㌵㔹〹㙤捦つ㈶愶㝣摦㕣㥦戳㠳戰てつち㘵ㅢ昵㠱㕥づ散㐷㘴戱扣㈶晤〰㡤昴㕣慥㔸㌴㌴搴㜳㄰晥㡥㈴て〶㝢つ收〱㤶㘶愶攷㤷ㅦ挲愸㡢愱攷换㝤㘳攷愲扥㠷㈷㈷㈷昰㜳昰攰扤ㄳ晢昷㡤捤搴㙢㘱摤㤷㠷㕤㔹て㝤戳戶㙦㙣愱扥㕣戳㉢敦㤲敢㑢摥㐵改ㅥ㤶换晢敦㕥㌶て摥㍢㜹昰搰㈱敢扥晢敥ㅤ挴慢㜳愷㘷愶ㄷ㝣㘹〵㉦搳㤸㍡愷㝣㜰㔶㔶㙣慥㑤㑡摦㜶㉦㑣捣㑣攳㕦㙡晥㜸扡㘷㘲㜱㐵捡㤰慦㤶扥㜴㉢㌲㌰搰㜱挰㤹ち㠲扡戳捡捤㌳㥣愳㔸㙡挵っ㐲摤㤹㤱戵㥡攱㈴愳ㄶ㥤㜹散㕤捤㕣ㅦ㜴ㄶ愵ㅢ搸愱扤㘶㠷敢〵㘷〹〳㔵㠷㥣戳㠱㍣㘳扡ㄷ攴㘹搳㤱扡㜳慣㙥㔷昳㔱捡昵摤㤱っ㤱㥥㤸㕡晥挴㔴攰捣慣㤸扥㥡㔱挰㡤挹㘸㝢搴慦戴戶扤戵晢戸㥣扡㝡〳挷扣慤㝢㍢搴㥣㌳晤㐶换昱敥㉤攳挵户捥攰慥敥敤㔳㝢搴摡攷㑤摤晢愸慤㙣㙤㉤〶㘲晡㔶㍢㡡挵ㄸ〵㠲㝥㠲㈲〱ㄱ㘸㤴〸〶〸〶〱㐴晥ㅦ攰㤲㜴㐷㔶㘹㘵㔳㉢㉦㙢攵㡡㔶慥㙡㘵愹㤵㉤慤㝣㐱㉢慦㘸㘵㕢㉢㍦愴㤵㉦愲㑤㤲㡡晤晤㕡㥣扥㔹晡昵搹愷慦扣㙤晥昳㑦挹㤳摦昸搵㐷扥㍤戸ぢ㡤ㅥ㠸㈷㌵敢㥢㤷㐰㙡㑤㉡㍥㌰戱㥦㍦㥢㜳〵㤸挲㍡㘴摤㘳㑤㑥㔶て敤㌷敦㌶㜵㉥㉢〳昹㉤㠴㌲㠲戶㠳搶㠳戶㕢昵㉥㈹摣摤㌴㙤〶戲戹㜱攳㜱摤戴㔷㜷慢挱㙢㌶慥㕣っ捤㔰摥搸㕥搷ㅣ愴愳摢㈲搸㑡〶敡㝤㌷户㜷㍢㘷搶敡㜲敡戲ㅤ㔵扦戶慤摡㔹昰扤攵敥戵㐷㝤昹㜰愳戶㘳㐶㔳㄰㙡㙢㙡散㡥㔵㐶㔵搱扣挶㘶㔶扣㐰扡㙡㝡攳捥㠲㕤戹㈸晤㐵㐹㤱㈸慢㙡愹搷戲㉡收晡昱㜹ㄷぢ〵户㔶㕦㥦㉥戵敥扦ㅣ㠲㤹㘵ㄵ昳㕤㤵㝥戸扥㘴㉥搷攴㜵㉤㑤愲㜷愲㘲㙦㑢昱㔱慦㔲て㘶㍣㌷昴扤㕡㙢捤㔴㜵捤㠴愴愹㥥昲慡㌲㥦捦㈹愱〰㠱摢搷㈷㐴敥捥敥扣愰㄰㤱㐲㌱ㄹ昹㠶㔶戲㥢㌸㠳搵㘱ㄵ㌵㐹㥡搴摥戰挹㘰㥣慦㤲㌱ㄹㅣ㤸㕡ㄳ昵〷㕦晡挶㑤㠶㙤㘰敥㤵㙤慣㘹愳昱敡敦㕦㤳㙥㜸摣㜴慢㌵改㘷㙡㍦挱ㄹㄹ挳〰晡㔵〸㠴慥扢㐷㔵㈷㉥㡢㜵晤㤲㕤つ㔷ち㉢搲扥戰ㄲ愲っㅡ戲㔸攴搶㜶㈴攳ㅡㄴㄹ扢〹㐶〱㑡愵㕣㘱てㅢㄵ㑡㐸㌹㥤搲㈹㠳㤷㕢〴㌹晢戵昰昲愰㜵搴慥㠵㌲ㄲ捡挳ㄶ㌰ㄲ㘹㌵㠵扥㈱㤲愸㙦㔶㈲㠵戱挷㥡〱㤵㥡戶ㅢ慥㌷昹戶㠳㑢㈲㈲摡㤱〵摢㑥ㄶ㔰ㄴ戴捡㠳っ㕥〳搱戴㐹㠳散挶㈹㈲㈲ㅢ㘴㘸㜶㡣摣㑡㘴㙣㥦㈱㈳搰㍥㑤㠴㙣扤扦扢㡣㈰戱㜷ㄲ㈹㍢㜵攵挷ㅤ㘹戶㤱㉤ㅦ㐹戳㙢戱㜱挶㜵〴搷ㄳ摣㐰戰ㄷ㐰晣ㄹㄲ㡥㔲づ昹搶㘴扣〶捦挶㑤〴慦〵㠰㝣㌲㈸㜳㘲㔱㐵ㅢ㙡㉢㜶㈴摢つ挱㑥㔶㐶㜱㈴㡡㘸ㄹ㌷散捣㈱㐷㈱㍡戶㍡户㠷慥捤㉢ㅤ㝢㝢㜷摡㑣㉦㠷ㄴ㤹搱㌴扤搶㑤㥡愶㌷㠲㑤㝢搴㕢户愰慢㌱㐶昰㍡㠰㤲昱㝡㐲㈸ㄷㅡ扣㕢戳攸㘹㔲扥㉡捣愲挸ㄸ敡㔱挱挷㠴捣㈳㐰㠶㤰敢㌸扥散搸搰㌴〷挷慤㔷扤つ扤慦㍢㝦挷㐸㙦搳㥢㍢㝡㠷晥愲ㄷ㘹㐵摦ち昶ㄲ扦敦慡㘳㙥㐳戵㜱㍢挱ㅤ〰㙤㍡㠶愷敦ㄷ敢㈹㔰㘶戱㤳挲摣㙥㝡㕤㤴㤵扢戴扥㉡㤵〶ㅡ戴㤶㑣晦㠲っ攱挱㌸㌱ぢ㕢搸昳㝤㔹挳愱戶慡ち㜸㝥戹扥戵㌰㌸敡㝢づ换㜷㙣攴攰㔵愱ㄸ昲㜹慤㉦搷㘶㈳㘷搸㥡㈹㥦㔳㡡㜲愸㠳敦敥㉥㈴㔲㥤㕡挹㡢晤戲捦㤷㍢㤲愴〷㐹昲㈶㙣慢㜱㈷〰愴㠴昸㙤㔷㠹戲㡦捤摥慣㥡戵㕡慣昴昰㘵㥣㑥摡㝣㠸ㅤ㜲㘴㈰㜲搸㑥挳㝦㄰っ㌹㡢戶搳㄰ㄶ〳捥㠲昴㉢昰㉤搸㌵㔹㡡摣戲ㄴ㌵㍢戲攲㔵㈲㉢晡晡㍡捥搳ㄹ晥㌵㐵㈷㙤㔲㈲㤳摢㌳㉢㌳捥攲㑤愲愲ㅢ㤲㐲㈵挳㌵搴㤰㐰愴㍣戶摤ㄱ㌱㍤㠸㤸扢戰㜱挶㝥㠲㐹㠲〳〰晡㉦㈰㘹戶扡昱っ㠷昵慦搱愵㕤㉥攷㡡㐴㠳㜲ㄱ㍥摦㔵㔸ㅤ攲㙢摥㐲㜰て㐰㥢昹㐳〷㘴〶㈱㉡㤴愷〸㔱㠵㌱慣㜳戶扣㐴ㅡ搸㘵㈱戰㌴㔳て㐲捦㘱㘴㘹挸㥡昵㑥㝢攱慣ㅤ慣㈲ㄲ㌵㙡挵㤹〷㔷愴ぢ敡昲㘱晢戴㤵㜹慢慢戲㙡㔸㡢㕥ㅤ愲敤挴散㜶㌸㤸㘳㍢㘰㑢慡戳戹㈶㤰㝡㍢ㅦ㘳〸㠱㥤㔶晥㔶㝡㘳户攴晤收愱㙦戸戹愳㑢㜶㔸㤳〳㔶挴㜴捣ㄷ㉤散㈲㈲〷搵㝥㙢㘹挵㤷㜲㜶挸㍡收摢搵㥡敤㑡㈲〳㌶㈶㠳㜵㜳昲〲愲〴ぢㅥ㘳㠰㥥㍢㘴㉤昹愶ㅢ慣㥡っ㈸慥敦㙥㜹㔲㘱ㄱ摤㥡戶摤〰慦㔱㔸㘴㝥搸㕡㕣昱㉥㈱㘲㕢㜷摣㘳收㙡戰㉤戰㐲愲㡦㤲㐲㡤搰㠴愶㠹愲㔶散ㄵ㍦㍣㤰攷㜲攴扤㍣㠱挲㔵㑥愷捦㍣㐳㝢搳慥㡦㘳㌴戴搳㌹愷㐱㐴㡦ㅡ㠵㝤㤹㔲㤸㥣㙡摣挷㍥㙦〵㌸㜹散散㠹㘶㘴敥㈵挵慣㜵㝡昹㌳㘴扣㈲㡢㐶㈰㠴㍥扡㕤ㄱ愹戰㡣㤴〳づ〴挶昹搴㑥㝥㈵㑢戵㈱昵敤㙡㘶㡦㈲㤲㌴㘸捤㤹换戲㠶㜸戴㘳㠶扢愲〷㥡戱㡥㔹ぢ攲扡ㄹ捦㜱㑣㤲ㄶ挹㜲戱㘲㤲㠲愷敡愱㜷捡㜶つぢ㐰搱㕦㕣㘴㕥㐶㤱㜹㔹ㄵつ㕡㘷ㄸㅡ㔴㜹㡥攵㕤㌰㝤㍢㕣㜱散㑡㤱てっ摦㙤ぢ㥡〴㤳㔳昲㈶㈹㤱ㄹ㘳㙤搶晣㔹㤸㙣挱〴搰㍤〱㌹捡慤㈳晡㐱戹㥡㈸攰㐷昴攸㔸㠲㠰㔱㥥㔲攳敤ㄸ㑤㔷户㈳㈰㜲㔴扡㥡摣挱戸晡ㄸ㑡㈲㈱㐴慣㘷㤰〸扣㠲㈹㈱㑦ㄷ㜷挱㍡敢摡㈱戰㐷㡣ㅤ戵挳搹〰㈸〷㐰㔶ㅤ㙦㙦㔴㔸㑤㜵ㅡ㙦㘸㠵㕢㍡慢㕡搴挴捤㥤昵㘹扤昱㠶つ慡㈳㡤㤲㔲㈴㥢㌵㔲㥡㘵㠳㌹㙥㈷㔵㈳㤴攲㑥戴㡤挸㜲㥢㌶昷㥤㔲攴㈵㈸㈶㐵㌳㌹攳ㅤ㡡㔰㄰攸㡤㜵ㄴ㝤昶搹攴㤱㡡搸搰〶㈸㔱㑦㐵㘵㐳㜱㐸昰〴慥㥤㔴㘵㈹㝥〲㝦敦㡡戳昳昵戰愵挶扣㍣ㅡ搷㑣搵㙡昳㉥慣㠴㡡改㔷户〹㑢㘳㙤㤱㠶㔱摣搹慢昶㡦戶㌷挵㠸㌱ㅢ㌲㉣㤲攱〷〶ㅢ㠲戹㔲ㄱ㔵㕡㘷㐳摣敡㐶㜱㤱㑦愷愴改㉡っ㉣㠶搵㔹戹愶捣戰愶㈵㍦慡㍡㌴㑥㡢㑡㡥ㅡ搶搴㜲〰㤵ㅥ㔲㡥挷㌹挵攰㠶㜵㠶㙥㈹㕣㘲㠰搸㡤㜳ぢ㤵㄰愱摤挶〰㍣ㄹ㙣ㅦ散㘰㐷愲搰〹慤㌳㑡搰㐲〶攱戶㉥㠲扣搳㈳㐶㈱㐸㉤㤵晥㝥㐴㝣攱㘹愶㙦ㅣ挹㈵㤹㤸㠹ㄸ敥捡戰ㅥ㠰摣㜴㘴㤲㕣㌴㥡〴捣㈳挹愶㠴搶㘰㔲㐶ㄳ㘳㠸㈶㥦ㅦ攲ㄶて㘳㔹挳㘴㥢ㅡ敥戹㠵㌶戴㘹㙤㝤㤷㜵挲慤搴敡㔵愹㔴㜱㈲慢㤵㐶摥ㄶ昸㔲㔷〰㈳㙥捡搸㤷㜸㔳㑥攰㈸挵㈵ㄳ㐹扤摢摤挶ㄱ㜴㔷㐲づ㘳㐴慡㡦〱挸っ户㥣ち㠸㜵摣㔳愰㝤戸扢㜹㠱㐱㕤㥥㠳㐸敢㈸愲㉣㥢挳㝤扣㐶ㄴ㔹㜱㕢慡搹㥣㌷攷搱㘶㑦ㄵㅤ户愳愲㙤㠱㈳慣㌳ㄲ㜸㠵〲㡣㤱ㅥ戹㠳㠳攴慥挶搱摤慢㡦愹挷摣㔵愰㐲㘱㐰㌰挶换㔳㔰づ扢ち㐶愲挱慤㌵慤㙥挱攸㉦㉤㙦㘳ち㐰㌰っ㑣㠳ㄶ㉤㈳〳㘷〶昹捤つ㥣㕢搰㉡㈳㐲㥡づ愶㌲㐶㌹ち㠷㍤㤰〶㙥攲㐱㝡挹㠳ㄲち昷愸㡢㘱挹摤挴㜱〷㐷㈰捦扦慥慤㜰挱っ㜱晤挵摤摢㔶㍣㔵慤搲摣㠵㝦㙥㕢㘰ㄵ㔷㌷㈲㜳㜴㑦摢愵㉣戵㈶摡㜷户戶㔵挴㤷〵て捣㑥ㅣ㌷挳捡捡㘲戸ㅥ㕤摣敡㤵㈴昴ㅦ挱ㅦ戱攱摢㘹㌳攷㕤㕥㐴㕤攳摥㤷㉥扡摥㈵㔷捤㑢て㜸敢てㄴ㠲㉢㤴晤㥣㘴㈹昷㙦晣愸愴攵昴ㅦ㘲挴慤㑣㥢〳㌴ㅤ㈴ㅣ㐷愵㐸ㅡ㡣㈱㥦㐱㈷戰摤ㅢ户〶㐸㈷㝢摡攸㐴〹㠲ㅤ㐲㜱㉦扣㙣㠴㈲㝥〰戴㤲㔸愲㈳㌹昶晣敢㘰㝤昱㝤㤴㄰攱㜸㡥挵㠸晥㍡攴㌲㔰愷〴㜹㝣挵㠳ㄷ㐲晥㝦戰㤴㜰昳㠶散昴㕦㘰㘶昱扤㜶ㄴ摤㑣ㄴ㝤户〳㐵㠲搷㐰ㄴ晦㥥㐴㈶㐹㍡挳戳㉦㉡㄰捥㌵敤ㅣ㐰㕦昱ぢ扦晦挳〳攸㕣㑣ㅣ捡㐶㐳愸敤㌶㍣㌷㑣㠴扥づㄳ㠱挱㝢㘵㈲㥣㐲㐶㌰㡡ㅦ㤹〸戱て㘴ㅥ〵㥢㥢〸㡣敤㘵ㄸ㠲愹㔰㙢捡慤挱ㄳ搸㜵づ晤㘳挷㜱昱㔶〶㠸攷㐳㘹〵㌳昰㐸㕤摦㔹扣㘰晡愶戳㔷㤵ㅦ昳㈵㤴㤹扦㠴㥢摣慡ぢ㝢摣戸㘱㡤敡戴㠱慦㈲昱戲敦昸㔳戶㜶㝦ㅤ㤸㡡㔲攴扥ㄷ㐵㔱㜸〹㥥ㄲ挱㜳㐳敥〳㝢扥㜹散て㡦㍣㝥㠴户搵㘲㕡搵敦㐴扥㤷㤰㍤敤〹〴㜵㔳ㄷ㐵慥攵㠷㌹愷昰㠹㤲扤㕡㤳搳愶慦慣愰挰㜰㤲㙣㐴㜸㈹挲㡣㠸㙦㍢㤸㤸戸昷㄰㤹㤸ㄳ㙤敥㑥昵㘱㤳㜲ㄱ㑥愴㈶慥㝣㝡㐹搸㔰㜴㔵㘴㍤㕡㥢晡户愱㡡㕥攴㐴㕡慤㐴㥥㍡㤹㠴昸㔶扢慥㍢㐴㕤ㄷㅤ㘴ㄸ昶㑦愴ㄴ攲て愴㤰昴㐱㠶ㄷ〲㤴㤴㍡㠳㡣㝥ㄷ㐰㐶㘴慤㍤挴㑢㝦挰㡥㄰㤰㡤㑢㝦㍤㝥挴㠲㕤〴ㄶㄳ㕦㝣慦㈷㕡摡愲㠹㙡㘲愸㔶搹㌴㡢挸愸挳ぢぢ㈶㤳搲㈵㘴㤲愴ㅦ㐰㙥换敥㈸扥㘴挸㠹〲㙦ㄱ㘳敢づ㝤㙤㈵攷㝥户㡥㥢ㅦ搰㌳〵愵㌰摣摤㉣挶㠱㔴挵攸愲愶愵愸㠸㜰㌸捡㌶㍡つ挴㔵搰㔹敥㕥㥣㑡ㄱ晣攳㤷㐲慣ㅦ㙦づ㝤㙤㝢つ㜵㥣摢㡦〵昲ㄷ昶搷捤ㄹ㡣㡤户㤲㘳㈰㘱户搴慡ㄸ㕤て㍦㡢㉥㕣㜴㑥ㄸ捤慣㝡ㄶ㠷昰㈷攱慣㍥慤㐳晦㌳㝡慤㌸敢ㅣ㝢㌳㡣摤愲晦摦㡤㠲㑤昵扦㘰散㑤㈱昲㍤㜱㠶て㍡攳㈷㥢㠶㙣戸㈳昰㙣㈳㜸愳づ挶㠶捡㌲攴ㅤ攵ㄶ昱昱㙡㔴慤㈴㌸晣㕥昹昶慢ㄱ㡤扥戴㙤〷扡ち㐰挶㠶昴慦㐳〴㜵敤摦㉡户㤲搳㙤攱扤攸戸攷㤴㕤昱扤挰戳挲戱㐵〴㝤挷昸敤㤹〵㥢㘷㑡㝣慤㕤愸摤㡡㥤ㄸ㝣㍦晡㥣㥥㠷挰㍥㉤挳㤷㉢ㄶ挹挸挲搶㈲ㄹ晣づ㘹㈴ㄵ㕥愲㜶〸慥戱ㅥ愸㥢㌵㝣扡㍡て㕦㘷挸愲㙤愱散㈲㡦㜳晢つつ㙥ㅤ敥㘸扤ぢ晥㈰㔹㥢㐰㜰㑣㉤攱扤敦攷扥戶敦㐱㙢摢㜸㙤〱㕢昶收㜳㉢改捦〲愷㕢㝢㑢㉢挹昰㥤晣㈲戹㘴㤴〹㜱㘹晦〸晥㙥摤㐱换搱㐶㐱攷昱〷摤㜴㠴㡤搷攰㍥摢㐲昴晢㍣扡㡡㈹〲晣ㅡ㘶㥣攱㠳愰㤷㡦慣㈸扥㡣㘵㤱〱㤰捦ㄵ㉡〰摤愹晡㤹㡤愸㝡攴㈴㝢㈲〹㥥㌱㐸㡥㈵昱㐵㌴攴㜶㐵换〶㑢㜰搹㐲㥤㈵㤰㌷㤲ㅥ挸攷〴捦ㄲ㙡㈲㥦㐷㠷挶㐴㙣㤴㜶㥦挸攷㌶㥡㠸愰ㄵ愰ㄶ㥡ㅥ㝦㈴搱㈲㐶つ搵㠶㐳攰ㄲ㜸〰㈳㠹㌲ㄹ愶㝣愴搰㈹㐴㌱㠶敦ㄳ㐵㐸扦㡣晦扥㜰攴ㄷ捦㌳晤敤㠸㔰ㄲㄱ㔵慤慢愰㐴㔴慢㜸㉡扤ちㅦ愵摤㔷昱攴㐶慢ㄸ愱戰攴㑣㡣㄰㘰愸㑦㤴昱㐷慤慡㡥っ㌷㤴扦攲㍣〱㝥㕢㘶㌱㘲愲㐴昵扤㠴っ晡㜲攷㔵慢换挸㈴㝤㜵㙥㐴挶㔷㍥捡㔰攲㡤㐸㍡㜵ち㤱㔷戶㄰愹挷愲ㄳ扢㘳户㠵㤰挰㤲昸搹㙣㔷搹㕥攸㌱搴㉦㥥㐸㄰㜳晣㜸昲〹㤵ㄶ〷㥦㐰ㄸ㤱㘹㑡㐲攲㐶㡡㡦㈴㡤扦昳㕣搳㜷㡡ち㈴㔰㑦搴㤸〴愷ㅡ㝦㌸㘹㝣〰㥦㘷愹㌶㌹㕥㈵㘰㝡㈱㘹㑣挲㔴㡤ㅦ㑦ㅡ晦昵挰摥㐶攳㠴づ愳㤱㜵ㄲ㐹㠶搱慢㡥〱愹㑦戵㠷搱㕣户愸㐸〷慣愸㤸㈲㔴挵㤰㙢㑡㤵づ攲㔶㠸㡦㡦愵攷㜰挹〹㜷㐱㈰㙤愳晦㌳攱〴㉥㍦捤㥡愱㠹㙦愱搷㄰㜵昶つ昵挴捥〵㙢摥㐷㐱扦㜵㈲挰攱慡扡慤㐸〴㜶㐱㍥摡摦㑤扣昳ㄹ㌶㘴㜳㍦㤲㘸㤹挶换㈴扤㘹ㄱㄵ㘱挹㡢て㈶㤸捤㕤㘹搲㡣昱ㄸ㤰〳㌱〹挸㡣㜱〵㌰㡡挸散㘱挱〸昹㕦㌱昷〷㔹昱㈱㠲挷〱㑡㠲捣㑥㍡㈸㝣ㄸ㘰㌸昹ㅦ㉢挶搶㤴攳㐴ㄳ㡦㈴㉦㑢㤳㤱昱〴㍢㝣ㄴ愰て㝥㕣ㄱㄳ㘱挹昸ㄸ㑡搲㉦愵攰㔰㉦晤㌸㉢㍥㐱昰㈴㐰㐹攷㘴户扣㙢㕣㔳㡦㉡散㤳攸㉡慥㄰攰搷㜸㉡捥昰㐱攷㍥扣慤扢搱捣㌳㜱昲㠵㍦㘲㥥㉤㥦昲摦㡦㑦昳搷戹攸㍥晣捦㈴扡戲昰昳摡㕢㝢ㅢ㡢㑣㐰攳㕣晤慥㘲戳㕦挲㌸㕣㔷㌳㤴挲ㄱ愹㔴㡡㕡㐱㄰摦㕣戰昰昰〶扥攵戰慡㄰㠲㌴愰㉡摣戸攲〸ち㡣㑦戳㈹㜱㑣㍣ㄹ㥦攱ㄳ㔱慢㌶昱戳㜱㠶て㠲㜸㔵摤ㅦ㡡扢㈷㉦㈴慥㔵㠵摤昶㐲攲㕦㔵慣愴㕦昸㌴〷㔳挸㐲愶㔵㉢ㄱ㘹㡡㠶扥㠸捣㔰摦㌰攷昶㈰㝥戵换愲㜲扥㝡晥晣㍦㠷昳㘳㌷收摦晤捥挱愷㕦昸昹ㅦ㍦昵㥢昷ㅤ晥换扦㥥㜹收㌷㝦晡搴昳晦晡搱昲攱㥦㍥晢散㑦㑥㝥攵昹㍦敥戶扥慡㍤昷捦戹慦㍥㍡㜹昱搱㠷慤戳㜷ㅥ㝢昴㍤て㍤㌰戹㜰捤㜸㕦㕦㝦晦ㅤ愳㍦扢攱㡤㈳㔷ㅥ晥㥥昸昱敦慥㜷㠵㕡㉥㕥搰㍡つ㉥㕢㑤攳㑢挸㘰ㅡ㥣昱㉢㍡つ㉥㔷㙤搴㜲扣㔱搳㈸㈸挲戹挱〹愸ち戳戵㘲攰㍦㜳ㄵ戳扥 | B27: 㜸〱敤㝤㜷㝣㕣挵戵晦㡥愴扤搶慣㈵㙢〱摢㠰㘹〲っ㌱搸㠸敤挵㘰㙣㑢慥攰㠶㙤㙣挸㉦㐴扥扢㝢搷ㄶ㕥慤捣敥捡㠵㤰㔰㐲ぢ㈶戴㐰〲挶愱㐳㐲㜹㠴搰㡢〳愱〵〸㠴ㄶ㝡㠰㄰㐲昲㘸〹㈴㈱㘰〸攵㝤扦㜳换摥㉤㤲㡤ㅦ㝣㝥晣昱慥攵戳㌳㘷扥攷捣捣㌹搳敦摤扢ㅥ攱昱㜸㍥挷挵㑦㕥㑤っ散戸㘰㑤戱㘴昴㜶㜴昵攵㜲㐶扡搴搳㤷㉦㜶㑣㉥ㄴ昴㌵戳㝡㡡愵㐶〰戴敥ㅥ愴ㄷ扤摤挵㥥愳㡣收敥㤵㐶愱〸㤰搷攳㘹㙥㤶つ㐸㙦戱晥晢敤㠸愴㤴㙣㈲〱捡㈳㌵㤲㈱㈴捤㈴㤲挴㐷㌲㤴㠴攲戲㤵㘴ㄸ㐸㑢ㅢ挸挲慥捥戹愹㈳㔰㤸〵愵扥㠲㌱慥㝤㤱㤹攵㠴㘰戰〳晦㈲㤱㐴㐷㘰㕣㝢㔷㝦慥搴㕦㌰㈶攴㡤晥㔲㐱捦㡤㙢㥦搷㥦捡昵愴て㌲搶㉣散㕢㙥攴㈷ㄸ愹㐰㌸愵㐷ㄲ挱㐸㌴㥡㑤㈶ㄳ㉤㝥㘸㥥搳搵㌹慦㘰㘴㡢㕦㤶捥慤愸㜳㙥㔷㘷挷ㅣ愳昴㘵改摣ㅡ㍡愱㜲㑡㕦慦摥㤳晦㤲㤴㝡改㤲昰ㄴ㈳摤㐳摦ㄹ㐶愱㈷扦戴〳挵慥㌰㌴㘲昱㡥㘹戰㜸㕡㉦㤶扡㡣㕣㙥扥㤱愵摢㕡㝡㘹㌳愳㘰攴搳㐶㜱㔸敦搴搵㘹㈳㘷㈵ㄷ㥢㝢ㄷ改㠵㌹㝡慦搱挴㐰㕢慦改户㤹ㄹ㈳㕦敡㈹慤㘹敤㍤愴㘸捣搷昳㑢つ㐲扣扤搳晢㝢㌲㑤㑤愲愹挹搳昸㡤㝡㠵㔱扥改㤸㔶㐸㜷㉤搳ぢ㈵ㄵ愳搷㠲昵戰慥ㄶ愲ち㕥㔱㉣戶愲昶㉡㈹扡㘹㐱㑦敦㐱㐶㈱㙦攴㤸〹㥤㌷戶ち愴㙣㘲㥡摥㌱㡥㕤ㅢ㍡㐶っ戵扡ぢ慢挲㕣攴㌶㈴挳㐱戴ㄱ㈰㑤ㄳづっ㐵攵㐸昲戶〵ㄱ㑤㙦愰扦戹㘵搸收ㅢ扡昵㠶敥㔴㐳㜷扡愱㍢搳搰㙤㌴㜴㘷ㅢ扡㤷㌶㜴㉦㙢攸敥㘹攸㍥愲愱㝢㌹㌰昶搵㍣㘴㐸㠳㜵㥤昵攱〱捦㙣攸㍡㜶摡㔵敤㘳ㄶ摦昱攲搲㡤㠲㕤㑣昵戵敤ㄱ㤰愳㐰戴ㅤ㐰㔸㠶㤰摣㤱扣㥤㐰㠴㜸つ㘵㘰㌹昴㜵晥昴ㅦ摦㍣㜷捥摡㉢扦户戰㍢晤攸㔹㠲摤㔳㈹搸㠵攰㜶㄰㙤㔷㄰㉡〸换摤挸摢ㅤ㐴㠸㤷㉣〵挳㤶㉦㜸敤㤲搹摢㜷摤㜸攰㐹㝦戸昱愳戵㕢㜹搹戵愳昵㑣㔸敤㥤挹挵㘲㝦敦ち㡥㉥㔶换㔱㐳㐱敦㤴㘲㘹㥥㕥攸㉤㝥戹㑤っつ㙣㔳㙤㙣㜲戱昷慢㙦㘳挸攴㑢㘹㘳摡ㅥ㌰昳㤸㠵㠵ㅥ昴愴晥㥣㕥ㄸ㌷扢㈷㍦㈱㌰㙥㔶捦㜲㈳搷㘳ㄴ㑢ㄳ〲ㅤ㠱昰戸搹晡㙡〶㘲㜲㑦㍡敥ㅢ㈰摡ㄸ㤰挶〹㥤㐹戹ㄷ㔹㝢㠳〸昱㡣攵换晣晣㙢扦ㅦ㍡昳搳搹ㄷ㕣戱晦搴㠹㤳㕦扡㑣戰慢慢挶㌰㡥攰㝤㐰戴づ㄰㌶㠶㠸摣㤷扣〰㠸㄰㡦㕢ちㅥ㘸昲扥㌱昲愳敢㈷㥦㤶㝡攴昰㥢慥摢㈵㉦攸㔲㌶〸㉤〴㌲戶扡戸ㅤ挱㜸戴愲挸㈱慢挴攸㉦㘱〸挸〸㐵愳㈰㑤ㄳ㍡㠳〱ㄹ㈳㉦づ㈲挴㐳㔶㡥㠱㈹戱挸㥤㙢㑦散㕣ㅢ㝦㜷慦戹搷㕤改ㄷ㥣㑡㔴㡥㐹〴㙡㜳慣捡㌰㘹㘵㤸㡣㈴攴㜸㙡摦㡦攲晢㠳㌰挷愰㥣㐰摥〱㈰㐲摣㘳攷昸挴慤㝢㥣晣挹换㌳㙥㙦㑣慤㝢晦㠲㠵㑢〵攷㉤㤵攳㈴〴㐶㔷搵㌱攸慡㕦戰㈳慡戲ぢ换挹㐰捡㑥捡㜵㠱㌰慢㤸㥣㐲摥㔴㄰㈱敥戰戲㍡攸愹挵昲戰㌹㠹㘹愷㝤戴㝣搶㡦晣换㙥ㄴㅣ㈹㔴㔶搳ㄱㄸ㔷㤵ㄵㅤ敤捡つ搱愴㕤扤㘰㐸捥愰晡㤹㤴㍦㄰〴㉤㈰㈱て㈲㙢ㄶ㠸㄰㌷㕡㌹㉥晡昰愴ㅦ扦㕡散㤹㜳晡㠵攲愸昳㕢攵ㄸ挱愹㔸攵㌸〷㠱扤㙡㜲㑣㔴㘴㘸㘷㤷っ挹戹搴㍤㡦挲〷㠳㈰扢㤸㥣㑦搶〲㄰㈱慥戵戲㝢㍥摢㝡搲つ㍢㥦㌹改摡敢㥦晡搶㐵㙢㤷慦ㄵ㥣昴㔵㜶㠷㈰㔰㙤换㤰㉢戳戰㘵换愸㕣㐴戵㡢㈹㜷㈸〸㙤ㄹ㤶㠷㤱昷㑤㄰㈱慥戰戲ㅡ㙤散攲晤攰愱搹㔳㡥晦攳〵搷晣昹挴㔱扡攰搲㐲戵敤㙦ㄱ㝣㌸㠸昶㙤㄰戶敤愰散㈶㙦〹㠸㄰ㄷ㔹ち㡥晡换愹㍦扤昶㠶㝦捤㌹昱搳晣摦摥挹㑦晡扣㈵㠵攴㠳慤愱㝦㑡㐱㕦㠵昹戳㍣㌵㠷㍡㘰晦捤㔹㤳㘰㐹㤲㡤㘶攳搹㘰㌰ㄳつ攸㘱摤换挹㘳㜳㘷㐲捥㌱㉤搹挵㍤昹㑣摦㉡㌵㌵戶㘴愷昵攴㑡㐶㐱㐵摡戲昸㌰愷㜷ㄵ㙦捤㑥㕤㡤㜵㔱摡㥣㐵㠷㘷扢㡣㐲〹敢㠹搲㥡昲戰户㘳愷㕥㌴捡搱戱㤶敥捥扥晥㝣愶戸㐳晤挴〵㈵扤㘴㡣慡㑥㉢㉢愹ㄱ㕢㠰戵㠶㔱㔴㐵摡戹㕡㙣㤱㥥敢㌷㈶慦敥㌱㤳㜷慡㑡挶慡愳㉦㌵㜰敡戴㠲㜱愴㤳㕡㔳愲挹㔸挹慥㔴扡㙢㙡㘹㈶㤹攵㙡敦㕡搶㔷㌴昲慡㜸㘳㝢攷昵愴㤷ㅢ㠵〵〶搷挱㐶㐶㔵㜵〴㤳慣愵捦搸戹㜹㔴ㄴ㡢㤹捣㙥㙥㉥つ㙤攴㌳㐶〶攵㕤〱㉢慦㔹愸愷㜲挶挸ち㠸㤹㈷ㄲ戶慦㘰㑦敢㑢昷ㄷ扢晡昲愵㐲㕦慥㌲㘵㜲㘶愵㡥攵㔶㘶㜶㕦挶㘸㔲㤷挷愴挲搳搸㈸㠴㘷㑣扤㐹㤷扡㡢㕣搹戸ㅡ〹搷㑦㠳㠳㕤㡤㠸攰扡㉢㈲㐷㌳〲慥㐶㐶晣㕥㠳㤶挴摤〸㠹づっ㡡慥搳㐸㈹戴㕤㘵挷敢㤸て晦挰て㌹㠳扤戲㘱昴挰㉡换敤㜲ㄳ㈵㜵㜹㠵摢ㅥ愲〷㌱㥡㔲敢戴扤慦ㄶ摣搰戰㡤㔵晢愹㉢戱愸㥥愱攷㌳㌹愳㌰攸愶㑤戰㐴㌲㑤㤲㈱㌱㐸戲㈴㑢㐱扣攷㘱㡣ㅢ搰愲㕣㔲㡡搵㘲㡤㜷㔵㑦愶戴㑣㕢㘶昴㉣㕤㔶〲て㥢扤收㘶㥡扢收㤲㍤㘰挹㈳㐸戸㙥昵昹㍣㕡㡥㈰捤㈷㝢昹㤱〷㘹戳㜷ㄵ敤㘶换昴〹㉦㐷戳㉦扥慥㙦㠰㤴㔴摢〸散昳㡡摥㕥攸㉤㌶㌶搶戳挶っ扤戸慣挴㡥㌸㘸愲㕡挱昷㔱改ち㤰㤶㈳㐱收捣㌰㜲攸挶㕦搶ㄶ搱换扤挰㈶户㈲摣㕡㡣散㕤戰㈶㥦㕥㔶攸换㘳㥦㍤㐵㉦改㤳搳搸㙦ㄵ㠵慥昵捥敡敢敡㉦㘹扤㌳㝡昰搱搲㍢摦㔸㘱攸愵㉥っ搳愵搶摥㔹搸慢愹㜱㜴㘶㘶戵户搷摣㘶㑤㌱㡡㘹挹晤搸㑣っ㑢慢㌵㠴㌰捥戶昴㜲愰㌱㔶㤷愸㝡㐸㉦㤶摤㘸㑥ㄲ愰戱㑡捡っ㔱戲㔵昱㙣㘹㥦ㄵ㠳〶扦ち扡戴っ㔵っ㔳㤳㠷㉤〷㌳㈸收搹㈶㡢㔶昷愰㐳㑡㍤戹㘲㠷㘵摥㡥㈹㝤搸慦ㅢ敡愴㠱㘶搷㌴㌴㌰㙤㔰㘷㔵㜷㜴㙥攸收愶㔳愶㕡ㄴ㘵㝡愱慦㝦〵ㄷ摣㕦㤶ㅥ敡昲挸〲挸㐵晦戸㝡扦㍤㝥晡㡢捦慤捦㘳搰㠵搴㈵戹攷㤳㙣敦㡣攲㐳㕤戲ㅦㅦ扥挱搲扣摣ㅣ搶ㅤ㘹〷搸㝢㜲愷搶搲㡢摡㉥㉣ㄸ㙡㌳摤慣㈲㙢㔶ㄸ慤扤㡢晢ち换㔳㝤㝤换改晣㘱㉡㔶㕣㘶ㄸ㈵敥㔰㠷㕡ㅢ㜲㠶㠵㄰㡤㡤ㄵ㕢㔱搷㔶㤶つ㔰㕢〳搲㍡㌹㤷㙢户㌵ㄶ戵愳挰㙡挴㡣愲㝤㠷〵㤸戲㌸ㄸ〸㈴扡㍡㔶攷㡡扤攲〴搴㤸扢捡ㅢ㐷攴ㅥㄸ㜵昵㉦愶ㅤ晦捣ㄲ攳挵捥换搷㡡敦㕢〹㌵晢㔵㙥㔳搵㜶昹㝢〸挸㘳㐸㡥㈵㌹㡥攴㜸㄰昱㕤㠸㜲㝣㐲戸昲㤲㈷㈰㉥㑦㈴㌹〹〴愳㡣戲㍡〶㤹㔳挸攳㈰攳ㄳ㠲㕢㘰づ㉣昲㔴㤲戵㈰㠲摢㘰㜶㐱㡦㍣つ㘴㐰㍦㜲摦㕣敢挷㌳挰昵挹㐱搲〴㌷搸昴愵愴敤㈴慤㈵㘹㈹㜱㠴㘵㠳ㅡ攳昴㔸〹㌵㝢昱㕤㈰愶㡣㜳ㅥ㤵㥣㑦戲㡥攴〲㤲昵㈰㈲㍤愰㜱㉥㈴收㈲㤲㡢㐱㕣挶戹㤴㍣换㌸敤〸㉢攳㕣㑥收ㄵ㈰㘲㌷㄰搳㌸㔷㈲㌴愰㜱㜸㈶㔰㙢㥣慢挰昵挹㐱搲挴敥㐰搴㌳捥扣㠱㡣㌳搷㑡愸㌹㘷搸ㄳ㥡〶㔹㈷搷散收㉢搶挹㌵㉢㐰㜳ㄲ晡扦㜵敥搷㙥㥤㕢戹挶摤㝢ㄳぢ扢慡㔵敥㠰㙢㥡ㄴㅡ捦晦慤ㄲ慢㡦昶捤㔵攲つ戰㡤㤸㍤攰挰㜲ㄳ㤲攵捤㈴户㠰戸〶㤶摢捣愸攰㌱㤳ㅡ㔴㙥㈷攸づ㄰敦㕥㈰㠳㉦㜸搰㕤戹昰㙡攲昱㕦㙢敦ㄴ㈳慢攳㉣㕦㉤㔲㠴晥晦㜳つ搳㠴㍢㈲慥〵捣攰㤵㐰搹戹㍥搰慡昷㍦㤵挷捣㌸晣捥㑣㌷昲ぢ㌱㔱ㄷ扦捣愵挹㤷戹挴㤱㜷愲ㅥ昶攵㥤㠲挶戰昹㜵㠲戹㍣㐳㔶㜲㝤搹摤敤㘹㘶つ挹㤱㍣㜸慣㥤㌱敥〶搷㌷㔸㥡搸ㅢ〸㘷挶搰敥㐷慣ㄱ㡤挵㥣㔲挷て㌴㙢㈴慤㠴㥡ㄳ捤㜱㤰㔷㔳敡㐳〸挸㠷㐹㝥㑢昲〸挹愳㈰㈲㍣㘰换㝦㡣㤸挷㐹㥥〰㜱戵晣愷挸戳愶㔴ㅥ㤲慡搶晦㌴㤹捦㠰㠸㝤㐱捣㈹昵㔹㠴〶㥣㔲㍢㈸㤰〳㐱〱㥣搵㡥㝣〱っ㥦ㅣ㈴㑤〴㠰㜰っ攴㕡㙦戴㕢㌶愸㔹㙦散㘲㈵搴㥣搶㠶愱㠹搳慡㝣つ㐴散〴㔸晤㠵搷敢挴晣㠵攴慦㈰㉥㐳扣㘱㐶㐵〴㥦捡〸㙦ㄲ昴ㄶ㠸㠸㠱㜰ㄸ㤰㙦㠳搸㤷ㄸ㡥㍣搸扡㔴ぢ㠹㠲㕤㙢㠰㜷挱昵挹㐱搲㐴ㅣ㠸戲〱搸㐲捣搶攱戳敡㔹㘳〰㘹㈵搴ㅣㅥ㡦㠷慣㌲挰㐶〴挴㄰挰敡ㅢ攰㘳收昱ㅦ㤲㑦㐰㕣〶昸捣㡣㡡晤昰愹っ㐰㐷㑡㜶〰挱愳㘴㘵〰㡥㈷昶㈵㍥晢捣㘵㠰晤挱慥㌵㠰ㄷ㜸㥦ㅣ㈴㑤ㅣ〰戹㝡〶㜸ㅦ捡敢㉥挷晦㘵㈵〴慡捦戲㈷㐳㤳㌲挰㌰ㄶ昹ㅦ㠰搵㌷㠰ㅦ挹㜲㉢㤲慤㐱㕣〶ㄸ㙥㐶㐵㈷ㄴ㈹〳㡣㈰㘸㈴㠸㤸〲㤶㌲挰戶㠸搹㤷㜸挳㙤〰㥥㠶搷ㅡ㘰〷敡㤴㠳愴㠹愹㤰慢㘷㠰㔷〶㌲挰换㔶㐲捤〹晢っ㘸㔲〶ㄸ捤㈲晦㘱㐰〳散㠹㘴昹つ㤲㌱㉣㕤㜹敦戱户ㄹㄵ㌳愱㐸ㄹ㘰㉣㐱攳㐰挴㐱㘰㈹〳散㠳㤸㝤㠹愷摣〶㌸㄰散㕡〳〴愹㔳づ㤲㈶㘶㐱慥㥥〱ㅥㅡ挸〰て㕡〹㌵〷晥㜳愱㐹ㄹ㘰㍣㡢晣挰㠰〶搸ㅦ挹㜲〲挹〱㉣㕤搹〰㤳捣愸㤸〷㐵捡〰㤳〹敡〴ㄱ昳挱㔲〶攸㐲捣扥挴〶户〱づ〶扢搶〰搳愹㔳づ㤲㈶ㄶ㐰慥㥥〱㙥ㄸ挸〰扦戴ㄲ㙡㙥㐱㉣㠲㈶㘵㠰㜹㉣昲㉦〶㌴挰㝣㈴换〵㈴ぢ㔹扡戲〱ㄶ㤹㔱戱ㄸ㡡㤴〱ㄶㄳ㜴㈸㠸㌸っ㉣㘵㠰挳㄰戳㉦㜱愵摢〰扣㠹㔱㙢㠰挳愹㔳づ㤲㈶扥〹戹㝡〶㔸㍦㤰〱㉥戰ㄲ㙡㙥㡣㝣ぢ㥡搴ㄴ㤹㘵戹㤷㤲㉣㈳改㈱㌹〲㐴㥣㍢愰㔱㜲挴昴㤲攴㐱㕣㐶㔹愱㜸搰㡣㉤㌹敦戵㈸挳ㄴ挸㉣㠲㠸㙥戰捣㈹戲㠴攸㠰㔳攴户〱慢㌵捥㉡㠸昸攴㈰㘹㘲〹攴捡挶㌹㡡㕡扥〳㈲㡥ㅦ挸㌸挷㔹〹搵㌷㝤扣㍣㐲慤㍥挴㔲て〸㌸挷攱慥㉤挸㌰㠰戵散㈱昹㥥㔲㜱㘸㜶㜲㝦愹㙦㕡㑦〹㙢挴㤶㉣〸㠲㑡㘴㤴㍡㌹㜶〹㡤捤㉥敡㌱㔶㜱㜵戸㑢㙤ㄲ㥥㥤攸敡㉦㤶晡搴昹摣捥戵改㔳晡收昴㤵愶昴ㄴ㔷攴昴㌵愳敢㈴㥢㈹㡢㤷ㄹ㜹摣捡㈸攰㡥挶愶㐰㝤㉢㔶ㄸ㤹㍡㘵㕣搰搷㕦㐸ㅢ㌳愷㝣ㅤ㙥㠶〸昳愰搱㠳戳㉣捣慤㘲㡦㠱昷㠸㉥扢晢攱㥢〶㥣㝦㠹㉤㍢㑢搷㡥㐵愳㙢㔸扥ㄸ㈷㔵〸攰㤰㔳愰戵换攳搹ㄲ㝤ㅥ㙦㘶㤳慤挴㜵㠷㘵㈸挰扥㉣㍣㙢昲㕡慤㕢㜸㌳昳挵㥥㡣攱戳㘲戸扤㍦捣ち捥敤㉦㔵愴攸慢户戱㔲㜰㑥㌷㌷て敦愷昵㐲收敢攰ㄸ㔴っ㤷改ㄵ愱攱摦㤶搹摡㔴攳昱扣㘷㍦愵昶摥㌱攸敦摦户㙣㙤㈰戹敥戱愹搳㈳ㄱ㜰摤愰㙡〳扥㤵收㜶搸捤㡣捤㌶昴扣昲挲㠲㔲㘶㡡戱㜲㤸㐲ㄸ㘸攳㜸㙡㈹㘷㙣㔳ㄹ㔵ㅢ㔳㤹㥤㥣㉡昶攵晡㑢挶㌰㈷愴晡扡捣捥㌷㜲㍡㙦㌶戶㌸愱㜹改ㄲ㙥挷㍡晡㜸㈳昱敢攳㈱㔸愴挹昲㤲㔰㝥搲〶ㄹ攲㉡㉢挱㙥戴㠵㕥㠵晦戲敡晡晢㐴戱敥㝣㕥㔷㑤昴搸〱ㅦ㉦㡦㌷ぢ昵搵㍢捦捡攱搶㝤㌷㤱㍤㘹ㅢ晢㈶户㌹挸愹昱慢挵收昱㐶㕥㙢㔶つ㝤戸㕢捦挷㡥摡搸㜵㜲㜸㥡戰搴㤳搶㜳戹㌵挳戲㌳昳改㕣㝦挶㤸愵愷㡣㥣㍤㙣昷ㄵ㝡扦㈶晥㔲捦㘷㥡扥ㅡ挴㉥㤶㔱㘶攲㈱㑤晢摥攵ㄶ㡦㜴ㅥ㜹〲㍣愵㘶㕤攸昰挹㤳慣㝥挷ㅢ㠷㕦昸搶慤て㐲㕢㤷ㅦ㍣㔰捦〱㘲㘸慢㘱㜱㑣攳㙤㉣攷敥慦敡㜱㉥搸慣扥㔹㝤戸㌳㥦㜱戱㘶昴㤸慣慦㑤扦㔲㙥搲㌴㙤㑢攷ㄸ搸ち搷㝢搶㔹〰〶㍤㌳㍥㤱㜳っ㍢㐷て攲搵㌷挰㕣㥤㐳㑤晦㙡㄰㘴㈷㙤攳〸㘶慥ㅤㄶ昶㤴㜲挶搰慣㑡㔷攱㘶㜶〹㕡㜳㐸㜶攱㌲摣㑣㥡搲㥡㥤㕥攸挹攴㝡昲〶搷㈱㜸㔲㠴捦㕥捥㌲㤶攲㤹㠶㜹㝤挵ㅥ㍥戳搷㥡㕤㔸搰昳挵ㄵ扣㘷㤸㕥戳㜵㐵㑣㌹换㥢敤散挹愳〳㤹㜹㌲摣㤶㕤戰慣㙦ㄵㅥ㉡敥敦捤㑦搷㔷ㄴ扦ㄶ㡥㐲㙢戶㉥戳㔷㌵㠸㠶〶搱摣搰扣愵㜳ㄵ㕡㌸㔴㠶愰戳㠱挴㜲搵ㄱ〸つ搲㕦改㈵敢㠹ㄲ昶㔷㤶愹攲昱挷扡户戳㥤㈷戲改㕥㜹㌲㠴㕡㑥〱㌹㜰晡㈱㌳换捦㈱晤慦㥥㡦昶㉥㠷收㐱愶〲搵㉣㥣㠷ㅥ㐶〰㍣捣㙣㉡攴戱攵㐸攵㜱挶慡㥢㥦㉦慢㌰㙣㠹㤸㍤〹㘷㜰ㅡ㙥㐷户愰攳㘳攸挵㙤㝣㡣戹挳捣〸㔷㜴扤㝡慥㘸愵㜵昵昵昶敡㙣㕡㙣㤶ぢ㌰㙥ㅢ捤㙡㜹㡤㤱㐴㘶㐱㔴晢戳㔸晡㙡戰昴搵㡡㠵改㤸て㌲愹㌰㜵昵㉤搵ぢ㍤愵㘵扤㍤改㘶㐶昸戰搱搷愲㑤愲〹㌵挱㤸昶愵ㅡ㈶搶慡搵㠷捦收㕤㙥戸扢〳摢〷㥡㡥敥㐷换㙤㔰㜳戸搸挲愷㐴搰㝣㈵ㄷ户昲㔴㄰㙦〳ち挱挵慤扡㕣ぢ㌰㜰搴㈰㈴昸㐰〷㤳攵㕡ぢ㐴㘴㔳ㅦ挸愰㌷敥㠷〰攰㥢搵愷㘷愶攱㜹戴扥挲㄰敢㜹晥㘶戸㤶㐳㑡挱捦㠷㌵扡昰愴ㄳ㥥愰㕡㠹㜵㜰愱㤹㡣〵㜸っ愲㠹㡦㜹㘸愶て戹戸昴㜸扤㐳㥢敢攵㌵搳搶㌵摡扡愹敤晥㍡挳捣ㅡ晤敦ㅣ㥣㤸挸摡晡㝣㕣㐶挸搳㔰ㅤ昹㐳㄰戱〲㔱搶愷ち㜰㍡〱㘷㠰㜸ぢ㐸慣敥㈵〳㍥搸搰〸戰户㤷て㕣㌴昷戲㍡㔸㙥㘸㜸っ〳て㙥挰㈴摡搰收㈳㤱㉥捦㠴摡摦㍤晡㈸㡦っ㍤愲ㅦ挴捥㕦㐳搸㉡攰㔹捣晦㙣㄰昱㍤㌰戹㉦搵㝥㠴㔸㘳㐶㕦攳㤱攷㈰㘴㙦㑡捥㐵ㄸ搳㠵攰晣挱㡤㠹㝤戹扣㠹攵昴㡦㉤搴戱㐸收㤲㥡㑥摤搴昲㑣ㅣ〷ㅣ㤷㘸ㅥ昹ㄳ挰换㙢㠴昳㉤㘵挷㈳㠹敢〴昳ㅡ㜰㈶ㄳ㈷〰挰搹捣㔳㜷昴ㄴ㈷㈲㠵㈳愸㕣〷扤攲㈴㠴㌸㌰戱愱戲挶㜲㍤挸愶ㅢ敡㈹㑡〲㜰㜷㐳ㄵ愷㠲㙢ㅢ搷攵晤ぢ愹昷㈲收戶戶㍥攰㘲〲㉥㈱攰㌴〰搸〲攴愵㠸㌹㑥㍢挳㈵收㜲摡㘵ㄴ扢㥣㘲攷〱愰㥣㜶〵㘲㉤愳昷搵昳昹㝥㍤搷扥㔴捦㜹攴㤵㘰搹摥晢ㄹ挲昴ㅥ敦晥て散扤㥦㕢愸㜵㐰㙤戶昷㉥〰搸昴摥㔵㄰㉦㝢敦ㅡ㑢搹㝡愴㙦㡥昷㉥〴㙥㄰敦㕤㠴㘴攵扤㙢愱㔷㕣㡣㤸敤㍤㔶㕤㕥〷戲㘹敦㕤ち㌱〰慢扣㜷㌹㌸㜵扣㜷㍤昵晥ㄲ㐴㕣㔱ㅦ㜰〳〱㌷ㄲ㜰㈵〰捡㝢㌷㈱收㜸敦㉡㤷㤸换㝢㌷㔳散ㄶ㄰敦つ〰㝣㠱㝢搱㙡㐴㜱捥㜵搴摥戲㝣㡣搳㥡㜵㥦摡㙣㤳戵㡥㙦㕣㠷㌴㔵㍣戵愷挱搴晡㌵㍡㠲㠱㌹㘰㑣㝢愲摡攲〵慦㜹㡣挲挵慤戸〹ち㔵愳搲㙥㠵挱户㉤㍦㜹摥づ晢㤴ち㍤愹㝥慥㐲㔵扥㈱搰㈶ㄲ㜴ㄴ㡡摥㡣㤰㙡㜰户㐱㔲摣㠲㤸搹攰㠴㙡攲昲づ㍡㤰㝤㝤搰㜹敤㌶〲昰㕦摥㐹㈵㔶㐴昰㤶戶摤攰㥡㄰戶挶攲つ〰挸㕦ㄱ㜸㐷㝤挰㕤〴摣つ攲扤ㄳ㠰敡㠹扣昲晥㌰づ愹㈴㐰㑤敡㉢㔴㝣晡慥ㄹて戲愹挷昶扣㙡搶ㅢ敡㝡摣㑥㌳㥦戴㙢㠶っ㐲扤㐵㙤〱㤶㐴㐶挶㘷戶㉥捥㌲㥣扢ㅢㅡ㥡戰㉥搰慡㥦㤶愹挹㤶㉡ㄶㄸ敡ㅥ戶攰㝤㕢敤搷㄰ㅥ捡㠳㑢攸敦㥥㡡㙦ㄱ㔴摦㥥挴㤹搷扤挰攰㔴昷㙥㔰摢㌲㍢㤳㘳㑥愳昷㈱㔵摥て㈲㜸挳㔵つ㜸て㔰挰㈳㝦挳て搳攱昲㐱㠴改戹㠷挱ㅡ㜸㤰㝢挸㐲晤ㄶ愸捤ㅥ攴ㅥ〱搸ㅣ攴ㅥ㠶㜸㜹㤰㝢挴㔲昶㈸搲㌷㘷㤰㝢っ㌸搵ㅥ㝤㈸㜵捤〲㕦㍣㡥㘴搵收ㅥ㐵愲㜸〲㌱㝢㤰㘳㜵攵㘳㈰㥢㙥㜳㑦㐱っ挰慡㐱敥㘹㜰㙣换㜲昵㘰㔹昶〹敡㝤ㄲ㐴㍣㔳ㅦ昰ㄴ〱扦㈷攰㔹〰ち昸㉦㥦㐶捣ㄹ攴㜸㘷搹搶敢ㅡ攴㥥愱搸戳ㄴ㝢つ㠰ㅢ昰摦昲㤲敡㕢慦㈳㙡㜶换攷〰昹㐲摤昲㉦㄰㔵㈶㝡㥥捡晦㡡㔸㐵户㝣ㄱ摣㑤㥢㠸㜷㤸〱昴挸㍦㔰㠹ㄵㄱ㙦㈲㘰㔷挵搵㉤㕦〲㐰扥㑣攰㕢昵〱慦㄰昰㐷〲摥〶㠰㕤㔳㝢ㄵ㌱㥦搳攴㈳昵㕡晣㙢㠰愰挵扦敢搲戹㍢㌹㘶㡢晦㌳㜵扥㑥㥤ㅢ挱慣戶摦挷攰㤹昶晢ぢ㈰㕦挸㝥晦㠱愸戲摦㕦愹晣ㄳ挴㉡散昷〶戸㥢戶摦㘷㄰〳搰㈳摦愴ㄲ㉢㈲㍥㐷愰㡥晤摥〲㐰扥慤㠰㈰㜵〰敦㄰昰㌷〲㌸捣㈸晢晤ㅤ㠱戲晤愲昵散昷ㅥ㈰戰㥦ㄷㅦ戶捥㜶㜲㑣晢晤〳㙣昹㑦㄰㌱っ愴摡㝥㝥昰㑣晢晤ぢ愱㉦㘴扦慤㈰愰散昷㍥〲㘲㙢㤰ち晢㝤〰挶愶敤㌷㥣戲㈸慣晣搰ち㌰㈲㜸㤳摢慥㡡慢晤㙤〴㕢㝥㐴攰挸晡㠰㡦〹昸て〱摢㠲㈸晢㝤㠲㐰㜹挸挵搷散敡っ戹㥦〱〳〳昲扥戸㥤敢㉥㘵〳昲㤴㕣㝡㌰挱㠹搱〸㔵ㅢ㜰㑦昰㑣〳ち㐰扥㤰〱扦〱㔱㘵挰〶㉡ㅦ㠳㔸㠵〱㥢挰摤戴〱㜹㝦ㅣ㝦昸ㅥ㌸㤵搰㜸晣㍦ㄶ搴慥㡡换㠰ㅡ㌰㜲〸㠱攳敡〳㥡〹攰㔷捥〵敦愹㉢〳晡㄰㉢㌷挰㐴㍤晢戵〰〲晢〵㕤㍡㕤昶㙢愵捥㘱搴㌹ㅥ㠰㙡晢敤て㥥㘹扦㌶㐰扥㤰晤㜸户㕣搹㡦㕦㡢ㄷ〷㈰㔶㘱扦慤挱摤戴晤㈶㐱っ㝦昸㤲㌱㤵搸昶㥢㡣㔰ㅤ晢つ〷㐶㡥㈰戰戳㍥㘰㈴〱摢ㄲ搰〵㠰戲摦㜶㠸㤵敤ㄷ慢㘷扦㔱㠰挰㝥搳㕤㍡摢挹㌱㍢昰づ搴戹㈳㜵捥〳愰摡㝥昳挱㌳敤户ㄳ㈰㕦挸㝥ぢ㈰慡散户㌳㤵㉦㐴慣挲㝥敤攰㙥摡㝥㡢㈰㠶㍦㡦摣㤵㑡㄰㔰晦ㄷ㠳搶戱摦㙥挰挸摤〹攴敤晢㍡㠰搱〴散㐱〰敦攸㉢晢敤㠹㔸戹〳〷㤳昵っ㌸〶ㄸㄸ㤰㜷昵㙤愵慥〶戸ㄷ㤵敥㑤愵㔹〰搴㥡㘹㉣〵昰ㄸ〹㍦慣㌵搳㍥〸㜳捤戴ㄴ㤸っ㔳慤慢㜲㕢摦㘱愱㤶〱戵搹㙢㈶摥改㌷搷㑣晢㐲㕣㔵〰㤹晡㘴搰㔲挶㠷〰㌶㘷捤㤴〳㑥昹摡㠷㔲搷慥㤹昸㥣㠰昲㘷〸㝡㐵ㅥ㌱搳㥦ㅥ挹敡捡〸挸愶晤戹〲㘲昸慢㕡㌳ㄵ挰戲㉤敢㕡㌳挵愸㌷捥摣㡡昵〱〹〲㤲〴㤴〰㈸㔰敦㜸挴㥣㌵搳㉡㤷㤸㙢捤戴ㅦ挵昶〷昱ㅥ〷挰收摤㠰ㅥ〲攵㝥搷㔳〱收昳愰搹㠳㜱ち㠰搷㈴捣挵㝤愹ㄲ㔹㕦㠷〳挹㈶昳敥攰㈶昷て慡ち晦敦㜰㙥ㅤ慡㙤㔰戹搷戰敡愶ㅥ㝦摤戲扢㠷㍥敦㝤㥦㝥晥昹收攵〲㤷㔴㍤㤰慡㥡㠴㍣〰づ㘳て㍡ㅥ〰㘲㉡㑦㠶扥㕦㡦敢㍤〱摣㐱づ昲慢㙥扣㔱敢㌶攵㘳㐷ㅥ㌰㡦捤㘱晢扡ㄹ攷昹㤳㔰㌸㜱㤲㕤㠶挹㠸搹㤷㌸搹收㜶ㄲ〳㌶慢攳攵㜱㙤昵挶戲收㠴㔸捤慤㔹㥥ㄵ㉦㈸慤挹攱㝣㥥㐱㙥㌴捤㄰て㈴昱挴〱㜸㈸㜴㕦愱〹㑦㔶㔴㍦㐲敦挸愶㤰改搰攱㔵㕦挳㔴㘲㑣㌹〵愵昱晥ち㉥ㅡ㔰㥥〵㉦㍦㈶㑣ㄹ㕥摡ㄴ搴㘹昸散㥥㜴愱慦搸㤷㉤戵㉦挰㍤愶㜶㝥㌱ㄷ攳㔱㘰戲昷㑥㘸慣㥢㈷㉢搶㤴攷ㅢ㐵㔶昲挹㘳摦昲㝣摦慡扣㉡㡤户挸敦㈷㌳㌷㌹㘴〸戳挱㘰㘴㕥扢挳㜸晥戵㑣挱攵㍦つ〱攴敤搱愶㠱敥搱搵搹㌵扦㍢㙣〴㐳搱㐴㌲㙡愴っ㍤ㄲ㠸〷ㄲ㠹㜸㍡ㅢ㠸〴㤳搱㜸㕡㑦㐷攲摡㜴〷ㅡ㌳愲㤹㠸㘱愴㔳搱㘸㈸ㄲ㡢㐶㤳攱㜴㈸ㄱ㑢攸攱㐸㌴㘸㈴昴㠸㥦㐷挹㔴㉦㘷㠰捡㤹㈰晥搳㙤搶㠱㘴ㅤ㐴ㄶ捦㤳昱改㐲戵㥤〹ㄶ㡢捣攱收㑢扤晣㘷㐱㌳㥢㡥㌶〷㔹㙥搵搵搹㕤昹愶ㄶ㙤㉥搸㉤㘰慢㔳㠷昹昸ㅥ戱㌶て㥣㘱攰戸敥㔷昹捦戶戴挸㠳㤱愸摥㝡愲摥㝦㈲捥〱㥦愳愱㑦㕣ぢ愷戱户㥡扤敥㄰挰搸敢㜸㉣㡤扦慡㕥昷攳扡摣㥦㠰换㥥㈷ㄷ㐳㔸昰㜴ㄹ㝦ㅥ㔹搱㉢搶搹摣挳㠸㐱㌲戳ㄳ敢ㄱ㘲捦㄰㔷愲〰㙣㡦㘰㝡㈴ㅢㄹ摢㤳戸ㅣㅣ戶愹捡㌶㜱㈱〴㠸搰づ〷㌵㥢㠲ㄱっ挴㘳搹㜴㈲ㅢ㐹攱㘵㐳愱㙣捡㐸挵〳搱㙣㕡て㠴戲搹㘰㌶慢㝤摢㠱愶〳改㔰㈰㘶㈴㈳愹㑣㌰㤲㑣挵昵㜰㌲㤹搱ㄱ㡡挴戳挹㜰㉣收攷戹㌲搵换㙥㔰戹〴挴㝦戱捤搲挹㑡㤱㜵㠹捤㈲㐰㐱摢㉥〵敢慢㘹ち㤷㐱㌳敤㈵搹ㄴ㈴ㅤ㉦改㙢晦攵㌶㝦ㄹ㔹愳㠸搸ㅥ㐴㕣〹扥改摣㜳㘱扤戲㜳㜳㠰搱戹㍦㐳㍡晥慡㥣晢昳扡㕣ㅥ㍥㉢攷收㈱㉣慥戱㌱ㄵ捥扤搶收慥㈰〶㡡㤵㜳慦㐳㐸㌹昷っㄴ愲搶戹㍦慣敢摣敢㈱〴㈵ㅥ慤〴㙡㍡㌷ㄹ〹挶㘳㝡㉡ㅤ捦挴っ〴搳㠹㑣㈲ㅤ㡣〵㠲㝡㈸慢ㅢ㠱㑣㕡敢㜷愰愹㜴㈲㥤㡡㠷搳昱㐸㌴ㄵ㐹愷昴㤴ㅥて㘱㘸搰昱㍡愹㐸〸づ昶晦搲㔲㉦㔷㐲㐶慥〲昱摦㘰戳㔶㤳戵㠶慣ㅢ㙤㤶㠳㙡扢〹慣慦挶戹㍣戶慥攷摣㕢㙣晥㌱㉣㔷㍢摤挵㔵愸㔰挷愶㡣ㅤて㍥㌰愶戱敦㐰㐸ㄹ晢扢㉥㘳㙢㈷〰㌲攰㜰㉤扥㔳搷〳㍣㔱攵㜸㉤㑦㠲㜰㙢愳㝦㠳ㄵ搷㑥㐶摣昴㐸㌴ㅢ㡣〵攳㤱㐸㉣㤱㡥㐵㠲㔱㈳〹㐶〰㜶㡥㐴挲㠶ㅥっ㠵戴㔳捡搰㘴㔸て攱㝤㕥㝡㉣ㄶ㠹愰㌳敡挹㘸㌰㤶㌴挲㝡㉡ㄸ㑤愷㘲㠶昶〳〷㥡㠸㠵愲㐹㡣挶戱㑣㍣ㄸ㠱㠷昵㔸㈸㥢㠹㘲㜴㡥㘶挲扡慥㐷戵㔳ㅤ㘸㌲㤰㌴戲㐹㍤ㅣっ愵搱摦㤱㥡つ㘷戳㌱㈳㄰て㠷㘳㝡㌶ㄳ昳昳戴㔷㔵㘲㉤㘴攴㘹㈴㍦㈴㌹ㅤ挴㝦㤷㥤㜸〶㔹㘷㤲㥣㐵㜲㌶ㄳ㜹っ慣㈴㤵㄰昱愶㈴ㄵ㜹敦㐵攲㈶搷㔹搶㌹㉤㤵㠸㤴㐸㡢㡣㌰㥡㠶っ愹㜹昰戱㜲捤㠵㈳㕣㜳㠹〹㈹㑤攳ㅡ捤摢〳昷っ扥㠴戲㠵㔰㉡搷㘴㑤㘱ㄴ搶㈳捦㘳攱捦〷昱昹敦〳㠴㡤㑣㕢㠷㘸㥤挹攴〲戰㉢㈷㤳昵攰㔴㑦㈶昷㕢㕡攴㑦㤱愸㕥㔸愴㕥㕤㈴㝥〳扥㌹摥㉣㐱㤹换攳捤㈵㠰㜱扣㜹㄰改昸慢ㅡ㙦ㅥ慡换攵㌹戰ㅡ㙦㉥㠳戰㜸挴挶㔴㡣㌷㡦摡摣㉢㠸㠱㘲㌵摥㍣㠶㤰敡〲摦㜴㜵㠱昲㘴㜲㘸摤搶晥㠴愵㑡扢ち慡慣昱㈶ㅡ㌶㔲㘹㍤ㅡち愵〳ㄱ㍤㄰㐹㠶攲㠹㑣㉡ㅣ〹㘶昰㌲㤸㑣㌴敢㝦搲捥晥㙡挸昸㥦戲㘳搷㌰昶㝢㍢挶戴戶愷ㄱ晢㙡㐶つ㥥〳搷ㅢ㌵㥥戵昹搷㈳㝦昵㑥㈸㌹づ〶ㄲ敡㔴㤷㉥戸ㄱ㝣㘰㑣㤳扤㠸㤰㌲搹㉣㤷挹戴㥢〱ㄹ㜸搴㌸戰慥ㅤ㜹攰慢扡捤慤㄰挶愸昱㤲ㄵ搷㙥㐳摣戴㙢㍡㠸㝦攱㘰㈶㥣捡愴㈲搹㐴㐰捦ㅡ㤱㔰㈸愸ㅢ㠹㔴㈰㥥捡㐴戵摢ㅤ㘸㈶〸〷㈴㔳㔸慥㐵昴㐸㌸ㄶ㐹挴昵㜸㈲ㅣ捥㈶㈲昱㜴っ挳扡㜶㠷〳㑤㈵搳㘹㑣晢挹㔴㉣㠸ㄱ㈶ㅣ㑦㈶㈲戱㜸㈰ㄳぢ〵戲改㔴㈸ㄹ搶敥㜴愰㠹㔴㉡愹㠷戰㙡挴㡢慤㈲㐹㈳㤶㐸㈵㔲㔸㉣㐶〲㠹㘸㈲㤳づ敢㝥ㅥ㐶慢㑡㙣㠰㡣晣ㄵ挹㕤㈴㜷㠳昸㕦戱ㄳ㝦㑤搶㍤㈴昷㤲摣挷㐴㥥㔲㉢㐹㈵愴挴㈹愴挴挵㙢㐸攴挸㈱ㄲ㌰ㅤ㝢㌵㔲昰敤㌶愶晦ㄶ挴攷晦㌳ㄲ㔵敦㝣〴搱㍡扤昳㔱戰㉢㝢攷敦挰愹敥㥤慦㕢㕡攴㘳㐸㔴㉦攷㔲慦改ㄲ㝦㘵搶捣昱㐹昰ㄹ㔰扤攵つ㠴㤴敢㍢㕣慥㤷㜴扤㕡㝡㡤慢敢㘵ㅥ㑢慢㙡㍥〳ㅣ扣晣㤶ㄵ搷㥥㐵摣昴㜲㈸㤲㑣ㄸ㜰愹㥥㑥㐷㈳愹㘰㉡ㄹ〸㘶〳愱㑣ㄴ㝤㐸㡦挶攱攵攷ㅣ㘸㉡ㄹ换㈶搰挱㠲愹㑣㤲〳㝥㈲㥤㑤㐶挳挱㘸㌲㙤ㄸ㤱㑣㌸愳㍤敦㐰攳㔸捣㠵昵㐴㌸ㄴ㡡〷㈲改㙣㈲ㄵ㌷戰捥ぢ〴㌳挱㔸㉣㤸㡥〶戵ㄷㅣ㘸㉣㤵㑡挴㡤ㄴ扣㙣㘰㠱ㄷ捥愶攲愹慣㡥㈶ㄷ捡㐶愳挱㘸㌴敡㝦摢慥挴㡢㤰㤱㝦㈰㜹㠹攴㘵㄰晦㍢㜶攲㉢㘴晤㤱攴㔵㤲㍦㌱㤱㘷改慡晡㠴㥡㐲㡥づ昱ㅥㄲ㤵㤷㐷戹扤晣摦㐴扥〱攲昳晦〳〰搵㘵改㘵㐹㥦㑡扡搱晦㑦㥢晦づ㔹晢搱㔳攳㐱挴晢攰攳捦㈳摦〵㥦〱攵户て㄰㔲㝥昳扢晤挶㠹㕥昹㙤㔸㕤扦㝤〸㈱㔵昰㝦〱〷扦昱攸㥢㜱敤㝤挴敤㌹㍤㤴㡡㈴ㄲ搹㜸㍡㡤愱㉥ㄲ㑢㘶㠲㔸ㅡ敢㌱㍤㥡㡡㠶ㄳ搹愸昶㙦〷㥡づ挶㔳攱㐰㌴㠳搷㑥挶㈲扡ㄱ㑣㘶挲㔸〰㐴愳㐶㈰㤵㑡愵㐳㔱敤〳〷㥡㑣〵㘲戱㜴㌸ㅣ㌵㡣㘸㈴㤶〹㐱㘱㈰ㄲ㑥㘰慦㤶㑣愴搳挱㡣昶愱〳つㄹ㠱〰㝡㙥㌶㤴ち㘶㈲㌱㍤㤴〸愱つ㘰㌶て挵㤳㤹㘸㌰ㅢ昷昳愸㕥㔵㘲㈳㘴攴㐷㈴ㅦ㤳晣〷挴晦戱㥤昸〹㔹㥦㤲㝣㐶挲扥收攷ㄹ扥㤲㔴昸戲㌸㈵挵㘷㐸㔴㝥晢攴ㄳ㔷敦攴晢㌷愵〶攲昳昳挴㕥昹㙤ㅤㄵ㕥㐰戲㥥㕡㌹挹㉡扥㡦搸㑥㤸㔳㑥〶挱ㄳ㡡㤶摦㕡挱㠷慣改户㈶㜰㤵摦晥㠹㙣㥣搵戰攳户昷挰慤摤敡昰㠰㑤ㄵ㝣㉢愸㠲摦㜸攲慥晣戶㌵攲愶摦挲ㄱㅤ扢㕦㜴㠸㘸㈰ㄲ㠹㠷㠳㠹㘸㈸㤹挴戰ㄹ㐰ㅦ㑡〶〲ㄱ㙤ㅢ〷ち㠳㘶攰ㅥ㍤ㄵ捥愶㈳㝡㉡㤴〸㈷昴㠴愱㘳㌹ㄶ挴ㅢ捥㔲㜱㙤戸〳つ㘴㤲㠹㙣㉡〴㙦挲ㄹ㠱㠴㥥っ㠶挲挹㑣㈶ㄹっ㘴戱㕦ち挷戴ㄱづㄴ㥤㌲ㅣ挴〵挵昱㐸㈸ㅤ搵ㄳ愹㙣〸㡤㈳㠳㥤㜸㌶ㄶっ晢㜹㠷㐰㔵㘲㈴㘴攴戶㈴摢㤱㙣て攲㙦戶ㄳ㐷㤱戵〳挹㡥㈴㍢㌱㔱摡㠹㑡㔲〹㈹㜱㑡㡡ㄶ㈴㉡扦扤攲昶摢敥ㄴㅥつ攲昳户〲㠰〰㥥㑢㐲挰攵户㘱㌶㝦っ戱㌳㠹㤸㐱扦昹挱愷扢攴㔸昰ㅤ扦昱摣㕦昹敤改扡㝥㝢慡慥摦㜸晡慦慡扣㉦㔴挱㙦㍣改㔷㝥ぢ㈰㙥晡㉤㠰搱㉥㥤挶㝥〶㉥㐰㈷ち㘱㜲ち〵㜰㍡㤱〸改搸戰愶挳㕡搰㠱㠶つ㑣㑦㌰㘵〴晤㈶ㄲ挰㕣ㄷ㡡㜲㘹㡣扤㡦㤱㑣挱换㕡挸㠱挶搰㙢㌱㤰㘶戱㠰㡥㘰㈰㑥搲ㄵ㝡㈶㠰つ㙥㌰ㄶ㐵攷搶挲づ㌴㤳㑤愵〲㐸ち愱ㄴ㤱㔴㉣㤳㐸㠴搳㤸㤳ㄳ㤱㙣搶㌰昴㘸挶㍦挲慥㐴〴㌲㌲㑡ㄲ㈳㠹㠳昸㐷摡㠹〹戲㤲㈴攳㐹昶㘳攲戶㜶愲ㄲ㔲攲ㄴ㔲攲㘲ㄴㄲ㤵摦㝥敤昶摢㘴愶㜷㠲昸晣㍢〰㠰㐰㡤摦㜶戴昹搳㠸㥤㐷挴㕣晡㙤㘷昰㤵摦㘶㠲敦昸慤ㅤ㕣攵户㕢敡晡敤愶扡㝥摢ㄵ㐲捡㙦戳愱ち㝥摢捤㡡㙢㜳㄰㌷晤ㄶ〹㐴〳搹㐸㐶て愶戱ㅢ㡤挴戱晣㐰㕦〹〴㠲㔱㍤ㄴ㌱戰㤲搰收㍡搰ㄸ㑣㥢づㅢㄱ昴挶ㄸ昶㍥愱㠴㡥〱㉤㘵〴つ㜸㌰㠱㈹㐹㥢攷㐰戱戱㡤挴㌰晢〵㠳改㐴㈴ㅣ搴㈱㘰挴㤲㔸摡攸㘱挸挵〲摡挱づㄴ㈳㜳㍣㡥㤷㐷㘶ㄲ㘱㉣愳昴㌴㍦搰㡡㔲改㔸㈸㠵㘲愵晣扣㈳愲㉡㌱ㅦ㌲㜲〱挹㐲㤲㐳㐰晣愳敤挴㐵㘴㉤㈶㌹㤴攴㌰㈶昲㔶㠹㤲㔴㜸㈵愹㜴㔰㔲㡣㐱愲昲摢愵㙥扦㜵㔳㜸〹㠸捦扦ㄷ〰〸搴昸㙤㙦㥢㥦㈱㤶摦扢㔴㙦㠵ㄴ攳挰㌷㜷つ攷㐳㘳㜹搷戰㡣摡戰㙢搸〷改捡慦㙢㐹慤㑢㜴搴攵敥ぢ慥摡㌵ㅣ〱㘱挱㍢㈱㑡戲㘲搷愰敥㘳㐰㡤捣ㄱ㠳〰㍥㍣㠲昷㌱㔴㍢昹㤱扢㥤㑣〱㔷捤愷㘷搵㙤㈷㌱㉢〳㙤〵㜴㤸敤〲㥢㑦㌸㉦ㄹ挹挶㔲愱㐸㑡挷㐴ㄷ㐹挱摢㤱㜸㍣㤶㠸㠷㌲㐱㝦摣㉥搴㤱㤰昱㈷散㔸㠱戱愴ㅤ㘳㕡摢㜸挴扥㥡㕤挳㝥搰㡣ㅣ㙡づ㤲昶户昹慢㤰慡摥戶㈹昹㍤㔳㜱㠰㕤慥愳挰愷㈰晦㡢㐹㌶搷㜶㡣ㄷ㕣扦㙤㙢㝦㈷㤲㔵㉢㍡ㅡ攸搶㐶敦っ挴敢㝥ㄵ愵晡㤵挳敥ㄷ㐲昳㍣㜵㐴敦捣㈲づ㌶昱㙡户㠵㝤㤳㥤㤷㔲㙦㘵ㅦ㜸㡥戵㕦㉢户㐷㤹㘳㝦攷换ㄶ㥢㕢㜰攴昰㤶㌴ㅣ㍤㈳㘱㉣㕦㐲㌷愲ㅣ㜳㍤戰戵㐳㤹㡢㉦昸攱㙢㐷㐶挶搶㔸挴㥤扤愶㠶㐶㔱昷戹㐲敢ㅤ㘰㜸敤㤶慤㘰㙡扥扦㜷㙢搴㘱㠷㍡㑦㌷㜷昶㤴搴户〳摡㘸㑣挹〳㙤敤㝢㌰㤵㌶㘱昴慣搱愱愸昷㌸㌴戹㉦㤰ぢ㕢㜲昹愴㥥㜹㤲攳㤳挷㐲愵㤸〹攵戴扦㤰㍣っ搷㡥㌷戳㌹㄰搹㠸敦㈲ㅢ㘶〵㌰搰㈷㄰㝤㈰㌰㘴㔱㠱㌸挸㡡㌰㕤昰昴戸摥㔷㜴㔷〳㕤昷ㅤ〶慢慣㠴㥡㔷㡡ㅤ〲㑤搴㉦㑦㐵㡥昸㌳㥢搴㘲㥢㕢搱愴づ〳㔷戵愴搳〰㙣㙤ㄴ摤㠸㥢戵㌹ㅣ㈱敤㜴㜰㘱㌴搴㈶㈴㡥㐴㝥攵摡㥣㠹ㄴ戱挴㐱㝦㥢攸戳㑤㌴㑣ㅣㄲ扤ㄶ摡戴搴㌹㐴敢挰㌸㜵㑦㔹ㄱ㔵昷㘵㠸搴慢晢戲㠱敡扥搴㑡愸㜹㘳㔸づ㥡㔴摤搷㈱㐷晣㤹㜵捦摢摣㡡扡昳㈸㔵搵㝤㍤㠰愸晢㑡挴捤扡昳㘴㔴扢㄰㕣戳挱㠴㠵㕥㔱㥢㡢㤱㈲㔶㌹攸㝥愲㉦㌵搱戰㔴㔸ㅣ㙥愱㔹㌷㥦扣㥣攸搵挰㌸㜵㕦㘳㐵㔴摤㡦㐱愴㕥摤てㅤ愸敥㡢慤㠴敡ㄷ㠲昹㡦㠷㈶㔵㥦慢㤱㈳㐶〵㥥㉥敥㌷昰㜷㠱㕤昷㌰挶攲戶㕤挵敢㕡愷攲昵慢㉣愵愷ㄱ㕦㌶㌰㥦扡㙣㙡ㄸ扦㘵扡㜸攸挶㙦攸昰扦昷㄰ㄴ晥㝦愱㠷慥㉤昷㐴㙡攴㠱慤扣㤶㈶㕥㡢昲㥡敥攳㌱慡㜶ㅤ㜸摥〹愳㍢㐷㈷扤〷㈳搳挱扡㍢㕥愷攳ㅥ㔴㉡㌳㘱㜷攷攵㤳搷㌳㤷搳㥣㕣㑥㘱㉥㌷㤸戹㑣㐷㉥戳㤱㑢昵户㈰搴户搱慣愱㡢㠷㤶ㅣ〸昱㕥摢㤹㤹摡㍣攸㌹㥦扣㠹㜹晣搰挹攳〷捣攳ㄶ㌳㡦愹愳㤳㘲㈶昲㘰㍥㘰〳㝣ㅢ挱愷㍢攰㔳〹扥挳〴㑦〳㜸慡〵〶〷攰つ〴昳㌸㤶昲捣㑣昰㔸㤶ㄱ愶ぢㅥ捦摡㥡〵㡦㘹㘹㌴㈴㜸摡捥㐳㠴㜳㐵搵晤户昷㈶㌲ㄵ搷㈴㐵㍤捤搶愷摦晡ㅣ㍥愹敤㝣㕢昲㜰戱敢搹㤳扤慦ㅥ㔳晤㕥〳㔳搲攳戹㙤攷ㄳ摦㍥昸戶ぢ㈷㥡㥦搷㑤ㄴ㍦㠵㘴戹㔳摣て㥣昹扥㠲㐹㈸㔴摤挱㜰愲㤵㔰昳扥愳㑢愰㐹つ〸昷愲㥡慣愹慡慤㍡昹愴搶㡡〱㠱㘷㥤慡〳摤て㄰〶㠴慢ㄱ㌷㕢搴㔵〸㘹扦〱搷ㅣっ㈳㈲㠹晣捡㠳攱㐳㐸ㄱ搷〰㘳戳〴捦〶换ㄵ㌸捡愹㐰㘴愰ち㠴慤㠴敡㜷ㄲ昹㜹㥡愸ち昵㤸㔹愸㕢ㄱ㘷捦ㄶ㐱㐸戰㍢愹ㅥ昰〴㑢戰〱㙣戳扣户㈱愴㍤㘵㤶㜷摡攸㘰㐰散〳愰敤㙢㥦㝣㥡攸㕦㌹攸摢㠹㝥搶㐴㑦㈷㝡㉦ぢ捤㝣㝤昲㜹愲敦㜲搰㜷㄰晤愲㠹敥㈴㝡て愰敤搶攲㤳㉦ㄱ㝤户㠳扥㤳攸㔷㑣昴㔴愲㜷戵㜴㠳て摤慦ㄲ晤㙢㠴㔹㌸㘶㈷敥戱㈲㐸昰㠸㝢慤〸挱㠲挷㠰㜶㍥㙤て㈳戲㘵慤昲户戶攴㐰慤搲晣搶捦㙦㈶㥡㕦挵㝥搸㙡攷㑦㑣ㄴ㡦㐱戲散搴晢㔱㈶戳㔵敥㠸戲搷㙤㤵㍢㔸〹搵敦㔹昲昳㥣㔰㌹昵慦愸㈶㕡摡㌳㠸㉢愷㙥て〹挷愹㙦搰㌸㉦㈲挹㜴敡戳〸㘹㙦㠱㠷㐶〸㔳〶挵〸㠰敤㍥敢㤳敦㄰晤〷〷晤ㅣ搱㝦㌷搱㜰㔳㔰㙣〵戴㙤㍥㥦㝣㡦攸㤷ㅣ昴昳㐴晦搳㐴愳挱〴㐵慢愵ㅢ㉣戸改㝤愲㕦㜶搰㉦㄰晤㠱㠹㐶㠳〹ち㘹愱捤〶戳㤱攸㔷㠰㜱㥣晡㐷㉢㐲㙤攲㔵㉢㠲て㡦昸ㄳ愸㕤慡㌶ㅥ攵㙤㤹㔳摦戰㈵〷㜲㉡昲挲昵挶㐴㍣挹㠴敢㥤㠹ㅢ㑡㍦摡慥㘹ㄱ扥㜹晦づ㈴敢㌹戵〹㔵慡敢搴㐶㉢愱晡摤㔱㝥ㅥ㈲㉡愷㝥㠶㙡挲愹㍣〹㔴㑥ㄵ㤰㜰㥣㑡㠸搸㠸㈴搳愹㍣ㅥ搴昰昵〴㍡ㄵ㠶㡦㠹㑦晦攳敥愹昸㔹ㄸ㡦昸挸㐱晦㥢㘸捤㐴愳〹挴挴㐷ㄶㅡ㝣戸愹㤹攸㡦ㅤ昴〷㐴晢㑣㌴摣ㄴㄳ晦戶搰㘰〱摤㐲昴㝦ㅣ昴㠷㐴て㌳搱㘸㌰㌱昱て愰㙤搷昸愴㥦攸㑦㠰㜱㥣晡愹ㄵ㔱㑥晤捣㡡攰挳㈳㌸㍦搹㤲㙤㍣攷摢㌲愷昲㜰㔰㐹づ敥㔴㝢㈶摡㘸昵搴收㐹挲〷挹㝡㑥㝤〷㔵慡敢搴户慤㠴敡昷㘱昹㜹挲㐸㜳挹㤱愰㜰敡㔶㠸㉢愷扥〹〹挷愹摢搱㌸㈳㤱㘴㍡㜵㙢㠴戴㔱攰㘱〱㌲㝤㜴㐲晣〵㔸摢㙣㍥戹㈳挱摢㍡㘰㥥ㅥ㙡㍢㥢攰愹〰晦挹〲搳㤲㍥搹㑥昰㜶づ㜸㌸挱扢㤹攰㘹〰扦㙣㠱挱〶㜸㌴挱㍣扡㌳㡢㌱㠲攰㍤㑤㜰㈷挰㉦〰㙣扢〵敦ㅣ㈴㜸ㄴ㈰㜶挹〴捦〶ㄹ挱〷㕥ㄲ㙣㐵㤴㐳㜹㔶㘸㑢戶昱〰㜰换ㅣ㍡摡㤶ㅣ挸愱昶〲攰㥦㑦捤㑥昹て扤摤㕡㄰摣㌵㔱昰㈰戱㥥㐳㥦㐶㤵敡㍡昴昷㔶㐲昵晢扤晣㍣㝡㐴捤㍤戲〳ㄴづ攵昹愱㜲攸㤳㤰㜰ㅣㅡ愰㜱㈲㐸㌲㉤ㄹ㐰㐸ぢ㠱〷㠷㑥ㅢㅤㄳ扦〳搶戶㤴㑦㐶〸收㐱㥣〹づㄲㅣ㌳挱搳〱㝥搸〲㠳〳ㅦ㈵〸㡥㌹攰㄰挱攳㑤㜰㈷挰て〰㙣㕢ㅡ㉦扤㈳㤸〷㝢愶㘶ㅥ㉤㙡〷㤸攰愹〰摦㘳㘹㌶㥢捡㈴㠲ㄳ㠰㌸づ攵愱愱㕤㑣㌱摥㡡㈸㠷昲㄰搱捥愶㡤㈷㠳㕢收㔰ㅥ㈷づ摡㐳捤㌹昴㑤㘷搸㍤㜲㠲敦戹换㔶晣㙤愲攰〹㘳㍤㠷㙥㐰㤵敡㍡昴㑥㉢愱晡㝤㘵㝥㥥㐹愲收ㅥ㌹つㄴづ攵挱愲㜲攸敤㤰㜰ㅣ㍡㠳挶㤹㡦㈴搳㤲㜳㄰搲づ〴捦㥣㑢挳攲收ち㔳捥㈲㥡愷㜳㈶㥡〷㡥摡ㅣㄳ㡤㐱㍡㉣㝥㘹愱挱㠷㑢攷ㄱ扤搰㐱捦㈳㝡扥㠹挶戰ㅢㄶ晦㘵愱挱〲㝡㈱搱㍣敦㌳㜵ㅦ㑣昴㈲ㄳ㡤㘱㌷㉣慥〲摡㜶つ㕥㜹㐶昴㈲㘰ㅣ愷昲㐴搱㜱敡愱㔶㐴㌹㤵㈷㡣戶㘴ㅢ㡦つ户捣愹㑢㙣挹㠱㝡㈹慡挱㙢㤲愲㥥ㄶ敢㜳昸㈴㤱㠱㘴㍤愷㕥㡥㉡搵㜵敡㘵㔶㐲捤㍢搸㜸㐲愹㤶敤摦㐶晤ㄱ㌶㤷敤㐷搸摣㡡㘵㍢てㅢ㠱挲㈱㈹㈸ㅡ〰㑦昸㑣摢慥㐰㐸㑢㠱㙢㉥摢㠳攲愷挸捦㕥愳晢㘴〶㈹愲〰㡣捤ㄲ㍣㥣㉢㔷愰扣㙣㍦㙦愰ち晣挴㑡愸㝥㑦㥡晦㈸㘸㔲㠵㍡〲㔴㉥㈷挹㠱昸扣㐷㈳愱敥㘶㔴扤愹愴挳㝣愵㐳昹〷㘲㜸㠲攵捤昲〹搵愱㔹昳昷㔹戸㥦㔶㙦挵捡愹挷㍢㕢昰㜶㠷〲㝥愲㘵ㄶ㕥㔶㠲㜷㍡攰搷摣慣愷ㄸ昱ㄲㄳ㝥晦搱㝥㝦㠰㔴㌱ち㙢搹戹〵扣㔰㘰㐸㜶㘶ㄱ慦㐴挹㌴攳㜷て㑡昸挹㥣晣搷攱㐹㙢㍣㜰换摢㜸戸捣敦搲搶㝤搶㌵㠵攴扡㍢㙤搳㠴㘵㝢搸敦晥㘹攰㑢㈱戶散㌹㙢慤ㄷ㕥㉢晦㔶挷㑡㥥㜰ㄶㅢ挴搹昰扢扡㤹昸㜶㘸晢捦㔵㜹㍤つㅥ搹㐷㌷戳搵〸㔵〷扣ㄲ㑤ㅥ愹㍣て㤶晡ㄶ㠱愷改㔸戸㝦戰ㄳ㑢㈴㝢㠶昴㜶敢晣戵挹收摥敥㥣㤱㕦㕡㕡收晣挲㈴㥥㤹挷㑦㐲挸㈲㤴㌲〷晥ㄷ㈷㐰㠴㕡㘵挹挵昵㥦ちづ攲ㅥ搹捦〲慣㈴㔹〵攲ㄳ㍣攸㘳ㅢ㤴慣㔸㠳㌸戹㙥㐵㡥㈲扥戲㈲㐷㤳挵敦㘲㤹ㄵㄱ㘷㐲㠷捡昶㝢搴㘳ㄷ收ㅣ㥢㝢㡣㡢敢㕦〷㉥攲㜸慦〶㤵ㅣ㐷㜲㍣㠸㑦慣㐷㠲慢㌰㐷搷㉤捣㠹挴㔷ㄶ收㘴戲㕣㠵戹搸捥昶〷㐸㜰ち㜳戹捤㍤搵捤扤摡捡㔳㕢ぢ慥晢晢㌷ㄹ搷昷慡㥢㐴挹㉥㡢攷㔸㑦搹挳㍦㠴㡣㜶㍡㐸㈳づ㡤搴〸〵攲㤳㘷㠰攳㉡㡦㤷〷㔲搵㑤㤷捦㤶㑦㘳搹慡㝥㐷㘶攸搰ㄴ㤸昶㈵慥户ぢ㝤ㄶ㜴㍡㔵戹挹收㥥敤收摥㘶㜳㝦攴收㙥戰戹攷戸戸㝥㥥㝦㈰敥㤱攷㠲捡ㅦ㤳晣〴挴㈷敥㐷㠲换〷㑢敤㝡㔷戴散㜵挴㔷晡㘰㍤㔹㉥ㅦ昰㄰㐴㌵㠸ぢ㤱攰ㄴ㥣愷ㄶ搴慥㕤〴敥挰搶㕥㘲攷敡㜱㕢晢ㄲ㘶㐱㙢㤷㉤㝤ㄹ㔹慥㕣㥦㠰㙥㕡摢扥挴搳㠸愸㘲㕣〱愴㔳㡣攷㙤敥㤵㙥敥㑢㌶昷㘷㙥敥慢㌶昷攷㙥㉥㜷敡慡㈲㔷㠱㍢㜰㐵ㄶ搵慤挸㌵㤰愹慡挸㝦㤱攵慡〸㌷晢ㄵㄵ㜹挷㉥挶㉦摣挵㜸捦收㕥敦收扥㙦㜳㝦改收㙥戴戹㌷戸戹摣㥤慡㡡摣〸敥挰ㄵ㤹㔵户㈲㌷㐳愶慡㈲户㤲攵慡〸㕢㔹㐵㐵戸㠷㔵ㅥ戹ㅤ〱挷㈳摣慢㉡敥ㅤ㙥㉥昷愴㡡㝢愷㥢换扤愷攲㙥㜰㜳㐷㈲愲㉡昲㉢〴〶慥㐸㘷摤㡡摣つ㤹慡㡡摣㐳㤶慢㈲摣搴㔵㔴㘴㐷㌰㔴㌱敥㐳挰愹㐸扢捤扤摦捤攵㔶㑣㘱ㅦ㜰㜳戹攷㔲摣摦戸戹摣㠹愸㡡㍣㠸挰挰ㄵ㐹搴慤挸挳㤰愹慡挸㈳㘴戹㉡挲捤㑣㐵㐵戸㘱㔱挵昸ㅤ〲㑥㐵戸㌳㔱摣挷摣摣晤㙤敥攳㙥敥㈴㥢晢㠴㥢换ㄵ戸慡挸㤳〸っ㕣㤱㡥扡ㄵ昹㍤㘴慡㉡昲っ㔹慥㡡㜰ㄱ㕦㔱ㄱ慥搳㔵㤱㥦㐳挰愹挸㍣㥢晢扣㥢换㜵户挲扥攰收㜲㝤慤戸㉦扡戸㝥慥㍡昱㠷㘷搷㐰攵㑢㈴㉦㠳昸挴ㄲ㔰搶搰㥡㍤㜷戵㙢㔲㌱㔸扥㑡㝣攵㘰昹ㅡ㔹慥㥡㜰改愹戲㝤ㅤ〱愷攰㕣㉢慡慤换づ搰换慤换晥㈸㐳㜳㠳㈶戸㝥㔴〹愳慣〴扥ㄹ愹ㄹ慦挴攲㥡㔲㈵㙣㙦㈵昰っ㐴扥〱慥㤷㡢㤱捤㕥㈵㜱慤扤㠵㕦搴㝡ㄳ昹〸㉥㜳搴㝡晤㉤〴散晡戴㜱㥤㐲㙥㌳㉣收㘹攳晡挴㠹〹慥㑢㔴挹㐷㔴搵㤵㙢ㄵ㤵㌰扣慡慥㕣扦愸㠴㙤摣㜵晤㍢戵㜲扤挲晡捡㜷ㄹ㍢㥡㠴㜶㜸て〱愷㌰㕣愷㌸搹户㜱㝤攲挴挴戱㠸㈹搵㙤㔵㠵攱㕡㐵㈵っ慢㉡っ搷㉦㉡愱搵㕤㤸昷愹㤵敢ㄵ㔵㤸㝦㌳挶愵㡡㉡捣〷〸㌸㠵攱㍡挵挹扥㡤敢ㄳ㈷㈶戸挶㔰昲ㅦ㤲㝤㠶㤵㈶㌷㕡〱〲摢戸㌸㜰㈴摡戸㈸㈸挷戸ㄸ㈸挷捥㜱挷挴戹㠸愹㘲て愹慡㈸ㄷ〴㉡㐱慢慡攸㑦散〴慦扢愲㥦㔰㉢ㄷ〵慡愰㥦㌲戶㥥㠴㔶晦っ〱愷愲㕣っ㌸㠵ㄱ㥣搰㤵挴攷㘴㜳㉥㔷ㄲㅥ㍣摥挰〰晦户㜱摥㜶㈴摡㌸㕦㤷㘳㥣愷换戱㥦扢㘳㠲㜳慣搲捤㥦㜰ㄶ㥣㕥㠹㤴つ㙥摤扦㜰㑢戴㕤㕦ㄱ攳搴㔹搶捤㈹搳㠹㠹㥢ㄱ㔳扡ㅢ愹敤㔶㉢㑤㌶戹㜵㜳㜶㜳㈴摡㌸慢㤵㘳㥣捤捡戱つ敥㤸攰㑣愴㜴㝢愹㡤㤳㄰㤱㔲㜳敢收㠴㔳㤶攷㐴㔳㡥㜱㠲㈹挷㌸戱㌸㌱挱挹㐱改ㅥ㐲㙤㥣ㄷ㤸㈶㥢摤扡㌹〷㌸ㄲ㙤ㅣ晢换戱挷㉢㘲ㅣ敢㥤㌴挱昱㕡改收㉦摡㡢㘷慣㌴改㜳敢㝥捥㉤搱挶攱搸㤱㙦攳㌰㕣㡥㜱昸㜵㘲㠲挳慥㙡㡤晦晥戸㜲㈰㝣挹㑥㜸摦㑡戰〷㐲づ捦㑡攲㕦㔶㠲ㅡ〸㠷戱㌰ㅣ㡥㔵㐱摢ㄸ攳㐸捣㡣愴ㅦ㌱愷㤹㜲ㄸ㜶戲㙦攳昸戹ㄸ㤸㠶搵㈲扤㈴戳㘴挹挶戶愶昶㔱㑤㠷㑥㙡㌹晦搵摦扥㜶昶搳摦㥡昰摦㥦慣㕦晦昴敢㘷㍦晡挹㠶搴㠴〷㉦扤昴晥〳㉦㝡昴戵慤戳ㄷ㌷摣戲㜱搶挵㐷〷㤷ㅦ㝤㘴昶㤰扤愷ㅦ㝤搸ㄱ〷〷攷㙤㌵戶戱㜱挸㤰㙦㙣昳搰㜶㘳晣挷ㅥ㜹㥢戸攷㠵㙤昳㐲㡤㤹㉣挴㔶㈸〴慦㘶晣昷㜳散挴ㅦ㝥㔳〲㕣戹つ㐸㙢㐳ㅢ挷户慦戴㉣敦㈲〳㘵㤰攱敥戲㜰攸㔴㘵ㄹ挱戲㡣㌴换挲攱敤㉢㉤㡢ㅡ㌱㘹㠱㙤摤㘵攱挸愹捡戲ㅤ换戲扤㉡㡢㔰㠳㈳愱愳㉣㈸挲ㅥ㍦〷㐹〵摤㠱愸挶㌶㡥㔳㕦㘹㠹搵搰挷㘲散㘸ㄵ㐳㜹㤲㐳愰㉡挶㑥攰捡㥤㔹㤶〶愱挶㍣㐲㜷戱愰慡挴ㅣ晢ㄴ戴㥤㈸扣挰ㅤㅦ捡ㅤㄵ㈸㡥㘲ち戵㥢㠹㔲攳㄰㜵㔵搴㥥攳㤱㐲㡤㌶㔱㙡㐴愹㐱㜱㘴㔱愸㍤㑤㤴ㅡㅢ㙡㔰ㅣ㈳ㄴ㙡㡣㠹㔲扤扣〶挵摥慥㔰㝢㉢㔴ㅢ㍢摣㔷㙡㙦搵㠷㔹㡣戱挸㠹㤷戲㌷晢戲㉡挶㌸〴攴㍥㈰慤つ㝥昶㉤㌲㕢㥢〴㍢㤴ㅡㅤ㥥戲㐶㠷㑥㑡攲㕤昹散㘴㉡攱㐹㉢㠱捦㤴挸〰戸㝥㜶〷㑢㥣㝤㐰愱ㅥ慦ㄲ㘷扦㔰〹㡦戹挵挳ㄴ㘷ぢ戶挴搹㙣ㄵ敡搱㉡㜱㌶㘵㤵昰㠸㕢㍣㐶㜱摢慦㠲つ㔹㘱ㅥ慥ㄴ昶戳挱㔹ㄹ戰㤵㈹捣㐳㤵ㄸ挱㤶愷ㄲㅥ㜴㘷㌰ㅥ㕣扦摤扣〴摢㥤挲㍣㔰㈵捣愶愶ㄲ敥慦㑡㘰敢㔲〹昷㔵㈵戰㐱愹㠴㝢慢ㄲ搸㠶㔴挲㍤㔵〹㙣㌶㉡攱搷㤵〹㝥扡搷慡ㅤ㝤慡㌰㜷㔷㘲〴晤慣ㄲ敥戲ㄲ㤴昳扡挰ㄵ昴愰ㅡ昳愷㌰㐶㠷愸搸㔴挶㘸㕦ㄵ㥢挶ㄸ㡤愱㘲搳ㄹ愳戰㡡捤㘰㑣〹戳㐱㑣收㐴㘱㕤㐲㈹㐱愴㤲慢㤴搵㜰㤵搲ㅡ慥㔲㕥捤ㅤ晡㍦㥡㔱㌳搳
A28: Decisioneering:7.0.0.0 | B28: Decisioneering:7.0.0.0
A29: CB_Block_7.0.0.0:2 | B29: CB_Block_0
A30: 㜸〱捤㔹㙢㙣ㅣ㔷ㄵ摥㍢扢戳摥㔹摢挹收摤㠴㌴㜵㐳㠰㔲㐷㡢ㅤ摢㡤ㄳㄴ㙡敦晡㐹攳㐷戲㥢㤸〴攸㌲摥扤㙢㑦㍣㍢攳捥捣晡㤱ㄶ㔴愲㐲㥡愴㐵㌴つ搰戴㉡愴愵〸搱㡡㐲〵攲㐷〵〲㉡㕡㔴㔵愸ㄲ〱㠴〲㐸㈰㔱㔵ㄴ㈴㠴㕡挱慦慡㥣敦捥慣昷㌵㜶ㅥ〴㈹㘳敦搹㝢捦戹昷摣㌳摦㥣㝢捥戹戳〱ㄶ〸〴摥愳ぢ摦戸㐲㘸㙣㑤㉤摡づ㉦挴㤳愶慥昳慣愳㤹㠶ㅤ敦戵㉣㜵㜱扦㘶㍢㐱ㅡ㄰捥㘸㈴户攵㡣慤ㅤ攷㤱捣ㅣ户㙣ㅡ㈴〷〲㤱㠸㈲㐱㡢昷㠹㤵㍡ち㘶㈹㘰㉢㌴㉡愰㠴㠹㌴㌵㄰㐹㈷ㄳ㘳㤳挷㘸㤱㤴㘳㕡㝣㘷换㘱㔷搵扥昶昶㌸晤㜵㜶㜶挷摢㜶戶㈴㡢扡㔳戴昸㍥㠳ㄷㅤ㑢搵㜷戶㡣ㄷ㈷㜵㉤㝢ㄷ㕦㑣㥢㌳摣搸挷㈷摢㍡㈶搵捥敥昶捥慥慥晣㥥㍤摤㑤ㄱ搲㍣㥥㑣っ㜱㝤㤶昴㕤㉦慤ち㘹ㅤ㑤㈶挶㉤㥥扦㕥㍡㘵攰搲摥挷戳ㅡ〰攴摣搲㡣愹㜸㌲㐱晦ㄵ愸㔰㙦㜷㝣㉣㤵攲㠶慤㌹摡㥣收㉣ちっぢ㘳搹挹挳慡㕥攴攱㠲㌰㈹㔲㌸慣㕡愳㙡㠱㌷ㄷづ搹晣愰㙡㑣㜱昴攴挲㘰㔱换㠵攸挱〶㍦散户㤰〷㔲㝣㉣㤹㐸㑥慢㤶㈳㔴〲挰㡦昸㡤ㄶ㉢挵㉢㑣ㄱ㜳〴ㄷ昰戰㐶捦㜵戰㈶㥥慦ㄲ〵㘹㈴ㄲ㙥㈲戲慥㘲㘶㡢㤸摡搲捥㐲㙦㤳〳㔶㑥挴㜰㈹愳㑡㤹㐹㈹㤳㤵㌲㌹㈹挳愵㑣㕥捡㑣㐹㤹㘹㈹愳㐹㤹㘳㔲㘶㠶挶㤴慥㐸㐳㠳攴㕤㍦㝡昶散挷扥㜳晡㔷愳㕦㜸攷㠳㜷㝦晦挰愵慦㌰昸㥣㜰扥㔵搴㔰㔶ㄳ〹挷㠸昸ㄸ戲㡢戱㝦㤲㈱㌰收愷捦㘵敥㝦敢㠵〳晢扦摣搶㜵㝡敥摦㈷㠲っ㠰ぢ㉤㙢愱㘵ㅤ戴慣昷搷搲挹搸摦㍤㉤扦晣挹戶㥦㥦晥昵攳晤㕦㕤昳敥敦㕦㍤昹攷㘳っ㕥㉦戴㙣㠴㤶㑤搰㜲㤳扦㤶づ挶摥昴戴散扤昸㘶㜱摢ㄳ㤹㠱愷㜶晥㙣摢㉢㝦㜸攳㍦㑤㕢㘸捡㈸㍤慤昸㈸㜷慥㤳㙢换㜸㑡㔷敥ㅤ㜸㤲㜲挱㜵慥㍥㙥㘷ㄵ㜸摥戰㤱攳ぢ㘱㙡㤱㐷㌶ㄵ㤲愶攱昰〵愷㑦㜵搴㠶挲戸㙡㜱挳㔱㘸㔰慢㤸攵戶㌰戳㔹昰㑡戳愳㕥㡦㌴挴㐴戳㐲㑢愳㘰戸㥡ㄸ〵愹㘰挸愵㤱戰㕦戴ㅡ㔲敤㘹㐷㥤搴昹㡥ㅡ㈷〶㙥戴㙦づ㌹㥡㙥挷㐹攵愰㘵ㄶ㘷㠱攸㜵搳㐳扡ㄴ〰ㄴ摥㑡㐴挴㔶㝣搳〲㍤捡捤昴ㄵㄵ㐲〵㐲㝡挰敦㐱㔲㤶㌵摤㑡ㅤ㌲戱捦㉣愸㥡㜱㥤ㅥ㙥搳㜶㔲㝡挰摢㤷㝤㤶㍡㑦㌱愶慣㝡㔷扣つ㝦㤷て戲ㄴ㘳昳㕤昹摤昹昶昶㕣㔷㥢摡愱捡搸愵㔷ㅢ㈳戰㘹㥡ちㄳ㥡㤱㌳攷㐵搰㔸㕢愰㠸㈰〲㐱㝡㜱㤶ぢ㔶㔳㍥慤㕡㔳㥣〲㤱㌵摣户㍥㥦㌴㉤㡢敢慡挳㜳㠲㠱ㄴ戴愹㥡㘹て㔸㘶〱晣慤〹搵收攵㠰搴㥡㜷ㄷ㑡㤸㐵㈳㘷扦捦㕦㤸㜲㐸昵㤶㕡㔹㔹㐹摤戴ㄴ〵㘹㙥ぢ㑢户搵㑥ㄳ捥摦扢愰戹攲㥢㙢挴ㄴ愶捤挹攵愵〳ㄶ扦㘷㐹㕡㘷㔱㉦攵攱㌹づ㜹摤㕤扡㈲搷㉥ち慡愶捤つ㘱㕥㙢㘱㕣换捥㜰㉢挵㤱挵㜹㑥摣敡〶㠸㌸敤挷㉣户㕢挷〰㍤攵㠹摣昶㑡㙥扥㝦挱攱戴㥢㜳㘴㉦攵㑦㘷㌱㡤㥤戴戱㙡㠸扢㈶〹㌶㔷戱〷捣㙣搱挶慥戵㑣扤㕡搲㥢㥢㔳㘹捤摣㠸㤹攳愱㤰ㄴ愴ㅡ㈱㠴㉢㐰㜹㈹㐸㕢戹慤㘶愳㡡㈴〸摤㜶㘵戶愹昰ㅣ愴㥢㡥㉢㥡㔴敤㕥㤸攷ㄷ㌲㤶ちㅣ㜶㔳昵㕥㠹ㅦ㈴昴〸㈵㥤㘳㈳㐹戵ㄱ愵挲搰戲搷㘰ㄱ摦㜸敡摥㔱〵㘶昰㕢㡣扥㙤昹㕢ㄱ㙡㤷㍣攳晦㍢㔸㤲搶㜹㜷摦㍦㐷㌱㝢㐸㌵㜲㍡户㔶挶ぢㄶ㈹敦〷搹〱昲〱㈲搱㠰㝣㠹愲摢戲㐸㈲㉢戳〵戶㈸捦㙢㌹㘷㍡㍣捤戵愹㘹㠷㜸㔴㐰㐶㈲㠰㔹愵てㄸ㉦㔱愸㕦㠵㉡㔲昹㄰挸㙤㐴愲搱㘸㐰挴捦㜰㔴戹㥤晡攱㔶㈲㙢㉢ぢぢ搷㑢愲㡣㈱攷㡢〲〴㈹扦㍥收挶㈱㔶㔶㤰㌱搴ぢ㠸㜳捡㉥㤰づ㤰㑥㈲搱〰㝢㡤㙥て户昸㐷敡攲㔳㌶昴づ㡣摡㡤㔱ㄵ㠶敥愱㝥㜸㉦㤱㠶㐱㙥㜰㉡㘲挹㍡搴ㄲ挲㍡㐴挵㝡敢昶㐱慣慣㈰㘳愸㐳㠴㜵扤㔰㤰〰㐹㘲㔲㠰晤搸戳敥㙤㠲慦㡤攰㠳㜵愳〲挶㝥㡣ㅡ挰愸ち敢㠶愸ㅦㅥ㈶攲て㈳捡ㄵ㘱㈸慡㤵㝡㐳昷㐳慣慣㈰㘳㈸㜵㠴愱攳㔰㜰〰攴㈰㈶〵搸㜷㍤㐳搷㔰ㄷ㐵㘷搹搰㌴㐶ㅤ挲愸ち㐳㈷挰㠴愱㔱ㄶ㐲㌶昵㜳捣愵摣㡦晡㌳扡摦㔴㜳〳㙡㤶㑥ㄷつ摥搹㈲㤲㌴ぢ戳㔴㤱㔸㌱㡣㑣㔲㍣愲㌸㌷愷攵戸ㄵ〱㈳㐵㐷㥡㄰ㅤ㉤散戰㠸收㌶㤵ㅡ挱㠰㉣㌷㐶晣搶ㅡ㉥改摡攱敤㥡捡㈳搳㜰㥤晥㝦ㅣ攸扥ㄳ㑦㈱ㅡㄵ㘸ㅣ愱愶㜲㤴㠸㡣摤㜳搵ㄱ㄰捥戹戱㤰㥡㌶攷㠷㘸晢㜰摢㉤摤敤愴愵㌹㥢敡搹㔴㍡愹㠵捤㠲㍦㘸㜱㑡㝡㔶㥡㘲扦戸㐷捣搸攲㉢ㄱ㤳戶㠸〰㔴ㄱ㝡㕢昳㠷㌵㍥㡦㠴㝤㑢扤㠸捥ㅥ挹愲敤㤸愲搲摢㔶㉦敦㌳㐷㑤愷㑦戳㘷㜵㜵㜱㠷㡦搸㤵㑣㑣㜳㠳昲㤵㐵㘹敢㜲㠳捣搹㔹㥥昳戱㌱㘵ㄶ慤㉣ㅦ敥扢ㄱ㌲ㅥ㍤㈹昷㘲㈲搹戱〸ぢ㑢㡣慥㙢ぢ戶㙣㌳㤴摤扢晥昹挱扦ㅣ㝦攰捥㌰愵㔰㐶㥢㠴戶㠹㡣〰㝣慤㐹戱戹慡ㄴ摢㠰㐳攴〸ㅤ扣戵㔹㥤㈷㔴㡢ㅣ摢戴㙣愵㔰㙡扡㡥㔷ㄱ㜵摤摤㜲㈳㠰㑤㤵㠵㕢㔳挴㤷捦愹ㄵ㠶ぢㅦ㠴㌳㈳㡦戱昵㌵挹㕦摣昷㜶㐸慥敤㔹挹摦愲〸㜷㤵㠶㔰戰づ㌴捣攱㈰㤵挹〴㈲㌰ぢㄷ㤳㥦㈱㔵扥昶㈱㥤㠶っㅣ昶挵慣攸㡣㘱捥ㅢ挲㜲搹㐶㝤ぢ㠵㑡㐳〳㙥〳㜱㕣㕣㕤㈵户〹挸挸搸慤㝥㔸戹攷㤰愵户ㄱ挳㌹㉡〹扣搷て㑤㜸晤㤰戶戸㜸挷㄰ㄱㅤ㠲戰戹㌰㘱㕡㌳㤳愶㌹㠳搳攱㉡搱戳愷㌹㜷昰㍥愰戱攰扥搴㐰㥢㝣㍦ㄸ慣㍡昳㝢戸㐳㜸㉢搹攳㘶昸扢愹ㄵㅣ戰戲愲挷㉥搰晤攳㜸晥㠳つ晡换㕢㥥晤摥挰㠹摦㝥㠶㕦㑡㍣㜳㠶㝤挳ㄳ慣扡搸㤵戲㕥㍦㌷昶攴敦晥摡昸昲㐳㐷ㅥ㤱㔱㌴㕣㔱挱㠶㈲㘰㜵㝥㈹㜶愵㌵㐷攷㡤㜹搷㌵搰㡥攴㈹ㅡ㔱㌱㥤㙢挸愷愷改慥晢㥡昳㠳㤶㤶搳㌵㠳挳㜵攸㤸㠲㜷㈷晢昹ㄴㄵ捥攳㈶摥搳㤸㐶㜳㍥㙤愹㠶㡤㕣㘳㘴ㄷ搷㔶昵挴㙥㤱昳〹捤戰㘹ㄹㄱ㉦搱㕥㥤㐷㌸愷㈷㔷㉣ㄸ㠳敡慣㝤㈳㙣㈷昲㤳搲攵〶㉦㠹㐹ㄲ㡢㐸㤱㙢摣ㄱ㠱昰㈴改㙢慥搸㠱㝢㕢愸慥㤶㐴㔴㤳㔰㘸㈱攵㔳㌰㐳戱㜷攵㐵㌴慣㙣ㄲ㙦挲扣搳㑤搰㉦㘱㉦㔵昹搸㔵㑡㤶〸扢ㅤ〴扤㥣搷㐰㠷愱㌶㐴㠵㔱㤳戲㌹戱㤴㍣〶挰㔰愴敤㘵㠳㌱㐳戹㠸㠰捣捥㤳㝢㈲っ㔰㍢挰搸㘳搴挲㑥昶搹㠹っ挵㈵㜶愳敢晤挷愸㔵昶晥㜳㌴挷搷晢ㅦ昵〴㍤㍤㉦㌴㡥㙣搰㝢捥扦昴摣ㄳ愷㝥㜱攸ㄵ㠶㑡ㄴ㍢㈰㄰㌶㠸㕣ㅥ㜱㠶慡ㄵ愸㉢㈶ㄱ㠶㥡㔵〰㌳敢㌵〴㌰㈸㑢㝤㠰戹㠷搸㡡㠵㠱扤㐴晣㠰㈱ㄱ㥥㉢ㄵ㝤〹ㅡ㈱㠰㜹㤸㉣㉦〳昳㄰昵㤶〳㈶㐹㔳捡挰捣㔱慦っ捣㠳换〱㜳搲ㄳ㠴㌷㌶攸㠹搳慦㝤晣挴㘳㙢摦㥡昹搷㥦捥戲㝥㥡敦〲㜳㥣㕡㤵㐵敦摥㤶㈳ㅡ搷挹ㄳ敡晤㤱愱㙡ㄶ攸摣㑢つ㌶〴㐲ㅦ攵㍥慦㈱搰㐱㉤散㠳捥㘷㌱昰㜳ㄸ㠸ち㜸㘵㜴㔰ㅥぢ㜴㍥㕦㠵捥晤㉢愰㠳㘲㝡〹ㅤ〵攸戸〱昳扥攵㤰戹搷ㄳ挸ㄷ捦㡣扥㝥愶㝢散挴搷敦㔸㍦昲㥢愷攳っ㔵户㡢捣ㄷ愹戵愶㙡㤳㡥昴愷挸㝡ㅦ㘰㔰愵ぢ㘰㑥㔲㠳愱㐶ㄷ挰㍣攸㌵搰㠹愱搶㤵攸ㄳ㍥㐵㘴㑤㌲㤱㜱㜳㐱㈹愵㠴㑦ㄳ㝢ㄵ戱㉢㡥挶㌱㤴挶㤸愳㥣〱㐱挹捣戲㈰攸㍤㑣愴㜴挵攸㜹㠹摦ㅣ㤴㉦㔱愳㌹ㄸ攳昴㈵㈶㘲㌱〵慡㘳搸戳㠲昵〸㔸㈸㥤㤹㜰㜲昴ㅥ㈵㔲扡㘲㜰昶㄰㝤㤴㜳㐴㐸ㄷㅣ扢㐶ㄷ摣㕣戰扥㠶㜱㌸㠵㌱攱ㄲ攸㥤㈷㔲扡㘲㜰つ愱敢㜱㙡㤰㉥戸㐱㡤㉥㌸㠵㘰㍤㐹つ昱㑥㤸〹ㄴ搱慢搲〵㌴㠵慥ぢ搴㘸づ㌲㘰㠲㘷ㅥ㝥ち晤㕥㕤㙦㈹愵㕥㍢晣㌴㔸㔵㉦昴挳摦㈴㔶㔳摦㐴㝢㕢㕢㜷㌲扥愰摢〵昶㈹捦〷㈶㡥扥㜳搷搹挹㌳晤愷㝡摥昸摢慢㥦㠸摢散㤳㥥愰昶㕤㝡慣㠴戹っ㤸㍦敡㔷㌰搴扤摥㘸慤㝤㤷搴㑦敦㠶ㄶ㜱挳㐱㍡㘳挹㈲つ㠶愴扤搷愶慢㔴戴㈱㤶换㐷挹敡晦㐱て㥣慡扡收扡㠵㌸捡户㠹㌰戸㡣搸㕥㠰㕡〱戸ち攰㘴㠷㤶㐳㌰敤〹㙡㝦㐷㠸㤵㍣㡤挱戹㠰㈲㑢搱㔰㤸㉥㔶㝢ㅥㅣ㌸㔵㜹㌵戱愴㔸㙤㙣戹搵㐶㍤㐱敤敦つ戱㤲晦㌰戸㥦㔸㙤愴㜲戵ㅦ㘲㌵戸㥤摦㙡挳换慤㌶攴〹㙡㝦㤷㘰ㄷ㑡㡢っ㔶㉥昲㈲㜱㘵愰㔸㕢戸攲㥣㍤〰㐷愸㜹〷搴搸戸㥤㤸改昳㉦昶扣摢昱改㕥〶㐸㌰㝤㠹〱慢慢ㄸ㔸愱㤲搱昸㕦晥㌲㜸㙣 | B30: 㜸〱敤㕣㕢㙣ㅣ㔷ㄹ摥㌳摥㔹敦慣敤搸㡤搳㑢㑡㘹つ㘹㘹愹㠳ㅢ愷〹㙤㠱㄰㝣㘹㙥㌸戱ㅢ㍢㈹〸搰㘶扣㝢㈶㥥㘶㘷挶㥤㤹㜵攲㔲愹ㄵ㤴㥢戸㐹摣㐴愱摣㉡㠴挴ぢㄷ〹㜱攷〱〹〹㠴㡡㠴㄰㍣㈰昱㔰㄰㠲〷㉥㡡挴ぢて㐸昰㝤㘷㘶㜶㘷㜷扤㘳㜷摢㠲㡢㝣ㅣ晦㍥㜳㙥㜳捥昹慦攷晦捦㈴㈷㜲戹摣扦㤱昸㤷㈹捦捣㑤㡢敢㐱㈸㥤㠹ㄹ慦㔶㤳㤵搰昶摣㘰㘲捡昷捤昵㌹㍢〸晢搰愰㔰戶㔱ㅦ攸攵挰㝥㐴ㄶ换㙢搲て搰㐸捦攵㡡㐵㐳㐳㍤〷攱敦㐸昲㘰戰搷㘰ㅥ㘰㘹㘶㝡㝥昹㈱㡣扡ㄸ㝡扥摣㍦㜶㍥敡㝢㘴㜲㜲〲㍦㠷づ摤㍢㜱㘰晦搸㑣扤ㄶ搶㝤㜹挴㤵昵搰㌷㙢晢挷ㄶ敡换㌵扢昲㘶戹扥攴㕤㤲敥ㄱ戹㝣攰敥㘵昳搰扤㤳㠷づㅦ戶敥扢敦摥㐱扣㍡㜷㘶㘶㝡挱㤷㔶昰〲㡤愹㜳捡㠷㘶㘵挵收摡愴昴㙤昷攲挴捣㌴晥愵收㡦愷㝢㈶ㄶ㔷愴っ昹㙡改㑢户㈲〳〳ㅤ〷㥣愹㈰愸㍢慢摣㍣挳㌹㠶愵㔶捣㈰搴㥤ㄹ㔹慢ㄹ㑥㌲㙡搱㤹挷摥搵捣昵㐱㘷㔱扡㠱ㅤ摡㙢㜶戸㕥㜰㤶㌰㔰㜵挸㌹ㄷ挸戳愶㝢㔱㥥㌱ㅤ愹㍢挷敢㜶㌵ㅦ愵㕣摦敤挹㄰改㠹愹攵㑦㑣〵捥捣㡡改慢ㄹ〵摣㤸㡣戶挷晣㑡㙢摢㝤摤挷攵搴搵ㅢ㌸收㙤摤摢愱收扣改㌷㕡㡥㜷㙦ㄹ㉦扥㜵〶㜷㜵㙦㥦摡愳搶㍥慦敥摥㐷㙤㘵㙢㙢㌱㄰搳户摡㔱㉣挶㈸㄰昴ㄳㄴ〹㠸㐰愳㐴㌰㐰㌰〸㈰昲晦〰㤷愴㍢戲㑡㉢㥢㕡㜹㔹㉢㔷戴㜲㔵㉢㑢慤㙣㘹攵㡢㕡㜹㐵㉢摢㕡昹㈱慤㝣〹㙤㤲㔴散敦搷攲愴㥦晡敤慦晥㜶挷扥改㉦㝤昲㠹㙦扤晤搶愱ㅦつ敥㐲愳〷攲㐹捤晡收㘵㤰㕡㤳㡡て㑥ㅣ攰捦收㕣〱愶戰づ㕢昷㔸㤳㤳搵挳〷捣扢㑤㥤换捡㐰㝥ぢ愱㡣愰敤愰昵愰敤㔶扤换ち㜷㌷㑤㥢㠱㙣㙥摣㜸㕣㌷敤搵摤㙡昰戲㡤㉢ㄷ㐳㌳㤴㌷戶搷㌵〷改攸戶〸戶㤲㠱㝡摦捤敤摤捥㥢戵扡㥣扡㘲㐷搵㉦㙦慢㜶ㄶ㝣㙦戹㝢敤㌱㕦㍥摣愸敤㤸搱ㄴ㠴摡㥡ㅡ扢㘳㤵㔱㔵㌴慦戱㤹ㄵ㉦㤰慥㥡摥戸戳㘰㔷㉥㐹㝦㔱㔲㈴捡慡㕡敡戵慣㡡戹㝥㝣摥挵㐲挱慤搵㔷愶㑢慤晢慦㠴㘰㘶㔹挵㝣㔷愵ㅦ慥㉦㤹换㌵㜹㕤㑢㤳攸㥤愸搸摢㔲㝣捣慢搴㠳ㄹ捦つ㝤慦搶㕡㌳㔵㕤㌳㈱㘹慡愷扤慡捣攷㜳㑡㈸㐰攰昶昵〹㤱扢戳㍢㉦㈸㐴愴㔰㑣㐶扥愱㤵散㈶捥㘲㜵㔸㐵㑤㤲㈶戵㕢㌷ㄹ㡣昳㔵㌲㈶㠳〳㔳㙢愲晥攰㑢敦搸㘴搸〶收㕥摣挶㥡㌶ㅡ慦晥晥㌵改㠶㈷㑣户㕡㤳㝥愶昶ㄳ㥣㤱㌱っ愰㕦㠵㐰攸扡㝢㔴㜵攲㡡㔸搷㉦摢搵㜰愵戰㈲敤㡢㉢㈱捡愰㈱㡢㐵㙥㙤㐷㌲慥㐱㤱戱㥢㘰ㄴ愰㔴捡ㄵ昶戰㔱愱㠴㤴搳㈹㥤㌲㜸戹㐵㤰戳㕦ぢ㉦て㕡挷散㕡㈸㈳愱㍣㙣〱㈳㤱㔶㔳攸ㅢ㈲㠹晡㘶㈵㔲ㄸ㝢慣ㄹ㔰愹㘹扢攱㝡㤳㙦㍢戸㈴㈲愲ㅤ㔹戰敤㘴〱㐵㐱慢㍣挸攰㌵㄰㑤㥢㌴挸㙥㥣㈲㈲戲㐱㠶㘶挷挸慤㐴挶昶ㄹ㌲〲敤搳㐴挸搶〷扡换〸ㄲ㝢㈷㤱戲㔳㔷㝥摣㤱㘶ㅢ搹昲㤱㌴扢ㄶㅢ㘷㕣㐷㜰㍤挱つ〴㝢〱挴㥦㈰攱㈸攵㤰㙦㑤挶换昰㙣摣㐴昰㜲〰挸㈷㠳㌲㈷ㄶ㔵戴愱戶㘲㐷戲摤㄰散㘴㘵ㄴ㐷愲㠸㤶㜱挳捥ㅣ㜲ㄴ愲㘳慢㜳㝢攸摡扣搲戱慦敡㑥㥢改攵㤰㈲㌳㥡愶搷扡㐹搳昴㐶戰㘹㡦㝡敢ㄶ㜴㌵挶〸㕥〱㔰㌲㕥㐹〸攵㐲㠳㜷㙢ㄶ㍤㑤捡㤷㠴㔹ㄴㄹ㐳㍤㉡昸㤸㤰㜹〴挸㄰㜲ㅤ挷㤷ㅤㅢ㥡收攰戸昵㤲户愱昷㜷攷敦ㄸ改㙤㝡㜳㐷敦搰㕦昴ㅣ慤攸㝤㘰㉦昱扢慥㍡收㌶㔴ㅢ慦㈲戸ㅤ愰㑤挷昰昴晤㕣㍤〵捡㉣㜶㔲㤸摢㑤慦㡢戲㜲㤷搶㔷愵搲㐰㠳搶㤲改㕦㤴㈱㍣ㄸ㈷㘷㘱ぢ㝢扥㉦㙢㌸搴㔶㔵〱捦㉦搷户ㄶ〶挷㝣捦㘱昹㡥㡤ㅣ扣㈴ㄴ㐳㍥慦昵攵摡㙣攴っ㕢㌳攵㜳㑡㔱づ㜵昰摤摤㠵㐴慡㔳㉢㜹戱㕦昶昹㜲㐷㤲昴㈰㐹㕥㡤㙤㌵敥〴㠰㤴㄰扦改㉡㔱昶戳搹㙢㔴戳㔶㡢㤵ㅥ扥㡣搳㐹㥢て戱㐳㡥っ㐴づ摢㘹昸て㠲㈱㘷搱㜶ㅡ挲㘲挰㔹㤰㝥〵扥〵扢㈶㑢㤱㕢㤶愲㘶㐷㔶扣㐴㘴㐵㕦㕦挷㜹㍡挳扦愶攸愴㑤㑡㘴㜲㝢㘶㘵挶㔹扣㐹㔴㜴㐳㔲愸㘴戸㠶ㅡㄲ㠸㤴挷戶㍢㈲愶〷ㄱ㜳ㄷ㌶捥㌸㐰㌰㐹㜰㄰㐰晦〵㈴捤㔶㌷㥥攱戰晥㌵扡戴换攵㕣㤱㘸㔰㉥挲㘷扡ち慢挳㝣捤㙢〹敥〱㘸㌳㝦攸㠰捣㈰㐴㠵昲ㄴ㈱慡㌰㠶㜵摥㤶㤷㐹〳扢㉣〴㤶㘶敡㐱攸㌹㡣㉣つ㔹戳摥ㄹ㉦㥣戵㠳㔵㐴愲㐶慤㌸昳攰㡡㜴㐱㕤㍥㙣㥦戶㌲㙦㜵㔵㔶つ㙢搱慢㐳戴㥤㥣摤づ〷㜳㙣〷㙣㐹㜵㌶搷〴㔲㙦攷㘳っ㈱戰搳捡摦㑡㙦散㤶扣摦㍣昴つ㌷㜷㜴挹づ㙢㜲挰㡡㤸㡥昹愲㠵㕤㐴攴愰摡㙦㉤慤昸㔲捥づ㔹挷㝤扢㕡戳㕤㐹㘴挰挶㘴戰㙥㑥㕥㐴㤴㘰挱㘳っ搰㜳㠷慣㈵摦㜴㠳㔵㤳〱挵昵摤㉤㑦㉡㉣愲㕢搳戶ㅢ攰㌵ち㡢捣て㕢㡢㉢摥㘵㐴㙣敢㡥㝢摣㕣つ戶〵㔶㐸昴㔱㔲愸ㄱ㥡搰㌴㔱搴㡡扤攲㠷〷昲㕣㡥扣㤷㈷㔰戸捡改昴㤹㘷㘸㙦摡昵㜱㡣㠶㜶㍡攷㌴㠸攸㔱愳戰㉦㔳ち㤳㔳㡤晢搸攷㜵〰愷㡥㥦㍢搹㡣捣㍤慦㤸戵㑥㉦㝦㠶㡣㔷㘴搱〸㠴搰㐷户㉢㈲ㄵ㤶㤱㜲挰㠱挰㌸㥦摡挹慦㘴愹㌶愴扥㕤捤散㌱㐴㤲〶慤㌹㜳㔹搶㄰㡦㜶捣㜰㔷昴㐰㌳搶㌱㙢㐱㕣㌷攳㌹㡥㐹搲㈲㔹㉥㔶㑣㔲昰㔴㍤昴㑥摢慥㘱〱㈸晡㡢㡢捣㉢㈸㌲慦愸愲㐱敢㉣㐳㠳㉡捦戱扣㡢愶㙦㠷㉢㡥㕤㈹昲㠱攱扢㙤㐱㤳㘰㜲㑡摥㈴㈵㌲㘳慣捤㥡㍦〷㤳㉤㤸〰扡㈷㈰㐷戹㜵㐴㍦㈸㔷ㄳ〵晣㠸ㅥㅤ㑢㄰㌰捡㔳㙡扣〱愳改敡㜶〴㐴㡥㑡㔷㤳㍢ㄸ㔷ㅦ㐳㐹㈴㠴㠸昵っㄲ㠱㔷㌰㈵攴改攲㉥㔸攷㕣㍢〴昶㠸戱㘳㜶㌸ㅢ〰攵〰挸慡攳敤㡤ち慢愹㑥攳つ慤㜰㑢㘷㔵㡢㥡戸戹戳㍥慤㌷㙥摤愰㍡搲㈸㈹㐵戲㔹㈳愵㔹㌶㤸攳㜶㔲㌵㐲㈹敥㐴摢㠸㉣户㘹㜳摦㈹㐵㥥㠷㘲㔲㌴㤳㌳摥愸〸〵㠱摥㔸㐷搱㘷㥦㑤ㅥ愹㠸つ㙤㠰ㄲ昵㔴㔴㌶ㄴ㠷〴㑦攲摡㐹㔵㤶攲㈷昰昷慥㌸㍢㕦て㕢㙡捣㉢愳㜱捤㔴慤㌶敦挲㑡愸㤸㝥㜵㥢戰㌴搶ㄶ㘹ㄸ挵㥤扤㙡晦㘸㝢㔳㡣ㄸ戳㈱挳㈲ㄹ㝥㘰戰㈱㤸㉢ㄵ㔱愵㜵㌶挴慤㙥ㄴㄷ昹㜴㕡㥡慥挲挰㘲㔸㥤㤵㙢捡っ㙢㕡昲愳慡㐳攳戴愸攴愸㘱㑤㉤〷㔰改㈱攵㜸㥣㔳っ㙥㔸㘷改㤶挲㈵〶㠸摤㌸户㔰〹ㄱ摡㙤っ挰㤳挱昶挱づ㜶㈴ち㥤搰㍡愳〴㉤㘴㄰㙥敢㈲挸㍢㍤㘲ㄴ㠲搴㔲改敦㐷挵㘷㥥㘴晡敡搱㕣㤲㠹㤹㠸攱慥っ敢〱挸㑤㐷㈶挹㐵愳㐹挰㍣㤲㙣㑡㘸つ㈶㘵㌴㌱㠶㘸昲昹㈱㙥昱㌰㤶㌵㑣戶愹攱㥥㕢㘸㐳㥢搶搶㜷㔹㈷摤㑡慤㕥㤵㑡ㄵ㈷戲㕡㘹攴㙤㠱㉦㜵〵㌰攲愶㡣㝤㠹㌷攵㈴㡥㔲㕣㌲㤱搴扢摤㙤ㅣ㐵㜷㈵攴㌰㐶愴晡ㄸ㠰捣㜰换愹㠰㔸挷㍤〵摡㠷扢㥢ㄷㄸ搴攵㌹㠸戴㡥㈲捡戲㌹摣挷㙢㐴㤱ㄵ户愵㥡捤㜹㜳ㅥ㙤昶㔴搱〹㍢㉡摡ㄶ㌸挲㍡㈳㠱㔷㈸挰ㄸ改㤱㍢㌸㐸敥㙡ㅣ摤扤晡㤸㝡捣㕤〵㉡ㄴ〶〴㘳扣㍣〵攵戰慢㘰㈴ㅡ摣㕡搳敡ㄶ㡣晥搲昲㌶愶〰〴挳挰㌴㘸搱㌲㌲㜰㘶㤰摦摣挰戹〵慤㌲㈲愴改㘰㉡㘳㤴愳㜰搸〳㘹攰㈶ㅥ愴㤷㍣㈸愱㜰㡦扡ㄸ㤶摣㑤ㅣ㜷㜰〴昲晣敢摡ちㄷ捣㄰搷㕦摣扤㙤挵㔳搵㉡捤㕤昸攷戶〵㔶㜱㜵㈳㌲㐷昷戴㕤捡㔲㙢愲㝤户慦慤㈲扥㉣㜸㜰㜶攲㠴ㄹ㔶㔶ㄶ挳昵攸攲㔶慦㈴愱晦㄰晥㠸つ摦㑥㥢㌹敦昲㈲敡ㅡ昷扥㜴挹昵㉥扢㙡㕥㝡挰㕢㝦愰㄰㕣愱散攷㈴㑢戹㝦攳㐷㈵㉤愷晦〰㈳㙥㘵摡ㅣ愰改㈰攱㌸㉡㐵搲㘰っ昹っ㍡㠱敤摥戸㌵㐰㍡搹搳㐶㈷㑡㄰散㄰㡡㝢昱〵㈳ㄴ昱㝤愰㤵挴ㄲㅤ挹戱攷㕦〱敢㡢敦愱㠴〸挷㜳㉣㐶昴㔷㈰㤷㠱㍡㈵挸攳㉢ㅥ扣㄰昲晦㠳愵㠴㥢㌷㘴愷晦〲㌳㡢敦戶愳攸㘶愲攸㍢ㅤ㈸ㄲ扣〶愲昸昷ㄴ㌲㐹搲ㄹ㥥㝤㑥㠱㜰慥㘹攷〰晡愲㕦昸晤ㅦㅥ㐰攷㘲攲㔰㌶ㅡ㐲㙤户攱戹㘱㈲昴㜵㤸〸っ摥㉢ㄳ攱㌴㌲㠲㔱晣挸㐴㠸㝤㈰昳㈸搸摣㐴㘰㙣㉦挳㄰㑣㠵㕡㔳㙥つ㥥挰慥㜳攸ㅦ㍢㠱㡢户㌲㐰㍣ㅦ㑡㉢㤸㠱㐷敡晡捥攲〵搳㌷㥤扤慡晣戸㉦愱捣晣㈵摣攴㔶㕤搸攳挶つ㙢㔴愷つ㝣ㄵ㠹㤷㝤挷㥦戲戵晢敢挰㔴㤴㈲昷扤㈸㡡挲昳昰㤴〸㥥ㅢ㜲敦摣昳戵攳扦㝦攴㠹愳扣慤ㄶ搳慡㝥㈷昲扤㠴散㘹㑦㈰愸㥢扡㈸㜲㉤㍦捣㌹㡤㑦㤴散搵㥡㥣㌶㝤㘵〵〵㠶㤳㘴㈳挲㑢ㄱ㘶㐴㝣摢挱挴挴扤㠷挸挴㥣㘸㜳㜷慡て㥢㤴㡢㜰㈲㌵㜱攵搳㑢挲㠶愲慢㈲敢搱摡搴扦〱㔵昴ㅣ㈷搲㙡㈵昲搴挹㈴挴搷摢㜵摤㘱敡扡攸㈰挳戰㝦㈲愵㄰㝦㈰㠵愴て㌲扣㄰愰愴搴㔹㘴昴扢〰㌲㈲㙢敤㈱㕥晡〳㜶㠴㠰㙣㕣晡敢昱㈳ㄶ散㈲戰㤸昸攲㝢㍤搱搲ㄶ㑤㔴ㄳ㐳戵捡愶㔹㐴㐶ㅤ㕥㔸㌰㤹㤴㉥㈱㤳㈴晤㈰㜲㕢㜶㐷昱㈵㐳㑥ㄴ㜸㡢ㄸ㕢㜷攸㙢㉢㌹昷扢㜵摣晣㠰㥥㈹㈸㠵攱敥㘶㌱づ愴㉡㐶ㄷ㌵㉤㐵㐵㠴挳㔱戶搱㘹㈰慥㠲捥㜲昷攲㔴㡡攰ㅦ扦ㄴ㘲晤㜸㜳攸㙢摢㙢愸攳摣㝥㉣㤰扦戰扦㙥捥㘰㙣扣㤵ㅣ〳〹扢愵㔶挵攸㝡昸㌹㜴攱愲㜳挲㘸㘶搵戳㌸㡣㍦〹㘷昵㘹ㅤ晡㥦搱㙢挵㔹攷搹㥢㘱散ㄶ晤晦ㄶㄴ㙣慡晦〵㘳㙦ち㤱㙦㡤㌳㝣搰ㄹ㍦搹㌴㘴挳ㅤ㠱㘷ㅢ挱ㅢ㜵㌰㌶㔴㤶㈱敦㈸户㠸㡦㔷愳㙡㈵挱攱昷捡户㕦㡤㘸昴愵㙤㍢搰㔵〰㌲㌶愴㝦〵㈲愸㙢晦㔶戹㤵㥣㙥ぢ㙦㐳挷㍤愷敤㡡敦〵㥥ㄵ㡥㉤㈲攸㍢挶㙦捦㉣搸㍣㔳攲换敤㐲㙤ㅦ㜶㘲昰ㅤ攸㜳㘶ㅥ〲晢㡣っ㕦愸㔸㈴㈳ぢ㕢㡢㘴昰㍢愴㤱㔴㜸㠹摡㈱戸挶㝡愰㙥搶昰改敡㍣㝣㥤㈱㡢戶㠵戲㡢㍣捥敤㌷㌴戸㜵戸愳昵㘶昸㠳㘴㙤〲挱㌱戵㠴户扤㠳晢摡扥〷慤㙤攳戵〵㙣搹㥢捦慤愴㍦つ㥣㙥敤㉤慤㈴挳㜷昲㡢攴㤲㔱㈶挴愵晤愳昸扢㜵〷㉤㐷ㅢ〵㥤挷ㅦ㜴搳ㄱ㌶㕥㠳晢㙣ぢ搱敦ぢ攸㉡愶〸昰㙢㤸㜱㠶て㠲㕥㍥戲愲昸㍣㤶㐵〶㐰㍥㔷愸〰㜴愷敡愷㌶愲敡㤱㔳散㠹㈴㜸挶㈰㌹㤶挴㘷搱㤰摢ㄵ㉤ㅢ㉣挱㘵ぢ㜵㤶㐰摥㐸㝡㈰㥦ㄳ㍣㑢愸㠹㝣ㅡㅤㅡㄳ戱㔱摡㝤㈲㥦摡㘸㈲㠲㔶㠰㕡㘸㝡晣㤱㐴㡢ㄸ㌵㔴ㅢづ㠱㑢攰〱㡣㈴捡㘴㤸昲㤱㐲愷㄰挵ㄸ扥㐷ㄴ㈱晤㌲晥晢散搱㕦㍣挳昴搷愳㐲㐹㐴㔴戵慥㠲ㄲ㔱慤攲愳改㔵昸㈸敤扥㡡て㙦戴㡡ㄱち㑢捥挴〸〱㠶晡㐴ㄹ㝦搴慡敡挸㜰㐳昹㉢㉥㄰攰户㘵ㄶ㈳㈶㑡㔴摦换挸愰㉦㜷㕥戵扡㠲㑣搲㔷攷㐶㘴㝣攵愳っ㈵摥㠸愴㔳愷㄰㜹㘵ぢ㤱㝡㉣㍡戱㍢㜶㕢〸〹㉣㠹㥦捤㜶㤵敤㠵ㅥ㐳晤攲㝤〹㘲㑥㥣㐸㍥愱搲攲攰ㄳ〸㈳㌲㑤㐹㐸摣㐸昱摥愴昱㌷扦摤昴㥤愲〲〹搴ㄳ㌵㈶挱愹挶敦㐹ㅡㅦ挴攷㔹慡㑤㡥㔷〹㤸㥥㑤ㅡ㤳㌰㔵攳㈷㤲挶㝦㌹戸户搱㌸愱挳㘸㘴㥤㐴㤲㘱昴慡㘳㐰敡㔳敤㘱㌴搷㉤㉡搲〱㉢㉡愶〸㔵㌱攴㥡㔲愵㠳戸ㄵ攲攳㘳改㌹㕣㜲挲㕤㄰㐸摢攸晦㑣㌸㠹换㑦戳㘶㘸攲㕢攸㌵㐴㥤㝤㐳㍤戱㜳挱㥡昷㔱搰㙦㥤っ㜰戸慡㙥㉢ㄲ㠱㕤㤰㡦昶㜷ㄳ敦㝣㠶つ搹摣㡦㈴㕡愶昱㌲㐹㙦㕡㐴㐵㔸昲攲㕤〹㘶㜳㡦㌷㘹挶㜸っ挸㠱㤸〴㘴挶㜸ㅣ㌰㡡挸散㘱挱〸昹㕦㌱昷扢㔸昱㙥㠲㈷〰㑡㠲捣㑥㍡㈸扣〷㘰㌸昹ㅦ㉢挶搶㤴攳㐴ㄳ㡦㈴㉦㑢㤳㤱昱㍥㜶㜸㍦㐰ㅦ晣戸㈲㈶挲㤲昱〱㤴愴㕦㑡挱愱㕥晡㐱㔶㝣㠸攰挳〰㈵㥤㤳摤昲慥㜱㑤㍤慡戰㡦愰慢㜸㥣〰扦挶㐷攳っㅦ㜴敥挳敢扢ㅢ捤㍣ㄳ㈷㕦昸㈳收搹昲㈹晦晤昸㌴㝦㥤㡢敥挳晦㑣愲㉢ぢ㍦慦扤慥户戱挸〴㌴捥搵敦㉡㌶晢㜹㡣挳㜵㌵㐳㈹ㅣ㤱㑡愵愸ㄵ〴昱捤〵ぢて㙦攰㕢㡥愸ち㈱㐸〳慡挲㡤㉢㡥愲挰昸㌸㥢ㄲ挷挴㤳昱〹㍥ㄱ戵㙡ㄳ㍦ㄹ㘷昸㈰㠸㔷搵晤愱戸㝢昲㐲攲㕡㔵搸㙤㉦㈴晥㔵挵㑡晡㠵㑦㜲㌰㠵㉣㘴㕡戵ㄲ㤱愶㘸攸戳挸っ昵つ㜳㙥て攲㔷扢㈲㉡ㄷ慡ㄷ㉥晣㜳㌸㍦㜶㘳晥㉤㙦ㅡ㝣昲搹㥦晦攱㘳扦㝥晢㤱㍦晦敢愹愷㝥晤挷㡦㍤昳慦ㅦ㉥ㅦ昹改搳㑦晦攴搴ㄷ㥥昹挳㙥敢㡢摡户晦㌹昷挵㐷㈷㉦㍤晡戰㜵敥捥攳㡦扥昵愱〷㈶ㄷ慥ㄹ敦敢敢敦扦㝤昴㘷㌷摣㌱昲昸挳摦ㄵ㍦晥敤昵慥㔰换挵ぢ㕡愷挱㘵慢㘹㝣づㄹ㑣㠳㌳㝥㔱愷挱攵慡㡤㕡㡥㌷㙡ㅡ〵㐵㌸㌷㌸〱㔵㘱戶㔶っ晣〷㜵㉢戲攱
A31: Decisioneering:7.0.0.0 | B31: Decisioneering:7.0.0.0
A32: CB_Block_7.3.0.0:1 | B32: CB_Block_7.0.0.0:1
A33: 㜸〱捤㔹ぢ㙣ㅣ挵ㄹ扥戹扢㍤摦㥥ㅦ㌱㠱㠴㈴㤰挴つ〹㈵㈴ㅣ㜶ㅥ挴〴㐲㙣摦搹㠹ㄳ扦挸㌹㌶㐹ㄳ㡥扤扢㌹摦攲摢㕢戳扢攷〷㔰㥥㈲㔰〵㐱㕡㄰ㄵ㈰㐰㔵㕢㉡㤵㜷㘹ㅢ㐱㐵㈵搴搲ㄲ搱〷愲㙡㔵愱戶㔰ち㔵㤱㕡㤵㑡㈱㠸㡡㤰晥摦散㥥㝤扥摢㑤㐲㐸㈵搶昱敦㤹昹㘷扥㤹㥤昹晦敦晦㘷攳㘳㍥㥦敦ㄸ㍤昸㡢㈷㠸挲戹㠹㈹搳攲㕡㌴愶攷昳㍣㙤愹㝡挱㡣戶ㅢ㠶㌲搵愳㥡㔶㠰㍡㠴㤲㉡改㑤㈹㘹慡搷昳㜰㜲㥣ㅢ㈶㜵㤲㝣扥㜰㔸昶㤳扥昴摢㔸㉡挸ㄸ㈵〷㐹搴㔱㉦摦㘰慣愳㍦㜵㉤㐱㈷㉣摤攰慢㥢㠶㙣㠰㑤㉤㉤㔱晡㔹户慥㌵摡扣扡㈹㔶捣㕢㐵㠳㙦㉡昰愲㘵㈸昹搵㑤〳挵㔴㕥㑤㙦攷㔳㠳晡㈸㉦㙣攲愹收戵㈹㘵㕤㙢换扡昵敢戳㤷㕥摡㕡ㄷ㈲攴㠱㔸挷㔶㥥ㅦ㈳扣搳㠵㕡㐳愸㝤戱㡥〱㠳㘷㑦ㄷ愶㠴摤戸㈸捥搳㉡戶㡤㜳㐳㉤㡣㐴㘳ㅤ昴慦㙣㔷愸戶㈱摡㥦㐸愴ㄵ换攲〶㜶㑤搶晡搳愹㈱㈵㕦攴㈱㑤㉣㈷慣つ㈹㐶㥦愲昱㝡㙤愷挹㜷㈸㠵ㄱ㡥㥡愴㙤㈹慡㤹㈰ㅤ㘵㘰愵摢㈴捥〶㐵晢㘳ㅤ戱㥣㘲㔸㌶㈴㑤戰捡慤户㤸㈹敡㉣㐳昴ㄷ㉤搸ㄶ㔶敢ㄸち收ㄳ㉢っ㘳㤹㌲㠹㔰㠴挴ㅣ㘷㔴㤳ㄸ搶戴㠶〵㍦㈴㔳㉢ㅦ㔴㑢扤晣㐹挵㥦㑣昹㤳㘹㝦㌲攳㑦㜲㝦㌲敢㑦㡥昸㤳㌹㝦㔲昵㈷慦昵㈷㐷愹㑦改〹搷搴昸㥤攷愱戶攱〵て㥥晢昸搶㙦ㅤ搹㥣㍢昲扤㤷㐲っ搶㈵捣慣㡥ち㜲㍤㠹㔰〳㠹㡡㐵戴㌰昶ㅦ㕡〴ㄶ㜲昰㘲㙥㌶扦搳戹敤改㕢敢摦㝥㘷搷挸ㄳ㜵㡤搴扤㡦㜶㈵摡挷慤搳㘴㍥ㄲ㜶攴攴㑦〱㑢㤷㌴晢㄰攳摣㑣换㌸攱敥㐲㠶㑦㠶愸㐴㈷㕦愷挵昴㠲挵㈷慤戸㘲㈹㌵摡㠰㘲昰㠲㈵㔳愷㔵㘲㤴㕤挲挸㝡搱㔶ㅡㅤ㜱㙡㠴搰㈸㡡㘵㈸戵愲挱㐶㘲攴晥㠱愰㉤挳㈱㌷ㅥ搸慡㤸㌹㑢㐹攵昹昲ち㘳挱扥㤱㝤敥戴搴扣ㄹ㈵挸㉤㠶㕥ㅣ挳㡥㥥㉥ㅣ戸户っ戳ち捤㈵㈱㔸ぢ㝦改㘹㤳捦㈴ㄹㄱ㑡ㄹ㑡㍡摣㘳㔰搰攳攸敡捥愶㌲㉤㌱慥㙢㡡㕡㌸㑤㠷㕢户㠰㐰慦㜴㝣㈰㙥㈸ㄳ攴挷㌳搰㙢愲捤昸㌹㌱㤱ㄱ㡦㘵搷㘷㌷㘴㕢㕡㌲敢㥢㤵戵㡡〴〷晡㉣扥戸㤴晡搷㘹挳㙡㈱愳㑦〸攷慣搷ㄲ慡戰㥣㌸ㄸ扢㑥ㅢ㔴㡣ㄱ㑥㝥㙥㜴挷㈳㥡㜰挶挱愹㌱㕥慢㘱捤〳扡㕡戰捣㍡㑤晣㑤㑣㘹㈹㍤㕦㙢㔷㠸晥㜵㈳攲㈸㠸攸㘵搱扦㐷㉤㔰〹㌲㐱㙤ㄱ㔱ㄲ㍤敤㐶〰搳昴㌹㝤愲㑢捤ㄳ㜱昱捣㌹㘲㔸㑣㌷っ㥥㔷㄰㑣㘲㍡捦㘶搵戴㑡㤶摢愰㜵ㄹ扡㤶攰〵㔳慣㙡扥攸扡㠳㡦ㄸ摣〴㌵挶戹愵㤰㌹㥤摢愱㤸㝣㠶㝡㔶㘵敤㔷敤搰㡢㠵㡣㜹㡥扢㌲㘱㈹ㄶ㕦㔴愹㥢〱愹ㅡ㤶㈰ㅡ收愶搸扥㈵㤵挳㠴敢戵㑦慡戶㝡㜱㠵㥡挸㔸㑦㜹㙢扢っ㝥摤戴戶㙡㐵敤ㄴ㕦挷㌹昴㔵㙦㘹慢散㜵ㄱ㠵敡㈶㉦㠸攵慤搲〶搴昴㈸㌷ㄲㅣ搱㤹㘷挴慢捥㠳㡡戶扢㤰收收慡晥〲扤㈸㐵㠳捣戲昲搶㙣攷愴挵㠹㑢㌲戴㕥㡡㤰搶搴㈰晣㜸晥慣㉥昶㥣愴㔸㌸慢戹㑢㑦ㄷ㑤㜰㠶愱攷㘷㙢摡㌳攳ち捤㤹改搵㌳㍣ㄸ昰〷㝤㠲㠷㠳㈰㘳㕦搰ㄷ挴攳愳㐰ㄴ㈰㑥㔹㕤挱ㄸ㈲攲㘱ㅡ戳ㄴ㕥捡㑣ㄸ昱挵㡤㝦愶昳㤰㉦㝢愳㠹㔳㠶㈱攲㔷〴慡戳㘶㍢㈹㌲ㅢ摤㠰昷搶戰ㅡ㑦㥤㉢㙤捦㕡㉦扣㘰㝡づ挶搸㠲㡡㘹㜶搰昹搰㌹攴㌹愶昲㔷㌲㘶搹晢捦搸㈵㤶㝢㥣㠹换㑥〵慥㡤摥ㄷ㥣㘰㈳愶㙤敦晦摢搹敦㍦搳㜹晢捥㜱昲散慤㑡㈱㤳攷挶㜱㡦㤰㘱㐵昲㐲㠸㐵㄰攷㤰㤰摥㈵敥㍥搹戳㐵戲㕡㌳㡥戸㤸㑣晡挲㐰㠳摤戱搰㘲㤲愱㕥挵㈰昳㤶摥㈱㍣搷㈳㐶搷㘰〱昹㤲㐰㠸㡣ㄶ昴〹攲㈶㌲っ挹〴㜹〰㕣慥愹挱搱㈱敡㌸㡦㥦㤲㕢㐶晦晥㑡戰㠰㡥散搹戳挷㠹㌵㝥㥦昴㌶戵ㅣ攷昴㥣㝣愸㘴㌶搵换挷㈴㘴㐷㍥改㉤〲昲戴㈶昱㤲㤳㙣㑡㥡㔰㌳㔶㉥㤴攳敡㐸捥挲搰㌰㍤㔸敦攰㈷挷㡥㐵〹攱〱捡扦㙢㤰㠳换换㈰捥㠳㔸㑥㈲ㄲ昱㠹㌸ㄹ㡡挸攷摢㔵㠶捣㐳㘴㙦挸㤹慡㠳攸㑡㜴㤳㡦愳㘳㐸戸㄰戸攴㡢㈰愲㄰ㄷ㤳㘰慦搳㍡㜰愶㘲搱㌲㑥㠶晤㠶慡㘲敦愸攲㍣愵㙤晤㜵㐹㔵扥慤散㔷搴㡡慤㐵㘷㙣て㝢㡤㉡㙦搱敦ㄵ昴愲ぢ攸敦慢昴㤲㍦ㄶ挹摦㈵搴㐵摥〰搱㑡愲散㐵㌷摡搵㈰㔲〵㌷慢㥣㑥㙣㘰㐶㤱ㅥ㕤挹㜴㈹㘹扡㥥搴㌸㤷㤳㜰㑣搷挶㈸摤㌲ㅡ搱㌳㐶㜴㐷㌴㍡慥㘶戸ㄱ㐶〳㠲㘱㤰敥㈶㘶㐸〴ぢ㤳昲愸㠰㑦㤲㙡挳㙥㜳㜵㤷戰㤶㍢㉥㐳㘶㌷㝤搳敡慥挲晦攷㤵慤㥢㜱㡡㤱〸昲㘵昹㌲㠸换㐹㐸㜰㥤捦挴慡㜳㌰㔴ㅢ挸敢ㄶ搶摢愰挵っ扡挸ㄹ慡搲愳㙡慡㌵㙦扡摡㔷搴㔲摣ㄸ㈴㐵摥㍣㜳扡㜵㠰ㅢ㘹昲㙣㘵㠴㉦ㄲ㝣㔵挶搶慢戲㐳㉡㥦〰ㄵ㉥慤㔶搱摤㈴㔶㌴㉤㕤㘴愸㑢慡昵㜱扤㑦户攲慡㌹㤶㔷愶㤶扢愸㙤捤㜰㡥ㄷ㈸搲ㄹㄴ昰㑥搴㐹ㅦㅢ攳ㄹ㤷㌵㈶昴㈲扤㐱㜷晣㡢㄰㉢〵㔳搱㘹昸㤸㠸㡤攱愸㌷㡢㤷敥㕥攵㘷〵㈳つ㠷晤攴っ散搴㘸ㄷ昶㈴晤㡣㕣攷㌳㑥散捥㔹晦㈰摦ㄳ㌷㍥㡡昵㉣㠲挷挷㐰改㠲㐳慦愰〲って扦ㄲ㌸摥㌵户戵㌳昳改㍢㜰㜷㠶㑣㑤戵愶㜰慤慣挳挵㜷搰攰攲㜶ㅢㄶㄵ㤱㘵づ敢挶㘸㑡搷㐷㜱㕦㙡搰㔰㌳㜳㥣㕢戸㡤搶㙡昶㔵ㅡ㘵摡愳㐰㘰搶慤搳昱㍡㈸㜱㉦戰戹戰㡤㑡㠱㉥㈳㉤㙡散愷戴㌵戸㈴㍥㍦㉦晦捡愲敦㍦搳㜵摢敦慦攱㙦㜶㝣㘷㍦㝢挹㔱㌴晣㙥㝤挲昸敤晤晤㡦晣攱摤摡㔷敥摥昵㜵〹ㄴ㝢㔲㈱ㅥ㤷愲㌹搹㘹慦ㄸ㔴慤㍣慦捤ち挳ㄷ攵㜰㤶散㥣ㄲ扣㑣㑤㜶㌰㐷㙦ㅤ慦捦㙥㌱搴㑣摥㐹㌶捥戲扢昶昰ㄱ㑡收〶㜴㔳㐵㑥㕤㥦ㅤ㌴㤴㠲〹㠲㉡愴愷收捥慡〹㐲㤲戲ㅤ㙡挱愴㘹㠴㈷愲㍣㈷㡢㉣㥤㤸愷愸ㄵ戶㈸㘳收ㄷ挲㉢㘰㌰昶㈳摣㠲昹㤹摦捦挲晥昰㈹㕡戹㌰㑡扦㙦つ㐱晡㈱㠸㐲挹㌴㈵〴挲攳㠴改㡡㈴ぢ㙢愲晢搱㑣㝥ㅤ㜰攳昴改挴㔴㈴㌵㜱㡣改㈴戱㙤换捥敥㤹㍢攱攷晡挰㈵㈱㜴㥦㜴戶㌷㡦㍡㌷搸愶㠲っ㄰摣㉣㡢ㄳ㐷慤搲晣㈲㔹搱〷㤶搸㌰㔳散愲㠴扦㉥摢愳愴㜸扥㑢㌷㌴挵㙡戰㉢愰㉡㡤㐲㠳愳愳㘰愶㈹㌰㉤㝣㑣㈲戲捡昳㜰戶扤㘸改扤㙡㐱捥㤲㄰昶攷㌴㈹㤳搴愴㑣㡡愶扡散づ摣攰散㜸㐹㔸晡㠸㐲ㄴ㤷搳搴㜴ㄸㄵ摣戲扥㄰㌶㐹㌴㠶攴愵昴〸挳㈴收㙤慡㘰㙣晢换〷ㅤ㜷㤴〲㈳戶づ挷㑦㤶敢㘷㈱晡㘱愷㤸ㅥ㔳扥㈳〸㐹摥㐲㘸ㄲ㔸ㅢ〹㤰㜸㍥㈸㝤戵晤攰㘶㙡戱㐹ㄷ改ㅣ搴昲㔶愷㠰ち㐳昶㠶扣愷㈲㤱攸愶㈶㜹ㅢ㍡㈰㘷㐳㌲㈱昰㝦㐴っ㠷挸㐰㜵㥦ㅢ戱㈳户ㄳ㜳昴㔰愱㐴散散㘲慡㠰摣敤搵戶㤵㑡散㔹㠷㉦慢㠸昴ㄹて㈲㘵㐸攱㐰愶敥捥换㤰摣㠹㑣㜶〷ㄵㄸ戲㍣昸挵昴㍥つ㔲昹挴晢㠴㙣㔰扣挳㑥愷㠰㑡㈳㌲㉢㙣㐱㘸㠸挴ㄹ戱㡥愴ㅤ㐴㑡戱㈸㌴㑣捤つ搴㕣挶〵㡤㐸挴㌰㐶扥ち〲ㄹ㜰㈳〲ㅥ㐸㕥摥つ昱ㄵ㠸㍤㄰㝢㈱慥㠶㐸㐲㕣〳愱㐰愴㈰搲㄰ㄹ〸づ㤱㠵ㄸ㠱挸㤱㠸戰㌸㐹戱㘲㤵ち愵㐷㠲㔵㥣搰㄰㘱扤㤱㉣㑣㌲㘱㑤攵㠹〶㔰㐴搰戴㑢攲㍢㡥㘸ㄳ户ㅦ晡㙥ㅣ慣扣㝡㑣㡦挵敤愲搶昵㍡〵つ㉣㕥㝡㠰捥搵㜳㍣摥㘰收挶㠶㌱㜸㐲昸挶㝢㔶慦㥡㌶㜴㔳捦㕡㑤〹ち㘵㑤昸昰㐱㥢搰摣捥敥㈷挴㔹昷㠵昳㘸㈷ㅡ㘱攱㜸㌳㔹㈳㔱ㅦ㘸㠴㌵㡢㠳挰攱挹㌸慡㐶搸戶㘸ㅡ㐳ㄳ㙥㈸㡤戰㔹㜱㌶〶㥡㈸㑤昷挹戸㍡挹㐵㠸㜱㠸〹㠸㐹㠸㈹㠸敢㈱㙥㠰戸ㄱ攲慢㄰㌷㐱摣っ㜱ぢ㠹〸ㄳ㤶㠸㙡昹搹㌰㔸㈲捥㠷摤㐴敢挷慥㔰搹㈷摢㥦戳改慤㙥㜴㝤㉢搸愳㜸慢㍢愸㔰ㅦ㘰㔷搱ㅦ戸㔵㘸ㅦ敡敤昹㝣㔳㈹敢㌱㐳㜷愲㘹昶㔷晣扢愸愹㉥㍥摣搲摣摣ㅡ㡢㑥收㑤㡤㑤搰㌴㐸㘴㠶㜷ㅦ摥晥㡤搴晥捥慦戵扤昷晥愱慢愲㈶ㅢ㜷ㄴ㔵ㅦ搲㘱戵㤸戲搲㤳つ㘷㐰㤵㈷㕦攷㈸㉡㔳㈲〶搳㥦㐶ちㅤ愰㕡愰摤搴散〴慢攰㠵愶㌹㡡ぢ敥㝤慤攵攷敢㕦散㝤㜴搹㉦慣㠶晢㌷晤㤲挱㠷愶搱㘴愰搹㐸搷㝡㈱愹㡥愲昹昵㠳㉢敥晣攴捦㕢㕦〸愴ㅥ㍡晣昰攰〸㠳㈳扡㈱㘵扤㤰戸愳㔸捥㤷㑡㐷㕥敤㡤摦昶搶挳㑦晣敤㡥㐵ち㠳㌷扢㈱愵扣㤰ㄴ㐷㜱攱㌷㕦㥥晦摣戱愷㝡㙦晦㘸挵扥㤷晦昲㘸㉢〳㈵戸㈱㕤敤㠵戴搷㔱ㅣ㡣晣㔰㍤㌰挶㘲晢戶ㅣ㑤㉤㙡晥晢㈶㜶㡤〷搲㙥㉦愴㕤㡥愲㌹㝥挹扡㥦散扦愳㘳晦㠶㝦慦散㝦晡昱㐶〶㜲㜲㕢搳㤰ㄷ搲㑥㐷戱昹挹㝢㠶ㄶ扦㝦慣晤愹㐳昷㥣晤搸㈱改㌶〶㠶㜳㐳摡攱㠵㜴愵愳昸㘳戶㝥摦て㤶ㅣ㘸㝢昲搹㌷昶㍣戶㝦㜴㍦〳㑤扡㈱昵㜹㈱昵㍡㡡搶㜵㉢扡ㅡ㔶扦搰昵摣攱昹ㅦ㙦㡦摦昴ㅥ换㜸㈰㙤昳㐲敡㜶ㄴ昷慤慥扤㙢攱摤扢㘳〷㙦㍦昸㠸㜹敢收ㄶ〶挲㜶㕢㔳㤷ㄷ㔲愷愳㌸昸挸扤换㠶㌶㍥搷晦搰扦㔶㉥敤摣晢㘶㡥㠱昵摤㤰㍡扣㤰摡ㅤ挵搰㐷晢ㅥ㜸摢㔴晢敥㜹㤴㕤晦㘰扤㝣〱㐳攸㜰㐳扡挲ぢ㘹㤳愳㈸散㜸昲昶㌵〷㡥昶㍥晣摤换㍢㌷户晦改摢っ昱挷つ㘹愳ㄷ搲愵㡥㘲晢ㅢ挳昲慥扥搶慥扢㍦ㅥ敤戹慦㌱昷㝣㘳㠹ㅥ㈵㔰昶㘵ㄵ昹㔳搹攷搰戲昸扡慡昲愳㜵㈷㝤㠴㥥〲愹〷攸㙢㡢㈴㤲挷愰㝦攳愹㘱㤵扥摤搶㄰㥣搴㑡慢晥ㅣ㌸戳㈳ㅢ㄰㤷搲慦㝣㠸〴㐳昸ㄱ㍢〸ㄲ㤷㐱摢㌲㠸㥡慤㜵㌶慡㡡㥢搷㌸㡡捡晦愲㘴㠸㕡㌳㘷搱〶愴戹㐰挲搷㍥搷敢敡㐵㡥愲㡡㥢ㄱ晡㘶㤰㘶搸昴㐲㉦愴㤵㡥愲㡡㤷ㄱ㍦摤㤰捥昷㐲㕡攱㈸慡㜸ㄹ㐱搸つ㘹㤹ㄷ搲㤷ㅣ㐵ㄵ㉦㈳㤲扢㈱㉤昱㐲㕡散㈸慡㜸ㄹ改㠰ㅢ搲㈲㉦愴㠵㡥愲㡡㤷㤱㔳戸㈱捤昷㐲㥡攷㈸慡㜸ㄹ㠹㠹ㅢ搲㕣㉦愴㌳ㅣ㐵ㄵ㉦㈳扢㜱㐳㙡昰㐲慡㜷ㄴ㔵扣㝣㠳〷㔲挴ぢ㐹㜶ㄴ㔵扣㡣㍣换㙤㑤㈱㉦㈴挹㔱㔴昱㌲㤲㌵㌷㈴扦ㄷㄲ㜳ㄴ㔵扣㡣㡣捦つ改搳㑦㍤晣敥愸愳愸攲㘵愴㡤㙥㐸晦昵㐲晡搸㔱㔴昱昲㉤ㅥ㐸㐷扣㤰㍥㜴ㄴ㤵扣捣㤰㙢㠲㤲搹㘱敡〱ㅥㄴ搴㔵㑦㤴㈶㠱扦㉡昳㝤㕣ㄸ扡㐰挱ㄵ晦〱㔱㕢㡢㠴㝥昰挱ㄷ摢㡥慥摤摢捥㌰ㅥ挳㑢つ戵晦〳㐹㐸昳昳
A34: Decisioneering:7.3.0.0 | B34: Decisioneering:7.0.0.0

Sheet OPEX
A1: Ethanol Stream | B1: cmix.ethanol.a500.515
A2: Ethanol Production Rate (kg/hr) | B2: =VLOOKUP(B1,INDIRECT(LU_SENS),2,FALSE) -> 21478.0383
A3: Ethanol Production Rate (MM gal/yr) | B3: =VLOOKUP(B1,INDIRECT(LU_SENS),2,FALSE)*($B$7/('Set-up'!$B$39*3.7854*1000000)) -> 60.47861365 | D3: Feedstock Dry Tons/yr | E3: =E12*2.20462*(1-$M$7)*B7/2000 -> 772535.5951 | F3: Biomass Feed + Boiler | G3: =(E12+E27)*2.20462*(1-$M$7)*B7/2000 -> 772535.5951
D4: gal/ton | E4: =B3*1000000/E3 -> 78.28586027
A5: Operating Cost Analysis
A7: Operating Hours/Yr | B7: 8410 | D7: cellulase price (if purchased) | E7: 1e-10 | F7: /gal | H7: Feedstock cost | I7: 58.5 | J7: /dry US ton | L7: Feedstock moisture | M7: ='Operating Summaries'!D3 -> 0.199999999
A9: Variable Operating Costs | M9: =CASEID -> DW1111A
B10: Costing Code | C10: Raw Material | D10: Stream No. | E10: kg/hr | F10: lb/hr | G10: Quoted Price (cents / ton) | H10: Year of Price Quote | I10: =costyear & " Cost ($ / ton)" -> 2007 Cost ($ / ton) | J10: =costyear & " Cost ($/lb)" -> 2007 Cost ($/lb) | K10: $/hour | L10: ="MM$/yr ("&costyear&")" -> MM$/yr (2007) | M10: ="Cents/Gallon Ethanol ("&costyear&")" -> Cents/Gallon Ethanol (2007) | N10: Cost reference
A11: Raw Materials
A12: NONE | C12: Feedstock | D12: STRM.101 | E12: =IFERROR(VLOOKUP(D12,INDIRECT(LU_SENS),2,FALSE),0) -> 104166.667 | F12: =E12*2.205 -> 229687.5007 | G12: =I7*100*(1-$M$7) -> 4680.000006 | H12: =DCFROR!$B$34 -> 2007 | I12: =G12*VLOOKUP(DCFROR!$B$34,INDIRECT(IX_CHEM),4,FALSE)/VLOOKUP(H12,INDIRECT(IX_CHEM),4,FALSE)/100 -> 46.80000006 | J12: =I12/2000 -> 0.02340000003 | K12: =F12*J12 -> 5374.687524 | L12: =($K12*$B$7/1000000) -> 45.20112207 | M12: =(L12*100)/$B$3 -> 74.73901822 | N12: Set in Cell I20
A13: A200 | C13: Sulfuric Acid, 93% | D13: STRM.710 | E13: 1980.61092 | F13: 4367.247079 | G13: 9000 | H13: 2009 | I13: =G13*VLOOKUP(DCFROR!$B$34,INDIRECT(IX_CHEM),4,FALSE)/VLOOKUP(H13,INDIRECT(IX_CHEM),4,FALSE)/100 -> 81.39234875 | J13: =I13/2000 -> 0.04069617438 | K13: 177.7302487 | L13: 1.494711391 | M13: 2.47147099 | N13: Basic Chemical, Omaha via HGI
C14: Ammonia | D14: STRM.A200.273 | E14: 1047.11521 | F14: 2308.889038 | G14: 45000 | H14: 2009 | I14: =G14*VLOOKUP(DCFROR!$B$34,INDIRECT(IX_CHEM),4,FALSE)/VLOOKUP(H14,INDIRECT(IX_CHEM),4,FALSE)/100 -> 406.9617438 | J14: 0.2034808719 | K14: 469.8147546 | L14: 3.951142086 | M14: 6.533122781 | N14: Terra Industries via HGI, anhydrous, delivery to Iowa
A15: A300 | C15: Corn Steep Liquor | D15: STRM.A700.CSL-A300 | E15: 1154.87046 | F15: 2546.489364 | G15: 5700 | H15: 2009 | I15: =G15*VLOOKUP(DCFROR!$B$34,INDIRECT(IX_CHEM),4,FALSE)/VLOOKUP(H15,INDIRECT(IX_CHEM),4,FALSE)/100 -> 51.54848754 | J15: 0.02577424377 | K15: 65.63383764 | L15: 0.5519805745 | M15: 0.9126872149 | N15: Corn Products via HGI
C16: Diammonium Phosph | D16: STRM.755 | E16: 141.727002 | F16: 312.5080394 | G16: 99000 | H16: 2009 | I16: =G16*VLOOKUP(DCFROR!$B$34,INDIRECT(IX_CHEM),4,FALSE)/VLOOKUP(H16,INDIRECT(IX_CHEM),4,FALSE)/100 -> 895.3158363 | J16: 0.4476579181 | K16: 139.8966983 | L16: 1.176531233 | M16: 1.945367398 | N16: Ronas Chemicals via HGI
C17: Sorbitol | D17: SORBIT | E17: 44.2380248 | F17: 97.54484468 | G17: 113000 | H17: 2009 | I17: =G17*VLOOKUP(DCFROR!$B$34,INDIRECT(IX_CHEM),4,FALSE)/VLOOKUP(H17,INDIRECT(IX_CHEM),4,FALSE)/100 -> 1021.926157 | J17: 0.5109630783 | K17: 49.84181411 | L17: 0.4191696567 | M17: 0.6930874095 | N17: Coast Southwest via HGI
A18: A400 | C18: Purchased Enzyme | D18: CCIS.ENZYME.750 | E18: 1e-05 | F18: 2.205e-05 | G18: =IF(E18>0.00001,1/(B7/(B3*1000000)*F18/2000/E7)*100,0) -> 0 | H18: =DCFROR!$B$34 -> 2007 | I18: =G18*VLOOKUP(DCFROR!$B$34,INDIRECT(IX_CHEM),4,FALSE)/VLOOKUP(H18,INDIRECT(IX_CHEM),4,FALSE)/100 -> 0 | J18: 0 | K18: 0 | L18: 0 | M18: 0 | N18: Set in Cell E20
C19: Glucose | D19: CMIX.GLUCOSE.A400.401 | E19: 2396.23855 | F19: 5283.706003 | G19: 58220 | H19: 2009 | I19: =G19*VLOOKUP(DCFROR!$B$34,INDIRECT(IX_CHEM),4,FALSE)/VLOOKUP(H19,INDIRECT(IX_CHEM),4,FALSE)/100 -> 526.5180605 | J19: 0.2632590302 | K19: 1390.983318 | L19: 11.69816971 | M19: 19.3426552 | N19: USDA
C20: Corn Steep Liquor | D20: STRM.A700.CSL-A400 | E20: 163.014656 | F20: 359.4473165 | G20: =G15 -> 5700 | H20: =H15 -> 2009 | I20: =G20*VLOOKUP(DCFROR!$B$34,INDIRECT(IX_CHEM),4,FALSE)/VLOOKUP(H20,INDIRECT(IX_CHEM),4,FALSE)/100 -> 51.54848754 | J20: 0.02577424377 | K20: 9.264482758 | L20: 0.0779143 | M20: 0.1288295073 | N20: =N15 -> Corn Products via HGI
C21: Ammonia | D21: STRM.A700.NH3-A400 | E21: 113.940033 | F21: 251.2377728 | G21: =G14 -> 45000 | H21: =H14 -> 2009 | I21: =G21*VLOOKUP(DCFROR!$B$34,INDIRECT(IX_CHEM),4,FALSE)/VLOOKUP(H21,INDIRECT(IX_CHEM),4,FALSE)/100 -> 406.9617438 | J21: 0.2034808719 | K21: 51.12208105 | L21: 0.4299367017 | M21: 0.7108904714 | N21: =N14 -> Terra Industries via HGI, anhydrous, delivery to Iowa
C22: Host nutrients | D22: STRM.A400.440 | E22: 66.7467828 | F22: 147.1766561 | G22: 74530 | H22: 2007 | I22: =G22*VLOOKUP(DCFROR!$B$34,INDIRECT(IX_CHEM),4,FALSE)/VLOOKUP(H22,INDIRECT(IX_CHEM),4,FALSE)/100 -> 745.3 | J22: 0.37265 | K22: 54.84538089 | L22: 0.4612496533 | M22: 0.7626657184 | N22: SRI CEH
C23: Sulfur Dioxide | D23: STRM.A400.442 | E23: 16.2679941 | F23: 35.87092699 | G23: 25400 | H23: 2005 | I23: =G23*VLOOKUP(DCFROR!$B$34,INDIRECT(IX_CHEM),4,FALSE)/VLOOKUP(H23,INDIRECT(IX_CHEM),4,FALSE)/100 -> 275.697811 | J23: 0.1378489055 | K23: 4.944768025 | L23: 0.04158549909 | M23: 0.06876066857 | N23: SRI CEH
A24: A600 | C24: Caustic (as pure) | D24: CMIX.NAOH.A600.632 | E24: 2242.58417 | F24: 4944.898095 | G24: 15000 | H24: 2009 | I24: =G24*VLOOKUP(DCFROR!$B$34,INDIRECT(IX_CHEM),4,FALSE)/VLOOKUP(H24,INDIRECT(IX_CHEM),4,FALSE)/100 -> 135.6539146 | J24: 0.0678269573 | K24: 335.3973919 | L24: 2.820692066 | M24: 4.663949611
A25: A800 | C25: Boiler Chems | D25: STRM.A900.921 | E25: 0.246841756 | F25: 0.544286072 | G25: 280000 | H25: 1991 | I25: =G25*VLOOKUP(DCFROR!$B$34,INDIRECT(IX_CHEM),4,FALSE)/VLOOKUP(H25,INDIRECT(IX_CHEM),4,FALSE)/100 -> 4532.165605 | J25: 2.266082803 | K25: 1.233397307 | L25: 0.01037287136 | M25: 0.01715130478
C26: FGD Lime | D26: STRM.A800.851 | E26: =IFERROR(VLOOKUP(D26,INDIRECT(LU_SENS),2,FALSE),0) -> 893.387985 | F26: =E26*2.205 -> 1969.920507 | G26: 20000 | H26: 2009 | I26: =G26*VLOOKUP(DCFROR!$B$34,INDIRECT(IX_CHEM),4,FALSE)/VLOOKUP(H26,INDIRECT(IX_CHEM),4,FALSE)/100 -> 180.8718861 | J26: 0.09043594306 | K26: =F26*J26 -> 178.1516188 | L26: 1.498255114 | M26: =(L26*100)/$B$3 -> 2.477330454
C27: Feedstock | D27: STRM.A800.840 | E27: 1e-07 | F27: 2.205e-07 | G27: =G12 -> 4680.000006 | H27: =H12 -> 2007 | I27: =G27*VLOOKUP(DCFROR!$B$34,INDIRECT(IX_CHEM),4,FALSE)/VLOOKUP(H27,INDIRECT(IX_CHEM),4,FALSE)/100 -> 46.80000006 | J27: 0.02340000003 | K27: 5.159700006e-09 | L27: 4.339307705e-11 | M27: 7.174945726e-11 | N27: Set in Cell I20
A28: A900 | C28: Cooling Tower Chems | D28: STRM.A900.922 | E28: 2.39680146 | F28: 5.284947219 | G28: 200000 | H28: 1999 | I28: =G28*VLOOKUP(DCFROR!$B$34,INDIRECT(IX_CHEM),4,FALSE)/VLOOKUP(H28,INDIRECT(IX_CHEM),4,FALSE)/100 -> 2716.098864 | J28: 1.358049432 | K28: 7.17721957 | L28: 0.06036041659 | M28: 0.09980456387
C29: Makeup Water | D29: STRM.903 | E29: 148979.982 | F29: 328500.8603 | G29: 19.97 | H29: 2004 | I29: =G29*VLOOKUP(DCFROR!$B$34,INDIRECT(IX_CHEM),4,FALSE)/VLOOKUP(H29,INDIRECT(IX_CHEM),4,FALSE)/100 -> 0.2349479745 | J29: 0.0001174739873 | K29: 38.59030588 | L29: 0.3245444725 | M29: 0.5366268386 | N29: Peters & Timmerhaus
C30: Subtotal | K30: =SUM(K12:K28) -> 8310.724536 | L30: =SUM(L12:L29) -> 70.21773782 | M30: =SUM(M12:M29) -> 116.1034183
A31: Waste Streams
A32: A800 | C32: Disposal of Ash | D32: STRM.A800.809 | E32: =VLOOKUP(D32,INDIRECT(LU_SENS),2,FALSE) -> 5686.7231 | F32: =E32*2.205 -> 12539.22444 | G32: 1820 | H32: 1993 | I32: =G32*VLOOKUP(DCFROR!$B$34,INDIRECT(IX_CHEM),4,FALSE)/VLOOKUP(H32,INDIRECT(IX_CHEM),4,FALSE)/100 -> 28.86162246 | J32: =I32/2000 -> 0.01443081123 | K32: =F32*J32 -> 180.9511808 | L32: =($K32*$B$7/1000000) -> 1.521799431 | M32: =(L32*100)/$B$3 -> 2.516260441
C33: Subtotal | K33: =SUM(K32:K32) -> 180.9511808 | L33: =SUM(L32:L32) -> 1.521799431 | M33: =SUM(M32:M32) -> 2.516260441
A34: By-Products and Credits
C35: Grid Electricity | D35: WORK.A900.WKNET | E35: =-1*VLOOKUP(D35,INDIRECT(LU_SENS),2,FALSE) -> 13132.9399 | F35: kW | G35: by year | H35: =DCFROR!$B$34 -> 2007 | I35: $/kWh | J35: =VLOOKUP(H35,INDIRECT(IX_ELEC),2,FALSE)/100 -> 0.05716754912 | K35: =J35*E35 -> 750.7779868 | L35: =($K35*$B$7/1000000) -> 6.314042869 | M35: =(L35*100)/$B$3 -> 10.44012501
C36: Area 100 Electricity | D36: WORK.A900.WKA100 | E36: =VLOOKUP(D36,INDIRECT(LU_SENS),2,FALSE) -> 859.484703 | F36: kW | G36: by year | H36: =DCFROR!$B$34 -> 2007 | I36: $/kWh | J36: =VLOOKUP(H36,INDIRECT(IX_ELEC),2,FALSE)/100 -> 0.05716754912 | K36: =J36*E36 -> 49.13463398 | L36: =($K36*$B$7/1000000) -> 0.4132222717 | M36: =(L36*100)/$B$3 -> 0.683253545
C37: Subtotal | K37: =SUM(K35:K36) -> 799.9126208 | L37: =SUM(L35:L36) -> 6.727265141 | M37: =SUM(M35:M36) -> 11.12337855
C38: Total Variable Operating Costs | K38: =K33+K30-K35 -> 7740.89773 | L38: =L33+L30-L37 -> 65.01227211 | M38: =M33+M30-M35 -> 108.1795538
A39: Fixed Operating Costs | M39: =CASEID -> DW1111A
C40: Position | D40: Salary | E40: Year of salary quote | F40: =costyear & " Salary" -> 2007 Salary | G40: # Required | H40: Total | I40: =costyear & " Cost" -> 2007 Cost | L40: ="MM$/yr ("&DCFROR!$B$34&")" -> MM$/yr (2007) | M40: ="Cents/Gallon Ethanol ("&DCFROR!$B$34&")" -> Cents/Gallon Ethanol (2007)
A41: Labor & Supervision
C42: Plant Manager | D42: 147000 | E42: 2009 | F42: =(D42)*VLOOKUP(costyear,INDIRECT(IX_LABOR),4,FALSE)/VLOOKUP(E42,INDIRECT(IX_LABOR),4,FALSE) -> 141568.9655 | G42: 1 | H42: =G42*D42 -> 147000 | I42: =(H42)*VLOOKUP(DCFROR!$B$34,INDIRECT(IX_LABOR),4,FALSE)/VLOOKUP(E42,INDIRECT(IX_LABOR),4,FALSE) -> 141568.9655
C43: Plant Engineer | D43: 70000 | E43: 2009 | F43: 67413.7931 | G43: 2 | H43: 140000 | I43: =(H43)*VLOOKUP(DCFROR!$B$34,INDIRECT(IX_LABOR),4,FALSE)/VLOOKUP(E43,INDIRECT(IX_LABOR),4,FALSE) -> 134827.5862
C44: Maintenance Supr | D44: 57000 | E44: 2009 | F44: 54894.08867 | G44: 1 | H44: 57000 | I44: =(H44)*VLOOKUP(DCFROR!$B$34,INDIRECT(IX_LABOR),4,FALSE)/VLOOKUP(E44,INDIRECT(IX_LABOR),4,FALSE) -> 54894.08867
C45: Maintenance Tech | D45: 40000 | E45: 2009 | F45: 38522.16749 | G45: 12 | H45: 480000 | I45: =(H45)*VLOOKUP(DCFROR!$B$34,INDIRECT(IX_LABOR),4,FALSE)/VLOOKUP(E45,INDIRECT(IX_LABOR),4,FALSE) -> 462266.0099
C46: Lab Manager | D46: 56000 | E46: 2009 | F46: 53931.03448 | G46: 1 | H46: 56000 | I46: =(H46)*VLOOKUP(DCFROR!$B$34,INDIRECT(IX_LABOR),4,FALSE)/VLOOKUP(E46,INDIRECT(IX_LABOR),4,FALSE) -> 53931.03448
C47: Lab Technician | D47: 40000 | E47: 2009 | F47: 38522.16749 | G47: 2 | H47: 80000 | I47: =(H47)*VLOOKUP(DCFROR!$B$34,INDIRECT(IX_LABOR),4,FALSE)/VLOOKUP(E47,INDIRECT(IX_LABOR),4,FALSE) -> 77044.33498
C48: Lab Tech-Enzyme | D48: 40000 | E48: 2009 | F48: 38522.16749 | G48: 2 | H48: 80000 | I48: =(H48)*VLOOKUP(DCFROR!$B$34,INDIRECT(IX_LABOR),4,FALSE)/VLOOKUP(E48,INDIRECT(IX_LABOR),4,FALSE) -> 77044.33498
C49: Shift Supervisor | D49: 48000 | E49: 2009 | F49: 46226.60099 | G49: 4 | H49: 192000 | I49: =(H49)*VLOOKUP(DCFROR!$B$34,INDIRECT(IX_LABOR),4,FALSE)/VLOOKUP(E49,INDIRECT(IX_LABOR),4,FALSE) -> 184906.4039
C50: Shift Operators | D50: 40000 | E50: 2009 | F50: 38522.16749 | G50: 20 | H50: 800000 | I50: =(H50)*VLOOKUP(DCFROR!$B$34,INDIRECT(IX_LABOR),4,FALSE)/VLOOKUP(E50,INDIRECT(IX_LABOR),4,FALSE) -> 770443.3498
C51: Shift Oper-Enzyme | D51: 40000 | E51: 2009 | F51: 38522.16749 | G51: 8 | H51: 320000 | I51: =(H51)*VLOOKUP(DCFROR!$B$34,INDIRECT(IX_LABOR),4,FALSE)/VLOOKUP(E51,INDIRECT(IX_LABOR),4,FALSE) -> 308177.3399
C52: Yard Employees | D52: 28000 | E52: 2009 | F52: 26965.51724 | G52: 4 | H52: 112000 | I52: =(H52)*VLOOKUP(DCFROR!$B$34,INDIRECT(IX_LABOR),4,FALSE)/VLOOKUP(E52,INDIRECT(IX_LABOR),4,FALSE) -> 107862.069
C53: Clerks & Secretaries | D53: 36000 | E53: 2009 | F53: 34669.95074 | G53: 3 | H53: 108000 | I53: =(H53)*VLOOKUP(DCFROR!$B$34,INDIRECT(IX_LABOR),4,FALSE)/VLOOKUP(E53,INDIRECT(IX_LABOR),4,FALSE) -> 104009.8522
C54: Total Salaries | H54: =SUM(H42:H53) -> 2572000 | I54: =SUM(I42:I53) -> 2476975.369 | L54: =I54/1000000 -> 2.476975369 | M54: =(L54*100)/$B$3 -> 4.09562194
C55: Labor Burden (90%) | H55: =0.9*H54 -> 2314800 | I55: =0.9*I54 -> 2229277.833 | L55: =I55/1000000 -> 2.229277833 | M55: =(L55*100)/$B$3 -> 3.686059746
A56: Other Overhead
C57: Maintenance | D57: 0.03 | E57: of ISBL | I57: =ISBL*OPEX!D57 -> 3106787.516 | L57: =I57/1000000 -> 3.106787516 | M57: =(L57*100)/$B$3 -> 5.137001873
C58: Property Insur. & Tax | D58: 0.007 | E58: of FCI | I58: =FCI*OPEX!D58 -> 2785632.427 | L58: =I58/1000000 -> 2.785632427 | M58: =(L58*100)/$B$3 -> 4.605979302
C59: Total Fixed Operating Costs | L59: =SUM(L40:L58) -> 10.59867315 | M59: =SUM(M40:M58) -> 17.52466286
L66: ="MM$/yr ("&DCFROR!$B$34&")" -> MM$/yr (2007) | M66: ="Cents/Gallon Ethanol ("&DCFROR!$B$34&")" -> Cents/Gallon Ethanol (2007)
A67: Total Operating Costs | L67: =L59+L38 -> 75.61094525 | M67: =M59+M38 -> 125.7042166
A70: Denaturant Costs
B71: Denatured Fuel Stream | D71: STRM.703 | E71: =VLOOKUP(D71,INDIRECT(LU_SENS),2,FALSE) -> 22072.4532 | F71: kg/hr
B72: Denatured Fuel Stream Dens. | D72: DEN.703 | E72: =VLOOKUP(D72,INDIRECT(LU_SENS),2,FALSE) -> 0.802600267 | F72: g/cc
B73: Denaturant Stream | D73: STRM.A700.701 | E73: =VLOOKUP(D73,INDIRECT(LU_SENS),2,FALSE) -> 460.736166 | F73: kg/hr
B74: Denaturant Stream Dens. | D74: DEN.A700.701 | E74: =VLOOKUP(D74,INDIRECT(LU_SENS),2,FALSE) -> 0.685578088 | F74: g/cc
B75: Denatured Fuel Production Rate (MM gal/yr) | E75: =VLOOKUP(D71,INDIRECT(LU_SENS),2,FALSE)*($B$7/($E$72*3.7854*1000000)) -> 61.09919985 | F75: MMgal/yr
B76: Denaturant Use Rate (MM gal/yr) | E76: =E73*($B$7/($E$74*3.7854*1000000)) -> 1.49306802 | F76: MMgal/yr
B77: Denaturant Cost $/gal | E77: 2.1
B79: Costing Code | C79: Raw Material | D79: Stream No. | L79: ="MM$/yr ("&DCFROR!$B$34&")" -> MM$/yr (2007) | M79: ="Cents/Gallon Ethanol ("&DCFROR!$B$34&")" -> Cents/Gallon Ethanol (2007)
B80: S-10 | C80: Bulk Unleaded Gasoline | D80: STRM.A700.701 | L80: =E76*E77 -> 3.135442843 | M80: =(L80*100)/$B$3 -> 5.184382798
B81: Ethanol Fuel Val. | C81: =B3*1000000*DCFROR!B35 -> 130687732.1 | D81: $/yr
B82: Denaturant Cost | C82: =L80*1000000 -> 3135442.843 | D82: $/yr
B83: Denatured Fuel Val. | C83: =C81+C82 -> 133823175 | D83: $/yr
B84: Denatured Fuel Val | C84: =C83/E75/1000000 -> 2.190260679 | D84: $/gal
B85: Denaturant Cost | C85: =L80/E76 -> 2.1 | D85: $/gal

Sheet CAPEX
A1: Mechanical Equipment List | L1: Scaled Installed Costs
A2: EQPT NO | C2: EQUIPMENT TITLE | D2: VENDOR | E2: MODEL | F2: DESCRIPTION | G2: HP | H2: MATERIAL | I2: QUOTE INFO | J2: NUM REQD | K2: $ | L2: Year of Quote | M2: Purch Cost in Base Yr | N2: Scaling Variable | O2: Scaling Val | P2: Units | Q2: Scaling Exp | R2: Inst Factor | S2: New Val | T2: Size Ratio | U2: Scaled Purch Cost | V2: Purch Cost in Proj year | W2: Inst Cost in Proj year | Y2: installation factor category | Z2: REMARKS
A3: C | B3: 101 | C3: Transfer Conveyor | D3: Dearborn Midwest | F3: 160 MTPH ea., enclosed, 60 in. x 65 ft. long | G3: 20 hp ea. | H3: CS | I3: DMWCC Price | J3: 2 | K3: 5397000 | L3: 2009 | M3: =K3 -> 5397000 | N3: STRM.101 | O3: 94697 | P3: kg/hr | Q3: 0.6 | R3: 1.7 | S3: =IF(N3<>"",VLOOKUP(N3,INDIRECT(LU_SENS),2,FALSE),"") -> 104166.667 | T3: =S3/O3 -> 1.099999652 | U3: =M3*T3^Q3 -> 5714627.761 | V3: =U3*VLOOKUP(DCFROR!$B$34,INDIRECT(IX_CAP),4,FALSE)/VLOOKUP(L3,INDIRECT(IX_CAP),4,FALSE) -> 5752951.572 | W3: =V3*R3 -> 9780017.673 | Y3: solids handling
A4: C | B4: 102 | C4: High Angle Transfer Conveyor | D4: Dearborn Midwest | F4: 160 MTPH ea., enclosed, 72 in. wide | G4: 50 hp ea. | H4: CS | I4: Included with DMWCC | J4: 2 | K4: INCLUDED
A5: C | B5: 103 | C5: Reversing Load-in Conveyor | D5: Dearborn Midwest | F5: 320 MT / hr, enclosed, 84 in. wide | G5: 20 hp | H5: CS | I5: Included with DMWCC | J5: 1 | K5: INCLUDED
A6: C | B6: 104 | C6: Dome Reclaim System | D6: Cambelt | F6: 100 MTPH ea. | G6: 45 kw ea. | H6: CS | I6: YES | J6: 2 | K6: 3046000 | L6: 2009 | M6: =K6 -> 3046000 | N6: STRM.101 | O6: 94697 | P6: kg/hr | Q6: 0.6 | R6: 1.7 | S6: =IF(N6<>"",VLOOKUP(N6,INDIRECT(LU_SENS),2,FALSE),"") -> 104166.667 | T6: 1.099999652 | U6: =M6*T6^Q6 -> 3225265.177 | V6: =U6*VLOOKUP(DCFROR!$B$34,INDIRECT(IX_CAP),4,FALSE)/VLOOKUP(L6,INDIRECT(IX_CAP),4,FALSE) -> 3246894.662 | W6: 5519720.925 | Y6: solids handling
A7: C | B7: 105 | C7: Reclaim Conveyor | D7: Dearborn Midwest | F7: 100 MTPH ea., enclosed, 48 in. x 125 ft. long | G7: 10 hp ea. | H7: CS | I7: Included with DMWCC | J7: 2 | K7: INCLUDED
A8: C | B8: 106 | C8: High Angle Transfer Conveyor | D8: Dearborn Midwest | F8: 100 MTPH, enclosed, 72 in. wide | G8: 20 hp | H8: CS | I8: Included with DMWCC | J8: 1 | K8: INCLUDED
A9: C | B9: 107 | C9: Elevated Transfer Conveyor | D9: Dearborn Midwest | F9: 100 MTPH, enclosed, 48 in. x 200 ft. long | G9: 10 hp | H9: CS | I9: Included with DMWCC | J9: 1 | K9: INCLUDED
A10: C | B10: 108 | C10: Process Feed Conveyor | D10: Dearborn Midwest | F10: 70 MTPH ea., enclosed, 42 in. x 25 ft. long | G10: 5 hp ea. | H10: CS | I10: Included with DMWCC | J10: 1 | K10: INCLUDED
A11: M | B11: 101 | C11: Truck Scale | D11: St. Louis Scale | F11: 10' x 70', 200,000 lb | H11: CONCRETE | I11: YES | J11: 2 | K11: 110000 | L11: 2009 | M11: 110000 | N11: STRM.101 | O11: 94697 | P11: kg/hr | Q11: 0.6 | R11: 1.7 | S11: =IF(N11<>"",VLOOKUP(N11,INDIRECT(LU_SENS),2,FALSE),"") -> 104166.667 | T11: 1.099999652 | U11: =M11*T11^Q11 -> 116473.7917 | V11: =U11*VLOOKUP(DCFROR!$B$34,INDIRECT(IX_CAP),4,FALSE)/VLOOKUP(L11,INDIRECT(IX_CAP),4,FALSE) -> 117254.8959 | W11: 199333.323 | Y11: solids handling
A12: M | B12: 102 | C12: Truck Dumper | D12: Jeffrey Rader | F12: 70' x 55 ton x 63 degree | G12: 2 x 50 hp ea. | H12: CS | I12: YES | J12: 2 | K12: 484000 | L12: 2009 | M12: 484000 | N12: STRM.101 | O12: 94697 | P12: kg/hr | Q12: 0.6 | R12: 1.7 | S12: 104166.667 | T12: 1.099999652 | U12: 512484.6834 | V12: =U12*VLOOKUP(DCFROR!$B$34,INDIRECT(IX_CAP),4,FALSE)/VLOOKUP(L12,INDIRECT(IX_CAP),4,FALSE) -> 515921.5418 | W12: 877066.621 | Y12: solids handling
A13: M | B13: 103 | C13: Truck Dumper Hopper | D13: Jeffrey Rader | F13: 3500 cu.ft. hopper w/ drag chain conveyor | G13: 50 hp ea. | H13: CS | I13: YES | J13: 2 | K13: 502000 | L13: 2009 | M13: 502000 | N13: STRM.101 | O13: 94697 | P13: kg/hr | Q13: 0.6 | R13: 1.7 | S13: 104166.667 | T13: 1.099999652 | U13: 531544.0311 | V13: =U13*VLOOKUP(DCFROR!$B$34,INDIRECT(IX_CAP),4,FALSE)/VLOOKUP(L13,INDIRECT(IX_CAP),4,FALSE) -> 535108.7066 | W13: 909684.8012 | Y13: solids handling
A14: M | B14: 104 | C14: Concrete Feedstock Storage Dome | D14: Domtec | F14: 98 ft. dia., 160 ft. high., 4000 MT | H14: CONCRETE | I14: YES | J14: 2 | K14: 3500000 | L14: 2009 | M14: 3500000 | N14: STRM.101 | O14: 94697 | P14: kg/hr | Q14: 0.6 | R14: 1.7 | S14: 104166.667 | T14: 1.099999652 | U14: 3705984.281 | V14: =U14*VLOOKUP(DCFROR!$B$34,INDIRECT(IX_CAP),4,FALSE)/VLOOKUP(L14,INDIRECT(IX_CAP),4,FALSE) -> 3730837.596 | W14: 6342423.912 | Y14: solids handling
A15: M | B15: 105 | C15: Belt Scale | D15: Tecweigh | F15: Scale plus processor | H15: CS | I15: YES | J15: 2 | K15: 10790 | L15: 2009 | M15: 10790 | N15: STRM.101 | O15: 94697 | P15: kg/hr | Q15: 0.6 | R15: 1.7 | S15: 104166.667 | T15: 1.099999652 | U15: 11425.02011 | V15: =U15*VLOOKUP(DCFROR!$B$34,INDIRECT(IX_CAP),4,FALSE)/VLOOKUP(L15,INDIRECT(IX_CAP),4,FALSE) -> 11501.63933 | W15: 19552.78686 | Y15: solids handling
A16: M | B16: 106 | C16: Dust Collection System | D16: Sly | F16: 8500 ACFM | G16: 25 hp ea. | H16: CS | I16: YES | J16: 6 | K16: 279900 | L16: 2009 | M16: 279900 | N16: STRM.101 | O16: 94697 | P16: kg/hr | Q16: 0.6 | R16: 1.7 | S16: 104166.667 | T16: 1.099999652 | U16: 296372.8572 | V16: =U16*VLOOKUP(DCFROR!$B$34,INDIRECT(IX_CAP),4,FALSE)/VLOOKUP(L16,INDIRECT(IX_CAP),4,FALSE) -> 298360.4123 | W16: 507212.7009 | Y16: solids handling
T17: Area 100 Totals | U17: =SUM(U3:U16) -> 14114177.6 | V17: =SUM(V3:V16) -> 14208831.03 | W17: =SUM(W3:W16) -> 24155012.74 | X17: =W17/V17 -> 1.7
A18: A | B18: 201 | C18: In-line Sulfuric Acid Mixer | D18: KOMAX | F18: Kynar Lined - 600 gpm H2O - 5 gpm acid | H18: SS304 | I18: Komax | J18: 1 | K18: 6000 | L18: 2009 | M18: =K18 -> 6000 | N18: strm.a200.214 | O18: 136260 | P18: kg/hr | Q18: 0.5 | R18: 1 | S18: =IF(N18<>"",VLOOKUP(N18,INDIRECT(LU_SENS),2,FALSE),"") -> 38656.9967 | T18: =S18/O18 -> 0.2837002547 | U18: =M18*T18^Q18 -> 3195.811191 | V18: =U18*VLOOKUP(DCFROR!$B$34,INDIRECT(IX_CAP),4,FALSE)/VLOOKUP(L18,INDIRECT(IX_CAP),4,FALSE) -> 3217.243149 | W18: =V18*R18 -> 3217.243149 | Y18: in line mixer
A19: A | B19: 203 | C19: Blowdown Tank Agitator | D19: Andritz | F19: Side-mounted, 3 x 75 hp. ( 170 kW) | G19: 170 kW | H19: 316LSS | I19: Andritz Price | J19: 1 | K19: INCLUDED
A20: A | B20: 204 | C20: Flash Tank Agitator | D20: UET Mixers | F20: Side-mounted, 3 x 75 hp. ( 170 kW) | G20: 170 kW | H20: 316LSS | I20: YES | J20: 3 | K20: =J20*30000 -> 90000 | L20: 2009 | M20: =K20 -> 90000 | N20: strm.a200.254 | O20: 252891 | P20: kg/hr | Q20: 0.5 | R20: 1.5 | S20: 277681.457 | T20: =S20/O20 -> 1.09802823 | U20: =M20*T20^Q20 -> 94308.15797 | V20: =U20*VLOOKUP(DCFROR!$B$34,INDIRECT(IX_CAP),4,FALSE)/VLOOKUP(L20,INDIRECT(IX_CAP),4,FALSE) -> 94940.61352 | W20: =V20*R20 -> 142410.9203 | Y20: Agitator, SS | Z20: New as of 9/9/09 Mark-ups
A21: A | B21: 208 | C21: Oligomer Hold Tank Agitator | D21: UET Mixers | F21: Side-mounted, 3 x 75 hp. ( 170 kW) | G21: 170 kW | H21: 316LSS | I21: YES | J21: 3 | K21: =J21*30000 -> 90000 | L21: 2009 | M21: =K21 -> 90000 | N21: strm.a200.222 | O21: 264116 | P21: kg/hr | Q21: 0.5 | R21: 1.5 | S21: 291518.046 | T21: =S21/O21 -> 1.103750042 | U21: =M21*T21^Q21 -> 94553.55804 | V21: =U21*VLOOKUP(DCFROR!$B$34,INDIRECT(IX_CAP),4,FALSE)/VLOOKUP(L21,INDIRECT(IX_CAP),4,FALSE) -> 95187.65931 | W21: =V21*R21 -> 142781.489 | Y21: Agitator, SS | Z21: New as of 9/9/09 Mark-ups
A22: A | B22: 209 | C22: Ammonia Addition Tank Agitator | D22: Lotus | G22: 10 hp | H22: SS | I22: YES | J22: 1 | K22: 21900 | L22: 2009 | M22: =K22 -> 21900 | N22: strm.a200.228 | O22: 410369 | P22: kg/hr | Q22: 0.5 | R22: 1.5 | S22: 428667.766 | T22: =S22/O22 -> 1.044591005 | U22: =M22*T22^Q22 -> 22382.94645 | V22: =U22*VLOOKUP(DCFROR!$B$34,INDIRECT(IX_CAP),4,FALSE)/VLOOKUP(L22,INDIRECT(IX_CAP),4,FALSE) -> 22533.05243 | W22: =V22*R22 -> 33799.57865 | Y22: Agitator, SS
A23: A | B23: 210 | C23: Ammonia Static Mixer | D23: KOMAX | H23: SS | I23: HGI database | J23: 1 | K23: 5000 | L23: 2009 | M23: =K23 -> 5000 | N23: strm.a200.275 | O23: 157478 | P23: kg/hr | Q23: 0.5 | R23: 1 | S23: 150986.309 | T23: =S23/O23 -> 0.9587771562 | U23: =M23*T23^Q23 -> 4895.858342 | V23: =U23*VLOOKUP(DCFROR!$B$34,INDIRECT(IX_CAP),4,FALSE)/VLOOKUP(L23,INDIRECT(IX_CAP),4,FALSE) -> 4928.691268 | W23: =V23*R23 -> 4928.691268 | Y23: in line mixer
A24: A | B24: 224 | C24: Reacidification Tank Agitator | D24: Lotus | G24: 20 hp | H24: SS | I24: YES | J24: 1 | K24: 0 | L24: 2009 | M24: =K24 -> 0 | N24: strm.a200.239 | O24: 410846 | P24: kg/hr | Q24: 0.5 | R24: 1.5 | S24: 428668.09 | T24: =S24/O24 -> 1.043379003 | U24: =M24*T24^Q24 -> 0 | V24: =U24*VLOOKUP(DCFROR!$B$34,INDIRECT(IX_CAP),4,FALSE)/VLOOKUP(L24,INDIRECT(IX_CAP),4,FALSE) -> 0 | W24: =V24*R24 -> 0 | Y24: Agitator, SS
A25: C | B25: 201 | C25: Transfer Conveyor | D25: Andritz | F25: 800 mm x 7600 mm (2'-8" x 25') | G25: 40 kW ea. | H25: AL-6XN | I25: Included with Andritz | J25: 2 | K25: INCLUDED
A26: C | B26: 202 | C26: Distribution Conveyor | D26: Andritz | F26: 800 mm x 7600 mm (2'-8" x 25') | G26: 40 kW ea. | H26: AL-6XN | I26: Included with Andritz | J26: 2 | K26: INCLUDED
A27: C | B27: 203 | C27: Overfeed Conveyor | D27: Andritz | F27: 800 mm x 7600 mm (2'-8" x 25') | G27: 40 kW ea. | H27: AL-6XN | I27: Included with Andritz | J27: 4 | K27: INCLUDED
A28: C | B28: 204 | C28: Pressurized Heating Screw | D28: Andritz | F28: 2500 mm x 9500 mm (8' x 31') | G28: 75 kW | H28: Dup. 2205 | I28: Included with Andritz | J28: 1 | K28: INCLUDED
A29: C | B29: 205 | C29: Pressurized Pre-heater Discharge | D29: Andritz | F29: 850 mm x 3500 mm (2'-10" x 12') | G29: 40 kW ea. | H29: Dup. 2205 | I29: Included with Andritz | J29: 2 | K29: INCLUDED
A30: C | B30: 206 | C30: Pressurized Transport - No. 1 | D30: Andritz | F30: 900 mm x 3500 mm (3' x 12') | G30: 20 kW | H30: Incoloy 825-CLAD; CS | I30: Included with Andritz | J30: 1 | K30: INCLUDED
A31: C | B31: 207 | C31: Pressurized Transport - No. 2 | D31: Andritz | F31: 1200 mm x 3500 mm (4' x 12') | G31: 40 kW | H31: Incoloy 825-CLAD; CS | I31: Included with Andritz | J31: 1 | K31: INCLUDED
A32: H | B32: 201 | C32: Pretreatment Water Heater | D32: Mueller | F32: 29.9 MMBtu | H32: 304SS | I32: HGI database | J32: 1 | K32: 92000 | L32: 2010 | M32: =K32 -> 92000 | N32: Heat.A200.QH201 | O32: -7.5 | P32: Gcal/hr | Q32: 0.7 | R32: 2.2 | S32: =IF(N32<>"",VLOOKUP(N32,INDIRECT(LU_SENS),2,FALSE),"") -> -8.61237068 | T32: =S32/O32 -> 1.148316091 | U32: =M32*T32^Q32 -> 101351.6545 | V32: =U32*VLOOKUP(DCFROR!$B$34,INDIRECT(IX_CAP),4,FALSE)/VLOOKUP(L32,INDIRECT(IX_CAP),4,FALSE) -> 96677.84907 | W32: =V32*R32 -> 212691.268 | Y32: Heat Ex, S&T, SS
A33: H | B33: 244 | C33: Waste Vapor Condenser | D33: Mueller | F33: Copied H-201 | H33: 304SS | I33: HGI database | J33: 1 | K33: 34000 | L33: 2009 | M33: =K33 -> 34000 | N33: Heat.A200.QH244 | O33: 1.83 | P33: Gcal/hr | Q33: 0.7 | R33: 2.2 | S33: =IF(N33<>"",VLOOKUP(N33,INDIRECT(LU_SENS),2,FALSE),"") -> 7.2990371 | T33: =S33/O33 -> 3.988544863 | U33: =M33*T33^Q33 -> 89546.59036 | V33: =U33*VLOOKUP(DCFROR!$B$34,INDIRECT(IX_CAP),4,FALSE)/VLOOKUP(L33,INDIRECT(IX_CAP),4,FALSE) -> 90147.11358 | W33: =V33*R33 -> 198323.6499 | Y33: Heat Ex, S&T, SS
A34: M | B34: 201 | C34: Doffing Roll Storage Bins | D34: Andritz | F34: 60 cu. m. (2100 cu.ft.) with conveyors/scrapers | G34: 40 kW ea. | H34: 304/316SS | I34: Included with Andritz | J34: 2 | K34: INCLUDED
A35: M | B35: 202 | C35: Pin Drum Feeder | D35: Andritz | G35: 15 kW ea. | H35: 316LSS | I35: Included with Andritz | J35: 2 | K35: INCLUDED
A36: M | B36: 203 | C36: Plug Screw Feeder | D36: Andritz | G36: 1100kW ea. | H36: 316LSS | I36: Included with Andritz | J36: 2 | K36: INCLUDED
A37: M | B37: 204 | C37: Prehydrolysis / Vertical Preheater | D37: Andritz | F37: 16' x 62' - 10 min. residence time | G37: 45 kW | H37: Dup. 2205 | I37: Included with Andritz | J37: 1 | K37: INCLUDED
A38: M | B38: 205 | C38: Pin Drum Feeder | D38: Andritz | G38: 15 kW ea. | H38: Incoloy 825-CLAD; CS | I38: Included with Andritz | J38: 2 | K38: INCLUDED
A39: M | B39: 206 | C39: Plug Screw Feeder | D39: Andritz | G39: 1100 kW ea. | H39: Incoloy 825-CLAD; CS | I39: Included with Andritz | J39: 2 | K39: INCLUDED
A40: M | B40: 207 | C40: Pretreatment Reactor | D40: Andritz | F40: 2600 mm x 9000 mm (9' x 30') - 2 min. residence time | H40: Incoloy 825-CLAD; CS | I40: Andritz Price | J40: 3 | K40: 19812400 | L40: 2009 | M40: =K40 -> 19812400 | N40: DRY101 | O40: 83333 | P40: kg/hr | Q40: 0.6 | R40: 1.5 | S40: =IF(N40<>"",VLOOKUP(N40,INDIRECT(LU_SENS),2,FALSE),"") -> 83333.3333 | T40: =S40/O40 -> 1.000004 | U40: =M40*T40^Q40 -> 19812447.55 | V40: =U40*VLOOKUP(DCFROR!$B$34,INDIRECT(IX_CAP),4,FALSE)/VLOOKUP(L40,INDIRECT(IX_CAP),4,FALSE) -> 19945315.08 | W40: =V40*R40 -> 29917972.62 | Y40: PT Reactor
A41: P | B41: 201 | C41: Sulfuric Acid Pump | D41: Goulds | E41: 3196; 2X3-6 | F41: 9 GPM, 245 FT TDH | H41: 316SS | I41: HGI database | J41: 1 | K41: 8000 | L41: 2009 | M41: =K41 -> 8000 | N41: strm.710 | O41: 3720 | P41: kg/hr | Q41: 0.8 | R41: 2.3 | S41: 1980.61092 | T41: 0.5324222903 | U41: 4831.644477 | V41: =U41*VLOOKUP(DCFROR!$B$34,INDIRECT(IX_CAP),4,FALSE)/VLOOKUP(L41,INDIRECT(IX_CAP),4,FALSE) -> 4864.046768 | W41: 11187.30757 | Y41: Pump, SS | Z41: density 1.8
A42: P | B42: 203 | C42: Blowdown Tank Discharge Pump | D42: Viking | F42: 1900 GPM, 150 FT TDH | G42: 125 | H42: 316SS | I42: HGI database | J42: 1 | K42: 25635 | L42: 2010 | M42: =K42 -> 25635 | N42: strm.a200.222 | O42: 292407 | P42: kg/hr | Q42: 0.8 | R42: 2.3 | S42: 291518.046 | T42: 0.9969598744 | U42: 25572.63413 | V42: =U42*VLOOKUP(DCFROR!$B$34,INDIRECT(IX_CAP),4,FALSE)/VLOOKUP(L42,INDIRECT(IX_CAP),4,FALSE) -> 24393.3587 | W42: 56104.725 | Y42: Pump, SS | Z42: 17% suspended solids
A43: P | B43: 204 | C43: Flash Tank Discharge Pump | D43: Viking | F43: 900 GPM, 150 FT TDH | G43: 75 | H43: 316SS | I43: HGI database | J43: 1 | K43: 30000 | L43: 2009 | M43: =K43 -> 30000 | N43: strm.a200.254 | O43: 204390 | P43: kg/hr | Q43: 0.8 | R43: 2.3 | S43: 277681.457 | T43: 1.358586315 | U43: 38334.60947 | V43: =U43*VLOOKUP(DCFROR!$B$34,INDIRECT(IX_CAP),4,FALSE)/VLOOKUP(L43,INDIRECT(IX_CAP),4,FALSE) -> 38591.69155 | W43: 88760.89055 | Y43: Pump, SS | Z43: density 1.0
A44: P | B44: 208 | C44: Oligomer Hold Tank Discharge | D44: Viking | F44: 900 GPM, 150 FT TDH | G44: 75 | H44: 316SS | I44: HGI database | J44: 1 | K44: 17408 | L44: 2010 | M44: =K44 -> 17408 | N44: strm.a200.223 | O44: 292407 | P44: kg/hr | Q44: 0.8 | R44: 2.3 | S44: 291518.046 | T44: 0.9969598744 | U44: 17365.64911 | V44: =U44*VLOOKUP(DCFROR!$B$34,INDIRECT(IX_CAP),4,FALSE)/VLOOKUP(L44,INDIRECT(IX_CAP),4,FALSE) -> 16564.83668 | W44: 38099.12436 | Y44: Pump, SS | Z44: density 1.0
A45: P | B45: 209 | C45: Hydrolyzate Pump | D45: Goulds | E45: 3196; 6X8-13 | F45: 1771 GPM, 150 FT TDH | G45: 100 | H45: 316SS | I45: HGI database | J45: 1 | K45: 22500 | L45: 2009 | M45: 22500 | N45: strm.a200.228 | O45: 402194 | P45: kg/hr | Q45: 0.8 | R45: 2.3 | S45: 428667.766 | T45: 1.065823374 | U45: 23677.22004 | V45: =U45*VLOOKUP(DCFROR!$B$34,INDIRECT(IX_CAP),4,FALSE)/VLOOKUP(L45,INDIRECT(IX_CAP),4,FALSE) -> 23836.00577 | W45: 54822.81327 | Y45: Pump, SS | Z45: density 1.0
A46: P | B46: 239 | C46: Reacidified Hydrolyzate Pump | D46: Goulds | E46: 3196; 6X8-13 | F46: 1771 GPM, 100 FT TDH | G46: 60 | H46: 316SS | I46: HGI database | J46: 1 | K46: 0 | L46: 2009 | M46: 0 | N46: strm.a200.239 | O46: 402194 | P46: kg/hr | Q46: 0.8 | R46: 2.3 | S46: 428668.09 | T46: 1.065824179 | U46: 0 | V46: =U46*VLOOKUP(DCFROR!$B$34,INDIRECT(IX_CAP),4,FALSE)/VLOOKUP(L46,INDIRECT(IX_CAP),4,FALSE) -> 0 | W46: 0 | Y46: Pump, SS | Z46: density 1.0
A47: S | B47: 205 | C47: Hydrolyzate Solid-Liquid Separator | D47: Larox | K47: 35000000 | L47: 2009 | M47: 35000000 | N47: scis.a200.254b | O47: 39000 | P47: kg/hr | Q47: 0.7 | R47: 1.7 | S47: 0 | T47: 0 | U47: 0 | V47: =U47*VLOOKUP(DCFROR!$B$34,INDIRECT(IX_CAP),4,FALSE)/VLOOKUP(L47,INDIRECT(IX_CAP),4,FALSE) -> 0 | W47: 0 | Y47: solids handling
A48: T | B48: 201 | C48: Sulfuric Acid Tank | F48: 12,800 gal, 24hr residence time | H48: PLASTIC | I48: HGI database | J48: 1 | K48: 6210 | L48: 2010 | M48: 6210 | N48: strm.710 | O48: 1981 | P48: kg/hr | Q48: 0.7 | R48: 3 | S48: 1980.61092 | T48: 0.9998035941 | U48: 6209.146199 | V48: =U48*VLOOKUP(DCFROR!$B$34,INDIRECT(IX_CAP),4,FALSE)/VLOOKUP(L48,INDIRECT(IX_CAP),4,FALSE) -> 5922.813022 | W48: 17768.43907 | Y48: Tank, storage, plastic | Z48: specify type of plastic
A49: T | B49: 203 | C49: Blowdown Tank | D49: Andritz | F49: 23' x 48' - 25 min. - 110,000 gal. | H49: SS316 | I49: Included with Andritz | J49: 1 | K49: INCLUDED
A50: T | B50: 204 | C50: Flash Tank | F50: 23' x 48' - 110,000 gal. | H50: SS316 | I50: HGI database | J50: 1 | K50: 511000 | L50: 2009 | M50: =K50 -> 511000 | N50: strm.a200.223 | O50: 264116 | P50: kg/hr | Q50: 0.7 | R50: 2 | S50: =IF(N50<>"",VLOOKUP(N50,INDIRECT(LU_SENS),2,FALSE),"") -> 291518.046 | T50: =S50/O50 -> 1.103750042 | U50: =M50*T50^Q50 -> 547558.3589 | V50: =U50*VLOOKUP(DCFROR!$B$34,INDIRECT(IX_CAP),4,FALSE)/VLOOKUP(L50,INDIRECT(IX_CAP),4,FALSE) -> 551230.4307 | W50: =V50*R50 -> 1102460.861 | Y50: Pressure vessel, SS | Z50: New as of 9/9/09 Mark-ups
A51: T | B51: 208 | C51: Oligomer Conversion Tank | F51: 2.6 atm, 130C operating 30 min. hold = 30,000 gal | H51: SS316 | I51: HGI database | J51: 1 | K51: 203000 | L51: 2009 | M51: =K51 -> 203000 | N51: strm.a200.223 | O51: 264116 | P51: kg/hr | Q51: 0.7 | R51: 2 | S51: =IF(N51<>"",VLOOKUP(N51,INDIRECT(LU_SENS),2,FALSE),"") -> 291518.046 | T51: =S51/O51 -> 1.103750042 | U51: =M51*T51^Q51 -> 217523.1837 | V51: =U51*VLOOKUP(DCFROR!$B$34,INDIRECT(IX_CAP),4,FALSE)/VLOOKUP(L51,INDIRECT(IX_CAP),4,FALSE) -> 218981.9519 | W51: =V51*R51 -> 437963.9038 | Y51: Pressure vessel, SS | Z51: New as of 9/9/09 Mark-ups
A52: T | B52: 209 | C52: Ammonia Addition Tank | F52: 118,000 gal, 1hr residence time | H52: SS304 | I52: HGI database | J52: 1 | K52: 236000 | L52: 2009 | M52: 236000 | N52: strm.a200.228 | O52: 410369 | P52: kg/hr | Q52: 0.7 | R52: 2 | S52: =IF(N52<>"",VLOOKUP(N52,INDIRECT(LU_SENS),2,FALSE),"") -> 428667.766 | T52: =S52/O52 -> 1.044591005 | U52: =M52*T52^Q52 -> 243318.0908 | V52: =U52*VLOOKUP(DCFROR!$B$34,INDIRECT(IX_CAP),4,FALSE)/VLOOKUP(L52,INDIRECT(IX_CAP),4,FALSE) -> 244949.8466 | W52: =V52*R52 -> 489899.6931 | Y52: Pressure vessel, SS
A53: T | B53: 224 | C53: Reacidification Tank | D53: Mueller | F53: 500,000 gallon | H53: SS304 | I53: YES | J53: 1 | K53: 0 | L53: 2009 | M53: 0 | N53: strm.a200.239 | O53: 410369 | P53: kg/hr | Q53: 0.7 | R53: 2 | S53: =IF(N53<>"",VLOOKUP(N53,INDIRECT(LU_SENS),2,FALSE),"") -> 428668.09 | T53: =S53/O53 -> 1.044591794 | U53: =M53*T53^Q53 -> 0 | V53: =U53*VLOOKUP(DCFROR!$B$34,INDIRECT(IX_CAP),4,FALSE)/VLOOKUP(L53,INDIRECT(IX_CAP),4,FALSE) -> 0 | W53: =V53*R53 -> 0 | Y53: Pressure vessel, SS
T54: Area 200 Totals | U54: =SUM(U18:U53) -> 21347072.66 | V54: =SUM(V18:V53) -> 21482282.28 | W54: =SUM(W18:W53) -> 32953193.22 | X54: =W54/V54 -> 1.533970776
A55: A | B55: 300 | C55: Ethanol Fermentor Agitator | D55: Lotus | G55: 30 hp | H55: SS304 | I55: YES | J55: 1 | K55: 52500 | L55: 2009 | M55: =K55 -> 52500 | N55: inumsscf | O55: 1 | P55: ea | Q55: 1 | R55: 1.5 | S55: =IF(N55<>"",VLOOKUP(N55,INDIRECT(LU_SENS),2,FALSE),"") -> 12 | T55: =S55/O55 -> 12 | U55: =M55*T55^Q55 -> 630000 | V55: =U55*VLOOKUP(DCFROR!$B$34,INDIRECT(IX_CAP),4,FALSE)/VLOOKUP(L55,INDIRECT(IX_CAP),4,FALSE) -> 634224.9473 | W55: =V55*R55 -> 951337.421 | Y55: Agitator, SS
A56: A | B56: 301 | C56: Seed Hold Tank Agitator | D56: Lotus | G56: 15 hp | H56: SS304 | I56: YES | J56: 1 | K56: 31800 | L56: 2009 | M56: 31800 | N56: STRM.A300.304 | O56: 40414 | P56: kg/hr | Q56: 0.5 | R56: 1.5 | S56: 42522.8515 | T56: 1.052181212 | U56: 32619.13133 | V56: =U56*VLOOKUP(DCFROR!$B$34,INDIRECT(IX_CAP),4,FALSE)/VLOOKUP(L56,INDIRECT(IX_CAP),4,FALSE) -> 32837.88389 | W56: 49256.82583 | Y56: Agitator, SS
A57: A | B57: 304 | C57: 4th Seed Vessel Agitator | D57: Lotus | G57: 7.5 hp | H57: SS | I57: YES | J57: 2 | K57: 26000 | L57: 2009 | M57: 26000 | O57: 2 | P57: ea | Q57: 0.5 | R57: 1.5 | S57: 2 | T57: 1 | U57: 26000 | V57: =U57*VLOOKUP(DCFROR!$B$34,INDIRECT(IX_CAP),4,FALSE)/VLOOKUP(L57,INDIRECT(IX_CAP),4,FALSE) -> 26174.3629 | W57: 39261.54436 | Y57: Agitator, SS
A58: A | B58: 305 | C58: 5th Seed Vessel Agitator | D58: Lotus | G58: 10 hp | H58: SS | I58: YES | J58: 2 | K58: 43000 | L58: 2009 | M58: 43000 | O58: 2 | P58: ea | Q58: 0.5 | R58: 1.5 | S58: 2 | T58: 1 | U58: 43000 | V58: =U58*VLOOKUP(DCFROR!$B$34,INDIRECT(IX_CAP),4,FALSE)/VLOOKUP(L58,INDIRECT(IX_CAP),4,FALSE) -> 43288.36942 | W58: 64932.55413 | Y58: Agitator, SS
A59: A | B59: 306 | C59: Beer Surge Tank Agitator | D59: Lotus | G59: 20 hp | H59: SS304 | I59: YES | J59: 2 | K59: 68300 | L59: 2009 | M59: 68300 | N59: strm.501 | O59: 425878 | P59: kg/hr | Q59: 0.5 | R59: 1.5 | S59: 449579.456 | T59: 1.055653159 | U59: 70174.82358 | V59: =U59*VLOOKUP(DCFROR!$B$34,INDIRECT(IX_CAP),4,FALSE)/VLOOKUP(L59,INDIRECT(IX_CAP),4,FALSE) -> 70645.43458 | W59: 105968.1519 | Y59: Agitator, SS
A60: A | B60: 308 | C60: Enzyme-Hydrolysate Mixer | D60: GLV | F60: inline mixer 1673 gpm | G60: 100 hp | H60: SS316 | I60: HGI database | J60: 1 | K60: 109000 | L60: 2009 | M60: 109000 | N60: strm.a300.t310fd | O60: 379938 | P60: kg/hr | Q60: 0.5 | R60: 1.7 | S60: 442380.244 | T60: =S60/O60 -> 1.164348509 | U60: 117616.4302 | V60: =U60*VLOOKUP(DCFROR!$B$34,INDIRECT(IX_CAP),4,FALSE)/VLOOKUP(L60,INDIRECT(IX_CAP),4,FALSE) -> 118405.1972 | W60: =V60*R60 -> 201288.8352 | Y60: solids handling | Z60: inline mixer prior to saccharification tower
A61: F | B61: 300 | C61: Ethanol Fermentor | D61: Mueller | F61: 1,000,000 gallon ea | H61: 304SS | I61: YES | J61: 12 | K61: =J61*844000 -> 10128000 | L61: 2009 | M61: =K61 -> 10128000 | N61: inumsscf | O61: 12 | P61: ea | Q61: 1 | R61: 1.5 | S61: 12 | T61: 1 | U61: 10128000 | V61: =U61*VLOOKUP(DCFROR!$B$34,INDIRECT(IX_CAP),4,FALSE)/VLOOKUP(L61,INDIRECT(IX_CAP),4,FALSE) -> 10195921.06 | W61: 15293881.59 | Y61: Tank, field-erected, SS | Z61: verify sizing (and qty) for new config, 2 hr turnaround
A62: F | B62: 301 | C62: 1st Seed Fermentor | D62: A&B Process | F62: 20 gallon skid complete - $37,700 ea | H62: 304SS | I62: YES | J62: 2 | K62: 75400 | L62: 2009 | M62: 75400 | O62: 2 | P62: ea | Q62: 0.7 | R62: 1.8 | S62: 2 | T62: 1 | U62: 75400 | V62: =U62*VLOOKUP(DCFROR!$B$34,INDIRECT(IX_CAP),4,FALSE)/VLOOKUP(L62,INDIRECT(IX_CAP),4,FALSE) -> 75905.65242 | W62: 136630.1744 | Y62: Skid equip | Z62: verify cycle time at 36 hrs
A63: F | B63: 302 | C63: 2nd Seed Fermentor | D63: A&B Process | F63: 200 gallon skid complete - $58,300 ea | H63: 304SS | I63: YES | J63: 2 | K63: 116600 | L63: 2009 | M63: 116600 | O63: 2 | P63: ea | Q63: 0.7 | R63: 1.8 | S63: 2 | T63: 1 | U63: 116600 | V63: =U63*VLOOKUP(DCFROR!$B$34,INDIRECT(IX_CAP),4,FALSE)/VLOOKUP(L63,INDIRECT(IX_CAP),4,FALSE) -> 117381.9506 | W63: 211287.511 | Y63: Skid equip | Z63: (24 batch + 12 turnaround)
A64: F | B64: 303 | C64: 3rd Seed Fermentor | D64: A&B Process | F64: 2000 gallon skid complete - $78,800 ea | H64: 304SS | I64: YES | J64: 2 | K64: 157600 | L64: 2009 | M64: 157600 | O64: 2 | P64: ea | Q64: 0.7 | R64: 1.8 | S64: 2 | T64: 1 | U64: 157600 | V64: =U64*VLOOKUP(DCFROR!$B$34,INDIRECT(IX_CAP),4,FALSE)/VLOOKUP(L64,INDIRECT(IX_CAP),4,FALSE) -> 158656.9075 | W64: 285582.4334 | Y64: Skid equip
A65: F | B65: 304 | C65: 4th Seed Fermentor | D65: Mueller | F65: 20,000 gallon, incl. coil - $176,000 ea | H65: 304SS | I65: YES | J65: 2 | K65: 352000 | L65: 2009 | M65: 352000 | O65: 2 | P65: ea | Q65: 0.7 | R65: 2 | S65: 2 | T65: 1 | U65: 352000 | V65: =U65*VLOOKUP(DCFROR!$B$34,INDIRECT(IX_CAP),4,FALSE)/VLOOKUP(L65,INDIRECT(IX_CAP),4,FALSE) -> 354360.6055 | W65: 708721.211 | Y65: Pressure vessel, SS
A66: F | B66: 305 | C66: 5th Seed Fermentor | D66: Mueller | F66: 200,000 gallon, incl. coil - $590,000 ea | H66: 304SS | I66: YES | J66: 2 | K66: 1180000 | L66: 2009 | M66: 1180000 | O66: 2 | P66: ea | Q66: 0.7 | R66: 2 | S66: 2 | T66: 1 | U66: 1180000 | V66: =U66*VLOOKUP(DCFROR!$B$34,INDIRECT(IX_CAP),4,FALSE)/VLOOKUP(L66,INDIRECT(IX_CAP),4,FALSE) -> 1187913.393 | W66: 2375826.787 | Y66: Pressure vessel, SS
A67: H | B67: 300 | C67: Fermentation Cooler | D67: Alfa Laval | F67: Plate & frame | H67: 304SS | I67: YES | J67: 12 | K67: 86928 | L67: 2009 | M67: =K67 -> 86928 | N67: inumsscf | O67: 12 | P67: ea | Q67: 1 | R67: 2.2 | S67: 12 | T67: 1 | U67: 86928 | V67: =U67*VLOOKUP(DCFROR!$B$34,INDIRECT(IX_CAP),4,FALSE)/VLOOKUP(L67,INDIRECT(IX_CAP),4,FALSE) -> 87510.96225 | W67: 192524.117 | Y67: Heat Ex, Plate, SS
A68: H | B68: 301 | C68: Hydrolyzate Cooler | D68: Fox Engineering | E68: Size 54-240 | F68: Plate & Frame 32.5 MMBtu/hr | H68: SS 304 | I68: YES | J68: 1 | K68: 85000 | L68: 2010 | M68: =K68 -> 85000 | N68: heat.a300.qc301 | O68: 8.2 | P68: Gcal/hr | Q68: 0.7 | R68: 2.2 | S68: 10.6138666 | T68: 1.294373976 | U68: 101826.4883 | V68: =U68*VLOOKUP(DCFROR!$B$34,INDIRECT(IX_CAP),4,FALSE)/VLOOKUP(L68,INDIRECT(IX_CAP),4,FALSE) -> 97130.78605 | W68: 213687.7293 | Y68: Heat Ex, S&T, SS | Z68: 4.95 MM Kcal/hr. 72 C in/49 C out 1674 gpm
A69: H | B69: 304 | C69: 4th Seed Fermentor Coil | D69: Mueller | F69: incl. w/ tank | H69: 304SS | I69: YES | J69: 1 | K69: INCLUDED
A70: H | B70: 305 | C70: 5th Seed Fermentor Coil | D70: Mueller | F70: incl. w/ tank | H70: 304SS | I70: YES | J70: 1 | K70: INCLUDED
A71: H | B71: 310 | C71: Fermentor Batch Cooler | D71: Alfa Laval | F71: Plate & frame | H71: SS304 | I71: YES | J71: 1 | K71: 23900 | L71: 2009 | M71: =K71 -> 23900 | N71: heat.a300.qc310 | O71: 5.404 | P71: Gcal/hr | Q71: 0.7 | R71: 1.8 | S71: =IF(N71<>"",VLOOKUP(N71,INDIRECT(LU_SENS),2,FALSE),"") -> 5.93106318 | T71: 1.097532047 | U71: =M71*T71^Q71 -> 25508.79525 | V71: =U71*VLOOKUP(DCFROR!$B$34,INDIRECT(IX_CAP),4,FALSE)/VLOOKUP(L71,INDIRECT(IX_CAP),4,FALSE) -> 25679.86401 | W71: 46223.75522 | Y71: Heat Ex, Plate, SS
A72: P | B72: 300 | C72: Fermentation Recirc/Transfer Pump | D72: Goulds | E72: 3196; 2X3-13 | F72: 340 GPM, 150 FT | G72: 20 | H72: 316SS | I72: HGI database | J72: 5 | K72: 47200 | L72: 2009 | M72: =K72 -> 47200 | N72: inumsscf | O72: 12 | P72: ea | Q72: 0.8 | R72: 2.3 | S72: 12 | T72: 1 | U72: 47200 | V72: =U72*VLOOKUP(DCFROR!$B$34,INDIRECT(IX_CAP),4,FALSE)/VLOOKUP(L72,INDIRECT(IX_CAP),4,FALSE) -> 47516.53573 | W72: 109288.0322 | Y72: Pump, SS | Z72: return what was here before
A73: P | B73: 301 | C73: Seed Hold Transfer Pump | D73: Goulds | E73: 3196; 3X4-10 | F73: 190 GPM, 150 FT TDH | G73: 10 | H73: 316SS | I73: HGI database | J73: 1 | K73: 8200 | L73: 2009 | M73: 8200 | N73: strm.a300.304 | O73: 43149 | P73: kg/hr | Q73: 0.8 | R73: 2.3 | S73: 42522.8515 | T73: 0.9854886904 | U73: 8104.666861 | V73: =U73*VLOOKUP(DCFROR!$B$34,INDIRECT(IX_CAP),4,FALSE)/VLOOKUP(L73,INDIRECT(IX_CAP),4,FALSE) -> 8159.018909 | W73: 18765.74349 | Y73: Pump, SS | Z73: density 1.0
A74: P | B74: 302 | C74: Seed Transfer Pump | D74: Goulds | E74: 3196; 3X4-13 | F74: 190 GPM, 615 FT TDH | G74: 40 | H74: 316SS | I74: HGI database | J74: 2 | K74: 24300 | L74: 2009 | M74: 24300 | N74: strm.a300.304 | O74: 43149 | P74: kg/hr | Q74: 0.8 | R74: 2.3 | S74: 42522.8515 | T74: 0.9854886904 | U74: 24017.48838 | V74: =U74*VLOOKUP(DCFROR!$B$34,INDIRECT(IX_CAP),4,FALSE)/VLOOKUP(L74,INDIRECT(IX_CAP),4,FALSE) -> 24178.55604 | W74: 55610.67888 | Y74: Pump, SS | Z74: density 1.0
A75: P | B75: 306 | C75: Beer Transfer Pump | D75: Goulds | E75: 3196; 6X8-15 | F75: 2152 GPM, 171 FT TDH | G75: 125 | H75: 316SS | I75: HGI database | J75: 1 | K75: 26800 | L75: 2009 | M75: 26800 | N75: strm.501 | O75: 488719 | P75: kg/hr | Q75: 0.8 | R75: 2.3 | S75: 449579.456 | T75: 0.9199140119 | U75: 25068.74434 | V75: =U75*VLOOKUP(DCFROR!$B$34,INDIRECT(IX_CAP),4,FALSE)/VLOOKUP(L75,INDIRECT(IX_CAP),4,FALSE) -> 25236.86199 | W75: 58044.78259 | Y75: Pump, SS | Z75: density 1.0
A76: P | B76: 310 | C76: Saccharification Transfer Pump | D76: Goulds | E76: 3196; 2X3-13 | F76: 352 GPM, 150 FT TDH | G76: 20 | H76: 316SS | I76: HGI database | J76: 5 | K76: 47200 | L76: 2009 | M76: =K76 -> 47200 | N76: strm.a300.306 | O76: 421776 | P76: kg/hr | Q76: 0.8 | R76: 2.3 | S76: 442380.244 | T76: 1.048851153 | U76: 49035.77986 | V76: =U76*VLOOKUP(DCFROR!$B$34,INDIRECT(IX_CAP),4,FALSE)/VLOOKUP(L76,INDIRECT(IX_CAP),4,FALSE) -> 49364.62682 | W76: 113538.6417 | Y76: Pump, SS | Z76: return what was here before
A77: T | B77: 301 | C77: Seed Hold Tank | D77: Mueller | E77: 3196; 1.5X3-13 | F77: 300,000 gallon | H77: 316SS | I77: YES | J77: 1 | K77: 439000 | L77: 2009 | M77: 439000 | N77: strm.a300.304 | O77: 40414 | P77: kg/hr | Q77: 0.7 | R77: 1.8 | S77: 42522.8515 | T77: 1.052181212 | U77: 454912.531 | V77: =U77*VLOOKUP(DCFROR!$B$34,INDIRECT(IX_CAP),4,FALSE)/VLOOKUP(L77,INDIRECT(IX_CAP),4,FALSE) -> 457963.2953 | W77: 824333.9315 | Y77: Tank, storage, SS
A78: T | B78: 306 | C78: Beer Storage Tank | D78: Mueller | E78: 3196; 2X3-8 | F78: 500,000 gallon | H78: 316SS | I78: YES | J78: 1 | K78: 636000 | L78: 2009 | M78: 636000 | N78: strm.501 | O78: 425878 | P78: kg/hr | Q78: 0.7 | R78: 1.8 | S78: 449579.456 | T78: 1.055653159 | U78: 660574.7845 | V78: =U78*VLOOKUP(DCFROR!$B$34,INDIRECT(IX_CAP),4,FALSE)/VLOOKUP(L78,INDIRECT(IX_CAP),4,FALSE) -> 665004.7745 | W78: 1197008.594 | Y78: Tank, storage, SS
A79: T | B79: 310 | C79: Saccharification Tank | D79: Caldwell | F79: 250,000 gal each - 19' dia. x 120' tall | H79: 304SS | I79: YES | J79: 8 | K79: 3840000 | L79: 2009 | M79: 3840000 | N79: strm.a300.306 | O79: 421776 | P79: kg/hr | Q79: 0.7 | R79: 2 | S79: 442380.244 | T79: 1.048851153 | U79: 3970369.504 | V79: =U79*VLOOKUP(DCFROR!$B$34,INDIRECT(IX_CAP),4,FALSE)/VLOOKUP(L79,INDIRECT(IX_CAP),4,FALSE) -> 3996995.856 | W79: 7993991.712 | Y79: Pressure vessel, SS | Z79: includes erection
T80: Area 300 Totals | U80: =SUM(U55:U79) -> 18382557.17 | V80: =SUM(V55:V79) -> 18500456.9 | W80: =SUM(W55:W79) -> 31246992.75 | X80: =W80/V80 -> 1.688984922
A81: A | B81: 400 | C81: Cellulase Fermentor Agitators | D81: Lotus | G81: 800 | H81: SS316 | I81: YES | K81: 580000 | L81: 2009 | M81: =K81 -> 580000 | N81: CLVESSEL | O81: 1 | P81: ea | Q81: 1 | R81: 1.5 | S81: =IF(N81<>"",CEILING(VLOOKUP(N81,INDIRECT(LU_SENS),2,FALSE),1),"") -> 8 | T81: =S81/O81 -> 8 | U81: =M81*T81^Q81 -> 4640000 | V81: =U81*VLOOKUP(DCFROR!$B$34,INDIRECT(IX_CAP),4,FALSE)/VLOOKUP(L81,INDIRECT(IX_CAP),4,FALSE) -> 4671117.072 | W81: =V81*R81 -> 7006675.608 | Y81: Agitator, SS | Z81: [NREL spec: 200 hp]
A82: A | B82: 401 | C82: Cellulase Fermentor Agitators | D82: Lotus | G82: 0.75hp | H82: SS316 | I82: YES | K82: 3420 | L82: 2009 | M82: =K82 -> 3420 | N82: ICLSEED | O82: 1 | P82: ea | Q82: 1 | R82: 1.5 | S82: =IF(N82<>"",CEILING(VLOOKUP(N82,INDIRECT(LU_SENS),2,FALSE),1),"") -> 4 | T82: 4 | U82: 13680 | V82: =U82*VLOOKUP(DCFROR!$B$34,INDIRECT(IX_CAP),4,FALSE)/VLOOKUP(L82,INDIRECT(IX_CAP),4,FALSE) -> 13771.74171 | W82: 20657.61257 | Y82: Agitator, SS | Z82: [NREL spec: 0.2 hp]
A83: A | B83: 402 | C83: Cellulase Fermentor Agitators | D83: Lotus | G83: 8 hp | H83: SS316 | I83: YES | K83: 63000 | L83: 2009 | M83: 63000 | N83: ICLSEED | O83: 1 | P83: ea | Q83: 1 | R83: 1.5 | S83: =IF(N83<>"",CEILING(VLOOKUP(N83,INDIRECT(LU_SENS),2,FALSE),1),"") -> 4 | T83: 4 | U83: 252000 | V83: =U83*VLOOKUP(DCFROR!$B$34,INDIRECT(IX_CAP),4,FALSE)/VLOOKUP(L83,INDIRECT(IX_CAP),4,FALSE) -> 253689.9789 | W83: 380534.9684 | Y83: Agitator, SS | Z83: [NREL spec: 2.0 hp]
A84: A | B84: 403 | C84: Cellulase Fermentor Agitators | D84: Lotus | G84: 80 hp | H84: SS316 | I84: YES | K84: 11000 | L84: 2009 | M84: 11000 | N84: ICLSEED | O84: 1 | P84: ea | Q84: 1 | R84: 1.5 | S84: =IF(N84<>"",CEILING(VLOOKUP(N84,INDIRECT(LU_SENS),2,FALSE),1),"") -> 4 | T84: 4 | U84: 44000 | V84: =U84*VLOOKUP(DCFROR!$B$34,INDIRECT(IX_CAP),4,FALSE)/VLOOKUP(L84,INDIRECT(IX_CAP),4,FALSE) -> 44295.07568 | W84: 66442.61353 | Y84: Agitator, SS | Z84: [NREL spec: 20 hp]
A85: A | B85: 405 | C85: Media-Prep Tank Agitator | D85: Lotus | G85: 7.5 hp | H85: A285C | I85: YES | J85: 1 | K85: 8500 | L85: 2009 | M85: 8500 | N85: strm.a400.402 | O85: 12255 | P85: kg/hr | Q85: 0.5 | R85: 1.5 | S85: =IF(N85<>"",VLOOKUP(N85,INDIRECT(LU_SENS),2,FALSE),"") -> 15659.2773 | T85: 1.277786805 | U85: 9608.334751 | V85: =U85*VLOOKUP(DCFROR!$B$34,INDIRECT(IX_CAP),4,FALSE)/VLOOKUP(L85,INDIRECT(IX_CAP),4,FALSE) -> 9672.770796 | W85: 14509.15619 | Y85: Agitator, SS
A86: A | B86: 406 | C86: Cellulase Nutrient Mix Tank Agitator | D86: Lotus | G86: 3 hp | H86: CS | I86: YES | J86: 1 | K86: 4800 | L86: 2009 | M86: 4800 | N86: strm.a400.416 | O86: 174 | P86: kg/hr | Q86: 0.5 | R86: 1.6 | S86: =IF(N86<>"",VLOOKUP(N86,INDIRECT(LU_SENS),2,FALSE),"") -> 221.971859 | T86: 1.275700339 | U86: 5421.451449 | V86: =U86*VLOOKUP(DCFROR!$B$34,INDIRECT(IX_CAP),4,FALSE)/VLOOKUP(L86,INDIRECT(IX_CAP),4,FALSE) -> 5457.809142 | W86: 8732.494627 | Y86: Agitator, CS | Z86: [NREL spec: 1.5 hp]
A87: A | B87: 410 | C87: Cellulase Hold Tank Agitator | D87: Lotus | G87: 10 hp | H87: SS316 | I87: YES | J87: 1 | K87: 26900 | L87: 2009 | M87: 26900 | N87: strm.422 | O87: 10930 | P87: kg/hr | Q87: 0.5 | R87: 1.5 | S87: =IF(N87<>"",VLOOKUP(N87,INDIRECT(LU_SENS),2,FALSE),"") -> 13712.1541 | T87: 1.254542919 | U87: 30129.71625 | V87: =U87*VLOOKUP(DCFROR!$B$34,INDIRECT(IX_CAP),4,FALSE)/VLOOKUP(L87,INDIRECT(IX_CAP),4,FALSE) -> 30331.77413 | W87: 45497.66119 | Y87: Agitator, SS
A88: F | B88: 400 | C88: Cellulase Fermentor | D88: Mueller | F88: 80,000 gal, 1 atm, 28 °C, Internal coil | H88: SS316 | I88: YES | K88: 400500 | L88: 2009 | M88: =K88 -> 400500 | N88: CLVESSEL | O88: 1 | P88: ea | Q88: 1 | R88: 2 | S88: =IF(N88<>"",CEILING(VLOOKUP(N88,INDIRECT(LU_SENS),2,FALSE),1),"") -> 8 | T88: 8 | U88: 3204000 | V88: =U88*VLOOKUP(DCFROR!$B$34,INDIRECT(IX_CAP),4,FALSE)/VLOOKUP(L88,INDIRECT(IX_CAP),4,FALSE) -> 3225486.875 | W88: 6450973.75 | Y88: Pressure vessel, SS
A89: F | B89: 401 | C89: 1st Cellulase Seed Fermentor | D89: A&B Process | F89: 80 gallon skid complete - $46,000 ea | H89: 304SS | I89: YES | K89: 46000 | L89: 2009 | M89: 46000 | N89: ICLSEED | O89: 1 | P89: ea | Q89: 1 | R89: 1.8 | S89: =IF(N89<>"",CEILING(VLOOKUP(N89,INDIRECT(LU_SENS),2,FALSE),1),"") -> 4 | T89: 4 | U89: 184000 | V89: =U89*VLOOKUP(DCFROR!$B$34,INDIRECT(IX_CAP),4,FALSE)/VLOOKUP(L89,INDIRECT(IX_CAP),4,FALSE) -> 185233.9529 | W89: 333421.1152 | Y89: Skid equip
A90: F | B90: 402 | C90: 2nd Cellulase Seed Fermentor | D90: A&B Process | F90: 800 gallon skid complete - $57,500 ea | H90: 304SS | I90: YES | K90: 57500 | L90: 2009 | M90: 57500 | N90: ICLSEED | O90: 1 | P90: ea | Q90: 1 | R90: 1.8 | S90: =IF(N90<>"",CEILING(VLOOKUP(N90,INDIRECT(LU_SENS),2,FALSE),1),"") -> 4 | T90: 4 | U90: 230000 | V90: =U90*VLOOKUP(DCFROR!$B$34,INDIRECT(IX_CAP),4,FALSE)/VLOOKUP(L90,INDIRECT(IX_CAP),4,FALSE) -> 231542.4411 | W90: 416776.3939 | Y90: Skid equip
A91: F | B91: 403 | C91: 3rd Cellulase Seed Fermentor | D91: A&B Process | F91: 8,000 gallon skid complete - $95,400 ea | H91: 304SS | I91: YES | K91: 95400 | L91: 2009 | M91: 95400 | N91: ICLSEED | O91: 1 | P91: ea | Q91: 1 | R91: 1.8 | S91: =IF(N91<>"",CEILING(VLOOKUP(N91,INDIRECT(LU_SENS),2,FALSE),1),"") -> 4 | T91: 4 | U91: 381600 | V91: =U91*VLOOKUP(DCFROR!$B$34,INDIRECT(IX_CAP),4,FALSE)/VLOOKUP(L91,INDIRECT(IX_CAP),4,FALSE) -> 384159.1109 | W91: 691486.3997 | Y91: Skid equip
A92: H | B92: 400 | C92: Cellulase Fermentation Cooler | D92: Mueller | F92: Cooling coil included with Cellulase Fermenter | H92: 304SS | I92: YES | K92: INCLUDED | Z92: Cooling coil included with cellulase fermenter
A93: H | B93: 405 | C93: Media Prep Tank Cooler | D93: Mueller | F93: Cooling coil included with Media Prep Tank | H93: 304SS | I93: YES | J93: 1 | K93: INCLUDED | Z93: Cooling coil included with tank
A94: M | B94: 401 | C94: Fermenter Air Compressor Package | D94: Dresser Roots | E94: 2030 RAJ | F94: 8000 SCFM @ 16 psig | H94: CS | I94: YES | J94: 2 | K94: =175000*2 -> 350000 | L94: 2009 | M94: 350000 | N94: strm.a400.450 | O94: 33168 | P94: kg/hr | Q94: 0.6 | R94: 1.6 | S94: =IF(N94<>"",VLOOKUP(N94,INDIRECT(LU_SENS),2,FALSE),"") -> 32290.0533 | T94: 0.9735303093 | U94: =M94*T94^Q94 -> 344411.5685 | V94: =U94*VLOOKUP(DCFROR!$B$34,INDIRECT(IX_CAP),4,FALSE)/VLOOKUP(L94,INDIRECT(IX_CAP),4,FALSE) -> 346721.284 | W94: 554754.0543 | Y94: Compressor, motor-driven | Z94: Motor base coupling, silencers, relief valve, flex conn's
A95: P | B95: 400 | C95: Cellulase Transfer Pump | D95: Goulds | E95: 3196; 1.5X3-13 | F95: 59 gpm, 100 FT, TDH SIZE 2X1-10C | G95: 3 | H95: 316SS | I95: HGI database | J95: 1 | K95: 7357 | L95: 2010 | M95: 7357 | N95: strm.a400.420 | O95: =59*60*3.785 -> 13398.9 | P95: kg/hr | Q95: 0.8 | R95: 2.3 | S95: 13712.1541 | T95: 1.023379091 | U95: 7494.281251 | V95: =U95*VLOOKUP(DCFROR!$B$34,INDIRECT(IX_CAP),4,FALSE)/VLOOKUP(L95,INDIRECT(IX_CAP),4,FALSE) -> 7148.684403 | W95: 16441.97413 | Y95: Pump, SS | Z95: density 1.0
A96: P | B96: 401 | C96: Cellulase Seed Pump | D96: Goulds | E96: 3196; 2X3-8 | F96: 3 GPM, 100 FT TDH SIZE 2X1-10 | G96: 2 | H96: 316SS | I96: HGI database | J96: 4 | K96: =7493*4 -> 29972 | L96: 2010 | M96: 29972 | N96: strm.a400.409 | O96: =3*60*3.785 -> 681.3 | P96: kg/hr | Q96: 0.8 | R96: 2.3 | S96: 762.791789 | T96: 1.119612196 | U96: 32807.24942 | V96: =U96*VLOOKUP(DCFROR!$B$34,INDIRECT(IX_CAP),4,FALSE)/VLOOKUP(L96,INDIRECT(IX_CAP),4,FALSE) -> 31294.35157 | W96: 71977.00861 | Y96: Pump, SS | Z96: density 1.0. increased # to 4
A97: P | B97: 405 | C97: Media Pump | D97: Goulds | E97: 3196; 2X3-13 | F97: 63 GPM, 100 FT TDH SIZE 2X1-10C | G97: 3 | H97: 316SS | I97: HGI database | J97: 1 | K97: 7357 | L97: 2010 | M97: 7357 | N97: strm.a400.402 | O97: =63*60*3.785 -> 14307.3 | P97: kg/hr | Q97: 0.8 | R97: 2.3 | S97: 15659.2773 | T97: 1.094495628 | U97: 7908.096877 | V97: =U97*VLOOKUP(DCFROR!$B$34,INDIRECT(IX_CAP),4,FALSE)/VLOOKUP(L97,INDIRECT(IX_CAP),4,FALSE) -> 7543.417029 | W97: 17349.85917 | Y97: Pump, SS | Z97: density 1.0
A98: P | B98: 406 | C98: Cellulase Nutrient Transfer Pump | D98: Viking | F98: Gear Pump 2 GPM, 100 FT | G98: 0.5 | H98: 316SS | I98: HGI database | J98: 1 | K98: 1500 | L98: 2009 | M98: 1500 | N98: strm.a400.416 | O98: 454 | P98: kg/hr | Q98: 0.8 | R98: 2.3 | S98: 221.971859 | T98: 0.4889247996 | U98: 846.2231696 | V98: =U98*VLOOKUP(DCFROR!$B$34,INDIRECT(IX_CAP),4,FALSE)/VLOOKUP(L98,INDIRECT(IX_CAP),4,FALSE) -> 851.8981669 | W98: 1959.365784 | Y98: Pump, SS | Z98: density 1.0
A99: P | B99: 410 | C99: Cellulase Feed Pump | D99: Viking | F99: Gear Pump | G99: 1 | H99: 316SS | I99: HGI database | J99: 1 | K99: 1500 | L99: 2009 | M99: 5700 | N99: strm.a400.422 | O99: 18168 | P99: kg/hr | Q99: 0.8 | R99: 2.3 | S99: 13712.1541 | T99: =S99/O99 -> 0.7547420795 | U99: 4551.072007 | V99: =U99*VLOOKUP(DCFROR!$B$34,INDIRECT(IX_CAP),4,FALSE)/VLOOKUP(L99,INDIRECT(IX_CAP),4,FALSE) -> 4581.592704 | W99: =V99*R99 -> 10537.66322 | Y99: Pump, SS
A100: P | B100: 420 | C100: Anti-foam Pump | D100: Viking | F100: Gear Pump 2 GPM, 100 FT | G100: 1 | H100: 316SS | I100: HGI database | J100: 1 | K100: 1500 | L100: 2009 | M100: 1500 | N100: strm.a400.444 | O100: 10.6 | P100: kg/hr | Q100: 0.8 | R100: 2.3 | S100: 13.2374829 | T100: 1.248819142 | U100: 1791.805629 | V100: =U100*VLOOKUP(DCFROR!$B$34,INDIRECT(IX_CAP),4,FALSE)/VLOOKUP(L100,INDIRECT(IX_CAP),4,FALSE) -> 1803.821953 | W100: 4148.790492 | Y100: Pump, SS
A101: T | B101: 401 | C101: SO2 Storage Tank | D101: SO2 Vendor | F101: 1 ton cylinders, incl w/ delivery | H101: SS304 | J101: 1 | K101: 0 | Z101: Provided with SO3 purchase
A102: T | B102: 405 | C102: Media-Prep Tank | D102: Mueller | F102: 20,000 gallon, incl. coil | H102: 304SS | I102: YES | J102: 1 | K102: 176000 | L102: 2009 | M102: =K102 -> 176000 | N102: strm.a400.402 | O102: 12255 | P102: kg/hr | Q102: 0.7 | R102: 1.8 | S102: =IF(N102<>"",VLOOKUP(N102,INDIRECT(LU_SENS),2,FALSE),"") -> 15659.2773 | T102: 1.277786805 | U102: =M102*T102^Q102 -> 208945.7526 | V102: =U102*VLOOKUP(DCFROR!$B$34,INDIRECT(IX_CAP),4,FALSE)/VLOOKUP(L102,INDIRECT(IX_CAP),4,FALSE) -> 210346.9983 | W102: 378624.5969 | Y102: Tank, storage, SS | Z102: 4 hours residence
A103: T | B103: 406 | C103: Cellulase Nutrient Mix Tank | D103: Harrington | F103: HDPE, 8,000 gal | H103: HDPE | I103: HGI database | J103: 1 | K103: 9000 | L103: 2010 | M103: =K103 -> 9000 | N103: strm.a400.416 | O103: 224 | P103: kg/hr | Q103: 0.7 | R103: 3 | S103: =IF(N103<>"",VLOOKUP(N103,INDIRECT(LU_SENS),2,FALSE),"") -> 221.971859 | T103: 0.9909457991 | U103: =M103*T103^Q103 -> 8942.880759 | V103: =U103*VLOOKUP(DCFROR!$B$34,INDIRECT(IX_CAP),4,FALSE)/VLOOKUP(L103,INDIRECT(IX_CAP),4,FALSE) -> 8530.482118 | W103: 25591.44636 | Y103: Tank, storage, plastic | Z103: size from T-405 from 1999 report per
A104: T | B104: 410 | C104: Cellulase Hold Tank | D104: Mueller | F104: 80,000 gal | H104: 304SS | I104: YES | J104: 1 | K104: =273273*(80/94)^0.6 -> 248069.8617 | L104: 2009 | M104: =K104 -> 248069.8617 | N104: strm.a400.422 | O104: 10930 | P104: kg/hr | Q104: 0.7 | R104: 1.8 | S104: =IF(N104<>"",VLOOKUP(N104,INDIRECT(LU_SENS),2,FALSE),"") -> 13712.1541 | T104: 1.254542919 | U104: =M104*T104^Q104 -> 290746.0819 | V104: =U104*VLOOKUP(DCFROR!$B$34,INDIRECT(IX_CAP),4,FALSE)/VLOOKUP(L104,INDIRECT(IX_CAP),4,FALSE) -> 292695.9024 | W104: 526852.6242 | Y104: Tank, storage, SS | Z104: Factored pricing - Actual quotation due 9/29
T105: Area 400 Totals | U105: =SUM(U81:U104) -> 9902884.515 | V105: =SUM(V81:V104) -> 9966277.035 | W105: =SUM(W81:W104) -> 17043945.16 | X105: =W105/V105 -> 1.710161688
A106: A | B106: 530 | C106: Filtrate Tank Agitator | D106: Lotus | G106: 7.5 hp | H106: SS | I106: YES | J106: 1 | K106: 26000 | L106: 2009 | M106: =K106 -> 26000 | N106: strm.a500.evap.572 | O106: 337439 | P106: kg/hr | Q106: 0.5 | R106: 1.5 | S106: =IF(N106<>"",VLOOKUP(N106,INDIRECT(LU_SENS),2,FALSE),"") -> 353746.204 | T106: =S106/O106 -> 1.048326376 | U106: =M106*T106^Q106 -> 26620.83076 | V106: =U106*VLOOKUP(DCFROR!$B$34,INDIRECT(IX_CAP),4,FALSE)/VLOOKUP(L106,INDIRECT(IX_CAP),4,FALSE) -> 26799.35712 | W106: =V106*R106 -> 40199.03568 | Y106: Agitator, SS | Z106: Revised to SS
A107: C | B107: 501 | C107: Lignin Wet Cake Conveyor | D107: KWS/Barnard-Boe | F107: Belt 100 ft. long x 24" wide, enclosed | G107: 10 | H107: SS304 | I107: HGI database | J107: 1 | K107: 70000 | L107: 2009 | M107: =K107 -> 70000 | N107: strm.a500.571 | O107: 28630 | P107: kg/hr | Q107: 0.8 | R107: 1.7 | S107: =IF(N107<>"",VLOOKUP(N107,INDIRECT(LU_SENS),2,FALSE),"") -> 36995.4612 | T107: =S107/O107 -> 1.292192148 | U107: =M107*T107^Q107 -> 85932.94945 | V107: =U107*VLOOKUP(DCFROR!$B$34,INDIRECT(IX_CAP),4,FALSE)/VLOOKUP(L107,INDIRECT(IX_CAP),4,FALSE) -> 86509.23863 | W107: =V107*R107 -> 147065.7057 | Y107: solids handling | Z107: Assumes bulk density of 30 lb/cu ft
A108: C | B108: 502 | C108: Lignin Wet Cake Screw | D108: KWS/Barnard-Boe | F108: Screw conveyor - 25 ft lg x 14" dia | G108: 15 | H108: SS304 | I108: HGI database | J108: 1 | K108: 20000 | L108: 2009 | M108: =K108 -> 20000 | N108: strm.a500.571 | O108: 28630 | P108: kg/hr | Q108: 0.8 | R108: 1.7 | S108: =IF(N108<>"",VLOOKUP(N108,INDIRECT(LU_SENS),2,FALSE),"") -> 36995.4612 | T108: =S108/O108 -> 1.292192148 | U108: =M108*T108^Q108 -> 24552.27127 | V108: =U108*VLOOKUP(DCFROR!$B$34,INDIRECT(IX_CAP),4,FALSE)/VLOOKUP(L108,INDIRECT(IX_CAP),4,FALSE) -> 24716.92532 | W108: =V108*R108 -> 42018.77305 | Y108: solids handling | Z108: Assumes bulk density of 30 lb/cu ft
A109: D | B109: 501 | C109: Beer Column | D109: Megtec | F109: 14' dia. x 76' tall, 32 trays, 24" spacing | H109: 316SS | I109: Megtec Price | J109: 1 | K109: =4162000-440000-315000 -> 3407000 | L109: 2009 | M109: =K109 -> 3407000 | N109: strm.a500.511 | O109: 30379 | P109: kg/hr | Q109: 0.6 | R109: 2.4 | S109: =IF(N109<>"",VLOOKUP(N109,INDIRECT(LU_SENS),2,FALSE),"") -> 28936.7409 | T109: =S109/O109 -> 0.9525244709 | U109: =M109*T109^Q109 -> 3309008.011 | V109: =U109*VLOOKUP(DCFROR!$B$34,INDIRECT(IX_CAP),4,FALSE)/VLOOKUP(L109,INDIRECT(IX_CAP),4,FALSE) -> 3331199.098 | W109: =V109*R109 -> 7994877.835 | Y109: distillation column, ss | Z109: New Price - revised without H-505, I&C
A110: D | B110: 502 | C110: Rectification Column | D110: Megtec | F110: Top 13' dia. x 68' h, Bottom 4'6" x 31' h | H110: 316SS | I110: Included with Megtec | J110: 1 | K110: INCLUDED
A111: H | B111: 501 | C111: Beer Column Reboiler | D111: Megtec | F111: S & T | H111: 316SS;CS | I111: Included with Megtec | J111: 1 | K111: INCLUDED
A112: H | B112: 502 | C112: Rectification Column Reboiler | D112: Megtec | F112: S & T | H112: 316SS;CS | I112: Included with Megtec | J112: 1 | K112: INCLUDED
A113: H | B113: 504 | C113: Beer Column Condenser | D113: Megtec | F113: S & T | H113: 316SS;CS | I113: Included with Megtec | J113: 1 | K113: INCLUDED
A114: H | B114: 505 | C114: Rectification Column Condenser | D114: GEA Rainey | E114: 2-1540T156 | F114: 92.2 MM Btu/hr 3 cells | G114: 300 tot | H114: CS | I114: YES | J114: 1 | K114: 487000 | L114: 2010 | M114: =K114 -> 487000 | N114: heat.a500.qcd502 | O114: 23.2 | P114: Gcal/hr | Q114: 0.6 | R114: 2.8 | S114: =IF(N114<>"",VLOOKUP(N114,INDIRECT(LU_SENS),2,FALSE),"") -> 23.0412406 | T114: =S114/O114 -> 0.9931569224 | U114: =M114*T114^Q114 -> 484997.7073 | V114: =U114*VLOOKUP(DCFROR!$B$34,INDIRECT(IX_CAP),4,FALSE)/VLOOKUP(L114,INDIRECT(IX_CAP),4,FALSE) -> 462632.1631 | W114: =V114*R114 -> 1295370.057 | Y114: Heat ex, Air-cooled | Z114: Outlet temp. = 81C / 61.9 MMBtu exchanged
A115: H | B115: 512 | C115: Beer Column Feed Interchanger | D115: Megtec | F115: Plate & Frame | H115: 316SS | I115: Included with Megtec | J115: 1 | K115: INCLUDED
A116: M | B116: 503 | C116: Molecular Sieve Package (9 pieces) | D116: Delta-T | H116: SS | I116: YES | J116: 1 | K116: =ROUND((1.2^0.6)*2331604.71, -3) -> 2601000 | L116: 2009 | M116: =K116 -> 2601000 | N116: strm.a500.515 | O116: 22687 | P116: kg/hr | Q116: 0.6 | R116: 1.8 | S116: =IF(N116<>"",VLOOKUP(N116,INDIRECT(LU_SENS),2,FALSE),"") -> 21611.717 | T116: =S116/O116 -> 0.9526035615 | U116: =M116*T116^Q116 -> 2526316.001 | V116: =U116*VLOOKUP(DCFROR!$B$34,INDIRECT(IX_CAP),4,FALSE)/VLOOKUP(L116,INDIRECT(IX_CAP),4,FALSE) -> 2543258.147 | W116: =V116*R116 -> 4577864.664 | Y116: Skid equip
A117: M | B117: 505 | C117: Pressure Filter Pressing Compr | D117: Atlas-Copco | E117: GR 110-20 | F117: 460 SCFM, 300 psig | G117: 150 hp | I117: from Larox | J117: 1 | K117: 75200 | L117: 2009 | M117: =K117 -> 75200 | N117: strm.a500.evap.sqairin | O117: 808 | P117: kg/hr | Q117: 0.6 | R117: 1.6 | S117: =IF(N117<>"",VLOOKUP(N117,INDIRECT(LU_SENS),2,FALSE),"") -> 807.109519 | T117: =S117/O117 -> 0.9988979196 | U117: =M117*T117^Q117 -> 75150.26316 | V117: =U117*VLOOKUP(DCFROR!$B$34,INDIRECT(IX_CAP),4,FALSE)/VLOOKUP(L117,INDIRECT(IX_CAP),4,FALSE) -> 75654.24079 | W117: =V117*R117 -> 121046.7853 | Y117: compressor, motor-driven
A118: M | B118: 507 | C118: Pressure Filter Drying Compr | D118: Atlas-Copco | E118: GA 500-10 | F118: 4000 SCFM, 130 psig (ea) | G118: 700 hp ea. | I118: from Larox | J118: 2 | K118: 405000 | L118: 2009 | M118: =K118 -> 405000 | N118: strm.a500.evap.557 | O118: 12233 | P118: kg/hr | Q118: 0.6 | R118: 1.6 | S118: =IF(N118<>"",VLOOKUP(N118,INDIRECT(LU_SENS),2,FALSE),"") -> 12079.651 | T118: =S118/O118 -> 0.9874643178 | U118: =M118*T118^Q118 -> 401946.1471 | V118: =U118*VLOOKUP(DCFROR!$B$34,INDIRECT(IX_CAP),4,FALSE)/VLOOKUP(L118,INDIRECT(IX_CAP),4,FALSE) -> 404641.7047 | W118: =V118*R118 -> 647426.7275 | Y118: compressor, motor-driven
A119: P | B119: 501 | C119: Beer Column Bottoms Recirc Pump | D119: Megtec | F119: 10,000 gpm | G119: 200 | H119: 316SS | I119: Included with Megtec | J119: 1 | K119: INCLUDED
A120: P | B120: 503 | C120: Beer Column Reflux Pump | D120: Megtec | F120: 15 gpm | G120: 2 | H120: 316SS | I120: Included with Megtec | J120: 1 | K120: INCLUDED
A121: P | B121: 504 | C121: Rectification Column Btms Pump | D121: Megtec | F121: 150 gpm | G121: 15 | H121: 316SS | I121: Included with Megtec | J121: 1 | K121: INCLUDED
A122: P | B122: 505 | C122: Rectification Column Reflux Pump | D122: Megtec | F122: 500 gpm | G122: 50 | H122: 316SS | I122: Included with Megtec | J122: 1 | K122: INCLUDED
A123: P | B123: 506 | C123: Beer Column Stillage Pump | D123: Megtec | F123: 2000 gpm | G123: 75 | H123: 316SS | I123: Included with Megtec | J123: 1 | K123: INCLUDED
A124: P | B124: 515 | C124: Scrubber Bottoms Pump | D124: Goulds | E124: 3196; 1.5X3-10 | F124: 108 GPM, 104 FT TDH | H124: 316SS | I124: HGI database | J124: 1 | K124: 6300 | L124: 2009 | M124: =K124 -> 6300 | N124: strm.551 | O124: 24527 | P124: kg/hr | Q124: 0.8 | R124: 2.3 | S124: =IF(N124<>"",VLOOKUP(N124,INDIRECT(LU_SENS),2,FALSE),"") -> 26926.0661 | T124: =S124/O124 -> 1.097813271 | U124: =M124*T124^Q124 -> 6788.336006 | V124: =U124*VLOOKUP(DCFROR!$B$34,INDIRECT(IX_CAP),4,FALSE)/VLOOKUP(L124,INDIRECT(IX_CAP),4,FALSE) -> 6833.86039 | W124: =V124*R124 -> 15717.8789 | Y124: Pump, SS
A125: P | B125: 530 | C125: Filtrate Tank Discharge Pump | D125: Sulzer | E125: 32-100 | F125: 590 GPM, 100 FT TDH SIZE 4X3-13 | H125: SS | I125: from Larox | J125: 1 | K125: 13040 | L125: 2010 | M125: 13040 | N125: strm.a500.evap.571 | O125: 31815 | P125: kg/hr | Q125: 0.8 | R125: 2.3 | S125: 36995.4612 | T125: 1.162830778 | U125: 14712.64669 | V125: =U125*VLOOKUP(DCFROR!$B$34,INDIRECT(IX_CAP),4,FALSE)/VLOOKUP(L125,INDIRECT(IX_CAP),4,FALSE) -> 14034.17678 | W125: 32278.6066 | Y125: Pump, SS | Z125: 35,000 kg/hr dry solids @ 35% moisture
A126: P | B126: 531 | C126: Feed Pump | D126: Warman | E126: 8/6 | F126: 1014 GPM 230 FT TDH SIZE 8X6-15 | G126: 100 hp | H126: SS | I126: from Larox | J126: 1 | K126: 18173 | L126: 2010 | M126: 18173 | N126: strm.a500.evap.571 | O126: 31815 | P126: kg/hr | Q126: 0.8 | R126: 2.3 | S126: 36995.4612 | T126: 1.162830778 | U126: 20504.05892 | V126: =U126*VLOOKUP(DCFROR!$B$34,INDIRECT(IX_CAP),4,FALSE)/VLOOKUP(L126,INDIRECT(IX_CAP),4,FALSE) -> 19558.51953 | W126: 44984.59492 | Y126: Pump, SS | Z126: sizing by Larox
A127: P | B127: 532 | C127: Manifold Flush Pump | D127: Warman | E127: 6/4 | G127: 100 hp | H127: SS | I127: from Larox | J127: 1 | K127: 17057 | L127: 2010 | M127: 17057 | N127: strm.a500.evap.571 | O127: 31815 | P127: kg/hr | Q127: 0.8 | R127: 2.3 | S127: 36995.4612 | T127: 1.162830778 | U127: 19244.9091 | V127: =U127*VLOOKUP(DCFROR!$B$34,INDIRECT(IX_CAP),4,FALSE)/VLOOKUP(L127,INDIRECT(IX_CAP),4,FALSE) -> 18357.43507 | W127: 42222.10067 | Y127: Pump, SS | Z127: sizing by Larox
A128: P | B128: 533 | C128: Cloth Wash Pump | D128: Warman | E128: 8/6 | G128: 150 hp | H128: SS | I128: from Larox | J128: 1 | K128: 29154 | L128: 2010 | M128: 29154 | N128: strm.a500.evap.571 | O128: 31815 | P128: kg/hr | Q128: 0.8 | R128: 2.3 | S128: 36995.4612 | T128: 1.162830778 | U128: 32893.59675 | V128: =U128*VLOOKUP(DCFROR!$B$34,INDIRECT(IX_CAP),4,FALSE)/VLOOKUP(L128,INDIRECT(IX_CAP),4,FALSE) -> 31376.71702 | W128: 72166.44914 | Y128: Pump, SS | Z128: sizing by Larox
A129: P | B129: 581 | C129: Filtrate Discharge Pump | D129: Sulzer | E129: 32-100 | F129: 590 GPM, 100 FT TDH SIZE 4X3-13 | G129: 75 hp | H129: SS | I129: from Larox | J129: 1 | K129: 13040 | L129: 2010 | M129: 13040 | N129: strm.a500.evap.571 | O129: 31815 | P129: kg/hr | Q129: 0.8 | R129: 2.3 | S129: 36995.4612 | T129: 1.162830778 | U129: 14712.64669 | V129: =U129*VLOOKUP(DCFROR!$B$34,INDIRECT(IX_CAP),4,FALSE)/VLOOKUP(L129,INDIRECT(IX_CAP),4,FALSE) -> 14034.17678 | W129: 32278.6066 | Y129: Pump, SS
A130: S | B130: 505 | C130: Pressure Filter | D130: Larox | E130: FFP 2512 - 60/60 | F130: 384 sq. m fitration area ea incl packing | H130: SS316 | I130: from Larox | J130: 2 | K130: 3294700 | L130: 2010 | M130: 3294700 | N130: strm.a500.evap.571 | O130: 31815 | P130: kg/hr | Q130: 0.8 | R130: 1.7 | S130: 36995.4612 | T130: 1.162830778 | U130: 3717312.657 | V130: =U130*VLOOKUP(DCFROR!$B$34,INDIRECT(IX_CAP),4,FALSE)/VLOOKUP(L130,INDIRECT(IX_CAP),4,FALSE) -> 3545889.743 | W130: 6028012.562 | Y130: solids handling
A131: T | B131: 503 | C131: Beer Column Reflux Drum | D131: Megtec | F131: 4' dia, 6' high, 50 psig design | H131: 316SS | I131: Included with Megtec | J131: 1 | K131: INCLUDED
A132: T | B132: 505 | C132: Rectification Column Reflux Drum | D132: Megtec | F132: 4' dia, 6' high, 50 psig design | H132: 316SS | I132: Included with Megtec | J132: 1 | K132: INCLUDED
A133: T | B133: 512 | C133: Vent Scrubber | D133: Envitech | F133: Inlet Gas: 9681 acfm, 91°F, 1.97 mass% Ethanol | H133: SS304;PP | I133: Envitech | J133: 1 | K133: 215000 | L133: 2009 | M133: =K133 -> 215000 | N133: strm.a500.523 | O133: 22608 | P133: kg/hr | Q133: 0.6 | R133: 2.4 | S133: =IF(N133<>"",VLOOKUP(N133,INDIRECT(LU_SENS),2,FALSE),"") -> 21634.5274 | T133: =S133/O133 -> 0.9569412332 | U133: =M133*T133^Q133 -> 209396.5976 | V133: =U133*VLOOKUP(DCFROR!$B$34,INDIRECT(IX_CAP),4,FALSE)/VLOOKUP(L133,INDIRECT(IX_CAP),4,FALSE) -> 210800.8668 | W133: =V133*R133 -> 505922.0804 | Y133: distillation column, SS | Z133: Ethanol removal >99%
A134: T | B134: 530 | C134: Filtrate Tank | F134: 13,750 gal 14' dia x 12' H | H134: SS | I134: HGI database | J134: 1 | K134: 103000 | L134: 2010 | M134: 103000 | N134: strm.a500.evap.571 | O134: 31815 | P134: kg/hr | Q134: 0.7 | R134: 2 | S134: 36995.4612 | T134: 1.162830778 | U134: 114471.8726 | V134: =U134*VLOOKUP(DCFROR!$B$34,INDIRECT(IX_CAP),4,FALSE)/VLOOKUP(L134,INDIRECT(IX_CAP),4,FALSE) -> 109193.0317 | W134: 218386.0635 | Y134: pressure vessel, SS | Z134: sizing by Larox
A135: T | B135: 531 | C135: Feed Tank | F135: 20,300 gal 14' dia x 18' H | H135: SS | I135: HGI database | J135: 1 | K135: 174800 | L135: 2010 | M135: 174800 | N135: strm.a500.evap.571 | O135: 31815 | P135: kg/hr | Q135: 0.7 | R135: 2 | S135: 36995.4612 | T135: 1.162830778 | U135: 194268.7703 | V135: =U135*VLOOKUP(DCFROR!$B$34,INDIRECT(IX_CAP),4,FALSE)/VLOOKUP(L135,INDIRECT(IX_CAP),4,FALSE) -> 185310.116 | W135: 370620.232 | Y135: pressure vessel, SS | Z135: sizing by Larox
A136: T | B136: 532 | C136: Recycled Water Tank | D136: Harrington Plastic | F136: 4000 gal. | H136: HDPE | I136: HGI database | J136: 1 | K136: 1520 | L136: 2010 | M136: 1520 | N136: strm.a500.evap.571 | O136: 31815 | P136: kg/hr | Q136: 0.7 | R136: 3 | S136: 36995.4612 | T136: 1.162830778 | U136: 1689.293654 | V136: =U136*VLOOKUP(DCFROR!$B$34,INDIRECT(IX_CAP),4,FALSE)/VLOOKUP(L136,INDIRECT(IX_CAP),4,FALSE) -> 1611.392313 | W136: 4834.176939 | Y136: tank, storage, plastic | Z136: sizing by Larox
A137: T | B137: 533 | C137: Pressing Air Compressor Receiver | F137: 1350 gal., 300 psig design | H137: CS | I137: from Larox | J137: 1 | K137: 8000 | L137: 2010 | M137: 8000 | N137: strm.a500.evap.571 | O137: 31815 | P137: kg/hr | Q137: 0.7 | R137: 3.1 | S137: 36995.4612 | T137: 1.162830778 | U137: 8891.019234 | V137: =U137*VLOOKUP(DCFROR!$B$34,INDIRECT(IX_CAP),4,FALSE)/VLOOKUP(L137,INDIRECT(IX_CAP),4,FALSE) -> 8481.012174 | W137: 26291.13774 | Y137: pressure vessel, cs | Z137: sizing by Larox
A138: T | B138: 534 | C138: Drying Air Compressor Receiver | F138: 9,000 gal., 150 psig design | H138: CS | I138: from Larox | J138: 2 | K138: 17000 | L138: 2010 | M138: 17000 | N138: strm.a500.evap.571 | O138: 31815 | P138: kg/hr | Q138: 0.7 | R138: 3.1 | S138: 36995.4612 | T138: 1.162830778 | U138: 18893.41587 | V138: =U138*VLOOKUP(DCFROR!$B$34,INDIRECT(IX_CAP),4,FALSE)/VLOOKUP(L138,INDIRECT(IX_CAP),4,FALSE) -> 18022.15087 | W138: 55868.66769 | Y138: pressure vessel, cs | Z138: sizing by Larox
T139: Area 500 Totals | U139: =SUM(U106:U138) -> 11308304 | V139: =SUM(V106:V138) -> 11138914.07 | W139: =SUM(W106:W138) -> 22315452.74 | X139: =W139/V139 -> 2.003377762
A140: B | B140: 606 | C140: Biogas Blower | D140: ADI | F140: 3000 ACFM, 10 PSI | G140: 200 | I140: HGI/BC Subcontract | J140: 4 | K140: INCLUDED | Z140: Installed cost excluding foundations
A141: B | B141: 608 | C141: Aerobic Digester Blower | D141: ADI | F141: 14,000 SCFM @ 10.3 psig | G141: 1000 | I141: HGI/BC Subcontract | J141: 8 | K141: 1933750 | L141: 2010 | M141: =K141 -> 1933750 | N141: strm.a600.601 | O141: 393100 | P141: kg/hr | Q141: 0.6 | R141: 1 | S141: =IF(N141<>"",VLOOKUP(N141,INDIRECT(LU_SENS),2,FALSE),"") -> 409935.779 | T141: =S141/O141 -> 1.042828235 | U141: =M141*T141^Q141 -> 1983024.114 | V141: =U141*VLOOKUP(DCFROR!$B$34,INDIRECT(IX_CAP),4,FALSE)/VLOOKUP(L141,INDIRECT(IX_CAP),4,FALSE) -> 1891577.468 | W141: =V141*R141 -> 1891577.468 | Z141: Installed cost excluding foundations
A142: C | B142: 614 | C142: Aerobic Sludge Screw | H142: CS | I142: Veolia Water | J142: 1 | K142: 25000 | L142: 2010 | M142: 25000 | N142: strm.a600.601 | O142: 393100 | P142: kg/hr | Q142: 0.6 | R142: 1 | S142: =IF(N142<>"",VLOOKUP(N142,INDIRECT(LU_SENS),2,FALSE),"") -> 409935.779 | T142: 1.042828235 | U142: 25637.02798 | V142: =U142*VLOOKUP(DCFROR!$B$34,INDIRECT(IX_CAP),4,FALSE)/VLOOKUP(L142,INDIRECT(IX_CAP),4,FALSE) -> 24454.78304 | W142: 24454.78304
A143: H | B143: 602 | C143: Anaerobic Digestor Feed Cooler | D143: ALFA LAVAL | F143: Wide gap plate & frame 2.5 mgd | H143: SS316; CS | I143: Veolia Water | J143: 1 | K143: 83863 | L143: 2010 | M143: 83863 | N143: strm.a600.601 | O143: 393100 | P143: kg/hr | Q143: 0.6 | R143: 1 | S143: 409935.779 | T143: 1.042828235 | U143: 85999.9231 | V143: =U143*VLOOKUP(DCFROR!$B$34,INDIRECT(IX_CAP),4,FALSE)/VLOOKUP(L143,INDIRECT(IX_CAP),4,FALSE) -> 82034.05882 | W143: 82034.05882 | Z143: Installed cost
A144: M | B144: 606 | C144: Biogas Emergency Flare | D144: ADI | I144: HGI/BC Subcontract | J144: 4 | K144: 32955 | L144: 2010 | M144: 32955 | N144: strm.a600.601 | O144: 393100 | P144: kg/hr | Q144: 0.6 | R144: 1 | S144: =IF(N144<>"",VLOOKUP(N144,INDIRECT(LU_SENS),2,FALSE),"") -> 409935.779 | T144: 1.042828235 | U144: 33794.73028 | V144: =U144*VLOOKUP(DCFROR!$B$34,INDIRECT(IX_CAP),4,FALSE)/VLOOKUP(L144,INDIRECT(IX_CAP),4,FALSE) -> 32236.29501 | W144: 32236.29501 | Z144: Installed cost excluding foundations
A145: M | B145: 630 | C145: Polymer Addition System | D145: ADI | F145: 11.4 gph neat polymer | G145: 10 | I145: HGI/BC Subcontract | J145: 1 | K145: 9300 | L145: 2010 | M145: 9300 | N145: strm.a600.601 | O145: 393100 | P145: kg/hr | Q145: 0.6 | R145: 1 | S145: =IF(N145<>"",VLOOKUP(N145,INDIRECT(LU_SENS),2,FALSE),"") -> 409935.779 | T145: 1.042828235 | U145: 9536.974409 | V145: =U145*VLOOKUP(DCFROR!$B$34,INDIRECT(IX_CAP),4,FALSE)/VLOOKUP(L145,INDIRECT(IX_CAP),4,FALSE) -> 9097.179292 | W145: 9097.179292
A146: M | B146: 632 | C146: Caustic Feed System | D146: ADI | F146: 0-300 gph Aerobic Digesters #1- #3 | G146: 1.5 | I146: HGI/BC Subcontract | J146: 3 | K146: 22800 | L146: 2010 | M146: 22800 | N146: strm.a600.601 | O146: 393100 | P146: kg/hr | Q146: 0.6 | R146: 1 | S146: =IF(N146<>"",VLOOKUP(N146,INDIRECT(LU_SENS),2,FALSE),"") -> 409935.779 | T146: 1.042828235 | U146: 23380.96952 | V146: =U146*VLOOKUP(DCFROR!$B$34,INDIRECT(IX_CAP),4,FALSE)/VLOOKUP(L146,INDIRECT(IX_CAP),4,FALSE) -> 22302.76214 | W146: 22302.76214
A147: M | B147: 640 | C147: Evaporator System | I147: HGI/BC Subcontract | K147: 3801095 | L147: 2010 | M147: 3801095 | N147: strm.a600.601 | O147: 393100 | P147: kg/hr | Q147: 0.6 | R147: 1 | S147: =IF(N147<>"",VLOOKUP(N147,INDIRECT(LU_SENS),2,FALSE),"") -> 409935.779 | T147: 1.042828235 | U147: 3897951.155 | V147: =U147*VLOOKUP(DCFROR!$B$34,INDIRECT(IX_CAP),4,FALSE)/VLOOKUP(L147,INDIRECT(IX_CAP),4,FALSE) -> 3718198.142 | W147: 3718198.142
A148: P | B148: 602 | C148: Anaerobic Reactor Feed Pump | D148: ADI | F148: 2500 gpm submersible rail mounted | G148: 50 | H148: CS | I148: HGI/BC Subcontract | J148: 4 | K148: 231488 | L148: 2010 | M148: 231488 | N148: strm.a600.601 | O148: 393100 | P148: kg/hr | Q148: 0.6 | R148: 1 | S148: =IF(N148<>"",VLOOKUP(N148,INDIRECT(LU_SENS),2,FALSE),"") -> 409935.779 | T148: 1.042828235 | U148: 237386.5733 | V148: =U148*VLOOKUP(DCFROR!$B$34,INDIRECT(IX_CAP),4,FALSE)/VLOOKUP(L148,INDIRECT(IX_CAP),4,FALSE) -> 226439.5527 | W148: 226439.5527 | Z148: Installed cost
A149: P | B149: 606 | C149: Anaerobic Reactor Recirc Pump | D149: ADI | F149: 400 gpm, 50 ft TDH | G149: 7.5 | I149: HGI/BC Subcontract | J149: 4 | K149: INCLUDED | Z149: Installed cost excluding foundations
A150: P | B150: 607 | C150: Waste Anaerobic Sludge Pump | D150: ADI | F150: 10 gpm | G150: 3 | I150: HGI/BC Subcontract | J150: 6 | K150: 93300 | L150: 2010 | M150: =K150 -> 93300 | N150: strm.a600.601 | O150: 393100 | P150: kg/hr | Q150: 0.6 | R150: 1 | S150: =IF(N150<>"",VLOOKUP(N150,INDIRECT(LU_SENS),2,FALSE),"") -> 409935.779 | T150: =S150/O150 -> 1.042828235 | U150: =M150*T150^Q150 -> 95677.38842 | V150: =U150*VLOOKUP(DCFROR!$B$34,INDIRECT(IX_CAP),4,FALSE)/VLOOKUP(L150,INDIRECT(IX_CAP),4,FALSE) -> 91265.25032 | W150: =V150*R150 -> 91265.25032 | Z150: Installed cost excluding foundations
A151: P | B151: 608 | C151: Aeration Basin Feed Pump | D151: ADI | G151: 15 | I151: HGI/BC Subcontract | J151: 4 | K151: 84000 | L151: 2010 | M151: =K151 -> 84000 | N151: strm.a600.601 | O151: 393100 | P151: kg/hr | Q151: 0.6 | R151: 1 | S151: =IF(N151<>"",VLOOKUP(N151,INDIRECT(LU_SENS),2,FALSE),"") -> 409935.779 | T151: =S151/O151 -> 1.042828235 | U151: =M151*T151^Q151 -> 86140.41401 | V151: =U151*VLOOKUP(DCFROR!$B$34,INDIRECT(IX_CAP),4,FALSE)/VLOOKUP(L151,INDIRECT(IX_CAP),4,FALSE) -> 82168.07103 | W151: =V151*R151 -> 82168.07103 | Z151: Installed cost excluding foundations
A152: P | B152: 609 | C152: Return Activated Sludge Pump | D152: ADI | G152: 40 | I152: HGI/BC Subcontract | J152: 6 | K152: 177300 | L152: 2010 | M152: =K152 -> 177300 | N152: strm.a600.601 | O152: 393100 | P152: kg/hr | Q152: 0.6 | R152: 1 | S152: =IF(N152<>"",VLOOKUP(N152,INDIRECT(LU_SENS),2,FALSE),"") -> 409935.779 | T152: =S152/O152 -> 1.042828235 | U152: =M152*T152^Q152 -> 181817.8024 | V152: =U152*VLOOKUP(DCFROR!$B$34,INDIRECT(IX_CAP),4,FALSE)/VLOOKUP(L152,INDIRECT(IX_CAP),4,FALSE) -> 173433.3213 | W152: =V152*R152 -> 173433.3213 | Z152: Installed cost excluding foundations
A153: P | B153: 610 | C153: Reverse Osmosis Feed Pump | D153: ADI | G153: ? | I153: HGI/BC Subcontract | J153: 1 | K153: INCLUDED | Z153: Installed cost excluding foundations
A154: P | B154: 611 | C154: Centrifuge Feed Pump | D154: ADI | G154: 10 | I154: HGI/BC Subcontract | J154: 2 | K154: 61200 | L154: 2010 | M154: =K154 -> 61200 | N154: strm.a600.601 | O154: 393100 | P154: kg/hr | Q154: 0.6 | R154: 1 | S154: =IF(N154<>"",VLOOKUP(N154,INDIRECT(LU_SENS),2,FALSE),"") -> 409935.779 | T154: =S154/O154 -> 1.042828235 | U154: =M154*T154^Q154 -> 62759.4445 | V154: =U154*VLOOKUP(DCFROR!$B$34,INDIRECT(IX_CAP),4,FALSE)/VLOOKUP(L154,INDIRECT(IX_CAP),4,FALSE) -> 59865.30889 | W154: =V154*R154 -> 59865.30889 | Z154: Installed cost excluding foundations
A155: P | B155: 612 | C155: Centrate Pump | D155: ADI | G155: 15 | I155: HGI/BC Subcontract | J155: 2 | K155: 70800 | L155: 2010 | M155: =K155 -> 70800 | N155: strm.a600.601 | O155: 393100 | P155: kg/hr | Q155: 0.6 | R155: 1 | S155: =IF(N155<>"",VLOOKUP(N155,INDIRECT(LU_SENS),2,FALSE),"") -> 409935.779 | T155: =S155/O155 -> 1.042828235 | U155: =M155*T155^Q155 -> 72604.06324 | V155: =U155*VLOOKUP(DCFROR!$B$34,INDIRECT(IX_CAP),4,FALSE)/VLOOKUP(L155,INDIRECT(IX_CAP),4,FALSE) -> 69255.94558 | W155: =V155*R155 -> 69255.94558
A156: P | B156: 616 | C156: Treated Water Pump | H156: CS | I156: HGI database | J156: 1 | K156: INCLUDED
A157: R | B157: 609 | C157: Membrane Bioreactor | D157: ADI | F157: Includes membrane CIP and Scour system | I157: HGI/BC Subcontract | J157: 3 | K157: 5248750 | L157: 2010 | M157: =K157 -> 5248750 | N157: strm.a600.601 | O157: 393100 | P157: kg/hr | Q157: 0.6 | R157: 1 | S157: =IF(N157<>"",VLOOKUP(N157,INDIRECT(LU_SENS),2,FALSE),"") -> 409935.779 | T157: =S157/O157 -> 1.042828235 | U157: =M157*T157^Q157 -> 5382494.024 | V157: =U157*VLOOKUP(DCFROR!$B$34,INDIRECT(IX_CAP),4,FALSE)/VLOOKUP(L157,INDIRECT(IX_CAP),4,FALSE) -> 5134281.7 | W157: =V157*R157 -> 5134281.7 | Z157: Installed cost excluding foundations
A158: S | B158: 610 | C158: Reverse Osmosis System | D158: ADI | I158: HGI/BC Subcontract | J158: 1 | K158: 2210979 | L158: 2010 | M158: =K158 -> 2210979 | N158: strm.a600.601 | O158: 393100 | P158: kg/hr | Q158: 0.6 | R158: 1 | S158: =IF(N158<>"",VLOOKUP(N158,INDIRECT(LU_SENS),2,FALSE),"") -> 409935.779 | T158: =S158/O158 -> 1.042828235 | U158: =M158*T158^Q158 -> 2267317.219 | V158: =U158*VLOOKUP(DCFROR!$B$34,INDIRECT(IX_CAP),4,FALSE)/VLOOKUP(L158,INDIRECT(IX_CAP),4,FALSE) -> 2162760.47 | W158: =V158*R158 -> 2162760.47 | Z158: Installed cost excluding foundations
A159: S | B159: 611 | C159: Centrifuge | I159: HGI/BC Subcontract | J159: 3 | K159: 6493500 | L159: 2010 | M159: =K159 -> 6493500 | N159: strm.a600.601 | O159: 393100 | P159: kg/hr | Q159: 0.6 | R159: 1 | S159: =IF(N159<>"",VLOOKUP(N159,INDIRECT(LU_SENS),2,FALSE),"") -> 409935.779 | T159: =S159/O159 -> 1.042828235 | U159: =M159*T159^Q159 -> 6658961.648 | V159: =U159*VLOOKUP(DCFROR!$B$34,INDIRECT(IX_CAP),4,FALSE)/VLOOKUP(L159,INDIRECT(IX_CAP),4,FALSE) -> 6351885.348 | W159: =V159*R159 -> 6351885.348
A160: T | B160: 606 | C160: Anaerobic Basin | D160: ADI | F160: 31 Million gallonwith cover | H160: CONCRETE | I160: HGI/BC Subcontract | J160: 4 | K160: 27000000 | L160: 2010 | M160: =K160 -> 27000000 | N160: strm.a600.601 | O160: 393100 | P160: kg/hr | Q160: 0.6 | R160: 1 | S160: =IF(N160<>"",VLOOKUP(N160,INDIRECT(LU_SENS),2,FALSE),"") -> 409935.779 | T160: =S160/O160 -> 1.042828235 | U160: =M160*T160^Q160 -> 27687990.22 | V160: =U160*VLOOKUP(DCFROR!$B$34,INDIRECT(IX_CAP),4,FALSE)/VLOOKUP(L160,INDIRECT(IX_CAP),4,FALSE) -> 26411165.69 | W160: =V160*R160 -> 26411165.69 | Z160: Installed cost
A161: T | B161: 608 | C161: Aeration Digester | D161: ADI | F161: 25 ft H x 115 ft x 344 ft 2 ft floor/wall thkness | H161: CONCRETE | I161: HGI/BC Subcontract | J161: 3 | K161: 2700000 | L161: 2010 | M161: =K161 -> 2700000 | N161: strm.a600.601 | O161: 393100 | P161: kg/hr | Q161: 0.6 | R161: 1 | S161: 409935.779 | T161: =S161/O161 -> 1.042828235 | U161: =M161*T161^Q161 -> 2768799.022 | V161: =U161*VLOOKUP(DCFROR!$B$34,INDIRECT(IX_CAP),4,FALSE)/VLOOKUP(L161,INDIRECT(IX_CAP),4,FALSE) -> 2641116.569 | W161: =V161*R161 -> 2641116.569 | Z161: Installed cost excluding foundations
A162: T | B162: 609 | C162: Sludge Holding Tank | D162: ADI | I162: HGI/BC Subcontract | J162: 1 | K162: INCLUDED | Z162: Installed cost excluding foundations
T163: Area 600 Totals | U163: =SUM(U140:U162) -> 51561272.71 | V163: =SUM(V140:V162) -> 49183537.91 | W163: =SUM(W140:W162) -> 49183537.91 | X163: =W163/V163 -> 1
A164: A | B164: 701 | C164: Denaturant In-line Mixer | F164: 4 inch | H164: SS304 | I164: HGI database | J164: 1 | K164: 3850 | L164: 2009 | M164: =K164 -> 3850 | N164: strm.703 | O164: 23154 | P164: kg/hr | Q164: 0.5 | R164: 1 | S164: =IF(N164<>"",VLOOKUP(N164,INDIRECT(LU_SENS),2,FALSE),"") -> 22072.4532 | T164: =S164/O164 -> 0.9532889868 | U164: =M164*T164^Q164 -> 3759.005987 | V164: =U164*VLOOKUP(DCFROR!$B$34,INDIRECT(IX_CAP),4,FALSE)/VLOOKUP(L164,INDIRECT(IX_CAP),4,FALSE) -> 3784.214879 | W164: =V164*R164 -> 3784.214879 | Y164: in line mixer
A165: A | B165: 720 | C165: CSL Storage Tank Agitator | D165: Lotus | G165: 10 hp | H165: SS304 | I165: YES | J165: 1 | K165: 21200 | L165: 2009 | M165: =K165 -> 21200 | N165: strm.735 | O165: 1393 | P165: kg/hr | Q165: 0.5 | R165: 1.5 | S165: 1317.88511 | T165: 0.9460768916 | U165: 20620.49461 | V165: =U165*VLOOKUP(DCFROR!$B$34,INDIRECT(IX_CAP),4,FALSE)/VLOOKUP(L165,INDIRECT(IX_CAP),4,FALSE) -> 20758.78113 | W165: 31138.17169 | Y165: Agitator, SS | Z165: may not be necessary
A166: A | B166: 760 | C166: DAP Make-up Tank Agitator | D166: Lotus | G166: 5.5 hp | H166: SS304 | I166: YES | J166: 1 | K166: 9800 | L166: 2009 | M166: 9800 | N166: strm.755 | O166: 163 | P166: kg/hr | Q166: 0.5 | R166: 1.5 | S166: 141.727002 | T166: 0.8694908098 | U166: 9138.156126 | V166: =U166*VLOOKUP(DCFROR!$B$34,INDIRECT(IX_CAP),4,FALSE)/VLOOKUP(L166,INDIRECT(IX_CAP),4,FALSE) -> 9199.439027 | W166: 13799.15854 | Y166: Agitator, SS
A167: C | B167: 755 | C167: DAP Bulk Bag Unloader | D167: Flexicon | F167: Super sack unloader | I167: HGI database | J167: 1 | K167: 30000 | L167: 2009 | M167: 30000 | N167: strm.755 | O167: 163 | P167: kg/hr | Q167: 0.6 | R167: 1.7 | S167: 141.727002 | T167: 0.8694908098 | U167: 27585.46139 | V167: =U167*VLOOKUP(DCFROR!$B$34,INDIRECT(IX_CAP),4,FALSE)/VLOOKUP(L167,INDIRECT(IX_CAP),4,FALSE) -> 27770.45682 | W167: 47209.7766 | Y167: solids handling | Z167: bag support frame, hopper, bag flexer level control, valve conveyor and control panel
A168: P | B168: 701 | C168: Ethanol Product Pump | D168: Goulds | E168: 3196; 1.5X3-10 | F168: 150 GPM, 112 FT TDH | G168: 5 | H168: CS | I168: HGI database | J168: 2 | K168: 9200 | L168: 2009 | M168: 9200 | N168: strm.a500.515 | O168: 22681 | P168: kg/hr | Q168: 0.8 | R168: 3.1 | S168: 21611.717 | T168: 0.9528555619 | U168: 8851.349431 | V168: =U168*VLOOKUP(DCFROR!$B$34,INDIRECT(IX_CAP),4,FALSE)/VLOOKUP(L168,INDIRECT(IX_CAP),4,FALSE) -> 8910.708931 | W168: 27623.19768 | Y168: pump, CS
A169: P | B169: 703 | C169: Sulfuric Acid Pump | D169: Goulds | E169: 3196LF 1X1.5-8 | F169: 5 GPM, 150 FT TDH SIZE 2X1-10 | G169: 0.5 | H169: SS316 | I169: HGI database | J169: 1 | K169: 7493 | L169: 2010 | M169: 7493 | N169: strm.710 | O169: 1981 | P169: kg/hr | Q169: 0.8 | R169: 2.3 | S169: 1980.61092 | T169: 0.9998035941 | U169: 7491.822642 | V169: =U169*VLOOKUP(DCFROR!$B$34,INDIRECT(IX_CAP),4,FALSE)/VLOOKUP(L169,INDIRECT(IX_CAP),4,FALSE) -> 7146.339172 | W169: 16436.5801 | Y169: Pump, SS | Z169: density 1.8
A170: P | B170: 704 | C170: Firewater Pump | D170: Goulds | E170: 3175; 8x10-14AI | F170: 2500 GPM, 150 FT TDH | G170: 125 | H170: CS | I170: HGI database | J170: 1 | K170: 15000 | L170: 2009 | M170: 15000 | N170: strm.a700.713 | O170: 8343 | P170: kg/hr | Q170: 0.8 | R170: 3.1 | S170: 7949.14871 | T170: 0.9527926058 | U170: 14430.78517 | V170: =U170*VLOOKUP(DCFROR!$B$34,INDIRECT(IX_CAP),4,FALSE)/VLOOKUP(L170,INDIRECT(IX_CAP),4,FALSE) -> 14527.56185 | W170: 45035.44174 | Y170: pump, CS | Z170: same size as 2002 report
A171: P | B171: 710 | C171: Gasoline Pump | D171: Goulds | F171: 4 GPM, 60 FT | G171: 0.5 | H171: CS | I171: HGI database | J171: 1 | K171: 3000 | L171: 2009 | M171: 3000 | N171: strm.a700.701 | O171: 473 | P171: kg/hr | Q171: 0.8 | R171: 3.1 | S171: 460.736166 | T171: 0.9740722326 | U171: 2937.610321 | V171: =U171*VLOOKUP(DCFROR!$B$34,INDIRECT(IX_CAP),4,FALSE)/VLOOKUP(L171,INDIRECT(IX_CAP),4,FALSE) -> 2957.310716 | W171: 9167.663219 | Y171: pump, CS
A172: P | B172: 720 | C172: CSL Pump | D172: Goulds | F172: 8 GPM, 80 FT TDH | G172: 0.5 | H172: CS | I172: HGI database | J172: 1 | K172: 3000 | L172: 2009 | M172: 3000 | N172: strm.735 | O172: 1393 | P172: kg/hr | Q172: 0.8 | R172: 3.1 | S172: 1317.88511 | T172: 0.9460768916 | U172: 2869.871177 | V172: =U172*VLOOKUP(DCFROR!$B$34,INDIRECT(IX_CAP),4,FALSE)/VLOOKUP(L172,INDIRECT(IX_CAP),4,FALSE) -> 2889.117295 | W172: 8956.263615 | Y172: pump, CS
A173: P | B173: 760 | C173: DAP Pump | D173: Goulds | F173: 2 GPM, 100 FT TDH | G173: 0.5 | H173: CS | I173: HGI database | J173: 1 | K173: 3000 | L173: 2009 | M173: 3000 | N173: strm.755 | O173: 163 | P173: kg/hr | Q173: 0.8 | R173: 3.1 | S173: 141.727002 | T173: 0.8694908098 | U173: 2682.459981 | V173: =U173*VLOOKUP(DCFROR!$B$34,INDIRECT(IX_CAP),4,FALSE)/VLOOKUP(L173,INDIRECT(IX_CAP),4,FALSE) -> 2700.44927 | W173: 8371.392737 | Y173: pump, CS
A174: T | B174: 701 | C174: Ethanol Product Storage Tank | D174: Mueller | F174: 750,000 gal., 7 day storage, Floating roof | H174: A285C | I174: YES | J174: 2 | K174: 1340000 | L174: 2009 | M174: 1340000 | N174: strm.a500.515 | O174: 22681 | P174: kg/hr | Q174: 0.7 | R174: 1.7 | S174: 21611.717 | T174: 0.9528555619 | U174: 1295459.23 | V174: =U174*VLOOKUP(DCFROR!$B$34,INDIRECT(IX_CAP),4,FALSE)/VLOOKUP(L174,INDIRECT(IX_CAP),4,FALSE) -> 1304146.924 | W174: 2217049.77 | Y174: tank, field-erected, CS
A175: T | B175: 703 | C175: Sulfuric Acid Storage Tank | F175: 12,600 gal, 12' dia x15' H | H175: SS | I175: HGI database | J175: 1 | K175: 96000 | L175: 2010 | M175: 96000 | N175: strm.710 | O175: 1981 | P175: kg/hr | Q175: 0.7 | R175: 1.5 | S175: 1980.61092 | T175: 0.9998035941 | U175: 95986.80114 | V175: =U175*VLOOKUP(DCFROR!$B$34,INDIRECT(IX_CAP),4,FALSE)/VLOOKUP(L175,INDIRECT(IX_CAP),4,FALSE) -> 91560.39455 | W175: 137340.5918 | Y175: tank, field-erected, SS | Z175: 5 day storage per 1999 report
A176: T | B176: 704 | C176: Firewater Storage Tank | F176: 600,000 gal - 4 hrs @ 2500 gpm | H176: Glass lined | I176: HGI database | J176: 1 | K176: 803000 | L176: 2009 | M176: 803000 | N176: strm.a700.713 | O176: 8343 | P176: kg/hr | Q176: 0.7 | R176: 1.7 | S176: 7949.14871 | T176: 0.9527926058 | U176: 776272.8731 | V176: =U176*VLOOKUP(DCFROR!$B$34,INDIRECT(IX_CAP),4,FALSE)/VLOOKUP(L176,INDIRECT(IX_CAP),4,FALSE) -> 781478.7651 | W176: 1328513.901 | Y176: tank, field-erected, CS | Z176: Glass lined CS. Price factored from current quote
A177: T | B177: 706 | C177: Ammonia Storage Tank | D177: Chemithon | F177: 28,000 gal | H177: SA- 516-70 | I177: YES | J177: 2 | K177: 196000 | L177: 2010 | M177: 196000 | N177: strm.717 | O177: 1171 | P177: kg/hr | Q177: 0.7 | R177: 2 | S177: 1161.05524 | T177: 0.9915074637 | U177: 194833.3342 | V177: =U177*VLOOKUP(DCFROR!$B$34,INDIRECT(IX_CAP),4,FALSE)/VLOOKUP(L177,INDIRECT(IX_CAP),4,FALSE) -> 185848.6453 | W177: 371697.2905 | Y177: pressure vessel, SS
A178: T | B178: 710 | C178: Gasoline Storage Tank | F178: 65,000 gal., floating roof | H178: CS | I178: HGI database | J178: 1 | K178: =ROUND((65/80)^0.65*232770,-4) -> 200000 | L178: 2009 | M178: 200000 | N178: strm.a700.701 | O178: 473 | P178: kg/hr | Q178: 0.7 | R178: 1.7 | S178: 460.736166 | T178: 0.9740722326 | U178: 196355.8343 | V178: =U178*VLOOKUP(DCFROR!$B$34,INDIRECT(IX_CAP),4,FALSE)/VLOOKUP(L178,INDIRECT(IX_CAP),4,FALSE) -> 197672.6487 | W178: 336043.5028 | Y178: tank, field-erected, CS | Z178: 7 day storage per 1999 Report
A179: T | B179: 720 | C179: CSL Storage Tank | F179: 70,000 gal | H179: Glass lined CS | I179: HGI database | J179: 1 | K179: 70000 | L179: 2009 | M179: 70000 | N179: strm.735 | O179: 1393 | P179: kg/hr | Q179: 0.7 | R179: 2.6 | S179: 1317.88511 | T179: 0.9460768916 | U179: 67335.88064 | V179: =U179*VLOOKUP(DCFROR!$B$34,INDIRECT(IX_CAP),4,FALSE)/VLOOKUP(L179,INDIRECT(IX_CAP),4,FALSE) -> 67787.45294 | W179: 176247.3776 | Y179: tank, storage, CS | Z179: 7 day storage per 1999 Report
A180: T | B180: 755 | C180: DAP Bulk Bag Holder | D180: Flexicon | F180: Super sack holder | I180: HGI database | J180: 1 | K180: INCLUDED | Z180: Included with C-755
A181: T | B181: 760 | C181: DAP Make-up Tank | F181: 12,800 gal | H181: SS304 | I181: HGI database | J181: 1 | K181: 102000 | L181: 2009 | M181: =K181 -> 102000 | N181: strm.717 | O181: 1615 | P181: kg/hr | Q181: 0.7 | R181: 1.8 | S181: =IF(N181<>"",VLOOKUP(N181,INDIRECT(LU_SENS),2,FALSE),"") -> 1161.05524 | T181: 0.7189196533 | U181: =M181*T181^Q181 -> 80961.10389 | V181: =U181*VLOOKUP(DCFROR!$B$34,INDIRECT(IX_CAP),4,FALSE)/VLOOKUP(L181,INDIRECT(IX_CAP),4,FALSE) -> 81504.05056 | W181: 146707.291 | Y181: tank, storage, SS
T182: Area 700 Totals | U182: =SUM(U164:U181) -> 2807572.074 | V182: =SUM(V164:V181) -> 2810643.26 | W182: =SUM(W164:W181) -> 4925121.586 | X182: =W182/V182 -> 1.752311172
A183: H | B183: 801 | C183: Burner Combustion Air Preheater | D183: Babcock & Wilcox | I183: BOILER MFR | J183: 1 | K183: INCLUDED
A184: H | B184: 811 | C184: BFW Preheater | D184: Babcock & Wilcox | I184: BOILER MFR | J184: 1 | K184: INCLUDED
A185: H | B185: 812 | C185: Pretreatment/BFW heat recovery | D185: Mueller | F185: 9.4 MM Btu/hr | H185: SS304 | I185: HGI database | J185: 1 | K185: 41000 | L185: 2009 | M185: =K185 -> 41000 | N185: heat.QH812 | O185: -2.4 | P185: Gcal/hr | Q185: 0.7 | R185: 2.2 | S185: =IF(N185<>"",VLOOKUP(N185,INDIRECT(LU_SENS),2,FALSE),"") -> -2.18275472 | T185: =S185/O185 -> 0.9094811333 | U185: =M185*T185^Q185 -> 38365.37457 | V185: =U185*VLOOKUP(DCFROR!$B$34,INDIRECT(IX_CAP),4,FALSE)/VLOOKUP(L185,INDIRECT(IX_CAP),4,FALSE) -> 38622.66297 | W185: =V185*R185 -> 84969.85852 | Y185: Heat ex, S&T, SS | Z185: New as of 9/9/09 Mark-ups
A186: M | B186: 802 | C186: Air Intake Fan | D186: Babcock & Wilcox | K186: INCLUDED
A187: M | B187: 803 | C187: Boiler | D187: Babcock & Wilcox | E187: TowerPak | F187: 525,000 lb/hr @ 900 psig | G187: 2752 kW | H187: CS | I187: BOILER MFR | J187: 1 | K187: 28550000 | L187: 2010 | M187: 28550000 | N187: strm.a800.a810.812 | O187: 238686 | P187: kg/hr | Q187: 0.6 | R187: 1.8 | S187: =IF(N187<>"",VLOOKUP(N187,INDIRECT(LU_SENS),2,FALSE),"") -> 236039.687 | T187: =S187/O187 -> 0.9889129945 | U187: =M187*T187^Q187 -> 28359656.27 | V187: =U187*VLOOKUP(DCFROR!$B$34,INDIRECT(IX_CAP),4,FALSE)/VLOOKUP(L187,INDIRECT(IX_CAP),4,FALSE) -> 27051858.03 | W187: =V187*R187 -> 48693344.46 | Y187: boiler
A188: M | B188: 804 | C188: Combustion Gas Baghouse | D188: Babcock & Wilcox | F188: INCLUDED WITH FGD SYSTEM | K188: INCLUDED
A189: M | B189: 811 | C189: Turbine/Generator | D189: Siemens | E189: SST-300 | F189: 23.6 kW, 2 extractions | I189: YES | J189: 1 | K189: 9500000 | L189: 2010 | M189: 9500000 | N189: work.wtotal | O189: -42200 | P189: kW | Q189: 0.6 | R189: 1.8 | S189: =IF(N189<>"",VLOOKUP(N189,INDIRECT(LU_SENS),2,FALSE),"") -> -41615.1935 | T189: =S189/O189 -> 0.9861420261 | U189: =M189*T189^Q189 -> 9420789.191 | V189: =U189*VLOOKUP(DCFROR!$B$34,INDIRECT(IX_CAP),4,FALSE)/VLOOKUP(L189,INDIRECT(IX_CAP),4,FALSE) -> 8986351.927 | W189: =V189*R189 -> 16175433.47 | Y189: turbogenerator
A190: M | B190: 820 | C190: Hot Process Water Softener System | D190: Proctor Sales | I190: YES | J190: 1 | K190: 78000 | L190: 2010 | M190: 78000 | N190: strm.a800.a810.812 | O190: 235803 | P190: kg/hr | Q190: 0.6 | R190: 1.8 | S190: =IF(N190<>"",VLOOKUP(N190,INDIRECT(LU_SENS),2,FALSE),"") -> 236039.687 | T190: =S190/O190 -> 1.001003749 | U190: =M190*T190^Q190 -> 78046.96602 | V190: =U190*VLOOKUP(DCFROR!$B$34,INDIRECT(IX_CAP),4,FALSE)/VLOOKUP(L190,INDIRECT(IX_CAP),4,FALSE) -> 74447.85031 | W190: =V190*R190 -> 134006.1305 | Y190: skid equip
A191: M | B191: 830 | C191: Amine Addition Pkg. | D191: Proctor Sales | I191: YES | J191: 1 | K191: 40000 | L191: 2010 | M191: 40000 | N191: strm.a800.a810.812 | O191: 235803 | P191: kg/hr | Q191: 0 | R191: 1.8 | S191: =IF(N191<>"",VLOOKUP(N191,INDIRECT(LU_SENS),2,FALSE),"") -> 236039.687 | T191: =S191/O191 -> 1.001003749 | U191: =M191*T191^Q191 -> 40000 | V191: =U191*VLOOKUP(DCFROR!$B$34,INDIRECT(IX_CAP),4,FALSE)/VLOOKUP(L191,INDIRECT(IX_CAP),4,FALSE) -> 38155.41031 | W191: =V191*R191 -> 68679.73856 | Y191: skid equip | Z191: Use some other amine - Hydrazine carcinogenic
A192: M | B192: 832 | C192: Ammonia Addition Pkg | D192: Proctor Sales | I192: YES | J192: 1 | K192: INCLUDED
A193: M | B193: 834 | C193: Phosphate Addition Pkg. | D193: Proctor Sales | I193: YES | J193: 1 | K193: INCLUDED
A194: P | B194: 804 | C194: Condensate Pump | D194: Proctor Sales | H194: SS316 | I194: YES | J194: 2 | K194: INCLUDED
A195: P | B195: 811 | C195: Turbine Condensate Pump | D195: Proctor Sales | H195: SS304 | I195: YES | J195: 2 | K195: INCLUDED
A196: P | B196: 824 | C196: Deaerator Feed Pump | D196: Proctor Sales | H196: SS304 | I196: YES | J196: 2 | K196: INCLUDED
A197: P | B197: 826 | C197: BFW Pump | D197: Proctor Sales | H197: SS316 | I197: YES | J197: 5 | K197: INCLUDED
A198: P | B198: 828 | C198: Blowdown Pump | D198: Proctor Sales | H198: CS | I198: YES | J198: 2 | K198: INCLUDED
A199: P | B199: 830 | C199: Amine Transfer Pump | D199: Proctor Sales | H199: CS | I199: YES | J199: 1 | K199: INCLUDED | Z199: Use some other amine - Hydrazine carcinogenic
A200: T | B200: 804 | C200: Condensate Collection Tank | D200: Proctor Sales | H200: A285C | I200: YES | J200: 1 | K200: INCLUDED
... 20 more rows

Sheet DCFROR
A1: =Summary!A2 -> Corn Stover Design Report Case: 2012 model DW1111A | D1: 1 | G1: Total Capital Investment | Q1: Total Capital Investment (Rounded Table)
G2: Process Area | J2: Purchased Cost | K2: Installed Cost | Q2: Process Area | T2: Purchased Cost | U2: Installed Cost
A3: Assumptions | B3: Value | D3: Land Requirement | G3: Area 100: Feedstock handling* | J3: =CAPEX!V17 -> 14208831.03 | K3: =CAPEX!W17 -> 24155012.74 | Q3: Area 100: Feedstock handling* | T3: =ROUND(J3,-5) -> 14200000 | U3: =ROUND(K3,-5) -> 24200000
A4: Fixed Capital Investment | B4: =K24*D1 -> 397947489.6 | D4: 132 | E4: Acres | G4: Area 200: Pretreatment | J4: =CAPEX!V40 -> 19945315.08 | K4: =CAPEX!W40 -> 29917972.62 | Q4: Area 200: Pretreatment | T4: =ROUND(J4,-5) -> 19900000 | U4: =ROUND(K4,-5) -> 29900000
A5: General Plant | B5: =B4-B6 -> 331917725.4 | D5: 14000 | E5: /acre | G5: Area 200: Neutralization | J5: =CAPEX!V54-J4 -> 1536967.204 | K5: =CAPEX!W54-CAPEXpt -> 3035220.598 | L5: Area 200 Total | M5: =CAPEXpt+CAPEXnc -> 32953193.22 | Q5: Area 200: Neutralization | T5: 1500000 | U5: 3000000
A6: Steam Plant | B6: =CAPEX800*D1 -> 66029764.21 | G6: Area 300: Enzymatic Hydrolysis & Fermentation | J6: =CAPEX!V80 -> 18500456.9 | K6: =CAPEX!W80 -> 31246992.75 | Q6: Area 300: Enzymatic Hydrolysis & Fermentation | T6: 18500000 | U6: 31200000
G7: Area 400: Enzyme Production | J7: =CAPEX!V105 -> 9966277.035 | K7: =CAPEX!W105 -> 17043945.16 | Q7: Area 400: Enzyme Production | T7: 10000000 | U7: 17000000
A8: Equity | B8: 0.4 | G8: Area 500: Recovery | J8: =CAPEX!V139 -> 11138914.07 | K8: =CAPEX!W139 -> 22315452.74 | L8: ISBL Total | M8: =SUM(K4:K8) -> 103559583.9 | Q8: Area 500: Recovery | T8: 11100000 | U8: 22300000
A9: Loan Interest | B9: 0.08 | G9: Area 600: Wastewater | J9: =CAPEX!V163 -> 49183537.91 | K9: =CAPEX!W163 -> 49183537.91 | Q9: Area 600: Wastewater | T9: 49200000 | U9: 49200000
A10: Loan Term, years | B10: 10 | G10: Area 700: Storage | J10: =CAPEX!V182 -> 2810643.26 | K10: =CAPEX!W182 -> 4925121.586 | Q10: Area 700: Storage | T10: 2800000 | U10: 4900000
A11: Annual Loan Payment | B11: =-PMT(B9,B10,FCI*(1-B8)) -> 35583546.54 | G11: Area 800: Boiler | J11: =CAPEX!V205 -> 36480546.07 | K11: =CAPEX!W205 -> 66029764.21 | Q11: Area 800: Boiler | T11: 36500000 | U11: 66000000
A12: Periodic expenses | C12: No. Bags | D12: 4320 | G12: Area 900: Utilities | J12: =CAPEX!V216 -> 3987780.116 | K12: =CAPEX!W216 -> 6896246.23 | Q12: Area 900: Utilities | T12: 4000000 | U12: 6900000
A13: Baghouse Bags (5 yr life, Ryton MOC) | B13: =(D12*D13)*VLOOKUP(B34,INDIRECT(IX_CAP),4,FALSE)/VLOOKUP(D14,INDIRECT(IX_CAP),4,FALSE) -> 466182.9012 | C13: Bag Cost | D13: 80 | G13: Totals (Excl. Area 100) | J13: =SUM(J4:J12) -> 153550437.6 | K13: =SUM(K4:K12) -> 230594253.8 | Q13: Totals (Excl. Area 100) | T13: 153600000 | U13: 230600000
C14: Quote year | D14: 1998 | G14: Warehouse | I14: 0.04 | J14: of ISBL | K14: =I14*ISBL -> 4142383.355 | Q14: Warehouse | S14: 0.04 | T14: of ISBL | U14: 4100000
G15: Site Development | I15: 0.09 | J15: of ISBL | K15: =I15*ISBL -> 9320362.548 | Q15: Site Development | S15: 0.09 | T15: of ISBL | U15: 9300000
A16: Working Capital (% of FCI) | B16: 0.05 | G16: Additional Piping | I16: 0.045 | J16: of ISBL | K16: =I16*ISBL -> 4660181.274 | Q16: Additional Piping | S16: 0.045 | T16: of ISBL | U16: 4700000
A17: Salvage Value | G17: Total Direct Costs (TDC) | K17: =SUM(K13:K16) -> 248717181 | Q17: Total Direct Costs (TDC) | U17: 248700000
A18: General Plant | B18: 0 | C18: Not permitted since 2002 | G18: Prorateable Expenses | I18: 0.1 | J18: of TDC | K18: =I18*K17 -> 24871718.1 | Q18: Prorateable Expenses | S18: 0.1 | T18: of TDC | U18: 24900000
A19: Steam Plant | B19: 0 | C19: Not permitted since 2002 | G19: Field Expenses | I19: 0.1 | J19: of TDC | K19: =I19*K17 -> 24871718.1 | Q19: Field Expenses | S19: 0.1 | T19: of TDC | U19: 24900000
A20: Depreciation Period (Years) | G20: Home Office & Construction Fee | I20: 0.2 | J20: of TDC | K20: =I20*K17 -> 49743436.2 | Q20: Home Office & Construction Fee | S20: 0.2 | T20: of TDC | U20: 49700000
A21: General Plant | B21: 7 | C21: IRS Pub 946 | G21: Project Contingency | I21: 0.1 | J21: of TDC | K21: =I21*K17 -> 24871718.1 | M21: =K21/FCI -> 0.0625 | N21: of FCI | O21: =K21/J13 -> 0.1619775136 | P21: of PEC | Q21: Project Contingency | S21: 0.1 | T21: of TDC | U21: 24900000
A22: Steam/Electricity System | B22: 20 | C22: IRS Pub 946 | G22: Other Costs (Start-Up, Permits, etc.) | I22: 0.1 | J22: of TDC | K22: =I22*K17 -> 24871718.1 | M22: =K22/FCI -> 0.0625 | N22: of FCI | Q22: Other Costs (Start-Up, Permits, etc.) | S22: 0.1 | T22: of TDC | U22: 24900000
A23: Construction Period (Years) | B23: 3 | G23: Total Indirect Costs | K23: =SUM(K18:K22) -> 149230308.6 | M23: =K23/J13 -> 0.9718650814 | N23: of PEC | Q23: Total Indirect Costs | U23: 149200000
A24: % Spent in Year -2 | B24: 0.08 | G24: Fixed Capital Investment (FCI) | K24: =K17+K23 -> 397947489.6 | Q24: Fixed Capital Investment (FCI) | U24: =ROUND(K24,-5) -> 397900000
A25: % Spent in Year -1 | B25: 0.6 | G25: Land | K25: =D4*D5 -> 1848000 | Q25: Land | U25: =ROUND(K25,-5) -> 1800000
A26: % Spent in Year 0 | B26: =1-SUM(B24:B25) -> 0.32 | G26: Working Capital | I26: 0.05 | J26: of FCI | K26: =I26*K24 -> 19897374.48 | Q26: Working Capital | S26: 0.05 | T26: of FCI | U26: =ROUND(K26,-5) -> 19900000
A27: Start-up Time (Years) | B27: 0.25 | G27: Total Capital Investment (TCI) | K27: =FCI+K26+K25 -> 419692864.1 | M27: Working capital statements | Q27: Total Capital Investment (TCI) | U27: =ROUND(K27,-5) -> 419700000
A28: EtOH production/Feedstock use (% of Normal) | B28: 0.5 | M28: P&T 10% of FCI | O28: =0.1*FCI -> 39794748.96
A29: Variable Costs (% of Normal) | B29: 0.75 | G29: Lang Factor (FCI/Purchased Equip Cost) | K29: =(FCI-J9*1.6)/(J13-CAPEX600) -> 3.058956716 | M29: One month opcost | O29: =J55/12 -> 6861517.533 | Q29: Lang Factor (TCI/Purchased Equip Cost) | U29: =K29 -> 3.058956716
A30: Fixed Cost (% of Normal) | B30: 1 | G30: TCI per annual gallon | K30: =TEXT(Summary!B36,"$#.##") & "/gal" -> $6.94/gal | M30: One year opcost | O30: =J55 -> 82338210.39 | Q30: TCI per annual gallon | U30: =K30 -> $6.94/gal
A31: Discount Rate (Internal Rate of Return [IRR]) | B31: 0.1 | C31: Short et. al | M31: Garrett 10% of annual | O31: =O30*0.1 -> 8233821.039
A32: Income Tax Rate | B32: 0.35 | G32: =DCFROR!$B$34&" Dollars" -> 2007 Dollars | M32: Garrett 35% of annual | O32: =O30*0.35 -> 28818373.64 | Q32: =DCFROR!$B$34&" Dollars" -> 2007 Dollars
A33: Ethanol Production Rate (MMgal/yr) | B33: =OPEX!B3 -> 60.47861365 | C33: ASPEN | G33: *Feedstock Handling not included in this calculation | K33: =CASEID -> DW1111A | M33: 5% of FCI | O33: =K26 -> 19897374.48 | Q33: *Feedstock Handling not included in this calculation | U33: =CASEID -> DW1111A
A34: Cost Year for Analysis | B34: 2007
A35: Minimum Ethanol Selling Price ($/gal) | B35: 2.160891665 | C35: Manipulated Value
J36: Delta-T factor | K36: =SUM(K4:K8,CAPEX700,CAPEX900)/SUM(J4:J8,J10,J12) -> 1.699619223
A37: Net Present Value | B37: =E71 -> 0 | C37: Targeted Value
A39: DCFROR Worksheet
A40: Year | C40: -2 | D40: -1 | E40: 0 | F40: 1 | G40: 2 | H40: 3 | I40: 4 | J40: 5 | K40: 6 | L40: 7 | M40: 8 | N40: 9 | O40: 10 | P40: 11 | Q40: 12 | R40: 13 | S40: 14 | T40: 15 | U40: 16 | V40: 17 | W40: 18 | X40: 19 | Y40: 20 | Z40: 21 | AA40: 22 | AB40: 23 | AC40: 24 | AD40: 25 | AE40: 26 | AF40: 27 | AG40: 28 | AH40: 29 | AI40: 30
A41: Fixed Capital Investment | C41: =FCI*B24*B8 -> 12734319.67 | D41: =FCI*B25*B8 -> 95507397.5 | E41: =FCI*B26*B8 -> 50937278.67
A42: Land | C42: =K25 -> 1848000 | AI42: =-C42 -> -1848000
A43: Working Capital | E43: =B16*B4 -> 19897374.48 | AI43: =-E43 -> -19897374.48
A44: Loan Payment | F44: =B11 -> 35583546.54 | G44: =IF($B$10>1,$B$11,0) -> 35583546.54 | H44: =IF($B$10>2,$B$11,0) -> 35583546.54 | I44: =IF($B$10>3,$B$11,0) -> 35583546.54 | J44: =IF($B$10>4,$B$11,0) -> 35583546.54 | K44: =IF($B$10>5,$B$11,0) -> 35583546.54 | L44: =IF($B$10>6,$B$11,0) -> 35583546.54 | M44: =IF($B$10>7,$B$11,0) -> 35583546.54 | N44: =IF($B$10>8,$B$11,0) -> 35583546.54 | O44: =IF($B$10>9,$B$11,0) -> 35583546.54 | P44: =IF($B$10>10,$B$11,0) -> 0 | Q44: =IF($B$10>11,$B$11,0) -> 0 | R44: =IF($B$10>12,$B$11,0) -> 0 | S44: =IF($B$10>13,$B$11,0) -> 0 | T44: =IF($B$10>14,$B$11,0) -> 0 | U44: =IF($B$10>15,$B$11,0) -> 0 | V44: =IF($B$10>16,$B$11,0) -> 0 | W44: =IF($B$10>17,$B$11,0) -> 0 | X44: =IF($B$10>18,$B$11,0) -> 0 | Y44: 0 | Z44: 0 | AA44: 0 | AB44: 0 | AC44: 0 | AD44: 0 | AE44: 0 | AF44: 0 | AG44: 0 | AH44: 0 | AI44: =IF($B$10>19,$B$11,0) -> 0
A45: Loan Interest Payment | C45: =$B$9*C46 -> 1528118.36 | D45: =$B$9*D46 -> 12989006.06 | E45: =$B$9*E46 -> 19101479.5 | F45: =B4*(1-B8)*B9 -> 19101479.5 | G45: =$B$9*F46 -> 17782914.14 | H45: 16358863.54 | I45: 14820888.9 | J45: 13159876.29 | K45: 11365982.67 | L45: 9428577.565 | M45: 7336180.047 | N45: 5076390.727 | O45: 2635818.262 | P45: 7.599592209e-09 | Q45: 8.207559586e-09 | R45: 8.864164352e-09 | S45: 9.573297501e-09 | T45: 1.03391613e-08 | U45: 1.11662942e-08 | V45: 1.205959774e-08 | W45: 1.302436556e-08 | X45: 1.406631481e-08 | Y45: 1.519161999e-08 | Z45: 1.640694959e-08 | AA45: 1.771950556e-08 | AB45: 1.9137066e-08 | AC45: 2.066803128e-08 | AD45: 2.232147378e-08 | AE45: 2.410719169e-08 | AF45: 2.603576702e-08 | AG45: 2.811862838e-08 | AH45: 3.036811865e-08 | AI45: =$B$9*X46 -> 1.519161999e-08
A46: Loan Principal | C46: =FCI*(1-B8)*B24 -> 19101479.5 | D46: =FCI*(1-B8)*B25+C46 -> 162362575.7 | E46: =FCI*(1-B8)*B26+D46 -> 238768493.7 | F46: =FCI*(1-B8)-F44+F45 -> 222286426.7 | G46: =F46-G44+G45 -> 204485794.3 | H46: 185261111.3 | I46: 164498453.7 | J46: 142074783.4 | K46: 117857219.6 | L46: 91702250.58 | M46: 63454884.09 | N46: 32947728.28 | O46: 9.499490261e-08 | P46: 1.025944948e-07 | Q46: 1.108020544e-07 | R46: 1.196662188e-07 | S46: 1.292395163e-07 | T46: 1.395786776e-07 | U46: 1.507449718e-07 | V46: 1.628045695e-07 | W46: 1.758289351e-07 | X46: 1.898952499e-07 | Y46: =X46-Y44+Y45 -> 2.050868699e-07 | Z46: 2.214938194e-07 | AA46: 2.39213325e-07 | AB46: 2.58350391e-07 | AC46: 2.790184223e-07 | AD46: 3.013398961e-07 | AE46: 3.254470878e-07 | AF46: 3.514828548e-07 | AG46: 3.796014832e-07 | AH46: 4.099696018e-07 | AI46: =X46-AI44+AI45 -> 2.050868699e-07
A47: Ethanol Sales | F47: =($B$33*$B$35*1000000)*(1-B27)+($B$33*$B$35*1000000)*B27*B28 -> 114351765.6 | G47: =$B$33*$B$35*1000000 -> 130687732.1 | H47: 130687732.1 | I47: 130687732.1 | J47: 130687732.1 | K47: 130687732.1 | L47: 130687732.1 | M47: 130687732.1 | N47: 130687732.1 | O47: 130687732.1 | P47: 130687732.1 | Q47: 130687732.1 | R47: 130687732.1 | S47: 130687732.1 | T47: 130687732.1 | U47: 130687732.1 | V47: 130687732.1 | W47: 130687732.1 | X47: 130687732.1 | Y47: 130687732.1 | Z47: 130687732.1 | AA47: 130687732.1 | AB47: 130687732.1 | AC47: 130687732.1 | AD47: 130687732.1 | AE47: 130687732.1 | AF47: 130687732.1 | AG47: 130687732.1 | AH47: 130687732.1 | AI47: =$B$33*$B$35*1000000 -> 130687732.1
A48: By-Product Credit | F48: =(OPEX!$L$37*1000000)*(1-B27)+(OPEX!$L$37*1000000)*B27*B28 -> 5886356.998 | G48: =OPEX!$L$37*1000000 -> 6727265.141 | H48: =OPEX!$L$37*1000000 -> 6727265.141 | I48: =OPEX!$L$37*1000000 -> 6727265.141 | J48: =OPEX!$L$37*1000000 -> 6727265.141 | K48: =OPEX!$L$37*1000000 -> 6727265.141 | L48: =OPEX!$L$37*1000000 -> 6727265.141 | M48: =OPEX!$L$37*1000000 -> 6727265.141 | N48: =OPEX!$L$37*1000000 -> 6727265.141 | O48: =OPEX!$L$37*1000000 -> 6727265.141 | P48: =OPEX!$L$37*1000000 -> 6727265.141 | Q48: =OPEX!$L$37*1000000 -> 6727265.141 | R48: =OPEX!$L$37*1000000 -> 6727265.141 | S48: =OPEX!$L$37*1000000 -> 6727265.141 | T48: =OPEX!$L$37*1000000 -> 6727265.141 | U48: =OPEX!$L$37*1000000 -> 6727265.141 | V48: =OPEX!$L$37*1000000 -> 6727265.141 | W48: =OPEX!$L$37*1000000 -> 6727265.141 | X48: =OPEX!$L$37*1000000 -> 6727265.141 | Y48: =OPEX!$L$37*1000000 -> 6727265.141 | Z48: =OPEX!$L$37*1000000 -> 6727265.141 | AA48: =OPEX!$L$37*1000000 -> 6727265.141 | AB48: =OPEX!$L$37*1000000 -> 6727265.141 | AC48: =OPEX!$L$37*1000000 -> 6727265.141 | AD48: =OPEX!$L$37*1000000 -> 6727265.141 | AE48: =OPEX!$L$37*1000000 -> 6727265.141 | AF48: =OPEX!$L$37*1000000 -> 6727265.141 | AG48: =OPEX!$L$37*1000000 -> 6727265.141 | AH48: =OPEX!$L$37*1000000 -> 6727265.141 | AI48: =OPEX!$L$37*1000000 -> 6727265.141
A49: Total Annual Sales | F49: =F47+F48 -> 120238122.6 | G49: 137414997.3 | H49: 137414997.3 | I49: 137414997.3 | J49: 137414997.3 | K49: 137414997.3 | L49: 137414997.3 | M49: 137414997.3 | N49: 137414997.3 | O49: 137414997.3 | P49: 137414997.3 | Q49: 137414997.3 | R49: 137414997.3 | S49: 137414997.3 | T49: 137414997.3 | U49: 137414997.3 | V49: 137414997.3 | W49: 137414997.3 | X49: 137414997.3 | Y49: =Y47+Y48 -> 137414997.3 | Z49: 137414997.3 | AA49: 137414997.3 | AB49: 137414997.3 | AC49: 137414997.3 | AD49: 137414997.3 | AE49: 137414997.3 | AF49: 137414997.3 | AG49: 137414997.3 | AH49: 137414997.3 | AI49: =AI47+AI48 -> 137414997.3
A50: Annual Manufacturing Cost
A51: Feedstock | F51: =(OPEX!$L$12*1000000)*(1-B27)+(OPEX!$L$12*1000000)*(B27)*B28 -> 39550981.81 | G51: =OPEX!$L$12*1000000 -> 45201122.07 | H51: =OPEX!$L$12*1000000 -> 45201122.07 | I51: =OPEX!$L$12*1000000 -> 45201122.07 | J51: =OPEX!$L$12*1000000 -> 45201122.07 | K51: =OPEX!$L$12*1000000 -> 45201122.07 | L51: =OPEX!$L$12*1000000 -> 45201122.07 | M51: =OPEX!$L$12*1000000 -> 45201122.07 | N51: =OPEX!$L$12*1000000 -> 45201122.07 | O51: =OPEX!$L$12*1000000 -> 45201122.07 | P51: =OPEX!$L$12*1000000 -> 45201122.07 | Q51: =OPEX!$L$12*1000000 -> 45201122.07 | R51: =OPEX!$L$12*1000000 -> 45201122.07 | S51: =OPEX!$L$12*1000000 -> 45201122.07 | T51: =OPEX!$L$12*1000000 -> 45201122.07 | U51: =OPEX!$L$12*1000000 -> 45201122.07 | V51: =OPEX!$L$12*1000000 -> 45201122.07 | W51: =OPEX!$L$12*1000000 -> 45201122.07 | X51: =OPEX!$L$12*1000000 -> 45201122.07 | Y51: =OPEX!$L$12*1000000 -> 45201122.07 | Z51: =OPEX!$L$12*1000000 -> 45201122.07 | AA51: =OPEX!$L$12*1000000 -> 45201122.07 | AB51: =OPEX!$L$12*1000000 -> 45201122.07 | AC51: =OPEX!$L$12*1000000 -> 45201122.07 | AD51: =OPEX!$L$12*1000000 -> 45201122.07 | AE51: =OPEX!$L$12*1000000 -> 45201122.07 | AF51: =OPEX!$L$12*1000000 -> 45201122.07 | AG51: =OPEX!$L$12*1000000 -> 45201122.07 | AH51: =OPEX!$L$12*1000000 -> 45201122.07 | AI51: =OPEX!$L$12*1000000 -> 45201122.07
A52: Baghouse Bags | F52: =B13 -> 466182.9012 | K52: =B13 -> 466182.9012 | P52: =B13 -> 466182.9012 | U52: =B13 -> 466182.9012 | Z52: =U52 -> 466182.9012 | AE52: =Z52 -> 466182.9012
A53: Other Variable Costs | F53: =((SUM(OPEX!$L$13:$L$29)+OPEX!$L$32)*1000000)*(1-B27)+((SUM(OPEX!$L$13:$L$29)+OPEX!$L$32)*1000000)*B27*B29 -> 24879764.23 | G53: =(SUM(OPEX!$L$13:$L$29)+OPEX!$L$32)*1000000 -> 26538415.17 | H53: =(SUM(OPEX!$L$13:$L$29)+OPEX!$L$32)*1000000 -> 26538415.17 | I53: =(SUM(OPEX!$L$13:$L$29)+OPEX!$L$32)*1000000 -> 26538415.17 | J53: =(SUM(OPEX!$L$13:$L$29)+OPEX!$L$32)*1000000 -> 26538415.17 | K53: =(SUM(OPEX!$L$13:$L$29)+OPEX!$L$32)*1000000 -> 26538415.17 | L53: =(SUM(OPEX!$L$13:$L$29)+OPEX!$L$32)*1000000 -> 26538415.17 | M53: =(SUM(OPEX!$L$13:$L$29)+OPEX!$L$32)*1000000 -> 26538415.17 | N53: =(SUM(OPEX!$L$13:$L$29)+OPEX!$L$32)*1000000 -> 26538415.17 | O53: =(SUM(OPEX!$L$13:$L$29)+OPEX!$L$32)*1000000 -> 26538415.17 | P53: =(SUM(OPEX!$L$13:$L$29)+OPEX!$L$32)*1000000 -> 26538415.17 | Q53: =(SUM(OPEX!$L$13:$L$29)+OPEX!$L$32)*1000000 -> 26538415.17 | R53: =(SUM(OPEX!$L$13:$L$29)+OPEX!$L$32)*1000000 -> 26538415.17 | S53: =(SUM(OPEX!$L$13:$L$29)+OPEX!$L$32)*1000000 -> 26538415.17 | T53: =(SUM(OPEX!$L$13:$L$29)+OPEX!$L$32)*1000000 -> 26538415.17 | U53: =(SUM(OPEX!$L$13:$L$29)+OPEX!$L$32)*1000000 -> 26538415.17 | V53: =(SUM(OPEX!$L$13:$L$29)+OPEX!$L$32)*1000000 -> 26538415.17 | W53: =(SUM(OPEX!$L$13:$L$29)+OPEX!$L$32)*1000000 -> 26538415.17 | X53: =(SUM(OPEX!$L$13:$L$29)+OPEX!$L$32)*1000000 -> 26538415.17 | Y53: =(SUM(OPEX!$L$13:$L$29)+OPEX!$L$32)*1000000 -> 26538415.17 | Z53: =(SUM(OPEX!$L$13:$L$29)+OPEX!$L$32)*1000000 -> 26538415.17 | AA53: =(SUM(OPEX!$L$13:$L$29)+OPEX!$L$32)*1000000 -> 26538415.17 | AB53: =(SUM(OPEX!$L$13:$L$29)+OPEX!$L$32)*1000000 -> 26538415.17 | AC53: =(SUM(OPEX!$L$13:$L$29)+OPEX!$L$32)*1000000 -> 26538415.17 | AD53: =(SUM(OPEX!$L$13:$L$29)+OPEX!$L$32)*1000000 -> 26538415.17 | AE53: =(SUM(OPEX!$L$13:$L$29)+OPEX!$L$32)*1000000 -> 26538415.17 | AF53: =(SUM(OPEX!$L$13:$L$29)+OPEX!$L$32)*1000000 -> 26538415.17 | AG53: =(SUM(OPEX!$L$13:$L$29)+OPEX!$L$32)*1000000 -> 26538415.17 | AH53: =(SUM(OPEX!$L$13:$L$29)+OPEX!$L$32)*1000000 -> 26538415.17 | AI53: =(SUM(OPEX!$L$13:$L$29)+OPEX!$L$32)*1000000 -> 26538415.17
A54: Fixed Operating Costs | F54: =(OPEX!$L$59*1000000)*(1-B27)+(OPEX!$L$59*1000000)*B27*B30 -> 10598673.15 | G54: =OPEX!$L$59*1000000 -> 10598673.15 | H54: =OPEX!$L$59*1000000 -> 10598673.15 | I54: =OPEX!$L$59*1000000 -> 10598673.15 | J54: =OPEX!$L$59*1000000 -> 10598673.15 | K54: =OPEX!$L$59*1000000 -> 10598673.15 | L54: =OPEX!$L$59*1000000 -> 10598673.15 | M54: =OPEX!$L$59*1000000 -> 10598673.15 | N54: =OPEX!$L$59*1000000 -> 10598673.15 | O54: =OPEX!$L$59*1000000 -> 10598673.15 | P54: =OPEX!$L$59*1000000 -> 10598673.15 | Q54: =OPEX!$L$59*1000000 -> 10598673.15 | R54: =OPEX!$L$59*1000000 -> 10598673.15 | S54: =OPEX!$L$59*1000000 -> 10598673.15 | T54: =OPEX!$L$59*1000000 -> 10598673.15 | U54: =OPEX!$L$59*1000000 -> 10598673.15 | V54: =OPEX!$L$59*1000000 -> 10598673.15 | W54: =OPEX!$L$59*1000000 -> 10598673.15 | X54: =OPEX!$L$59*1000000 -> 10598673.15 | Y54: =OPEX!$L$59*1000000 -> 10598673.15 | Z54: =OPEX!$L$59*1000000 -> 10598673.15 | AA54: =OPEX!$L$59*1000000 -> 10598673.15 | AB54: =OPEX!$L$59*1000000 -> 10598673.15 | AC54: =OPEX!$L$59*1000000 -> 10598673.15 | AD54: =OPEX!$L$59*1000000 -> 10598673.15 | AE54: =OPEX!$L$59*1000000 -> 10598673.15 | AF54: =OPEX!$L$59*1000000 -> 10598673.15 | AG54: =OPEX!$L$59*1000000 -> 10598673.15 | AH54: =OPEX!$L$59*1000000 -> 10598673.15 | AI54: =OPEX!$L$59*1000000 -> 10598673.15
A55: Total Product Cost | F55: =SUM(F51:F54) -> 75495602.09 | G55: 82338210.39 | H55: 82338210.39 | I55: 82338210.39 | J55: 82338210.39 | K55: 82804393.29 | L55: 82338210.39 | M55: 82338210.39 | N55: 82338210.39 | O55: 82338210.39 | P55: 82804393.29 | Q55: 82338210.39 | R55: 82338210.39 | S55: 82338210.39 | T55: 82338210.39 | U55: 82804393.29 | V55: 82338210.39 | W55: 82338210.39 | X55: 82338210.39 | Y55: =SUM(Y51:Y54) -> 82338210.39 | Z55: 82804393.29 | AA55: 82338210.39 | AB55: 82338210.39 | AC55: 82338210.39 | AD55: 82338210.39 | AE55: 82804393.29 | AF55: 82338210.39 | AG55: 82338210.39 | AH55: 82338210.39 | AI55: =SUM(AI51:AI54) -> 82338210.39
A56: Annual Depreciation
A57: General Plant Writedown | F57: 0.1429 | G57: 0.2449 | H57: 0.1749 | I57: 0.1249 | J57: 0.0893 | K57: 0.0892 | L57: 0.0893 | M57: 0.0446
A58: Depreciation Charge | F58: =$B$5*F57 -> 47431042.95 | G58: =$B$5*G57 -> 81286650.94 | H58: 58052410.17 | I58: 41456523.9 | J58: 29640252.87 | K58: 29607061.1 | L58: 29640252.87 | M58: 14803530.55
A59: Remaining Value | F59: =$B$5-$B$18-F58 -> 284486682.4 | G59: =F59-G58 -> 203200031.5 | H59: 145147621.3 | I59: 103691097.4 | J59: 74050844.53 | K59: 44443783.43 | L59: 14803530.55 | M59: 0
A60: Steam Plant Writedown | F60: 0.0375 | G60: 0.07219 | H60: 0.06677 | I60: 0.06177 | J60: 0.05713 | K60: 0.05285 | L60: 0.04888 | M60: 0.04522 | N60: 0.04462 | O60: 0.04461 | P60: 0.04462 | Q60: 0.04461 | R60: 0.04462 | S60: 0.04461 | T60: 0.04462 | U60: 0.04461 | V60: 0.04462 | W60: 0.04461 | X60: 0.04462 | Y60: 0.04461 | Z60: 0.02231
A61: Depreciation Charge | F61: =$B$6*F60 -> 2476116.158 | G61: 4766688.678 | H61: 4408807.356 | I61: 4078658.535 | J61: 3772280.429 | K61: 3489673.038 | L61: 3227534.875 | M61: 2985865.938 | N61: 2946248.079 | O61: 2945587.781 | P61: 2946248.079 | Q61: 2945587.781 | R61: 2946248.079 | S61: 2945587.781 | T61: 2946248.079 | U61: 2945587.781 | V61: 2946248.079 | W61: 2945587.781 | X61: 2946248.079 | Y61: 2945587.781 | Z61: 1473124.04
A62: Remaining Value | F62: =B6-B19-F61 -> 63553648.05 | G62: =F62-G61 -> 58786959.37 | H62: =G62-H61 -> 54378152.02 | I62: 50299493.48 | J62: 46527213.05 | K62: 43037540.01 | L62: 39810005.14 | M62: 36824139.2 | N62: 33877891.12 | O62: 30932303.34 | P62: 27986055.26 | Q62: 25040467.48 | R62: 22094219.4 | S62: 19148631.62 | T62: 16202383.54 | U62: 13256795.76 | V62: =U62-V61 -> 10310547.68 | W62: =V62-W61 -> 7364959.9 | X62: =W62-X61 -> 4418711.821 | Y62: =X62-Y61 -> 1473124.04 | Z62: =Y62-Z61 -> 1.234002411e-08
A63: Net Revenue | F63: =F49-F55-F58-F61-F45 -> -24266118.08 | G63: =G49-G55-G58-G61-G45 -> -48759466.87 | H63: -23743294.18 | I63: -5279284.454 | J63: 8504377.286 | K63: 10147887.17 | L63: 12780421.57 | M63: 29951210.35 | N63: 47054148.08 | O63: 49495380.84 | P63: 51664355.9 | Q63: 52131199.1 | R63: 52130538.8 | S63: 52131199.1 | T63: 52130538.8 | U63: 51665016.2 | V63: 52130538.8 | W63: 52131199.1 | X63: 52130538.8 | Y63: 52131199.1 | Z63: 53137479.94 | AA63: 55076786.88 | AB63: 55076786.88 | AC63: 55076786.88 | AD63: 55076786.88 | AE63: 54610603.98 | AF63: 55076786.88 | AG63: 55076786.88 | AH63: 55076786.88 | AI63: 55076786.88
A64: Losses Forward | G64: =IF(F65<0,F65,0) -> -24266118.08 | H64: =IF(G65<0,G65,0) -> -73025584.95 | I64: -96768879.14 | J64: -102048163.6 | K64: -93543786.31 | L64: -83395899.14 | M64: -70615477.57 | N64: -40664267.22 | O64: 0 | P64: 0 | Q64: 0 | R64: 0 | S64: 0 | T64: 0 | U64: 0 | V64: 0 | W64: 0 | X64: 0 | Y64: =IF(X65<0,X65,0) -> 0 | Z64: 0 | AA64: 0 | AB64: 0 | AC64: 0 | AD64: 0 | AE64: 0 | AF64: 0 | AG64: 0 | AH64: 0 | AI64: =IF(X65<0,X65,0) -> 0
A65: Taxable Income | F65: =F63+F64 -> -24266118.08 | G65: =G63+G64 -> -73025584.95 | H65: -96768879.14 | I65: -102048163.6 | J65: -93543786.31 | K65: -83395899.14 | L65: -70615477.57 | M65: -40664267.22 | N65: =N63+N64 -> 6389880.856 | O65: 49495380.84 | P65: 51664355.9 | Q65: 52131199.1 | R65: 52130538.8 | S65: 52131199.1 | T65: 52130538.8 | U65: 51665016.2 | V65: 52130538.8 | W65: 52131199.1 | X65: 52130538.8 | Y65: =Y63+Y64 -> 52131199.1 | Z65: 53137479.94 | AA65: 55076786.88 | AB65: 55076786.88 | AC65: 55076786.88 | AD65: 55076786.88 | AE65: 54610603.98 | AF65: 55076786.88 | AG65: 55076786.88 | AH65: 55076786.88 | AI65: =AI63+AI64 -> 55076786.88
A66: Income Tax | F66: =IF(F65*($B$32)<0,0,F65*$B$32) -> 0 | G66: 0 | H66: 0 | I66: 0 | J66: 0 | K66: 0 | L66: 0 | M66: 0 | N66: 2236458.3 | O66: 17323383.29 | P66: 18082524.57 | Q66: 18245919.69 | R66: 18245688.58 | S66: 18245919.69 | T66: 18245688.58 | U66: 18082755.67 | V66: 18245688.58 | W66: 18245919.69 | X66: 18245688.58 | Y66: =IF(Y65*($B$32)<0,0,Y65*$B$32) -> 18245919.69 | Z66: 18598117.98 | AA66: 19276875.41 | AB66: 19276875.41 | AC66: 19276875.41 | AD66: 19276875.41 | AE66: 19113711.39 | AF66: 19276875.41 | AG66: 19276875.41 | AH66: 19276875.41 | AI66: =IF(AI65*($B$32)<0,0,AI65*$B$32) -> 19276875.41
A67: Annual Cash Income | F67: =F49-F55-F66-F44 -> 9158973.991 | G67: 19493240.34 | H67: 19493240.34 | I67: 19493240.34 | J67: 19493240.34 | K67: 19027057.44 | L67: 19493240.34 | M67: 19493240.34 | N67: 17256782.04 | O67: 2169857.05 | P67: 36528079.42 | Q67: 36830867.2 | R67: 36831098.3 | S67: 36830867.2 | T67: 36831098.3 | U67: 36527848.31 | V67: 36831098.3 | W67: 36830867.2 | X67: 36831098.3 | Y67: 36830867.2 | Z67: 36012486 | AA67: 35799911.47 | AB67: 35799911.47 | AC67: 35799911.47 | AD67: 35799911.47 | AE67: 35496892.59 | AF67: 35799911.47 | AG67: 35799911.47 | AH67: 35799911.47 | AI67: 35799911.47
A68: Discount Factor | C68: =1/(1+$B$31)^C40 -> 1.21 | D68: 1.1 | E68: 1 | F68: 0.9090909091 | G68: 0.826446281 | H68: 0.7513148009 | I68: 0.6830134554 | J68: 0.6209213231 | K68: 0.5644739301 | L68: 0.5131581182 | M68: 0.4665073802 | N68: 0.4240976184 | O68: 0.3855432894 | P68: 0.3504938995 | Q68: 0.3186308177 | R68: 0.2896643797 | S68: 0.2633312543 | T68: 0.2393920494 | U68: 0.2176291358 | V68: 0.1978446689 | W68: 0.1798587899 | X68: 0.1635079908 | Y68: =1/(1+$B$31)^Y40 -> 0.148643628 | Z68: 0.1351305709 | AA68: 0.1228459736 | AB68: 0.1116781578 | AC68: 0.101525598 | AD68: 0.09229599818 | AE68: 0.08390545289 | AF68: 0.07627768444 | AG68: 0.06934334949 | AH68: 0.06303940863 | AI68: =1/(1+$B$31)^Y40 -> 0.148643628
A69: Annual Present Value | B69: =SUM(F69:AI69) -> 225543495.2 | F69: =F68*F67 -> 8326339.992 | G69: =G68*G67 -> 16110115.99 | H69: 14645559.99 | I69: 13314145.44 | J69: 12103768.58 | K69: 10740277.89 | L69: 10003114.53 | M69: 9093740.485 | N69: 7318560.166 | O69: 836573.8246 | P69: 12802869 | Q69: 11735449.33 | R69: 10668657.24 | S69: 9698718.456 | T69: 8817072.103 | U69: 7949524.06 | V69: 7286836.449 | W69: 6624355.205 | X69: 6022178.883 | Y69: =Y68*Y67 -> 5474673.724 | Z69: 4866387.794 | AA69: 4397874.979 | AB69: 3998068.163 | AC69: 3634607.421 | AD69: 3304188.564 | AE69: 2978382.849 | AF69: 2730734.351 | AG69: 2482485.773 | AH69: 2256805.248 | AI69: =AI68*AI67 -> 5321428.724
A70: Total Capital Investment + Interest | C70: =(C41+C42+C45)*C68 -> 19493630.01 | D70: =(D41+D45)*D68 -> 119346043.9 | E70: =(E41+E45+E43)*E68 -> 89936132.64 | AI70: =(AI41+AI45+AI43+AI42)*AI68 -> -3232311.355
A71: Net Present Worth | E71: =B69-SUM(B70:AI70) -> 0
F74: If taxable income < 0, tax = $0
F75: Loan Interest subtracted from taxable income.
F76: Loan payment subtracted from annual cash income
F77: Interest on construction loan added to investment
A79: NPV of Income Tax | B79: =SUM(F79:AI79) -> 70020720.95 | F79: =F66*F68 -> 0 | G79: 0 | H79: 0 | I79: 0 | J79: 0 | K79: 0 | L79: 0 | M79: 0 | N79: 948476.6385 | O79: 6678914.179 | P79: 6337814.548 | Q79: 5813712.309 | R79: 5285126.066 | S79: 4804720.917 | T79: 4367872.782 | U79: 3935334.489 | V79: 3609812.216 | W79: 3281689.035 | X79: 2983315.881 | Y79: =Y66*Y68 -> 2712139.699 | Z79: 2513174.301 | AA79: 2368086.527 | AB79: 2152805.934 | AC79: 1957096.303 | AD79: 1779178.458 | AE79: 1603744.611 | AF79: 1470395.42 | AG79: 1336723.109 | AH79: 1215202.826 | AI79: =AI66*AI68 -> 2865384.698
A80: NPV of Ethanol Income | B80: =SUM(F80:AI80) -> 1229067568 | F80: =F47*F68 -> 103956150.6 | G80: 108006390.2 | H80: 98187627.45 | I80: 89261479.5 | J80: 81146799.55 | K80: 73769817.77 | L80: 67063470.7 | M80: 60966791.54 | N80: 55424355.95 | O80: 50385778.14 | P80: 45805252.85 | Q80: 41641138.96 | R80: 37855580.87 | S80: 34414164.43 | T80: 31285604.02 | U80: 28441458.2 | V80: 25855871.09 | W80: 23505337.36 | X80: 21368488.51 | Y80: 19425898.64 | Z80: 17659907.86 | AA80: 16054461.69 | AB80: 14594965.17 | AC80: 13268150.16 | AD80: 12061954.69 | AE80: 10965413.35 | AF80: 9968557.593 | AG80: 9062325.084 | AH80: 8238477.349 | AI80: 19425898.64 | AK80: =SUM(C80:AI80) -> 1229067568
H83: 0.32 | I83: 0.192 | J83: 0.1152 | K83: 0.1152 | L83: 0.0576
H84: =H83/2 -> 0.16 | I84: =I83/2 -> 0.096 | J84: =J83/2 -> 0.0576 | K84: =K83/2 -> 0.0576 | L84: =L83/2 -> 0.0288

Sheet Operating Summaries
A1: Operating Summary | J1: Theoretical Maximum Yields | R1: Water Balance | V1: Closure | W1: =V15/S15 -> 0.999836983 | Y1: Stream--> | Z1: Cooling Water Users | AA1: MMkcal/hr | AG1: ENERGY BALANCE:
A2: Feedstock | E2: Conditioning | G2: Boiler/Turbogenerator | M2: 100% Conversion | Q2: Stream--> | R2: Inputs | S2: kg/hr | T2: gal/gal | U2: Outputs | V2: kg/hr | W2: gal/gal | X2: <--Stream | Y2: HEAT.A900.QTTOTAL | Z2: Total Duty | AA2: =IF(Y2<>"",VLOOKUP(Y2,INDIRECT(LU_SENS),2,FALSE),"") -> 97.8867502 | AB2: %total | AC2: Evap gal/gal | AG2: Table I. Ethanol Plant Overall Energy Balance
A3: Moisture Content | D3: =VLOOKUP("CMIX.H2O.101",INDIRECT(LU_SENS),2,FALSE)/(VLOOKUP("strm.101",INDIRECT(LU_SENS),2,FALSE)) -> 0.199999999 | E3: Ammonia Loading (% stoich. XS | F3: =VLOOKUP("cmix.nh3.a200.275",INDIRECT(LU_SENS),2,FALSE)/(VLOOKUP("cmix.nh3.a200.275",INDIRECT(LU_SENS),2,FALSE)-VLOOKUP("cmix.nh3.a200.228",INDIRECT(LU_SENS),2,FALSE))-1 -> 0.0001000000077 | G3: WWT sludge moisture % | H3: =VLOOKUP( "CMIX.H2O.A800.623", INDIRECT(LU_SENS), 2, FALSE ) / VLOOKUP( "STRM.A800.623", INDIRECT(LU_SENS), 2, FALSE ) -> 0.7899399937 | L3: Kg/hr | M3: Kg/hr | N3: MM gal/yr | Q3: cmix.h2o.101 | R3: Moisture in feedstock | S3: =IF(Q3<>"",VLOOKUP(Q3,INDIRECT(LU_SENS),2,FALSE),"") -> 20833.3333 | T3: =S3/3.7894*OPEX!$B$7/Summary!$D$12/1000000 -> 0.7645087839 | U3: Water in ethanol product | V3: =IF(X3<>"",VLOOKUP(X3,INDIRECT(LU_SENS),2,FALSE),"") -> 106.867453 | W3: =V3/3.7894*OPEX!$B$7/Summary!$D$12/1000000 -> 0.00392165312 | X3: cmix.h2o.a500.515 | AH3: Energy Flow [MMkcal/hr] | AI3: Ratio to Feedstock Energy Flow
A4: Pretreatment | E4: Ammonia Loading (g/L hydrolyzate) | F4: =VLOOKUP("amload",INDIRECT(LU_SENS),2,FALSE) -> 4.73723974 | G4: First effect lignin moisture % | H4: =VLOOKUP( "CMIX.H2O.A800.571", INDIRECT(LU_SENS), 2, FALSE ) / VLOOKUP( "STRM.A800.571", INDIRECT(LU_SENS), 2, FALSE ) -> 0.3502308872 | J4: Feed Cellulose | K4: CCIS.CELLULOS.101 | L4: =VLOOKUP(K4,INDIRECT(LU_SENS),2,FALSE) -> 28942.4577 | M4: =L4*0.568256 -> 16446.72524 | N4: =M4*OPHOURS/('Set-up'!$B$39*3.7854*1000000) -> 46.31126586 | Q4: cmix.h2o.a400.401 | R4: Water in glucose syrup | S4: =IF(Q4<>"",VLOOKUP(Q4,INDIRECT(LU_SENS),2,FALSE),"") -> 422.865627 | T4: =S4/3.7894*OPEX!$B$7/Summary!$D$12/1000000 -> 0.01551765537 | U4: Cooling tower evap. | V4: =V35 -> 139148.667 | W4: =V4/3.7894*OPEX!$B$7/Summary!$D$12/1000000 -> 5.106258161 | Y4: HEAT.A900.QM811 | Z4: Condensing Turbine | AA4: =IF(Y4<>"",VLOOKUP(Y4,INDIRECT(LU_SENS),2,FALSE),"") -> 51.2188141 | AB4: =AA4/$AA$15 -> 0.5232479716 | AC4: =AB4*$W$4 -> 2.671839226 | AG4: Major Energy Inlets
A5: Acid Conc (wt%) | D5: =VLOOKUP( "CMIX.H2SO4.A200.217", INDIRECT(LU_SENS), 2, FALSE )/( VLOOKUP( "CMIX.H2SO4.A200.217", INDIRECT(LU_SENS), 2, FALSE ) + VLOOKUP( "CMIX.H2O.A200.217", INDIRECT(LU_SENS), 2, FALSE ))*100 -> 0.8175049241 | E5: Sugar Losses: | G5: Combined boiler feed moisture | H5: =VLOOKUP( "CMIX.H2O.A800.801", INDIRECT(LU_SENS), 2, FALSE ) /VLOOKUP( "STRM.A800.801", INDIRECT(LU_SENS), 2, FALSE ) -> 0.4420978469 | J5: Feed sucrose | K5: CMIX.SUCROSE.101 | L5: 641.666667 | M5: =L5*0.53836 -> 345.4476668 | N5: =M5*OPHOURS/('Set-up'!$B$39*3.7854*1000000) -> 0.9727236579 | R5: Water in raw chemicals | S5: =S55+S56+S57 -> 3043.626234 | T5: =T55+T56 -> 0.02938943145 | U5: Stripped in enzyme aeration | V5: =V36+V37 -> 766.5945355 | W5: =V5/3.7894*OPEX!$B$7/Summary!$D$12/1000000 -> 0.02813127634 | Y5: HEAT.A900.QCHILCON | Z5: Chiller condenser | AA5: 13.5215084 | AB5: 0.1381348235 | AC5: =AB5*$W$4 -> 0.7053520697 | AG5: Stover Feedstock | AH5: ='Energy Bal'!FC17 -> -315.5718933 | AI5: =AH5/$AH$5 -> 1
A6: Acid Loading (mg/g dry biomass) | D6: =VLOOKUP( "CMIX.H2SO4.A200.217", INDIRECT(LU_SENS), 2, FALSE )/( VLOOKUP( "STRM.101", INDIRECT(LU_SENS), 2, FALSE ) - VLOOKUP( "CMIX.H2O.101", INDIRECT(LU_SENS), 2, FALSE ))*1000 -> 22.09999994 | E6: Xylose | F6: =VLOOKUP("OSLR1",INDIRECT(LU_SENS),2,FALSE) -> 0.01 | G6: Boiler feed combustion energy MMkcal/hr | H6: ='Energy Bal'!CJ5 -> -181.2951724 | J6: Feed Xylan | K6: CCIS.XYLAN.101 | L6: 16126.8531 | M6: =L6*0.58117 -> 9372.443216 | N6: =M6*OPHOURS/('Set-up'!$B$39*3.7854*1000000) -> 26.39125437 | R6: Generated in enzyme prodn. | S6: =S20+S24 -> 1279.123691 | T6: =T56+T57 -> 0.02430173812 | U6: Scrubber vent | V6: =IF(X6<>"",VLOOKUP(X6,INDIRECT(LU_SENS),2,FALSE),"") -> 518.634362 | W6: =V6/3.7894*OPEX!$B$7/Summary!$D$12/1000000 -> 0.01903202525 | X6: cmix.h2o.a500.550 | Y6: HEAT.A300.QC301 | Z6: Hydrolysis cooler | AA6: 10.6138666 | AB6: 0.1084305497 | AC6: 0.5536743795 | AG6: Glucose | AH6: ='Energy Bal'!FK17 -> -7.944187244 | AI6: 0.0251739379
A7: Total Solids (wt%) | D7: =(VLOOKUP("SOL254",INDIRECT(LU_SENS),2,FALSE)+VLOOKUP("SCIS.A200.254s",INDIRECT(LU_SENS),2,FALSE))/(VLOOKUP("STRM.A200.254s",INDIRECT(LU_SENS),2,FALSE)) -> 0.3004665688 | E7: Arabinose | F7: =VLOOKUP("OSLR2",INDIRECT(LU_SENS),2,FALSE) -> 0.01 | G7: % from lignin cake | H7: ='Energy Bal'!BY17/'Operating Summaries'!H6 -> 0.5365925132 | J7: Feed Arabinan | K7: CCIS.ARABINAN.101 | L7: 1965.27958 | M7: =L7*0.58117 -> 1142.161534 | N7: =M7*OPHOURS/('Set-up'!$B$39*3.7854*1000000) -> 3.216138511 | R7: Generated in fermentation | S7: =S38+S34 -> 145.902235 | T7: =T57+T58 -> 0 | U7: Destroyed in Pretreatment | V7: =-V19-V23 -> 2450.307 | W7: =V7/3.7894*OPEX!$B$7/Summary!$D$12/1000000 -> 0.08991749894 | Y7: HEAT.A200.QH244 | Z7: Hydrolyzate flash condenser | AA7: 7.2990371 | AB7: 0.07456647376 | AC7: 0.3807556652 | AG7: Sulfuric Acid | AH7: ='Energy Bal'!GR49 -> 1.224578636 | AI7: -0.003880506035
A8: Insoluble Solids in (wt%) | D8: =( VLOOKUP( "SCIS.A200.M207FD", INDIRECT(LU_SENS), 2, FALSE )) / ( VLOOKUP( "STRM.A200.M207FD", INDIRECT(LU_SENS), 2, FALSE ) ) -> 0.2244153908 | E8: Glucose | F8: =VLOOKUP("OSLR5",INDIRECT(LU_SENS),2,FALSE) -> 0 | G8: % from biogas | H8: ='Energy Bal'!CC17/'Operating Summaries'!H6 -> 0.3613987819 | J8: Feed Mannan | K8: CCIS.MANNAN.101 | L8: 495.448635 | M8: =L8*0.568256 -> 281.5416595 | N8: =M8*OPHOURS/('Set-up'!$B$39*3.7854*1000000) -> 0.7927748808 | R8: Generated in WWT | S8: =S42+S49 -> 2726.62823 | T8: =S8/3.7894*OPEX!$B$7/Summary!$D$12/1000000 -> 0.1000574993 | U8: Destroyed in Enz. Hydr. | V8: =-V27-V31 -> 2590.268 | W8: =V8/3.7894*OPEX!$B$7/Summary!$D$12/1000000 -> 0.09505356681 | Y8: HEAT.A300.QC310 | Z8: Pre-fermentation cooler | AA8: 5.93106318 | AB8: 0.06059134388 | AC8: 0.3093950442 | AG8: Ammonia | AH8: ='Energy Bal'!GR50 -> -4.368626386 | AI8: 0.0138435218
A9: Insoluble Solids out (wt%) | D9: =( VLOOKUP( "SCIS.A200.254s", INDIRECT(LU_SENS), 2, FALSE )) / ( VLOOKUP( "STRM.A200.254s", INDIRECT(LU_SENS), 2, FALSE ) ) -> 0.1660637635 | E9: Galactose | F9: =VLOOKUP("OSLR6",INDIRECT(LU_SENS),2,FALSE) -> 0.01 | G9: Boiler feed heating value (kcal/kg) | H9: ='Energy Bal'!CJ5*1000000/'Energy Bal'!CJ2 -> -497.0995022 | J9: Feed Galactan | K9: CCIS.GALACTAN.101 | L9: 1180.81925 | M9: =L9*0.568256 -> 671.0076237 | N9: =M9*OPHOURS/('Set-up'!$B$39*3.7854*1000000) -> 1.889446804 | R9: Generated in Combustor | S9: =S29+S54 -> 24003.99731 | T9: =S9/3.7894*OPEX!$B$7/Summary!$D$12/1000000 -> 0.8808608075 | U9: WWT evap | V9: =IF(X9<>"",VLOOKUP(X9,INDIRECT(LU_SENS),2,FALSE),"") -> 4328.19637 | W9: =V9/3.7894*OPEX!$B$7/Summary!$D$12/1000000 -> 0.1588293191 | X9: cmix.h2o.a600.622 | Y9: HEAT.A500.QH509 | Z9: EtOH product cooler | AA9: 5.13977063 | AB9: 0.05250755223 | AC9: 0.2681171171 | AG9: Other chemicals | AH9: ='Energy Bal'!GR51 -> 0.2854192167
A10: Temperature (°C) | D10: =VLOOKUP("TEMP.A200.217",INDIRECT(LU_SENS),2,FALSE) -> 158 | E10: Mannose | F10: =VLOOKUP("OSLR6",INDIRECT(LU_SENS),2,FALSE) -> 0.01 | G10: Boiler feed heating value (Btu/lb) | H10: =H9*1.8 -> -894.779104 | M10: =SUM(M4:M9) -> 28259.32694 | Q10: cmix.h2o.a400.450 | R10: Enzyme air intake | S10: =IF(Q10<>"",VLOOKUP(Q10,INDIRECT(LU_SENS),2,FALSE),"") -> 632.419979 | T10: =S10/3.7894*OPEX!$B$7/Summary!$D$12/1000000 -> 0.02320755023 | U10: WWT Brine | V10: =IF(X10<>"",VLOOKUP(X10,INDIRECT(LU_SENS),2,FALSE),"") -> 4949.27645 | W10: =V10/3.7894*OPEX!$B$7/Summary!$D$12/1000000 -> 0.1816207357 | X10: cmix.h2o.a600.627 | Y10: HEAT.A500.QH503 | Z10: Molsieve regeneration cooler | AA10: 2.53839557 | AB10: 0.02593207899 | AC10: 0.13241589
A11: Pressure (atm) | D11: =VLOOKUP("PRES.A200.217",INDIRECT(LU_SENS),2,FALSE) -> 5.67604722 | E11: Cellobiose | F11: =VLOOKUP("OSLR7",INDIRECT(LU_SENS),2,FALSE) -> 0.01 | J11: Total Maximum Ethanol | N11: =SUM(N4:N10) -> 79.57360408 | Q11: cmix.h2o.a500.evap.557 | R11: Lignin cake dryer intake | S11: =IF(Q11<>"",VLOOKUP(Q11,INDIRECT(LU_SENS),2,FALSE),"") -> 236.587179 | T11: =S11/3.7894*OPEX!$B$7/Summary!$D$12/1000000 -> 0.008681902886 | U11: Combustor stack | V11: =IF(X11<>"",VLOOKUP(X11,INDIRECT(LU_SENS),2,FALSE),"") -> 54768.8453 | W11: =V11/3.7894*OPEX!$B$7/Summary!$D$12/1000000 -> 2.009820642 | X11: cmix.h2o.a800.810 | Y11: HEAT.A400.QM401 | Z11: Enzyme production compressor | AA11: 1.16144223 | AB11: 0.01186521597 | AC11: 0.06058685588 | AG11: Well Water | AH11: ='Energy Bal'!GB17 -> 87.15731153 | AI11: -0.2761884482
A12: Conversions | B12: M207 | C12: M208 | D12: Overall | E12: Fermentation | G12: Boiler efficiency (feed/steam) | H12: =-'Energy Bal'!CN20/'Energy Bal'!CJ5 -> 0.797762015 | J12: Maximum Gal Ethanol/Dry US Ton Feedstock | N12: =N11*1000000/OPEX!E3 -> 103.0031556 | Q12: cmix.h2o.a600.630 | R12: WWT air intake | S12: =IF(Q12<>"",VLOOKUP(Q12,INDIRECT(LU_SENS),2,FALSE),"") -> 4357.01757 | T12: =S12/3.7894*OPEX!$B$7/Summary!$D$12/1000000 -> 0.159886954 | U12: Boiler blowdown vent | V12: =IF(X12<>"",VLOOKUP(X12,INDIRECT(LU_SENS),2,FALSE),"") -> 2594.12367 | W12: =V12/3.7894*OPEX!$B$7/Summary!$D$12/1000000 -> 0.0951950561 | X12: cmix.h2o.a800.a810.821v | Y12: HEAT.A500.QCD501 | Z12: Beer column condenser | AA12: 0.462413992 | AB12: 0.004723990346 | AC12: 0.02412191426
A13: Cellulose to Glucolig | B13: =VLOOKUP("PRETRX01",INDIRECT(LU_SENS),2,FALSE) -> 0.003 | D13: =B13 -> 0.003 | E13: Total Solids (wt%) | F13: =(VLOOKUP("SOL300",INDIRECT(LU_SENS),2,FALSE)+VLOOKUP("SCIS.a300.f300fd",INDIRECT(LU_SENS),2,FALSE))/(VLOOKUP("STRM.A300.f300FD",INDIRECT(LU_SENS),2,FALSE)) -> 0.1985508259 | Q13: cmix.h2o.a800.804 | R13: Combustion air intake | S13: =IF(Q13<>"",VLOOKUP(Q13,INDIRECT(LU_SENS),2,FALSE),"") -> 5594.89819 | T13: =S13/3.7894*OPEX!$B$7/Summary!$D$12/1000000 -> 0.2053127433 | AG13: Total | AH13: =SUM(AH5:AH12) -> -239.2173976 | AI13: =SUM(AI5:AI12) -> 0.7589485054
A14: Cellulose to Cellobiose | B14: =VLOOKUP("PRETRX02",INDIRECT(LU_SENS),2,FALSE) -> 0 | D14: =B14 -> 0 | E14: Insoluble Solids (wt%) | F14: =VLOOKUP("SCIS.A300.F300FD",INDIRECT(LU_SENS),2,FALSE)/(VLOOKUP("STRM.A300.f300FD",INDIRECT(LU_SENS),2,FALSE)) -> 0.05174610037 | G14: Steam loop flow (kg/hr) | H14: =VLOOKUP( "STRM.A800.a810.812", INDIRECT(LU_SENS), 2, FALSE ) -> 236039.687 | J14: Sugar & Solids Flow Rates (kg/hr) | Q14: cmix.h2o.903 | R14: Makeup water | S14: =IF(Q14<>"",VLOOKUP(Q14,INDIRECT(LU_SENS),2,FALSE),"") -> 148979.982 | T14: =S14/3.7894*OPEX!$B$7/Summary!$D$12/1000000 -> 5.467032242 | AG14: Major Energy Outlets | AJ14: 2002
A15: Cellulose to Glucose | B15: =VLOOKUP("PRETRX03",INDIRECT(LU_SENS),2,FALSE) -> 0.099 | D15: =B15 -> 0.099 | E15: Temperature (°C) | F15: =VLOOKUP("TEMP.A300.308",INDIRECT(LU_SENS),2,FALSE) -> 32 | G15: Total Generator Output (kW) | H15: =VLOOKUP("work.wtotal",INDIRECT(LU_SENS),2,FALSE) -> -41615.1935 | J15: Soluble Sugars From PT | L15: =VLOOKUP( "CMIX.GLUCOSE.A300.301", INDIRECT(LU_SENS), 2, FALSE ) + VLOOKUP( "CMIX.XYLOSE.A300.301", INDIRECT(LU_SENS), 2, FALSE ) + VLOOKUP( "CMIX.ARABINOS.A300.301", INDIRECT(LU_SENS), 2, FALSE ) + VLOOKUP( "CMIX.MANNOSE.A300.301", INDIRECT(LU_SENS), 2, FALSE ) + VLOOKUP( "CMIX.GALACTOS.A300.301", INDIRECT(LU_SENS), 2, FALSE ) + VLOOKUP( "CMIX.GLUCOLIG.A300.301", INDIRECT(LU_SENS), 2, FALSE ) + VLOOKUP( "CMIX.CELLOB.A300.301", INDIRECT(LU_SENS), 2, FALSE ) + VLOOKUP( "CMIX.XYLOLIG.A300.301", INDIRECT(LU_SENS), 2, FALSE ) + VLOOKUP( "CMIX.MANOLIG.A300.301", INDIRECT(LU_SENS), 2, FALSE ) + VLOOKUP( "CMIX.GALAOLIG.A300.301", INDIRECT(LU_SENS), 2, FALSE ) + VLOOKUP( "CMIX.ARABOLIG.A300.301", INDIRECT(LU_SENS), 2, FALSE ) -> 23626.02386 | R15: Sum of Inputs | S15: =SUM(S3:S14) -> 212256.3815 | T15: =S15/3.7894*OPEX!$B$7/Summary!$D$12/1000000 -> 7.789049683 | U15: Sum of Outputs | V15: =SUM(V3:V14) -> 212221.7801 | W15: =V15/3.7894*OPEX!$B$7/Summary!$D$12/1000000 -> 7.787779935 | Z15: Sum | AA15: =SUM(AA4:AA13) -> 97.8863118 | AC15: =SUM(AC4:AC12) -> 5.106258161 | AG15: Ethanol | AH15: ='Energy Bal'!GF17 -> -138.8894243 | AI15: =AH15/$AH$5 -> 0.4401197549 | AJ15: 0.487
A16: Cellulose to HMF | B16: =VLOOKUP("PRETRX04",INDIRECT(LU_SENS),2,FALSE) -> 0.003 | D16: =B16 -> 0.003 | E16: Pressure (atm) | F16: =VLOOKUP("PRES.A300.308",INDIRECT(LU_SENS),2,FALSE) -> 1 | G16: to A100 Feedstock Handling | H16: =VLOOKUP("Work.a900.wka100",INDIRECT(LU_SENS),2,FALSE) -> 859.484703 | J16: Other Soluble Solids From PT | L16: =VLOOKUP( "CMIX.LACID.A300.301", INDIRECT(LU_SENS), 2, FALSE ) + VLOOKUP( "CMIX.LGNSOL.A300.301", INDIRECT(LU_SENS), 2, FALSE ) + VLOOKUP( "CMIX.EXTRACT.A300.301", INDIRECT(LU_SENS), 2, FALSE ) + VLOOKUP( "CCIS.PROTEIN.A300.301", INDIRECT(LU_SENS), 2, FALSE ) -> 16053.16712 | R16: F401-4 | U16: M207 | Z16: Closure | AA16: =AA15/AA2 -> 0.9999955214 | AG16: Cooling Tower Evap. | AH16: ='Energy Bal'!GO17 -> -19.54491218 | AI16: 0.06193489533 | AJ16: 0.22
A17: Xylan to Oligomer | B17: =VLOOKUP("PRETRX05",INDIRECT(LU_SENS),2,FALSE) -> 0 | D17: =B17-C36*B17 -> 0 | E17: Residence Time (days) | F17: =VLOOKUP("FERMDAYS",INDIRECT(LU_SENS),2,FALSE) -> 1.5 | G17: to A200 Pretreatment | H17: =VLOOKUP("Work.a900.wka200",INDIRECT(LU_SENS),2,FALSE) -> 5679.41548 | J17: Cellulose from PT | L17: =VLOOKUP( "CCIS.CELLULOS.A300.301", INDIRECT(LU_SENS), 2, FALSE ) -> 25903.4997 | Q17: cmix.h2o.a400.403 | R17: input | S17: =IF(Q17<>"",VLOOKUP(Q17,INDIRECT(LU_SENS),2,FALSE),"") -> 658.841163 | U17: Input 1 | V17: =IF(X17<>"",VLOOKUP(X17,INDIRECT(LU_SENS),2,FALSE),"") -> 225887.61 | X17: cmix.h2o.a200.m207fd | AG17: Ambient Heat Losses | AH17: ='Energy Bal'!GU52 -> -63.01940081 | AI17: 0.1996990294 | AJ17: 0.06
A18: Xylan to Xylose | B18: =VLOOKUP("PRETRX06",INDIRECT(LU_SENS),2,FALSE) -> 0.9 | D18: =B18+B27*C36 -> 0.9 | E18: Conversions: | G18: to A300 Hydrolysis & Fermentation | H18: =VLOOKUP("Work.a900.wka300",INDIRECT(LU_SENS),2,FALSE) -> 2660.26178 | J18: Soluble Sugars From Sacc | L18: =VLOOKUP( "CMIX.GLUCOSE.A300.306a", INDIRECT(LU_SENS), 2, FALSE ) + VLOOKUP( "CMIX.XYLOSE.A300.306a", INDIRECT(LU_SENS), 2, FALSE ) + VLOOKUP( "CMIX.ARABINOS.A300.306a", INDIRECT(LU_SENS), 2, FALSE ) + VLOOKUP( "CMIX.MANNOSE.A300.306a", INDIRECT(LU_SENS), 2, FALSE ) + VLOOKUP( "CMIX.GALACTOS.A300.306a", INDIRECT(LU_SENS), 2, FALSE ) + VLOOKUP( "CMIX.GLUCOLIG.A300.306a", INDIRECT(LU_SENS), 2, FALSE ) + VLOOKUP( "CMIX.CELLOB.A300.306a", INDIRECT(LU_SENS), 2, FALSE ) + VLOOKUP( "CMIX.XYLOLIG.A300.306a", INDIRECT(LU_SENS), 2, FALSE ) + VLOOKUP( "CMIX.MANOLIG.A300.306a", INDIRECT(LU_SENS), 2, FALSE ) + VLOOKUP( "CMIX.GALAOLIG.A300.306a", INDIRECT(LU_SENS), 2, FALSE ) + VLOOKUP( "CMIX.ARABOLIG.A300.306a", INDIRECT(LU_SENS), 2, FALSE ) -> 50824.62056 | Q18: cmix.h2o.a400.407 | R18: input | S18: =IF(Q18<>"",VLOOKUP(Q18,INDIRECT(LU_SENS),2,FALSE),"") -> 3.91426389 | U18: Output | V18: =IF(X18<>"",VLOOKUP(X18,INDIRECT(LU_SENS),2,FALSE),"") -> 223437.303 | X18: cmix.h2o.a200.217 | AA18: =AA2*3.97 -> 388.6103983 | AB18: MMBtu/hr | AG18: Electricity export | AH18: ='Energy Bal'!GU28 -> -11.01834289 | AI18: 0.03491547607 | AJ18: 0.045
A19: Xylan to Furfural | B19: =VLOOKUP("PRETRX07",INDIRECT(LU_SENS),2,FALSE) -> 0.05 | D19: =B19 -> 0.05 | E19: Glucose to Ethanol | F19: =VLOOKUP("FERMRX07",INDIRECT(LU_SENS),2,FALSE) -> 0.95 | G19: to A400 Enzyme Production | H19: =VLOOKUP("Work.a900.wka400",INDIRECT(LU_SENS),2,FALSE) -> 5292.52295 | J19: Other Soluble Solids From Sacc | L19: =VLOOKUP( "CMIX.LACID.A300.306a", INDIRECT(LU_SENS), 2, FALSE ) + VLOOKUP( "CMIX.LGNSOL.A300.306a", INDIRECT(LU_SENS), 2, FALSE ) + VLOOKUP( "CMIX.EXTRACT.A300.306a", INDIRECT(LU_SENS), 2, FALSE ) + VLOOKUP( "CCIS.protein.A300.306a", INDIRECT(LU_SENS), 2, FALSE ) -> 16134.26648 | Q19: cmix.h2o.a400.408a | R19: output | S19: =IF(Q19<>"",VLOOKUP(Q19,INDIRECT(LU_SENS),2,FALSE),"") -> 744.211718 | V19: =V18-V17 -> -2450.307 | Z19: ="Total Duty = "&TEXT(AA2,"#,##0") & " MMkcal/hr (" &TEXT(AA18,"#,##0") & " MMBtu/hr)" -> Total Duty = 98 MMkcal/hr (389 MMBtu/hr) | AG19: Electricity reserve | AH19: ='Energy Bal'!GU30 -> -4.098565542 | AI19: 0.01298773949 | AJ19: 0.004
A20: Xylan to Tar | B20: =VLOOKUP("PRETRX08",INDIRECT(LU_SENS),2,FALSE) -> 0 | D20: =B20 -> 0 | E20: Glucose to Zymo (cell mass) | F20: =VLOOKUP("FERMRX08",INDIRECT(LU_SENS),2,FALSE) -> 0.02 | G20: to A500 Recovery | H20: =VLOOKUP("Work.a900.wka500",INDIRECT(LU_SENS),2,FALSE) -> 2117.35541 | J20: Soluble Sugars From Seed Train | L20: =VLOOKUP( "CMIX.GLUCOSE.A300.304", INDIRECT(LU_SENS), 2, FALSE ) + VLOOKUP( "CMIX.XYLOSE.A300.304", INDIRECT(LU_SENS), 2, FALSE ) + VLOOKUP( "CMIX.ARABINOS.A300.304", INDIRECT(LU_SENS), 2, FALSE ) + VLOOKUP( "CMIX.MANNOSE.A300.304", INDIRECT(LU_SENS), 2, FALSE ) + VLOOKUP( "CMIX.GALACTOS.A300.304", INDIRECT(LU_SENS), 2, FALSE ) + VLOOKUP( "CMIX.GLUCOLIG.A300.304", INDIRECT(LU_SENS), 2, FALSE ) + VLOOKUP( "CMIX.CELLOB.A300.304", INDIRECT(LU_SENS), 2, FALSE ) + VLOOKUP( "CMIX.XYLOLIG.A300.304", INDIRECT(LU_SENS), 2, FALSE ) + VLOOKUP( "CMIX.MANOLIG.A300.304", INDIRECT(LU_SENS), 2, FALSE ) + VLOOKUP( "CMIX.GALAOLIG.A300.304", INDIRECT(LU_SENS), 2, FALSE ) + VLOOKUP( "CMIX.ARABOLIG.A300.304", INDIRECT(LU_SENS), 2, FALSE ) -> 820.6290039 | S20: =S19-S17-S18 -> 81.45629111 | U20: T208 | AG20: Combustion exhaust + ash | AH20: ='Energy Bal'!GU34 -> -11.53158798 | AI20: 0.03654187278 | AJ20: 0.003
A21: Mannan to Oligomer | B21: =VLOOKUP("PRETRX09",INDIRECT(LU_SENS),2,FALSE) -> 0.024 | D21: =B21-C36*B21 -> 0.024 | E21: Glucose to Glycerol | F21: =VLOOKUP("FERMRX09",INDIRECT(LU_SENS),2,FALSE) -> 0 | G21: to A600 Wastewater | H21: =VLOOKUP("Work.a900.wka600",INDIRECT(LU_SENS),2,FALSE) -> 7334.05496 | J21: Other Soluble Solids From Seed Train | L21: =VLOOKUP( "CMIX.LACID.A300.304", INDIRECT(LU_SENS), 2, FALSE ) + VLOOKUP( "CMIX.LGNSOL.A300.304", INDIRECT(LU_SENS), 2, FALSE ) + VLOOKUP( "CMIX.EXTRACT.A300.304", INDIRECT(LU_SENS), 2, FALSE ) + VLOOKUP( "CCIS.protein.A300.304", INDIRECT(LU_SENS), 2, FALSE ) -> 1709.295753 | R21: F400 | U21: input | V21: =IF(X21<>"",VLOOKUP(X21,INDIRECT(LU_SENS),2,FALSE),"") -> 203949.169 | X21: cmix.h2o.a200.222 | AG21: WWT brine | AH21: ='Energy Bal'!GU22 -> 8.21037832
A22: Mannan to Mannose | B22: =VLOOKUP("PRETRX10",INDIRECT(LU_SENS),2,FALSE) -> 0.9 | D22: =B22+C36*B21 -> 0.9 | E22: Glucose to Succinic Acid | F22: =VLOOKUP("FERMRX10",INDIRECT(LU_SENS),2,FALSE) -> 0 | G22: to A700 Storage | H22: =VLOOKUP("Work.a900.wka700",INDIRECT(LU_SENS),2,FALSE) -> 10.8203845 | Q22: cmix.h2o.a400.f400in | R22: input 1 | S22: =IF(Q22<>"",VLOOKUP(Q22,INDIRECT(LU_SENS),2,FALSE),"") -> 13906.0381 | U22: output | V22: =IF(X22<>"",VLOOKUP(X22,INDIRECT(LU_SENS),2,FALSE),"") -> 203949.169 | X22: cmix.h2o.a200.223
A23: Mannan to HMF | B23: =VLOOKUP("PRETRX11",INDIRECT(LU_SENS),2,FALSE) -> 0.05 | D23: =B23 -> 0.05 | E23: Glucose to Acetic Acid | F23: =VLOOKUP("FERMRX11",INDIRECT(LU_SENS),2,FALSE) -> 0 | G23: to A800 Boiler/Turbogen | H23: =VLOOKUP("Work.a900.wka800",INDIRECT(LU_SENS),2,FALSE) -> 1374.35058 | J23: wt% Sugar leaving saccharification | L23: =L18/VLOOKUP( "strm.A300.306a", INDIRECT(LU_SENS), 2, FALSE ) -> 0.1148889915 | Q23: cmix.h2o.a400.418 | R23: output | S23: =IF(Q23<>"",VLOOKUP(Q23,INDIRECT(LU_SENS),2,FALSE),"") -> 15103.7055 | V23: =V22-V21 -> 0 | AG23: Total | AH23: =SUM(AH15:AH22) -> -239.8918554 | AI23: =SUM(AI15:AI22) -> 0.786198768 | AJ23: 0.966
A24: Galactan to Oligomer | B24: =VLOOKUP("PRETRX12",INDIRECT(LU_SENS),2,FALSE) -> 0.024 | D24: =B24-C39*B24 -> 0.024 | E24: Glucose to Lactic Acid | F24: =VLOOKUP("FERMRX12",INDIRECT(LU_SENS),2,FALSE) -> 0 | G24: to A900 Utilities | H24: =VLOOKUP("Work.a900.wka900",INDIRECT(LU_SENS),2,FALSE) -> 3153.98739 | J24: glucose | L24: =VLOOKUP( "cmix.glucose.A300.306a", INDIRECT(LU_SENS), 2, FALSE )/VLOOKUP( "strm.A300.306a", INDIRECT(LU_SENS), 2, FALSE ) -> 0.06651472649 | S24: =S23-S22 -> 1197.6674 | U24: T310
A25: Galactan to Galactose | B25: =VLOOKUP("PRETRX13",INDIRECT(LU_SENS),2,FALSE) -> 0.9 | D25: =B25+C39*B24 -> 0.9 | E25: Xylose to Ethanol | F25: =VLOOKUP("FERMRX16",INDIRECT(LU_SENS),2,FALSE) -> 0.85 | G25: Excess electricity to grid | H25: =-VLOOKUP("work.a900.wknet",INDIRECT(LU_SENS),2,FALSE) -> 13132.9399 | J25: xylose | L25: =VLOOKUP( "cmix.xylose.A300.306a", INDIRECT(LU_SENS), 2, FALSE )/VLOOKUP( "strm.A300.306a", INDIRECT(LU_SENS), 2, FALSE ) -> 0.03691001661 | R25: M803CMB | U25: input | V25: =IF(X25<>"",VLOOKUP(X25,INDIRECT(LU_SENS),2,FALSE),"") -> 353137.733 | X25: cmix.h2o.a300.t310fd
A26: Galactan to HMF | B26: =VLOOKUP("PRETRX14",INDIRECT(LU_SENS),2,FALSE) -> 0.05 | D26: =B26 -> 0.05 | E26: Xylose to Zymo | F26: =VLOOKUP("FERMRX17",INDIRECT(LU_SENS),2,FALSE) -> 0.02 | G26: Electricity Used (kW) | H26: =SUM(H16:H24) -> 28482.25364 | Q26: cmix.h2o.a800.803 | R26: Input 1 | S26: =IF(Q26<>"",VLOOKUP(Q26,INDIRECT(LU_SENS),2,FALSE),"") -> 6516.07785 | U26: output | V26: =IF(X26<>"",VLOOKUP(X26,INDIRECT(LU_SENS),2,FALSE),"") -> 353137.733 | X26: cmix.h2o.a300.306
A27: Arabinan to Oligomer | B27: =VLOOKUP("PRETRX15",INDIRECT(LU_SENS),2,FALSE) -> 0 | D27: =B27-C38*B27 -> 0 | E27: Xylose to Glycerol | F27: =VLOOKUP("FERMRX18",INDIRECT(LU_SENS),2,FALSE) -> 0 | G27: Electricity Used (%) | H27: =SUM(H16:H24)/-H15 -> 0.6844195891 | J27: wt% of inhibitors | Q27: cmix.h2o.a800.801 | R27: Input 2 | S27: =IF(Q27<>"",VLOOKUP(Q27,INDIRECT(LU_SENS),2,FALSE),"") -> 20675.2182 | V27: =V26-V25 -> 0 | AG27: CARBON BALANCE:
A28: Arabinan to Arabinose | B28: =VLOOKUP("PRETRX16",INDIRECT(LU_SENS),2,FALSE) -> 0.9 | D28: =B28+B27*C38 -> 0.9 | E28: Xylose to Xylitol | F28: =VLOOKUP("FERMRX19",INDIRECT(LU_SENS),2,FALSE) -> 0.05 | G28: Wastewater Treatment | J28: acetate | L28: =VLOOKUP( "cmix.nh4acet.A300.306a", INDIRECT(LU_SENS), 2, FALSE )/VLOOKUP( "strm.A300.306a", INDIRECT(LU_SENS), 2, FALSE )*59/77 -> 0.003194327949 | Q28: cmix.h2o.a800.805 | R28: Output | S28: =IF(Q28<>"",VLOOKUP(Q28,INDIRECT(LU_SENS),2,FALSE),"") -> 51021.515 | U28: F300SAC | AG28: Table I. Ethanol Plant Overall Carbon Balance
A29: Arabinan to Furfural | B29: =VLOOKUP("PRETRX17",INDIRECT(LU_SENS),2,FALSE) -> 0.05 | D29: =B29 -> 0.05 | E29: Xylose to Succinic Acid | F29: =VLOOKUP("FERMRX20",INDIRECT(LU_SENS),2,FALSE) -> 0 | G29: NH3-N to Ferm mg/L | H29: =(VLOOKUP("cmix.nh4acet.a300.f300fd",INDIRECT(LU_SENS),2,FALSE)*14/77+VLOOKUP("cmix.nh4so4.a300.f300fd",INDIRECT(LU_SENS),2,FALSE)*14/132+VLOOKUP("cmix.dap.a300.f300fd",INDIRECT(LU_SENS),2,FALSE)*2*14/132)/(VLOOKUP("smix.a300.f300fd",INDIRECT(LU_SENS),2,FALSE)/VLOOKUP("den.a300.f300fd",INDIRECT(LU_SENS),2,FALSE))*1000000 -> 1605.394806 | J29: hmf + furf | L29: =(VLOOKUP( "cmix.HMF.A300.306a", INDIRECT(LU_SENS), 2, FALSE )+VLOOKUP( "cmix.furfural.A300.306a", INDIRECT(LU_SENS), 2, FALSE ))/VLOOKUP( "strm.A300.306a", INDIRECT(LU_SENS), 2, FALSE ) -> 0.001584476726 | S29: =S28-S27-S26 -> 23830.21895 | U29: input | V29: =IF(X29<>"",VLOOKUP(X29,INDIRECT(LU_SENS),2,FALSE),"") -> 353137.733 | X29: cmix.h2o.a300.306 | AH29: Carbon Flow (Ckmol/hr) | AI29: Ratio to Feedstock Carbon Content (Ckmol basis)
A30: Arabinan to Tar | B30: =VLOOKUP("PRETRX18",INDIRECT(LU_SENS),2,FALSE) -> 0 | D30: 0 | E30: Xylose to Acetic Acid | F30: =VLOOKUP("FERMRX21",INDIRECT(LU_SENS),2,FALSE) -> 0 | G30: NH3-N out of Ferm mg/L | H30: =(VLOOKUP("cmix.nh4acet.a300.315",INDIRECT(LU_SENS),2,FALSE)*14/77+VLOOKUP("cmix.nh4so4.a300.315",INDIRECT(LU_SENS),2,FALSE)*14/132+VLOOKUP("cmix.dap.a300.315",INDIRECT(LU_SENS),2,FALSE)*2*14/132)/(VLOOKUP("smix.a300.315",INDIRECT(LU_SENS),2,FALSE)/VLOOKUP("den.a300.315",INDIRECT(LU_SENS),2,FALSE))*1000000 -> 1562.936767 | R30: F301-6 | U30: output | V30: =IF(X30<>"",VLOOKUP(X30,INDIRECT(LU_SENS),2,FALSE),"") -> 350547.465 | X30: cmix.h2o.a300.306a | Z30: Cooling water users | AG30: Carbon Inlets
A31: Acetate to Oligomer | B31: =VLOOKUP("PRETRX19",INDIRECT(LU_SENS),2,FALSE) -> 0 | D31: 0 | E31: Xylose to Lactic Acid | F31: =VLOOKUP("FERMRX22",INDIRECT(LU_SENS),2,FALSE) -> 0 | G31: Protein-N | H31: =(VLOOKUP("ccis.protein.a300.315",INDIRECT(LU_SENS),2,FALSE)*0.29*14/22.84)/(VLOOKUP("smix.a300.315",INDIRECT(LU_SENS),2,FALSE)/VLOOKUP("den.a300.315",INDIRECT(LU_SENS),2,FALSE))*1000000 -> 1261.536126 | Q31: cmix.h2o.a300.303 | R31: input | S31: =IF(Q31<>"",VLOOKUP(Q31,INDIRECT(LU_SENS),2,FALSE),"") -> 35054.7465 | V31: =V30-V29 -> -2590.268 | AG31: Stover Feedstock | AH31: ='Energy Bal'!F10 -> 3117.08508 | AI31: =AH31/$AH$34 -> 0.9662055037
A32: Acetate to Acetic Acid | B32: =VLOOKUP("PRETRX20",INDIRECT(LU_SENS),2,FALSE) -> 1 | D32: 1 | E32: Arabinose to Ethanol | F32: =VLOOKUP("FERMRX26",INDIRECT(LU_SENS),2,FALSE) -> 0.85 | G32: Cellulase-N | H32: =(VLOOKUP("ccis.enzyme.a300.315",INDIRECT(LU_SENS),2,FALSE)*0.24*14/24+VLOOKUP("ccis.denz.a300.315",INDIRECT(LU_SENS),2,FALSE)*0.24*14/24)/(VLOOKUP("smix.a300.315",INDIRECT(LU_SENS),2,FALSE)/VLOOKUP("den.a300.315",INDIRECT(LU_SENS),2,FALSE))*1000000 -> 200.5446681 | Q32: cmix.h2o.a300.309 | R32: input | S32: =IF(Q32<>"",VLOOKUP(Q32,INDIRECT(LU_SENS),2,FALSE),"") -> 105.513165 | U32: M902 Cooling tower | AG32: Glucose | AH32: ='Energy Bal'!AE10 -> 80.52830324 | AI32: =AH32/$AH$34 -> 0.0249614264
A33: Furfural to Tar | B33: =VLOOKUP("PRETRX21",INDIRECT(LU_SENS),2,FALSE) -> 1 | D33: 1 | E33: Arabinose to Zymo | F33: =VLOOKUP("FERMRX27",INDIRECT(LU_SENS),2,FALSE) -> 0.019 | G33: NH3-N in Combined WW mg/L | H33: =(VLOOKUP("cmix.nh4acet.a600.612",INDIRECT(LU_SENS),2,FALSE)*14/77+VLOOKUP("cmix.nh4so4.a600.612",INDIRECT(LU_SENS),2,FALSE)*14/132+VLOOKUP("cmix.dap.a600.612",INDIRECT(LU_SENS),2,FALSE)*2*14/132)/(VLOOKUP("smix.a600.612",INDIRECT(LU_SENS),2,FALSE)/VLOOKUP("den.a600.612",INDIRECT(LU_SENS),2,FALSE))*1000000 -> 662.7392362 | Q33: cmix.h2o.a300.304b | R33: output | S33: =IF(Q33<>"",VLOOKUP(Q33,INDIRECT(LU_SENS),2,FALSE),"") -> 35191.8349 | U33: blowdown | V33: =IF(X33<>"",VLOOKUP(X33,INDIRECT(LU_SENS),2,FALSE),"") -> 17767.215 | X33: cmix.h2o.a900.944 | AG33: Other | AH33: ='Energy Bal'!GR3+'Energy Bal'!GR21 -> 28.49645383 | AI33: =AH33/$AH$34 -> 0.008833069943
A34: HMF to Tar | B34: =VLOOKUP("PRETRX22",INDIRECT(LU_SENS),2,FALSE) -> 1 | D34: 1 | E34: Arabinose to Glycerol | F34: =VLOOKUP("FERMRX28",INDIRECT(LU_SENS),2,FALSE) -> 0.003 | G34: Protein-N | H34: =(VLOOKUP("CCIS.protein.a600.612",INDIRECT(LU_SENS),2,FALSE)*0.29*14/22.84)/(VLOOKUP("smix.a600.612",INDIRECT(LU_SENS),2,FALSE)/VLOOKUP("den.a600.612",INDIRECT(LU_SENS),2,FALSE))*1000000 -> 268.4380934 | S34: =S33-S31-S32 -> 31.575235 | U34: makeup | V34: =IF(X34<>"",VLOOKUP(X34,INDIRECT(LU_SENS),2,FALSE),"") -> 156915.882 | X34: cmix.h2o.a900.941 | AG34: Total | AH34: =SUM(AH31:AH33) -> 3226.109837 | AI34: =AH34/$AH$34 -> 1
A35: Lignin to Soluble Lignin | B35: =VLOOKUP("PRETRX23",INDIRECT(LU_SENS),2,FALSE) -> 0.05 | D35: 0.05 | E35: Arabinose to Succinic Acid | F35: =VLOOKUP("FERMRX29",INDIRECT(LU_SENS),2,FALSE) -> 0.015 | G35: Cellulase-N | H35: =(VLOOKUP("ccis.enzyme.a600.612",INDIRECT(LU_SENS),2,FALSE)*0.24*14/24+VLOOKUP("ccis.denz.a600.612",INDIRECT(LU_SENS),2,FALSE)*0.24*14/24)/(VLOOKUP("smix.a600.612",INDIRECT(LU_SENS),2,FALSE)/VLOOKUP("den.a600.612",INDIRECT(LU_SENS),2,FALSE))*1000000 -> 42.67323564 | R35: F300F | V35: =V34-V33 -> 139148.667 | AG35: Carbon Outlets
A36: Xylose olig to xylose | C36: =VLOOKUP("OLIG04",INDIRECT(LU_SENS),2,FALSE) -> 0 | E36: Arabinose to Acetic Acid | F36: =VLOOKUP("FERMRX30",INDIRECT(LU_SENS),2,FALSE) -> 0 | G36: Hydraulic Load (L/hr) | H36: =VLOOKUP("STRM.a600.601",INDIRECT(LU_SENS),2,FALSE)/VLOOKUP("den.a600.601",INDIRECT(LU_SENS),2,FALSE) -> 415119.5663 | Q36: cmix.h2o.a300.f300fd | R36: input | S36: =IF(Q36<>"",VLOOKUP(Q36,INDIRECT(LU_SENS),2,FALSE),"") -> 351121.82 | U36: Enzyme prodn aeration | V36: =IF(X36<>"",VLOOKUP(X36,INDIRECT(LU_SENS),2,FALSE),"") -> 730.133518 | W36: =V36/3.7894*OPEX!$B$7/Summary!$D$12/1000000 -> 0.02679328746 | X36: cmix.h2o.a400.423 | AG36: Combustion Exhaust | AH36: ='Energy Bal'!GM10 -> 1669.955603 | AI36: =AH36/$AH$34 -> 0.5176375535
A37: Mannose olig to mannose | C37: =VLOOKUP("OLIG03",INDIRECT(LU_SENS),2,FALSE) -> 0 | E37: Arabinose to Lactic Acid | F37: =VLOOKUP("FERMRX31",INDIRECT(LU_SENS),2,FALSE) -> 0 | G37: Hydraulic Load (gpm) | H37: =H36/3.7854/60 -> 1827.722153 | Q37: cmix.h2o.a300.308 | R37: output | S37: =IF(Q37<>"",VLOOKUP(Q37,INDIRECT(LU_SENS),2,FALSE),"") -> 351236.147 | U37: Enzyme seed aeration | V37: =IF(X37<>"",VLOOKUP(X37,INDIRECT(LU_SENS),2,FALSE),"") -> 36.4610175 | W37: =V37/3.7894*OPEX!$B$7/Summary!$D$12/1000000 -> 0.001337988873 | X37: cmix.h2o.a400.435 | AG37: Ethanol Product | AH37: ='Energy Bal'!GF10 -> 941.4768495 | AI37: =AH37/$AH$34 -> 0.2918303769
A38: Arabinose olig to arabinose | C38: =VLOOKUP("OLIG01",INDIRECT(LU_SENS),2,FALSE) -> 0 | E38: Galactose to Ethanol | F38: =VLOOKUP("FERMRX35",INDIRECT(LU_SENS),2,FALSE) -> 0 | G38: Hydraulic Load (MMgal/day) | H38: =H37*60*24/1000000 -> 2.631919901 | S38: =S37-S36 -> 114.327 | AG38: Scrubber Vent | AH38: ='Energy Bal'!GG10 -> 470.5202018 | AI38: 0.1458475457
A39: Galactose olig to galactose | C39: =VLOOKUP("OLIG02",INDIRECT(LU_SENS),2,FALSE) -> 0 | E39: Galactose to Zymo | F39: =VLOOKUP("FERMRX36",INDIRECT(LU_SENS),2,FALSE) -> 0 | G39: Total COD (kg/hr) | H39: =VLOOKUP("CODTO1",INDIRECT(LU_SENS),2,FALSE) -> 26416.2033 | R39: T606 | AG39: Ash | AH39: ='Energy Bal'!GL10 -> 10.20066178 | AI39: 0.003161907777
A40: Enzymatic Hydrolysis | E40: Galactose to Glycerol | F40: =VLOOKUP("FERMRX37",INDIRECT(LU_SENS),2,FALSE) -> 0 | G40: Total COD (g/L) | H40: =H39*1000/H36 -> 63.6351679 | Q40: cmix.h2o.a600.602 | R40: input | S40: =IF(Q40<>"",VLOOKUP(Q40,INDIRECT(LU_SENS),2,FALSE),"") -> 383627.923 | AG40: Brine | AH40: ='Energy Bal'!GU21 -> 3.857385551 | AI40: 0.001195677068
A41: Enzyme Loading (mg/g cell) | D41: =1000*VLOOKUP("CCIS.enzyme.422",INDIRECT(LU_SENS),2,FALSE) / VLOOKUP("CCIS.CELLULOS.A300.301",INDIRECT(LU_SENS),2,FALSE) -> 19.92485548 | E41: Galactose to Succinic Acid | F41: =VLOOKUP("FERMRX38",INDIRECT(LU_SENS),2,FALSE) -> 0 | Q41: cmix.h2o.a600.602g | R41: output | S41: =IF(Q41<>"",VLOOKUP(Q41,INDIRECT(LU_SENS),2,FALSE),"") -> 382874.274 | AG41: Aerobic Vent | AH41: ='Energy Bal'!GJ10 -> 87.8346359 | AI41: 0.02722617652
A42: Total Solids (wt%) | D42: =(VLOOKUP("SOL310FD",INDIRECT(LU_SENS),2,FALSE)+VLOOKUP("SCIS.A300.T310FD",INDIRECT(LU_SENS),2,FALSE))/(VLOOKUP("STRM.A300.T310FD",INDIRECT(LU_SENS),2,FALSE)) -> 0.2001020186 | E42: Galactose to Acetic Acid | F42: =VLOOKUP("FERMRX39",INDIRECT(LU_SENS),2,FALSE) -> 0 | G42: Biogas composition (Dry molar%) CH4 | H42: =VLOOKUP("cmix.ch4.a600.615",INDIRECT(LU_SENS),2,FALSE)/16/(VLOOKUP("cmix.ch4.a600.615",INDIRECT(LU_SENS),2,FALSE)/16+VLOOKUP("cmix.co2.a600.615",INDIRECT(LU_SENS),2,FALSE)/44) -> 0.5095748021 | S42: =S41-S40 -> -753.649 | AG42: Enzyme production vent | AH42: ='Energy Bal'!GD10+'Energy Bal'!GE10 -> 54.13063853 | AI42: 0.0167789199
A43: Insoluble Solids (wt%) | D43: =( VLOOKUP( "SCIS.A300.T310FD", INDIRECT(LU_SENS), 2, FALSE )) / ( VLOOKUP( "STRM.A300.T310FD", INDIRECT(LU_SENS), 2, FALSE ) ) -> 0.1063240957 | E43: Galactose to Lactic Acid | F43: =VLOOKUP("FERMRX40",INDIRECT(LU_SENS),2,FALSE) -> 0 | G43: CO2 | H43: =VLOOKUP("cmix.co2.a600.615",INDIRECT(LU_SENS),2,FALSE)/44/(VLOOKUP("cmix.ch4.a600.615",INDIRECT(LU_SENS),2,FALSE)/16+VLOOKUP("cmix.co2.a600.615",INDIRECT(LU_SENS),2,FALSE)/44) -> 0.4904251979 | R43: T608 | AG43: Total | AH43: =SUM(AH36:AH42) -> 3237.975976 | AI43: 1.003678157
A44: Temperature (°C) | D44: =VLOOKUP("TEMP.A300.308",INDIRECT(LU_SENS),2,FALSE) -> 32 | E44: Mannose to Ethanol | F44: =VLOOKUP("FERMRX44",INDIRECT(LU_SENS),2,FALSE) -> 0 | G44: methane produced (kg/kg COD) | H44: =VLOOKUP("cmix.ch4.a600.615",INDIRECT(LU_SENS),2,FALSE)/H39/0.91 -> 0.2226789963 | Q44: cmix.h2o.a600.617 | R44: Input 1 | S44: =IF(Q44<>"",VLOOKUP(Q44,INDIRECT(LU_SENS),2,FALSE),"") -> 462802.029
A45: Pressure (atm) | D45: =VLOOKUP("PRES.A300.308",INDIRECT(LU_SENS),2,FALSE) -> 1 | E45: Mannose to Zymo | F45: =VLOOKUP("FERMRX45",INDIRECT(LU_SENS),2,FALSE) -> 0 | G45: cell mass | H45: =VLOOKUP("ccis.biomass.a600.602e",INDIRECT(LU_SENS),2,FALSE)/H39/0.91 -> 0.04449199531 | Q45: cmix.h2o.a600.630 | R45: Air | S45: =IF(Q45<>"",VLOOKUP(Q45,INDIRECT(LU_SENS),2,FALSE),"") -> 4357.01757
A46: Residence Time (days) | D46: =VLOOKUP("SACHDAYS",INDIRECT(LU_SENS),2,FALSE) -> 3.5 | E46: Mannose to Glycerol | F46: =VLOOKUP("FERMRX46",INDIRECT(LU_SENS),2,FALSE) -> 0 | Q46: cmix.h2o.a600.621 | R46: Input 2 | S46: =IF(Q46<>"",VLOOKUP(Q46,INDIRECT(LU_SENS),2,FALSE),"") -> 2121197.35
A47: Conversions: | B47: T310 | C47: F300 | D47: Overall | E47: Mannose to Succinic Acid | F47: =VLOOKUP("FERMRX47",INDIRECT(LU_SENS),2,FALSE) -> 0 | Q47: cmix.h2o.a600.632 | R47: Input 3 | S47: =IF(Q47<>"",VLOOKUP(Q47,INDIRECT(LU_SENS),2,FALSE),"") -> 2242.7462
A48: Cellulose to Glucolig | B48: =VLOOKUP("SACHRX01",INDIRECT(LU_SENS),2,FALSE) -> 0 | C48: =VLOOKUP("SAC01B",INDIRECT(LU_SENS),2,FALSE) -> 0.05 | D48: =B48+C48*(1-SUM($B$48:$B$50)) -> 0.05 | E48: Mannose to Acetic Acid | F48: =VLOOKUP("FERMRX48",INDIRECT(LU_SENS),2,FALSE) -> 0 | Q48: cmix.h2o.a600.620b | R48: Output | S48: =IF(Q48<>"",VLOOKUP(Q48,INDIRECT(LU_SENS),2,FALSE),"") -> 2594079.42
A49: Cellulose to Cellobiose | B49: =VLOOKUP("SACHRX02",INDIRECT(LU_SENS),2,FALSE) -> 0 | C49: =VLOOKUP("SAC02b",INDIRECT(LU_SENS),2,FALSE) -> 0 | D49: =B49+C49*(1-SUM($B$48:$B$50)) -> 0 | E49: Mannose to Lactic Acid | F49: =VLOOKUP("FERMRX49",INDIRECT(LU_SENS),2,FALSE) -> 0 | S49: =S48-S46-S44-S45-S47 -> 3480.27723
A50: Cellulose to Glucose | B50: =VLOOKUP("SACHRX03",INDIRECT(LU_SENS),2,FALSE) -> 0 | C50: =VLOOKUP("SAC03b",INDIRECT(LU_SENS),2,FALSE) -> 0.9 | D50: =B50+C50*(1-SUM($B$48:$B$50)) -> 0.9 | R50: FGD
A51: Glucolig to Cellobiose | B51: =VLOOKUP("SACHRX04",INDIRECT(LU_SENS),2,FALSE) -> 0 | C51: =VLOOKUP("SAC04b",INDIRECT(LU_SENS),2,FALSE) -> 0 | D51: =B51+C51*(1-SUM($B$51:$B$52)) -> 0 | E51: Corn Steep Liquor loading wt% | F51: =VLOOKUP("strm.a300.311",INDIRECT(LU_SENS),2,FALSE)/VLOOKUP("smix.a300.307",INDIRECT(LU_SENS),2,FALSE) -> 0.002500000003 | Q51: cmix.h2o.a800.807 | R51: input | S51: =IF(Q51<>"",VLOOKUP(Q51,INDIRECT(LU_SENS),2,FALSE),"") -> 51021.515
A52: Glucolig to Glucose | B52: =VLOOKUP("SACHRX05",INDIRECT(LU_SENS),2,FALSE) -> 0 | C52: =VLOOKUP("sac05b",INDIRECT(LU_SENS),2,FALSE) -> 0 | D52: =B52+C52*(1-SUM($B$51:$B$52)) -> 0 | E52: Contamination Loss | F52: =1-VLOOKUP( "cmix.glucose.A300.308a", INDIRECT(LU_SENS), 2, FALSE ) / VLOOKUP( "cmix.glucose.A300.f300fd", INDIRECT(LU_SENS), 2, FALSE ) -> 0.03000000176 | Q52: cmix.h2o.a800.3 | R52: input | S52: =IF(Q52<>"",VLOOKUP(Q52,INDIRECT(LU_SENS),2,FALSE),"") -> 3573.55194
A53: Cellobiose to Glucose | B53: =VLOOKUP("SACHRX06",INDIRECT(LU_SENS),2,FALSE) -> 0 | C53: =VLOOKUP("sac06b",INDIRECT(LU_SENS),2,FALSE) -> 1 | D53: =B53 -> 0 | E53: Ethanol Out of Fermenters (wt%) | F53: =VLOOKUP( "CMIX.ETHANOL.A300.315", INDIRECT(LU_SENS), 2, FALSE ) / VLOOKUP( "SMIX.A300.315", INDIRECT(LU_SENS), 2, FALSE ) -> 0.05342919507 | Q53: cmix.h2o.a800.2 | R53: output | S53: =IF(Q53<>"",VLOOKUP(Q53,INDIRECT(LU_SENS),2,FALSE),"") -> 54768.8453
A54: Xylan to Oligomer | B54: =VLOOKUP("SACHRX13",INDIRECT(LU_SENS),2,FALSE) -> 0 | C54: =VLOOKUP("sac13b",INDIRECT(LU_SENS),2,FALSE) -> 0 | D54: 0 | E54: Enzyme Production | S54: =S53-S51-S52 -> 173.77836
A55: Xylan to Xylose | B55: =VLOOKUP("SACHRX14",INDIRECT(LU_SENS),2,FALSE) -> 0 | C55: =VLOOKUP("sac14b",INDIRECT(LU_SENS),2,FALSE) -> 0 | D55: 0 | E55: Glucose feed (kg/hr) | F55: =VLOOKUP( "CMIX.glucose.A400.401", INDIRECT(LU_SENS), 2, FALSE ) -> 2396.23855 | Q55: cmix.h2o.710 | R55: Water in Sulfuric acid | S55: =IF(Q55<>"",VLOOKUP(Q55,INDIRECT(LU_SENS),2,FALSE),"") -> 138.642764 | T55: =S55/3.7894*OPEX!$B$7/Summary!$D$12/1000000 -> 0.005087693332
A56: Xylose Oligomer to Xylose | B56: =VLOOKUP("SACHRX15",INDIRECT(LU_SENS),2,FALSE) -> 0 | C56: =VLOOKUP("sac15b",INDIRECT(LU_SENS),2,FALSE) -> 0 | D56: 0 | E56: Protein produced (kg/hr) | F56: =VLOOKUP("ccis.enzyme.a400.420a",INDIRECT(LU_SENS),2,FALSE) -> 573.470542 | Q56: cmix.h2o.a700.735 | R56: Water in CSL | S56: =IF(Q56<>"",VLOOKUP(Q56,INDIRECT(LU_SENS),2,FALSE),"") -> 662.23727 | T56: =S56/3.7894*OPEX!$B$7/Summary!$D$12/1000000 -> 0.02430173812
A57: Xylan to Tar | B57: =VLOOKUP("SACHRX23",INDIRECT(LU_SENS),2,FALSE) -> 0 | C57: =VLOOKUP("sac23b",INDIRECT(LU_SENS),2,FALSE) -> 0 | D57: 0 | E57: Protein yield (kg/kg substrate) | F57: =F56/F55 -> 0.2393211402 | Q57: cmix.h2o.a600.632 | R57: water in caustic | S57: =IF(Q57<>"",VLOOKUP(Q57,INDIRECT(LU_SENS),2,FALSE),"") -> 2242.7462 | Z57: Power per gal Ethanol | AA57: =-H15*OPHOURS/ETHMMGAL/1000000 -> 5.786901455 | AB57: kWh/gal
A58: Arabinan to Oligomer | B58: =VLOOKUP("SACHRX24",INDIRECT(LU_SENS),2,FALSE) -> 0 | C58: =VLOOKUP("sac24b",INDIRECT(LU_SENS),2,FALSE) -> 0 | D58: 0 | E58: Protein harvest titer (g/L) | F58: =F56*1000/VLOOKUP("cmix.h2o.a400.420a",INDIRECT(LU_SENS),2,FALSE) -> 39.89756631 | Z58: Consumptive water use | AA58: =AC4/AA57 -> 0.4617046352 | AB58: gal/kWh
A59: Arabinan to Arabinose | B59: =VLOOKUP("SACHRX25",INDIRECT(LU_SENS),2,FALSE) -> 0 | C59: =VLOOKUP("sac25b",INDIRECT(LU_SENS),2,FALSE) -> 0 | D59: 0
A60: Galactan to Oligomer | B60: =VLOOKUP("SACHRX32",INDIRECT(LU_SENS),2,FALSE) -> 0 | C60: =VLOOKUP("sac32b",INDIRECT(LU_SENS),2,FALSE) -> 0 | D60: 0 | E60: Compressor electricity (kW) | F60: =VLOOKUP("work.a400.wm401",INDIRECT(LU_SENS),2,FALSE) -> 1395.5167
A61: Galactan to Galactose | B61: =VLOOKUP("SACHRX33",INDIRECT(LU_SENS),2,FALSE) -> 0 | C61: =VLOOKUP("sac33b",INDIRECT(LU_SENS),2,FALSE) -> 0 | D61: 0 | E61: Agitator electricity (kW) | F61: =VLOOKUP("work.a400.wt400",INDIRECT(LU_SENS),2,FALSE)+VLOOKUP("work.a400.wt401-3",INDIRECT(LU_SENS),2,FALSE) -> 2304.60535
A62: Galactose Oligomer to Galactose | B62: =VLOOKUP("SACHRX34",INDIRECT(LU_SENS),2,FALSE) -> 0 | C62: =VLOOKUP("sac34b",INDIRECT(LU_SENS),2,FALSE) -> 0 | D62: 0 | E62: Chiller system electricity (kW) | F62: =VLOOKUP("work.a900.wm908-4",INDIRECT(LU_SENS),2,FALSE) -> 1573.21532
A63: Mannan to Oligomer | B63: =VLOOKUP("SACHRX41",INDIRECT(LU_SENS),2,FALSE) -> 0 | C63: =VLOOKUP("sac41b",INDIRECT(LU_SENS),2,FALSE) -> 0 | D63: 0 | E63: A400 total electricity (kW) | F63: =VLOOKUP("work.a900.wka400",INDIRECT(LU_SENS),2,FALSE) -> 5292.52295
A64: Mannan to Mannose | B64: =VLOOKUP("SACHRX42",INDIRECT(LU_SENS),2,FALSE) -> 0 | C64: =VLOOKUP("sac42b",INDIRECT(LU_SENS),2,FALSE) -> 0 | D64: 0
A65: Mannose Oligomer to Mannose | B65: =VLOOKUP("SACHRX43",INDIRECT(LU_SENS),2,FALSE) -> 0 | C65: =VLOOKUP("sac43b",INDIRECT(LU_SENS),2,FALSE) -> 0 | D65: 0 | E65: Electricity demand (kWh/kg protn) | F65: =F63/F56 -> 9.228936035
E66: Production selectivity:
E67: Selectivity to protein | F67: =VLOOKUP("s4pro",INDIRECT(LU_SENS),2,FALSE) -> 0.31250025
E68: Selectivity to cell mass | F68: =VLOOKUP("s4bms",INDIRECT(LU_SENS),2,FALSE) -> 0.0406504167
E69: Selectivity to CO2 | F69: =VLOOKUP("s4co2",INDIRECT(LU_SENS),2,FALSE) -> 0.676014429
J75: Distribution of Plant Electricity
G96: =-H15/1000 -> 41.6151935
G97: ="Total Power Generated = "&TEXT(G96,"#,##0") & " MW" -> Total Power Generated = 42 MW

Sheet aspen
B1: =DCFROR!B37 -> 0
B2: Sensitivity Block ID | C2: MASSFLOW
C3: 2011-12-12 | D3: 11:28:01
C4: C:\Users\dhumbird\Documents\13374S\Projects-current\next BC model\DW1111A.bkp
B5: The macro will look up variables in this column from the summary file.
B6: MASSFLOW sensitivity variables will also be pulled; do not add them to this column
B7: CCIS.ARABINAN.101 | C7: AMLOAD | D7: 4.73723974
B8: ccis.biomass.a600.602e | C8: CCIS.ARABINAN.101 | D8: 1965.27958 | E8: KG/HR
B9: CCIS.CELLULOS.101 | C9: CCIS.BIOMASS.A600.602E | D9: 1069.53173 | E9: KG/HR
B10: ccis.cellulos.a300.301 | C10: CCIS.CELLULOS.101 | D10: 28942.4577 | E10: KG/HR
B11: ccis.cellulos.a400.401 | C11: CCIS.CELLULOS.A300.301 | D11: 25903.4997 | E11: KG/HR
B12: ccis.denz.a300.315 | C12: CCIS.CELLULOS.A400.401 | D12: 0 | E12: KG/HR
B13: ccis.denz.a600.612 | C13: CCIS.DENZ.A300.315 | D13: 57.3470541 | E13: KG/HR
B14: ccis.enzyme.422 | C14: CCIS.DENZ.A600.612 | D14: 0.853324165 | E14: KG/HR
B15: CCIS.enzyme.750 | C15: CCIS.ENZYME.422 | D15: 516.123488 | E15: KG/HR
B16: ccis.enzyme.a300.315 | C16: CCIS.ENZYME.750 | D16: 1e-05 | E16: KG/HR
B17: ccis.enzyme.a400.420 | C17: CCIS.ENZYME.A300.315 | D17: 516.123488 | E17: KG/HR
B18: ccis.enzyme.a400.420a | C18: CCIS.ENZYME.A400.420 | D18: 516.123488 | E18: KG/HR
B19: ccis.enzyme.a600.612 | C19: CCIS.ENZYME.A400.420A | D19: 573.470542 | E19: KG/HR
B20: CCIS.GALACTAN.101 | C20: CCIS.ENZYME.A600.612 | D20: 7.6799175 | E20: KG/HR
B21: ccis.galactan.a400.401 | C21: CCIS.GALACTAN.101 | D21: 1180.81925 | E21: KG/HR
B22: CCIS.MANNAN.101 | C22: CCIS.GALACTAN.A400.401 | D22: 0 | E22: KG/HR
B23: ccis.mannan.a400.401 | C23: CCIS.MANNAN.101 | D23: 495.448635 | E23: KG/HR
B24: CCIS.PROTEIN.A300.301 | C24: CCIS.MANNAN.A400.401 | D24: 0 | E24: KG/HR
B25: CCIS.XYLAN.101 | C25: CCIS.PROTEIN.A300.301 | D25: 2559.81795 | E25: KG/HR
B26: CMIX.AACID.A800.810 | C26: CCIS.PROTEIN.A300.304 | D26: 303.95711 | E26: KG/HR
B27: cmix.arabinos.a300.301sug | C27: CCIS.PROTEIN.A300.306A | D27: 2600.57161 | E27: KG/HR
B28: CMIX.ARABINOS.A300.301 | C28: CCIS.PROTEIN.A300.311 | D28: 236.223503 | E28: KG/HR
B29: CMIX.ARABINOS.A300.301 | C29: CCIS.PROTEIN.A300.315 | D29: 2841.17371 | E29: KG/HR
B30: CMIX.ARABINOS.A300.304 | C30: CCIS.PROTEIN.A300.T310FD | D30: 2600.57161 | E30: KG/HR
B31: CMIX.ARABINOS.A300.306A | C31: CCIS.PROTEIN.A400.420 | D31: 40.7536643 | E31: KG/HR
B32: CMIX.ARABINOS.A300.311 | C32: CCIS.PROTEIN.A400.420P | D32: 0 | E32: KG/HR
B33: CMIX.ARABINOS.a300.t310fd | C33: CCIS.PROTEIN.A600.612 | D33: 42.2766648 | E33: KG/HR
B34: cmix.arabinos.a400.401 | C34: CCIS.PROTEIN.A800.810 | D34: 0 | E34: KG/HR
B35: CMIX.ARABINOS.a400.420 | C35: CCIS.XYLAN.101 | D35: 16126.8531 | E35: KG/HR
B36: CMIX.ARABINOS.a400.420p | C36: CLVESSEL | D36: 8
B37: CMIX.ARABINOS.a300.sugmix.s-prod | C37: CMIX.AACID.A800.810 | D37: 0 | E37: KG/HR
B38: cmix.arabolig.a300.301sug | C38: CMIX.ARABINOS.A300.301 | D38: 1989.82409 | E38: KG/HR
B39: CMIX.ARABOLIG.A300.301 | C39: CMIX.ARABINOS.A300.301 | D39: 1989.82409 | E39: KG/HR
B40: CMIX.ARABOLIG.A300.301 | C40: CMIX.ARABINOS.A300.301SUG | D40: 1989.82409 | E40: KG/HR
B41: CMIX.ARABOLIG.A300.304 | C41: CMIX.ARABINOS.A300.304 | D41: 198.783426 | E41: KG/HR
B42: CMIX.ARABOLIG.A300.306A | C42: CMIX.ARABINOS.A300.306A | D42: 1989.82409 | E42: KG/HR
B43: CMIX.ARABOLIG.A300.311 | C43: CMIX.ARABINOS.A300.311 | D43: 0 | E43: KG/HR
B44: CMIX.ARABOLIG.a300.t310fd | C44: CMIX.ARABINOS.A300.SUGMIX.S-PROD | D44: 1960.97133 | E44: KG/HR
B45: CMIX.ARABOLIG.a400.401 | C45: CMIX.ARABINOS.A300.T310FD | D45: 1989.82409 | E45: KG/HR
B46: CMIX.ARABOLIG.a400.420 | C46: CMIX.ARABINOS.A400.401 | D46: 0 | E46: KG/HR
B47: CMIX.ARABOLIG.a400.420p | C47: CMIX.ARABINOS.A400.420 | D47: 0 | E47: KG/HR
B48: cmix.cellob.a300.301sug | C48: CMIX.ARABINOS.A400.420P | D48: 0 | E48: KG/HR
B49: CMIX.CELLOB.A300.301 | C49: CMIX.ARABOLIG.A300.301 | D49: 0 | E49: KG/HR
B50: CMIX.CELLOB.A300.301 | C50: CMIX.ARABOLIG.A300.301 | D50: 0 | E50: KG/HR
B51: CMIX.CELLOB.A300.304 | C51: CMIX.ARABOLIG.A300.301SUG | D51: 0 | E51: KG/HR
B52: CMIX.CELLOB.A300.306A | C52: CMIX.ARABOLIG.A300.304 | D52: 0 | E52: KG/HR
B53: CMIX.CELLOB.A300.311 | C53: CMIX.ARABOLIG.A300.306A | D53: 0 | E53: KG/HR
B54: CMIX.CELLOB.a300.t310fd | C54: CMIX.ARABOLIG.A300.311 | D54: 0 | E54: KG/HR
B55: CMIX.CELLOB.a400.401 | C55: CMIX.ARABOLIG.A300.T310FD | D55: 0 | E55: KG/HR
B56: CMIX.CELLOB.a400.420 | C56: CMIX.ARABOLIG.A400.401 | D56: 0 | E56: KG/HR
B57: CMIX.CELLOB.a400.420p | C57: CMIX.ARABOLIG.A400.420 | D57: 0 | E57: KG/HR
B58: cmix.ch4.a600.615 | C58: CMIX.ARABOLIG.A400.420P | D58: 0 | E58: KG/HR
B59: CMIX.CH4.A600.620 | C59: CMIX.CELLOB.A300.301 | D59: 0 | E59: KG/HR
B60: CMIX.CH4.A800.810 | C60: CMIX.CELLOB.A300.301 | D60: 0 | E60: KG/HR
B61: CMIX.CO.A800.810 | C61: CMIX.CELLOB.A300.301SUG | D61: 0 | E61: KG/HR
B62: CMIX.CO2.703 | C62: CMIX.CELLOB.A300.304 | D62: 0 | E62: KG/HR
B63: CMIX.CO2.A400.423 | C63: CMIX.CELLOB.A300.306A | D63: 0 | E63: KG/HR
B64: CMIX.CO2.A400.435 | C64: CMIX.CELLOB.A300.311 | D64: 0 | E64: KG/HR
B65: CMIX.CO2.A500.550 | C65: CMIX.CELLOB.A300.T310FD | D65: 0 | E65: KG/HR
B66: cmix.co2.a600.615 | C66: CMIX.CELLOB.A400.401 | D66: 0 | E66: KG/HR
B67: CMIX.CO2.A600.620 | C67: CMIX.CELLOB.A400.420 | D67: 0 | E67: KG/HR
B68: CMIX.CO2.A800.810 | C68: CMIX.CELLOB.A400.420P | D68: 0 | E68: KG/HR
B69: cmix.dap.a300.315 | C69: CMIX.CH4.A600.615 | D69: 5352.92361 | E69: KG/HR
B70: cmix.dap.a300.f300fd | C70: CMIX.CH4.A600.620 | D70: 0.00155281586 | E70: KG/HR
B71: cmix.dap.a600.612 | C71: CMIX.CH4.A800.810 | D71: 0 | E71: KG/HR
B72: CMIX.DAP.A800.810 | C72: CMIX.CO.A800.810 | D72: 62.3229606 | E72: KG/HR
B73: CMIX.DENAT.703 | C73: CMIX.CO2.703 | D73: 26.6105435 | E73: KG/HR
B74: CMIX.ETHANOL.703 | C74: CMIX.CO2.A400.423 | D74: 2266.63582 | E74: KG/HR
B75: CMIX.ETHANOL.A300.315 | C75: CMIX.CO2.A400.435 | D75: 94.2358103 | E75: KG/HR
B76: cmix.ethanol.a500.515 | C76: CMIX.CO2.A500.550 | D76: 20653.7225 | E76: KG/HR
B77: CMIX.ETHANOL.A500.550 | C77: CMIX.CO2.A600.615 | D77: 14167.3483 | E77: KG/HR
B78: CMIX.EXTRACT.A300.301 | C78: CMIX.CO2.A600.620 | D78: 43.6666277 | E78: KG/HR
B79: CMIX.EXTRACT.A300.304 | C79: CMIX.CO2.A800.810 | D79: 73691.3128 | E79: KG/HR
B80: CMIX.EXTRACT.A300.306A | C80: CMIX.DAP.A300.315 | D80: 128.20816 | E80: KG/HR
B81: CMIX.EXTRACT.A300.311 | C81: CMIX.DAP.A300.F300FD | D81: 139.312325 | E81: KG/HR
B82: CMIX.EXTRACT.a300.t310fd | C82: CMIX.DAP.A600.612 | D82: 8.37694774 | E82: KG/HR
B83: CMIX.EXTRACT.a400.420 | C83: CMIX.DAP.A800.810 | D83: 7.20018662 | E83: KG/HR
B84: CMIX.EXTRACT.a400.420p | C84: CMIX.DENAT.703 | D84: 460.736166 | E84: KG/HR
B85: CMIX.EXTRACT.A800.810 | C85: CMIX.ETHANOL.703 | D85: 21478.0383 | E85: KG/HR
B86: cmix.furfural.a300.306a | C86: CMIX.ETHANOL.A300.315 | D86: 21326.0005 | E86: KG/HR
B87: CMIX.FURFURAL.A600.620 | C87: CMIX.ETHANOL.A500.515 | D87: 21478.0383 | E87: KG/HR
B88: cmix.galactos.a300.301sug | C88: CMIX.ETHANOL.A500.550 | D88: 4.31605425 | E88: KG/HR
B89: CMIX.GALACTOS.A300.301 | C89: CMIX.EXTRACT.A300.301 | D89: 12841.6664 | E89: KG/HR
B90: CMIX.GALACTOS.A300.301 | C90: CMIX.EXTRACT.A300.304 | D90: 1284.16664 | E90: KG/HR
B91: CMIX.GALACTOS.A300.304 | C91: CMIX.EXTRACT.A300.306A | D91: 12841.6664 | E91: KG/HR
B92: CMIX.GALACTOS.A300.306A | C92: CMIX.EXTRACT.A300.311 | D92: 0 | E92: KG/HR
B93: CMIX.GALACTOS.A300.311 | C93: CMIX.EXTRACT.A300.T310FD | D93: 12841.6664 | E93: KG/HR
B94: CMIX.GALACTOS.a300.t310fd | C94: CMIX.EXTRACT.A400.420 | D94: 0 | E94: KG/HR
B95: cmix.galactos.a400.401 | C95: CMIX.EXTRACT.A400.420P | D95: 0 | E95: KG/HR
B96: CMIX.GALACTOS.a400.420 | C96: CMIX.EXTRACT.A800.810 | D96: 0 | E96: KG/HR
B97: CMIX.GALACTOS.a400.420p | C97: CMIX.FURFURAL.A300.306A | D97: 332.869644 | E97: KG/HR
B98: CMIX.GALACTOS.a300.sugmix.s-prod | C98: CMIX.FURFURAL.A600.620 | D98: 1.71099185 | E98: KG/HR
B99: cmix.galaolig.a300.301sug | C99: CMIX.GALACTOS.A300.301 | D99: 1169.00751 | E99: KG/HR
B100: CMIX.GALAOLIG.A300.301 | C100: CMIX.GALACTOS.A300.301 | D100: 1169.00751 | E100: KG/HR
B101: CMIX.GALAOLIG.A300.301 | C101: CMIX.GALACTOS.A300.301SUG | D101: 1169.00751 | E101: KG/HR
B102: CMIX.GALAOLIG.A300.304 | C102: CMIX.GALACTOS.A300.304 | D102: 116.900751 | E102: KG/HR
B103: CMIX.GALAOLIG.A300.306A | C103: CMIX.GALACTOS.A300.306A | D103: 1169.00751 | E103: KG/HR
B104: CMIX.GALAOLIG.A300.311 | C104: CMIX.GALACTOS.A300.311 | D104: 0 | E104: KG/HR
B105: CMIX.GALAOLIG.a300.t310fd | C105: CMIX.GALACTOS.A300.SUGMIX.S-PROD | D105: 1152.0569 | E105: KG/HR
B106: CMIX.GALAOLIG.a400.401 | C106: CMIX.GALACTOS.A300.T310FD | D106: 1169.00751 | E106: KG/HR
B107: CMIX.GALAOLIG.a400.420 | C107: CMIX.GALACTOS.A400.401 | D107: 0 | E107: KG/HR
B108: CMIX.GALAOLIG.a400.420p | C108: CMIX.GALACTOS.A400.420 | D108: 0 | E108: KG/HR
B109: cmix.glucolig.a300.301sug | C109: CMIX.GALACTOS.A400.420P | D109: 0 | E109: KG/HR
B110: CMIX.GLUCOLIG.A300.301 | C110: CMIX.GALAOLIG.A300.301 | D110: 28.3396613 | E110: KG/HR
B111: CMIX.GLUCOLIG.A300.301 | C111: CMIX.GALAOLIG.A300.301 | D111: 28.3396613 | E111: KG/HR
B112: CMIX.GLUCOLIG.A300.304 | C112: CMIX.GALAOLIG.A300.301SUG | D112: 28.3396613 | E112: KG/HR
B113: CMIX.GLUCOLIG.A300.306A | C113: CMIX.GALAOLIG.A300.304 | D113: 2.83396613 | E113: KG/HR
B114: CMIX.GLUCOLIG.A300.311 | C114: CMIX.GALAOLIG.A300.306A | D114: 28.3396613 | E114: KG/HR
B115: CMIX.GLUCOLIG.a300.t310fd | C115: CMIX.GALAOLIG.A300.311 | D115: 0 | E115: KG/HR
B116: CMIX.GLUCOLIG.a400.401 | C116: CMIX.GALAOLIG.A300.T310FD | D116: 28.3396613 | E116: KG/HR
B117: CMIX.GLUCOLIG.a400.420 | C117: CMIX.GALAOLIG.A400.401 | D117: 0 | E117: KG/HR
B118: CMIX.GLUCOLIG.a400.420p | C118: CMIX.GALAOLIG.A400.420 | D118: 0 | E118: KG/HR
B119: CMIX.GLUCOLIG.A800.810 | C119: CMIX.GALAOLIG.A400.420P | D119: 0 | E119: KG/HR
B120: cmix.glucose.101 | C120: CMIX.GLUCOLIG.A300.301 | D120: 86.8273813 | E120: KG/HR
B121: cmix.glucose.a300.301sug | C121: CMIX.GLUCOLIG.A300.301 | D121: 86.8273813 | E121: KG/HR
B122: CMIX.GLUCOSE.A300.301 | C122: CMIX.GLUCOLIG.A300.301SUG | D122: 1382.00237 | E122: KG/HR
B123: CMIX.GLUCOSE.A300.301 | C123: CMIX.GLUCOLIG.A300.304 | D123: 138.200237 | E123: KG/HR
B124: CMIX.GLUCOSE.A300.304 | C124: CMIX.GLUCOLIG.A300.306A | D124: 1382.00237 | E124: KG/HR
B125: CMIX.GLUCOSE.A300.306A | C125: CMIX.GLUCOLIG.A300.311 | D125: 0 | E125: KG/HR
B126: cmix.glucose.A300.308a | C126: CMIX.GLUCOLIG.A300.T310FD | D126: 86.8273813 | E126: KG/HR
B127: CMIX.GLUCOSE.A300.311 | C127: CMIX.GLUCOLIG.A400.401 | D127: 0 | E127: KG/HR
B128: cmix.glucose.a300.f300fd | C128: CMIX.GLUCOLIG.A400.420 | D128: 0 | E128: KG/HR
B129: CMIX.GLUCOSE.a300.t310fd | C129: CMIX.GLUCOLIG.A400.420P | D129: 0 | E129: KG/HR
B130: cmix.glucose.a400.401 | C130: CMIX.GLUCOLIG.A800.810 | D130: 0 | E130: KG/HR
B131: CMIX.GLUCOSE.a400.420 | C131: CMIX.GLUCOSE.101 | D131: 0 | E131: KG/HR
B132: CMIX.GLUCOSE.a400.420p | C132: CMIX.GLUCOSE.A300.301 | D132: 3521.37949 | E132: KG/HR
B133: cmix.glucose.a300.sugmix.s-prod | C133: CMIX.GLUCOSE.A300.301 | D133: 3521.37949 | E133: KG/HR
B134: CMIX.H2O.101 | C134: CMIX.GLUCOSE.A300.301SUG | D134: 29424.8012 | E134: KG/HR
B135: CMIX.H2O.703 | C135: CMIX.GLUCOSE.A300.304 | D135: 147.124006 | E135: KG/HR
B136: cmix.h2o.710 | C136: CMIX.GLUCOSE.A300.306A | D136: 29424.8012 | E136: KG/HR
B137: cmix.h2o.903 | C137: CMIX.GLUCOSE.A300.308A | D137: 25830.5617 | E137: KG/HR
B138: cmix.h2o.a200.216 | C138: CMIX.GLUCOSE.A300.311 | D138: 0 | E138: KG/HR
B139: CMIX.H2O.A200.217 | C139: CMIX.GLUCOSE.A300.F300FD | D139: 26629.4451 | E139: KG/HR
B140: cmix.h2o.a200.222 | C140: CMIX.GLUCOSE.A300.SUGMIX.S-PROD | D140: 28998.1415 | E140: KG/HR
B141: cmix.h2o.a200.223 | C141: CMIX.GLUCOSE.A300.T310FD | D141: 3521.37949 | E141: KG/HR
B142: cmix.h2o.a200.228 | C142: CMIX.GLUCOSE.A400.401 | D142: 2396.23855 | E142: KG/HR
B143: cmix.h2o.a200.233 | C143: CMIX.GLUCOSE.A400.420 | D143: 0 | E143: KG/HR
B144: cmix.h2o.a200.239 | C144: CMIX.GLUCOSE.A400.420P | D144: 0 | E144: KG/HR
B145: cmix.h2o.a200.274 | C145: CMIX.H2O.101 | D145: 20833.3333 | E145: KG/HR
B146: cmix.h2o.a200.m207fd | C146: CMIX.H2O.703 | D146: 106.867453 | E146: KG/HR
B147: cmix.h2o.a300.303 | C147: CMIX.H2O.710 | D147: 138.642764 | E147: KG/HR
B148: cmix.h2o.a300.304b | C148: CMIX.H2O.903 | D148: 148979.982 | E148: KG/HR
B149: cmix.h2o.a300.306 | C149: CMIX.H2O.A200.216 | D149: 24451.4023 | E149: KG/HR
B150: cmix.h2o.a300.306a | C150: CMIX.H2O.A200.217 | D150: 223437.303 | E150: KG/HR
B151: cmix.h2o.a300.308 | C151: CMIX.H2O.A200.222 | D151: 203949.169 | E151: KG/HR
B152: cmix.h2o.a300.309 | C152: CMIX.H2O.A200.223 | D152: 203949.169 | E152: KG/HR
B153: cmix.h2o.a300.f300fd | C153: CMIX.H2O.A200.228 | D153: 340201.496 | E153: KG/HR
B154: cmix.h2o.a300.t310fd | C154: CMIX.H2O.A200.233 | D154: 0.0226926594 | E154: KG/HR
B155: cmix.h2o.a400.401 | C155: CMIX.H2O.A200.239 | D155: 340201.519 | E155: KG/HR
B156: cmix.h2o.a400.403 | C156: CMIX.H2O.A200.274 | D156: 149939.194 | E156: KG/HR
B157: cmix.h2o.a400.407 | C157: CMIX.H2O.A200.M207FD | D157: 225887.61 | E157: KG/HR
B158: cmix.h2o.a400.408a | C158: CMIX.H2O.A300.303 | D158: 35054.7465 | E158: KG/HR
B159: cmix.h2o.a400.411 | C159: CMIX.H2O.A300.304B | D159: 35191.8349 | E159: KG/HR
B160: cmix.h2o.a400.418 | C160: CMIX.H2O.A300.306 | D160: 353137.733 | E160: KG/HR
B161: cmix.h2o.a400.420 | C161: CMIX.H2O.A300.306A | D161: 350547.465 | E161: KG/HR
B162: cmix.h2o.a400.420a | C162: CMIX.H2O.A300.308 | D162: 351236.147 | E162: KG/HR
B163: cmix.h2o.a400.420p | C163: CMIX.H2O.A300.309 | D163: 105.513165 | E163: KG/HR
B164: cmix.h2o.a400.423 | C164: CMIX.H2O.A300.F300FD | D164: 351121.82 | E164: KG/HR
B165: cmix.h2o.a400.435 | C165: CMIX.H2O.A300.T310FD | D165: 353137.733 | E165: KG/HR
B166: cmix.h2o.a400.450 | C166: CMIX.H2O.A400.401 | D166: 422.865627 | E166: KG/HR
B167: cmix.h2o.a400.450 | C167: CMIX.H2O.A400.403 | D167: 658.841163 | E167: KG/HR
B168: cmix.h2o.a400.f400in | C168: CMIX.H2O.A400.407 | D168: 3.91426389 | E168: KG/HR
B169: cmix.h2o.a500.515 | C169: CMIX.H2O.A400.408A | D169: 744.211718 | E169: KG/HR
B170: cmix.h2o.a500.524 | C170: CMIX.H2O.A400.411 | D170: 13225.7328 | E170: KG/HR
B171: CMIX.H2O.A500.550 | C171: CMIX.H2O.A400.418 | D171: 15103.7055 | E171: KG/HR
B172: cmix.h2o.a500.evap.557 | C172: CMIX.H2O.A400.420 | D172: 12936.2148 | E172: KG/HR
B173: cmix.h2o.a600.602 | C173: CMIX.H2O.A400.420A | D173: 14373.572 | E173: KG/HR
B174: cmix.h2o.a600.602g | C174: CMIX.H2O.A400.420P | D174: 0 | E174: KG/HR
B175: cmix.h2o.a600.617 | C175: CMIX.H2O.A400.423 | D175: 730.133518 | E175: KG/HR
B176: cmix.h2o.a600.620 | C176: CMIX.H2O.A400.435 | D176: 36.4610175 | E176: KG/HR
B177: cmix.h2o.a600.620b | C177: CMIX.H2O.A400.450 | D177: 632.419979 | E177: KG/HR
B178: cmix.h2o.a600.620c | C178: CMIX.H2O.A400.450 | D178: 632.419979 | E178: KG/HR
B179: cmix.h2o.a600.621 | C179: CMIX.H2O.A400.F400IN | D179: 13906.0381 | E179: KG/HR
B180: cmix.h2o.a600.622 | C180: CMIX.H2O.A500.515 | D180: 106.867453 | E180: KG/HR
B181: cmix.h2o.a600.624 | C181: CMIX.H2O.A500.524 | D181: 26568.1656 | E181: KG/HR
B182: cmix.h2o.a600.627 | C182: CMIX.H2O.A500.550 | D182: 518.634362 | E182: KG/HR
B183: cmix.h2o.a600.630 | C183: CMIX.H2O.A500.EVAP.557 | D183: 236.587179 | E183: KG/HR
B184: cmix.h2o.a600.632 | C184: CMIX.H2O.A600.602 | D184: 383627.923 | E184: KG/HR
B185: cmix.h2o.a600.944 | C185: CMIX.H2O.A600.602G | D185: 382874.274 | E185: KG/HR
B186: cmix.h2o.a700.735 | C186: CMIX.H2O.A600.617 | D186: 462802.029 | E186: KG/HR
B187: cmix.h2o.a800.2 | C187: CMIX.H2O.A600.620 | D187: 2589751.23 | E187: KG/HR
B188: cmix.h2o.a800.3 | C188: CMIX.H2O.A600.620B | D188: 2594079.42 | E188: KG/HR
B189: cmix.h2o.a800.571 | C189: CMIX.H2O.A600.620C | D189: 2589221.61 | E189: KG/HR
B190: cmix.h2o.a800.623 | C190: CMIX.H2O.A600.621 | D190: 2121197.35 | E190: KG/HR
B191: cmix.h2o.a800.801 | C191: CMIX.H2O.A600.622 | D191: 4328.19637 | E191: KG/HR
B192: cmix.h2o.a800.801 | C192: CMIX.H2O.A600.624 | D192: 380168.119 | E192: KG/HR
B193: cmix.h2o.a800.803 | C193: CMIX.H2O.A600.627 | D193: 4949.27645 | E193: KG/HR
B194: cmix.h2o.a800.804 | C194: CMIX.H2O.A600.630 | D194: 4357.01757 | E194: KG/HR
B195: cmix.h2o.a800.805 | C195: CMIX.H2O.A600.632 | D195: 2242.7462 | E195: KG/HR
B196: cmix.h2o.a800.807 | C196: CMIX.H2O.A600.944 | D196: 17766.9598 | E196: KG/HR
B197: cmix.h2o.a800.810 | C197: CMIX.H2O.A700.735 | D197: 662.23727 | E197: KG/HR
B198: CMIX.H2O.A800.810 | C198: CMIX.H2O.A800.2 | D198: 54768.8453 | E198: KG/HR
B199: cmix.h2o.a800.a810.821v | C199: CMIX.H2O.A800.3 | D199: 3573.55194 | E199: KG/HR
B200: cmix.h2o.a900.906a | C200: CMIX.H2O.A800.571 | D200: 12956.9532 | E200: KG/HR
... 417 more rows

Sheet Cost Breakdown
A1: Portion of MESP for each cost in each area | M1: SOT Table Column | P1: Enzyme Cost Breakdown | Q1: $/gal | R1: Labels
A2: AREA | C2: Capital Recovery Charge | D2: Raw Materials & Waste | E2: Process Electricity | F2: Grid Electricity | G2: Total Plant Electricity | H2: Fixed Costs | I2: Area Totals | J2: Labels | M2: Minimum Ethanol Selling Price | N2: =Summary!D5 -> 2.160891665 | P2: Capital | Q2: =C6 -> 0.06731136784 | R2: =Q2/$Q$8 -> 0.2024549977
A3: NONE | B3: ="Feedstock + Handling: "&J3 -> Feedstock + Handling: 74.7¢ | C3: 0 | D3: =OPEX!$M$12/100 -> 0.7473901822 | E3: 0 | F3: 0 | G3: 0 | H3: 0 | I3: =D3 -> 0.7473901822 | J3: =TEXT(100*I3,"0.0") & "¢" -> 74.7¢ | K3: Feedstock | M3: Feedstock Contribution | N3: =Summary!D8 -> 0.7473901822 | P3: Glucose | Q3: =OPEX!M19/100 -> 0.193426552 | R3: =Q3/$Q$8 -> 0.5817765023
A4: A200 | B4: ="Pretreatment / Conditioning: "&J4 -> Pretreatment / Conditioning: 29.0¢ | C4: =(CAPEX200/CAPEX)*((Summary!$F$27+Summary!$F$29+Summary!$F$28)/100) -> 0.1301414954 | D4: =(OPEX!$M$13+OPEX!$M$14)/100 -> 0.0900459377 | E4: =('Operating Summaries'!$H$17*OPEX!$B$7*OPEX!$J$35)/(OPEX!$B$3*1000000) -> 0.04514892175 | F4: 0 | G4: 0 | H4: =(CAPEX200/CAPEX)*(Summary!$F$26/100) -> 0.02504371171 | I4: =SUM(C4:H4) -> 0.2903800666 | J4: 29.0¢ | K4: Area 200 | M4: Enzyme Contribution | N4: =Summary!D9 -> 0.3324757037 | P4: Other Nutrients | Q4: =D6-Q3 -> 0.01671146366 | R4: =Q4/$Q$8 -> 0.05026371392
A5: A300 | B5: ="Enzymatic Hydrolysis and Fermentation: "&J5 -> Enzymatic Hydrolysis and Fermentation: 20.4¢ | C5: =(CAPEX300/CAPEX)*((Summary!$F$27+Summary!$F$29+Summary!$F$28)/100) -> 0.1234032264 | D5: =SUM(OPEX!$M$15:'OPEX'!$M$17)/100 -> 0.03551142023 | E5: =('Operating Summaries'!$H$18*OPEX!$B$7*OPEX!$J$35)/(OPEX!$B$3*1000000) -> 0.02114794231 | F5: 0 | G5: 0 | H5: =(CAPEX300/CAPEX)*(Summary!$F$26/100) -> 0.02374703638 | I5: 0.2038096253 | J5: 20.4¢ | K5: Area 300 | M5: Non-Enzyme Contribution | N5: =Summary!D10 -> 1.081025779 | P5: Electricity | Q5: =E6 -> 0.04207329177 | R5: =Q5/$Q$8 -> 0.1265454627
A6: A400 | B6: ="Cellulase Enzyme: "&J6 -> Cellulase Enzyme: 33.2¢ | C6: =(CAPEX400/CAPEX)*((Summary!$F$27+Summary!$F$29+Summary!$F$28)/100) -> 0.06731136784 | D6: =SUM(OPEX!$M$18:'OPEX'!$M$23)/100 -> 0.2101380157 | E6: =('Operating Summaries'!$H$19*OPEX!$B$7*OPEX!$J$35)/(OPEX!$B$3*1000000) -> 0.04207329177 | F6: 0 | G6: 0 | H6: =(CAPEX400/CAPEX)*(Summary!$F$26/100) -> 0.01295302844 | I6: 0.3324757037 | J6: 33.2¢ | K6: Area 400 | M6: TCI/Annual Gallon | N6: =Summary!B36 -> 6.939643201 | P6: Fixed Costs | Q6: =H6 -> 0.01295302844 | R6: =Q6/$Q$8 -> 0.03895932332
A7: A500 | B7: ="Distillation and Solids Recovery: "&J7 -> Distillation and Solids Recovery: 12.2¢ | C7: =(CAPEX500/CAPEX)*((Summary!$F$27+Summary!$F$29+Summary!$F$28)/100) -> 0.08813004467 | D7: 0 | E7: =('Operating Summaries'!$H$20*OPEX!$B$7*OPEX!$J$35)/(OPEX!$B$3*1000000) -> 0.01683206909 | F7: 0 | G7: 0 | H7: =(CAPEX500/CAPEX)*(Summary!$F$26/100) -> 0.0169592598 | I7: 0.1219213736 | J7: 12.2¢ | K7: Area 500 | M7: Yield (gal/ton) | N7: =Summary!D13 -> 78.28586027
A8: A600 | B8: ="Wastewater Treatment: "&J8 -> Wastewater Treatment: 33.7¢ | C8: =(CAPEX600/CAPEX)*((Summary!$F$27+Summary!$F$29+Summary!$F$28)/100) -> 0.1942397245 | D8: =SUM(OPEX!$M$24)/100 -> 0.04663949611 | E8: =('Operating Summaries'!$H$21*OPEX!$B$7*OPEX!$J$35)/(OPEX!$B$3*1000000) -> 0.05830259728 | F8: 0 | G8: 0 | H8: =(CAPEX600/CAPEX)*(Summary!$F$26/100) -> 0.03737842145 | I8: 0.3365602394 | J8: 33.7¢ | K8: Area 600 | P8: Area total | Q8: =SUM(Q2:Q6) -> 0.3324757037 | R8: =TEXT(Q8,"$#,##0.00") & "/gal ethanol" -> $0.33/gal ethanol
A9: A700 | B9: ="Storage: "&J9 -> Storage: 2.3¢ | C9: =(CAPEX700/CAPEX)*((Summary!$F$27+Summary!$F$29+Summary!$F$28)/100) -> 0.01945070039 | D9: 0 | E9: =('Operating Summaries'!$H$22*OPEX!$B$7*OPEX!$J$35)/(OPEX!$B$3*1000000) -> 8.601742465e-05 | F9: 0 | G9: 0 | H9: =(CAPEX700/CAPEX)*(Summary!$F$26/100) -> 0.003742985522 | I9: 0.02327970334 | J9: 2.3¢ | K9: Area 700 | M9: Technical Targets
A10: A800 | B10: ="Boiler/Turbogenerator: "&J10 -> Boiler/Turbogenerator: (Net) 4.1¢ | C10: =(CAPEX800/CAPEX)*((Summary!$F$27+Summary!$F$29+Summary!$F$28)/100) -> 0.2607702446 | D10: =(OPEX!$M$32+SUM(OPEX!$M$25:$M$27))/100 -> 0.050107422 | E10: =('Operating Summaries'!$H$23*OPEX!$B$7*OPEX!$J$35)/(OPEX!$B$3*1000000) -> 0.01092549876 | F10: =((('Operating Summaries'!$H$15*OPEX!$B$7*OPEX!$J$35)/(OPEX!$B$3*1000000)))-G10 -> -0.1112337853 | G10: =-E12 -> -0.2195891879 | H10: =(CAPEX800/CAPEX)*(Summary!$F$26/100) -> 0.05018118784 | I10: 0.04116138 | J10: ="(Net) " & TEXT(100*I10,"0.0") & "¢" -> (Net) 4.1¢ | K10: Area 800 | M10: Feedstock | P10: $/kg protein | Q10: =Q8*ETOHRATE/'Set-up'!B39/3.785/'Operating Summaries'!F56 -> 4.169658866 | R10: =TEXT(Q10,"$#,##0.00") & "/kg protein" -> $4.17/kg protein
A11: A900 | B11: ="Utilities: "&J11 -> Utilities: 6.4¢ | C11: =(CAPEX900/CAPEX)*((Summary!$F$27+Summary!$F$29+Summary!$F$28)/100) -> 0.02723523001 | D11: =((OPEX!$M$29/100)+(OPEX!$M$28/100)) -> 0.006364314025 | E11: =('Operating Summaries'!$H$24*OPEX!$B$7*OPEX!$J$35)/(OPEX!$B$3*1000000) -> 0.02507284955 | F11: 0 | G11: 0 | H11: =(CAPEX900/CAPEX)*(Summary!$F$26/100) -> 0.005240997474 | I11: 0.06391339107 | J11: =TEXT(100*I11,"0.0") & "¢" -> 6.4¢ | K11: Area 900 | M11: Feedstock cost $/dt | N11: =OPEX!I7 -> 58.5 | P11: $/L product | Q11: =Q10*'Operating Summaries'!F58/1000 -> 0.1663592411 | R11: =TEXT(Q11,"$#,##0.00") & "/L broth" -> $0.17/L broth
B12: NET SUMMATION | C12: =SUM(C3:C11) -> 0.9106820339 | D12: 1.186196788 | E12: 0.2195891879 | F12: -0.1112337853 | G12: -0.2195891879 | H12: 0.1752466286 | I12: 2.160891665 | J12: =TEXT(I12,"$0.00") & " MESP" -> $2.16 MESP | K12: RESULT | M12: Pretreatment
A13: % of MESP for each cost in each area | M13: Overall Xylan to Xylose | N13: ='Operating Summaries'!D18 -> 0.9
A14: AREA | C14: Capital Recovery Charge | D14: Raw Materials & Waste | E14: Process Electricity | F14: Grid Electricity | G14: Total Plant Electricity | H14: Fixed Costs | I14: Area Totals | J14: Labels | M14: Xylan to Degradation | N14: ='Operating Summaries'!D19+'Operating Summaries'!D20 -> 0.05
A15: NONE | B15: Feedstock + Handling | C15: =C3/DCFROR!$B$35 -> 0 | D15: =D3/DCFROR!$B$35 -> 0.3458711949 | E15: =E3/DCFROR!$B$35 -> 0 | F15: =F3/DCFROR!$B$35 -> 0 | G15: =G3/DCFROR!$B$35 -> 0 | H15: =H3/DCFROR!$B$35 -> 0 | I15: =D15 -> 0.3458711949 | J15: =TEXT(I15,"0%") -> 35% | K15: Feedstock | M15: Hydrolyzate S/L sep | N15: =IF(VLOOKUP("strm.a200.254b",INDIRECT(LU_SENS),2,FALSE)>0, "Yes","No") -> No
A16: A200 | B16: Pretreatment & Conditioning | C16: =C4/DCFROR!$B$35 -> 0.06022583063 | D16: =D4/DCFROR!$B$35 -> 0.04167073212 | E16: =E4/DCFROR!$B$35 -> 0.02089365353 | F16: =F4/DCFROR!$B$35 -> 0 | G16: =G4/DCFROR!$B$35 -> 0 | H16: =H4/DCFROR!$B$35 -> 0.01158952673 | I16: =SUM(C16:H16) -> 0.134379743 | J16: 13% | K16: Area 200 | M16: Xylose sugar loss | N16: ='Operating Summaries'!F6 -> 0.01
A17: A300 | B17: Enzymatic Hydrolysis & Fermentation | C17: =C5/DCFROR!$B$35 -> 0.0571075489 | D17: =D5/DCFROR!$B$35 -> 0.01643368837 | E17: =E5/DCFROR!$B$35 -> 0.009786674019 | F17: =F5/DCFROR!$B$35 -> 0 | G17: =G5/DCFROR!$B$35 -> 0 | H17: =H5/DCFROR!$B$35 -> 0.01098946179 | I17: 0.09431737308 | J17: 9% | K17: Area 300 | M17: Glucose sugar loss | N17: ='Operating Summaries'!F8 -> 0
A18: A400 | B18: Cellulase Enzyme | C18: =C6/DCFROR!$B$35 -> 0.03114981141 | D18: =D6/DCFROR!$B$35 -> 0.09724597446 | E18: =E6/DCFROR!$B$35 -> 0.01947033831 | F18: =F6/DCFROR!$B$35 -> 0 | G18: =G6/DCFROR!$B$35 -> 0 | H18: =H6/DCFROR!$B$35 -> 0.005994297932 | I18: 0.1538604221 | J18: 15% | K18: Area 400 | M18: Enz Hyd & Ferm
A19: A500 | B19: Distillation and Solids Recovery | C19: =C7/DCFROR!$B$35 -> 0.04078411061 | D19: =D7/DCFROR!$B$35 -> 0 | E19: =E7/DCFROR!$B$35 -> 0.007789409048 | F19: =F7/DCFROR!$B$35 -> 0 | G19: =G7/DCFROR!$B$35 -> 0 | H19: =H7/DCFROR!$B$35 -> 0.00784826934 | I19: 0.05642178899 | J19: 6% | K19: Area 500 | M19: Enzyme loading mg/g | N19: =Summary!F45 -> 19.92485548
A20: A600 | B20: Wastewater Treatment | C20: =C8/DCFROR!$B$35 -> 0.08988869165 | D20: =D8/DCFROR!$B$35 -> 0.02158344949 | E20: =E8/DCFROR!$B$35 -> 0.0269808053 | F20: =F8/DCFROR!$B$35 -> 0 | G20: =G8/DCFROR!$B$35 -> 0 | H20: =H8/DCFROR!$B$35 -> 0.01729768413 | I20: 0.1557506306 | J20: 16% | K20: Area 600 | M20: Combined sacc & ferm time (d) | N20: ='Operating Summaries'!D46+'Operating Summaries'!F17 -> 5
A21: A700 | B21: Storage | C21: =C9/DCFROR!$B$35 -> 0.009001238103 | D21: =D9/DCFROR!$B$35 -> 0 | E21: =E9/DCFROR!$B$35 -> 3.980644937e-05 | F21: =F9/DCFROR!$B$35 -> 0 | G21: =G9/DCFROR!$B$35 -> 0 | H21: =H9/DCFROR!$B$35 -> 0.001732148623 | I21: 0.01077319318 | J21: 1% | K21: Area 700 | M21: CSL loading (wt%) | N21: ='Operating Summaries'!F51 -> 0.002500000003
A22: A800 | B22: Boiler/Turbogenerator | C22: =C10/DCFROR!$B$35 -> 0.1206771486 | D22: =D10/DCFROR!$B$35 -> 0.02318830824 | E22: =E10/DCFROR!$B$35 -> 0.005056014117 | F22: =F10/DCFROR!$B$35 -> -0.05147587316 | G22: =G10/DCFROR!$B$35 -> -0.1016197117 | H22: =H10/DCFROR!$B$35 -> 0.023222445 | I22: 0.01904833114 | J22: =TEXT(I22,"0%") & " (Net)" -> 2% (Net) | K22: Area 800 | M22: Overal celluose to ethanol | N22: ='Operating Summaries'!D50*'Operating Summaries'!F19 -> 0.855
A23: A900 | B23: Utilities | C23: =C11/DCFROR!$B$35 -> 0.01260369988 | D23: =D11/DCFROR!$B$35 -> 0.002945225866 | E23: =E11/DCFROR!$B$35 -> 0.01160301091 | F23: =F11/DCFROR!$B$35 -> 0 | G23: =G11/DCFROR!$B$35 -> 0 | H23: =H11/DCFROR!$B$35 -> 0.002425386501 | I23: 0.02957732315 | J23: =TEXT(I23,"0%") -> 3% | K23: Area 900 | M23: Xylose to ethanol | N23: ='Operating Summaries'!F25 -> 0.85
B24: NET SUMMATION | C24: =SUM(C15:C23) -> 0.4214380798 | D24: 0.5489385735 | E24: 0.1016197117 | F24: -0.05147587316 | G24: -0.1016197117 | H24: 0.08109922004 | I24: 1 | K24: RESULT | M24: Arabinose to ethanol | N24: ='Operating Summaries'!F32 -> 0.85
M25: Operating Parameters
M26: Solids Loading (wt%) | N26: ='Operating Summaries'!D7 -> 0.3004665688
M27: Pt Temperature (°C) | N27: ='Operating Summaries'!D10 -> 158
M28: Acid loading mg/g | N28: ='Operating Summaries'!D6 -> 22.09999994
M29: Oligomer hold step | N29: ??
M30: Ammonia loading g/L | N30: ='Operating Summaries'!F4 -> 4.73723974
M31: Conditioning Mode | N31: =IF(VLOOKUP("strm.a200.254b",INDIRECT(LU_SENS),2,FALSE)>0, "Liquor","Whole-slurry") -> Whole-slurry
M32: Sacc mode | N32: =IF(VLOOKUP("strm.a200.301liq",INDIRECT(LU_SENS),2,FALSE)>0, "Washed-solids","Whole-slurry") -> Whole-slurry
M33: Total solids loading | N33: ='Operating Summaries'!D42 -> 0.2001020186
M34: Model name | N34: =CASEID -> DW1111A
M35: additional MYPP numbers
M36: lb stm/gal ethanol | N36: ='Operating Summaries'!H14*OPEX!B7/(OPEX!B3*1000000)*2.205 -> 72.37486929
M37: elec coprod $/gal | N37: =Summary!F25/100 -> -0.1112337855
M38: elec coprod kwh/gal | N38: =Summary!F49 -> 1.826232744
M39: total elec prodn kwh/gal | N39: =Summary!F49+Summary!F50 -> 5.786901455
M40: water gal/gal | N40: =Summary!F51 -> 5.472809209
P42: WWT | Q42: =I8 -> 0.3365602394 | R42: /gal
Q43: =Q42*ETHMMGAL -> 20.35469669 | R43: $MM/yr
P44: COD | Q44: ='Operating Summaries'!H39 -> 26416.2033 | R44: kg/hr
Q46: =Q43/OPHOURS/Q44*1000000 -> 0.09162167794 | R46: /kg COD
B58: Feedstock | C58: =$I$15 -> 0.3458711949
B59: Enzyme | C59: =$I$18 -> 0.1538604221
B60: Wastewater Treatment | C60: =$I$20 -> 0.1557506306
B61: Pre-treatment | C61: =$I$16 -> 0.134379743
B62: Enz. Hydr. & Ferm. | C62: =$I$17 -> 0.09431737308
B63: Recovery | C63: =$I$19 -> 0.05642178899
B64: Utilities | C64: =$I$23 -> 0.02957732315
B65: Boiler/Generator | C65: =$I$22 -> 0.01904833114
B66: Storage | C66: =$I$21 -> 0.01077319318

Sheet Energy Bal
B1: Col # in aspen2 | F1: AREA 200 | H1: IN | I1: OUT | J1: Closure | R1: AREA 300 | T1: IN | U1: OUT | V1: Closure | AC1: AREA 400 | AE1: IN | AF1: OUT | AG1: Closure | AP1: Area 500 | AR1: IN | AS1: OUT | AT1: Closure | BE1: Distillation | BG1: IN | BH1: OUT | BI1: Closure | BQ1: Lignin Separation | BT1: IN | BU1: OUT | BV1: Closure | BY1: AREA 800 | CA1: IN | CB1: OUT | CC1: Closure | CH1: Combustor | CJ1: IN | CK1: OUT | CL1: Closure | CN1: A810 Steam Section | CP1: IN | CQ1: OUT | CR1: Closure | CU1: WWT AREA 600 | CW1: IN | CX1: OUT | CY1: Closure | DJ1: T608 Aerobic Dig | DL1: IN | DM1: OUT | DN1: Closure | DT1: IN | DU1: OUT | DV1: Closure | DX1: T606 Biogas | DZ1: IN | EA1: OUT | EB1: Closure | ED1: T606 Biomass | EF1: IN | EG1: OUT | EH1: Closure | EJ1: Cooling tower | EL1: IN | EM1: OUT | EN1: Closure | EP1: Brine evap | ER1: IN | ES1: OUT | ET1: Closure | FC1: OVERALL BALANCE | FE1: IN | FF1: OUT | FG1: Closure | GQ1: INPUTS | GT1: OUTPUTS | GX1: Intermediate
F2: Mass | G2: kg/hr | H2: =SUM(F9:N9) -> 463547.1066 | I2: =SUM(O9:P9) -> 463546.983 | J2: =1-(H2-I2)/H2 -> 0.9999997334 | R2: Mass | S2: kg/hr | T2: =SUM(R9:X9) -> 472203.9393 | U2: =SUM(Y9:AA9) -> 472203.6094 | V2: =1-(T2-U2)/T2 -> 0.9999993014 | AC2: Mass | AD2: kg/hr | AE2: =SUM(AC9:AK9) -> 47223.78266 | AF2: =SUM(AL9:AN9) -> 47223.79397 | AG2: =1-(AE2-AF2)/AE2 -> 1.00000024 | AP2: Mass | AQ2: kg/hr | AR2: =SUM(AP9:AU9) -> 2095248.614 | AS2: =SUM(AV9:BC9) -> 2095248.621 | AT2: =1-(AR2-AS2)/AR2 -> 1.000000003 | BE2: Mass | BF2: kg/hr | BG2: =SUM(BE9:BI9) -> 2083134.663 | BH2: =SUM(BJ9:BO9) -> 2083134.668 | BI2: =1-(BG2-BH2)/BG2 -> 1.000000003 | BQ2: Mass | BR2: kg/hr | BT2: =SUM(BQ9:BR9) -> 403903.2568 | BU2: =SUM(BT9:BV9) -> 403903.2576 | BV2: =1-(BT2-BU2)/BT2 -> 1.000000002 | BY2: Mass | BZ2: kg/hr | CA2: =SUM(BY9:CD9) -> 369178.2596 | CB2: =SUM(CE9:CF9) -> 369178.2397 | CC2: =1-(CA2-CB2)/CA2 -> 0.9999999461 | CH2: Mass | CI2: kg/hr | CJ2: =SUM(CH9:CI9) -> 364706.0026 | CK2: =SUM(CJ9) -> 364705.984 | CL2: =1-(CJ2-CK2)/CJ2 -> 0.999999949 | CN2: Mass | CO2: kg/hr | CP2: =SUM(CN9:CO9) -> 35306.8278 | CQ2: =SUM(CP9:CS9) -> 35308.33054 | CR2: =1-(CP2-CQ2)/CP2 -> 1.000042562 | CU2: Mass | CV2: kg/hr | CW2: =SUM(CU9:DC9) -> 639179.4327 | CX2: =SUM(DD9:DH9) -> 639182.3165 | CY2: =1-(CW2-CX2)/CW2 -> 1.000004512 | DJ2: Mass | DK2: kg/hr | DL2: =SUM(DJ9:DN9) -> 2870971.934 | DM2: =SUM(DO9:DP9) -> 2870971.94 | DN2: =1-(DL2-DM2)/DL2 -> 1.000000002 | DR2: Mass | DS2: kg/hr | DT2: =SUM(DR9:DS9) -> 40847.2097 | DU2: =SUM(DT9) -> 40847.2142 | DV2: =1-(DT2-DU2)/DT2 -> 1.00000011 | DX2: Mass | DY2: kg/hr | DZ2: =SUM(DX9:DY9) -> 40847.2097 | EA2: =SUM(DZ9) -> 40847.2142 | EB2: =1-(DZ2-EA2)/DZ2 -> 1.00000011 | ED2: Mass | EE2: kg/hr | EF2: =SUM(ED9:ED9) -> 1073.27861 | EG2: =SUM(EE9) -> 1073.27861 | EH2: =1-(EF2-EG2)/EF2 -> 1 | EJ2: Mass | EK2: kg/hr | EL2: =SUM(EJ9:EK9) -> 6703588.254 | EM2: =SUM(EL9:EM9) -> 6704501.464 | EN2: =1-(EL2-EM2)/EL2 -> 1.000136227 | EP2: Mass | EQ2: kg/hr | ER2: =SUM(EP9:EP9) -> 81295.9158 | ES2: =SUM(EQ9:ES9) -> 81295.91578 | ET2: =1-(ER2-ES2)/ER2 -> 0.9999999997 | EV2: A500 ACC | EY2: Cooling tower | FC2: Mass | FD2: kg/hr | FE2: =SUM(FC9:GB9) -> 816631.9871 | FF2: =SUM(GD9:GO9) -> 816637.7163 | FG2: =1-(FE2-FF2)/FF2 -> 1.000007016 | GQ2: A300 Chemicals | GR2: =FG9+FH9+FI9+FJ9 -> 1301.597383 | GS2: kg/hr | GT2: A500 vent | GU2: =GG9+GH9 -> 21397.6873 | GV2: kg/hr
F3: Carbon | G3: kmol/hr | H3: =SUM(F10:N10) -> 3126.896808 | I3: =SUM(O10:P10) -> 3126.89681 | J3: =1-(H3-I3)/H3 -> 1.000000001 | R3: Carbon | S3: kmol/hr | T3: =SUM(R10:X10) -> 3181.365702 | U3: =SUM(Y10:AA10) -> 3179.269914 | V3: =1-(T3-U3)/T3 -> 0.9993412301 | AC3: Carbon | AD3: kmol/hr | AE3: =SUM(AC10:AK10) -> 86.77900633 | AF3: =SUM(AL10:AN10) -> 86.77886718 | AG3: =1-(AE3-AF3)/AE3 -> 0.9999983965 | AP3: Carbon | AQ3: kmol/hr | AR3: =SUM(AP10:AT10) -> 3179.269914 | AS3: =SUM(AV10:BC10) -> 3179.269892 | AT3: =1-(AR3-AS3)/AR3 -> 0.9999999932 | BE3: Carbon | BF3: kmol/hr | BG3: =SUM(BE10:BI10) -> 3179.269914 | BH3: =SUM(BJ10:BO10) -> 3179.269893 | BI3: =1-(BG3-BH3)/BG3 -> 0.9999999935 | BQ3: Carbon | BR3: kmol/hr | BT3: =SUM(BQ10:BR10) -> 1738.287166 | BU3: =SUM(BT10:BV10) -> 1738.287165 | BV3: =1-(BT3-BU3)/BT3 -> 0.9999999994 | BY3: Carbon | BZ3: kmol/hr | CA3: =SUM(BY10:CD10) -> 1680.156261 | CB3: =SUM(CE10:CF10) -> 1680.156265 | CC3: =1-(CA3-CB3)/CA3 -> 1.000000003 | CH3: Carbon | CI3: kmol/hr | CJ3: =SUM(CH10:CI10) -> 1680.156262 | CK3: =SUM(CJ10) -> 1680.156265 | CL3: =1-(CJ3-CK3)/CJ3 -> 1.000000002 | CN3: Carbon | CO3: kmol/hr | CP3: =SUM(CN10:CO10) -> 0 | CQ3: =SUM(CP10:CR10) -> 0 | CR3: =1-(CP3-CQ3)/CP3 ->  | CU3: Carbon | CV3: kmol/hr | CW3: =SUM(CU10:DC10) -> 820.3764269 | CX3: =SUM(DD10:DH10) -> 834.3385086 | CY3: =1-(CW3-CX3)/CW3 -> 1.017019116 | DJ3: Carbon | DK3: kmol/hr | DL3: =SUM(DJ10:DN10) -> 1079.230466 | DM3: =SUM(DO10:DP10) -> 1082.913182 | DN3: =1-(DL3-DM3)/DL3 -> 1.003412353 | DR3: Carbon | DS3: kmol/hr | DT3: =SUM(DR10:DS10) -> 664.0345803 | DU3: =SUM(DT10) -> 664.0345803 | DV3: =1-(DT3-DU3)/DT3 -> 1 | DX3: Carbon | DY3: kmol/hr | DZ3: =SUM(DX10:DY10) -> 664.0345803 | EA3: =SUM(DZ10) -> 664.0345803 | EB3: =1-(DZ3-EA3)/DZ3 -> 1 | ED3: Carbon | EE3: kmol/hr | EF3: =SUM(ED10:ED10) -> 35.90700319 | EG3: =SUM(EE10) -> 46.18635917 | EH3: =1-(EF3-EG3)/EF3 -> 1.28627719 | EJ3: Carbon | EK3: kmol/hr | EL3: =SUM(EJ10:EK10) -> 0 | EM3: =SUM(EL10:EM10) -> 0 | EN3: =IFERROR(1-(EL3-EM3)/EL3,"N/A") -> N/A | EP3: Carbon | EQ3: kmol/hr | ER3: =SUM(EP10:EP10) -> 3.930016571 | ES3: =SUM(EQ10:ES10) -> 3.930016569 | ET3: =1-(ER3-ES3)/ER3 -> 0.9999999993 | EV3: =EW12-EV12-EV23 -> 23.18710739 | EY3: =FA12-EY12-EY23 -> 165.2256263 | FC3: Carbon | FD3: kmol/hr | FE3: =SUM(FC10:GB10) -> 3226.109837 | FF3: =SUM(GD10:GO10) -> 3237.975976 | FG3: =1-(FE3-FF3)/FF3 -> 1.003664678 | GR3: =SUM(FG10:FJ10) -> 22.24575076 | GS3: kmol C/hr | GU3: =GG10+GH10 -> 470.5202018 | GV3: kmol C/hr
F4: Flowing Enthalpy | G4: MMkcal/hr | H4: =(SUM(F12:N12)+F20) -> -1526.469172 | I4: =(SUM(O12:P12)+O20)-SUM(O23:P23) -> -1526.469709 | J4: =1-(H4-I4)/H4 -> 1.000000352 | R4: Flowing Enthalpy | S4: MMkcal/hr | T4: =SUM(R12:X12)+SUM(R20:X20) -> -1560.688075 | U4: =SUM(Y12:AA12)+SUM(Y20:AA20)-SUM(Y23:AA23) -> -1560.329841 | V4: =1-(T4-U4)/T4 -> 0.9997704645 | AC4: Flowing Enthalpy | AD4: MMkcal/hr | AE4: =SUM(AC12:AK12)+SUM(AC20:AK20) -> -51.4865349 | AF4: =SUM(AL12:AN12)+SUM(AL20:AN20)-SUM(AL23:AN23) -> -51.07420189 | AG4: =1-(AE4-AF4)/AE4 -> 0.9919914398 | AI4: There could be errors here due to small flows | AP4: Flowing Enthalpy | AQ4: MMkcal/hr | AR4: =SUM(AP12:AT12)+SUM(AP20:AT20) -> -1781.550771 | AS4: =SUM(AV12:BA12)+SUM(AV20:AX20)-SUM(AV23:AX23) -> -1706.87947 | AT4: =1-(AR4-AS4)/AR4 -> 0.958086347 | BE4: Flowing Enthalpy | BF4: MMkcal/hr | BG4: =SUM(BE12:BI12)+SUM(BE20:BI20) -> -1781.550771 | BH4: =SUM(BJ12:BO12)+SUM(BJ20:BL20)-SUM(BJ23:BL23) -> -1781.549478 | BI4: =1-(BG4-BH4)/BG4 -> 0.9999992745 | BQ4: Flowing Enthalpy | BR4: MMkcal/hr | BT4: =SUM(BQ12:BR12)-SUM(BQ23:BR23) -> -1360.518373 | BU4: =SUM(BT12:BV12)+SUM(BT20:BV20)-SUM(BT23:BV23) -> -1360.359933 | BV4: =1-(BT4-BU4)/BT4 -> 0.9998835447 | BY4: Flowing Enthalpy | BZ4: MMkcal/hr | CA4: =SUM(BY12:CD12)+SUM(BY20:CD20) -> -180.7995558 | CB4: =SUM(CE12:CF12)+SUM(CE20:CF20)-SUM(CE23) -> -180.287083 | CC4: =1-(CA4-CB4)/CA4 -> 0.9971655197 | CE4: Boiler effcy | CF4: =CE20/SUM(BY17:CD17) -> -0.8728035801 | CH4: Flowing Enthalpy | CI4: MMkcal/hr | CJ4: =SUM(CH12:CI12) -> -151.1925892 | CK4: =(CJ12+CJ20) -> -151.1925813 | CL4: =1-(CJ4-CK4)/CJ4 -> 0.9999999477 | CN4: Flowing Enthalpy | CO4: MMkcal/hr | CP4: =SUM(CN12)+SUM(CN20:CO20)+CN23 -> -27.5796347 | CQ4: =SUM(CP12:CS12)+SUM(CP20:CR20)-SUM(CP23:CR23) -> -27.72542544 | CR4: =1-(CP4-CQ4)/CP4 -> 1.005286174 | CU4: Flowing Enthalpy | CV4: MMkcal/hr | CW4: =SUM(CU12:DC12)+SUM(CU20:DC20)-SUM(CU23:DC23) -> -1518.790459 | CX4: =SUM(DD12:DH12)+SUM(DD20:DH20)-SUM(DD23:DH23) -> -1518.820812 | CY4: =1-(CW4-CX4)/CW4 -> 1.000019985 | DJ4: Flowing Enthalpy | DK4: MMkcal/hr | DL4: =SUM(DJ12:DN12)+SUM(DJ20:DN20)-SUM(DJ23:DN23) -> -9893.856109 | DM4: =SUM(DO12:DP12)+SUM(DO20:DP20)-SUM(DO23:DP23) -> -9890.166761 | DN4: =1-(DL4-DM4)/DL4 -> 0.9996271072 | DR4: Flowing Enthalpy | DS4: MMkcal/hr | DT4: =SUM(DR12:DS12)+DR20 -> -108.6005846 | DU4: =SUM(DT12)+DT20 -> -108.4286276 | DV4: =1-(DT4-DU4)/DT4 -> 0.9984166111 | DX4: Flowing Enthalpy | DY4: MMkcal/hr | DZ4: =SUM(DX12:DY12)+DX20 -> -108.6005846 | EA4: =SUM(DZ12)+DZ20 -> -108.4286276 | EB4: =1-(DZ4-EA4)/DZ4 -> 0.9984166111 | ED4: Flowing Enthalpy | EE4: MMkcal/hr | EF4: =SUM(ED12)+ED20 -> -1.73270955 | EG4: =SUM(EE12)+EE20 -> -1.732709554 | EH4: =1-(EF4-EG4)/EF4 -> 1.000000002 | EJ4: Flowing Enthalpy | EK4: MMkcal/hr | EL4: =SUM(EJ12:EK12)+SUM(EJ20:EK20) -> -899.8610664 | EM4: =SUM(EL12:EM12)-SUM(EL23:EM23)-EL20 -> -903.3096224 | EN4: =1-(EL4-EM4)/EL4 -> 1.003832321 | EP4: Flowing Enthalpy | EQ4: MMkcal/hr | ER4: =SUM(EP12)+EP20 -> -296.080482 | ES4: =SUM(EQ12:ES12)+EQ20-EQ23 -> -296.0804842 | ET4: =1-(ER4-ES4)/ER4 -> 1.000000007 | FC4: Flowing Enthalpy | FD4: MMkcal/hr | FE4: =SUM(FC12:GB12)+SUM(FC20:GB20)-SUM(FC23:GB23) -> -822.3549514 | FF4: =SUM(GD12:GO12)+SUM(GD20:GO20)-SUM(GD23:GO23) -> -823.5312327 | FG4: =1-(FE4-FF4)/FF4 -> 1.001428338 | GR4: =SUM(FG17:FJ17) -> -2.138489366 | GS4: Gcal/hr | GU4: =GG17+GH17 -> -0.06667109293 | GV4: Gcal/hr
F5: Total Heat Flow | G5: MMkcal/hr | H5: =(SUM(F17:N17)-F20) -> -135.2785396 | I5: =(SUM(O17:P17)-O20)+SUM(O23:P23) -> -135.2603092 | J5: =1-(H5-I5)/H5 -> 0.9998652384 | R5: Total Heat Flow | S5: MMkcal/hr | T5: =SUM(R17:X17) -> -132.9558671 | U5: =SUM(Y17:AA17)-SUM(Y20:AA20)+SUM(Y23:AA23) -> -133.0482758 | V5: =1-(T5-U5)/T5 -> 1.000695033 | AC5: Total Heat Flow | AD5: MMkcal/hr | AE5: =SUM(AC17:AK17)-SUM(AC20:AK20)+SUM(AC23:AK23) -> -2.54978081 | AF5: =SUM(AL17:AN17)-SUM(AL20:AN20)+SUM(AL23:AN23) -> -2.962115841 | AG5: =1-(AE5-AF5)/AE5 -> 1.161713913 | AP5: Total Heat Flow | AQ5: MMkcal/hr | AR5: =SUM(AP17:AT17)-SUM(AP20:AT20)+SUM(AP23:AT23) -> -97.31270453 | AS5: =SUM(AV17:BA17)-SUM(AV20:AX20)+SUM(AV23:AX23) -> 0.5097548149 | AT5: =1-(AR5-AS5)/AR5 -> -0.005238317211 | BE5: Total Heat Flow | BF5: MMkcal/hr | BG5: =SUM(BE17:BI17)-SUM(BE20:BI20)+SUM(BE23:BI23) -> -97.31270453 | BH5: =SUM(BJ17:BO17)-SUM(BJ20:BL20)+SUM(BJ23:BL23) -> -97.83658278 | BI5: =1-(BG5-BH5)/BG5 -> 1.005383452 | BQ5: Total Heat Flow | BR5: MMkcal/hr | BT5: =SUM(BQ17:BR17) -> 3.921870852 | BU5: =SUM(BT17:BV17)-SUM(BT20:BV20)+SUM(BT23:BV23) -> 3.749968636 | BV5: =1-(BT5-BU5)/BT5 -> 0.9561683129 | BY5: Total Heat Flow | BZ5: MMkcal/hr | CA5: =SUM(BY17:CD17) -> -165.7078469 | CB5: =SUM(CE17:CF17)-SUM(CE20:CF20)+SUM(CE23) -> -166.1806357 | CC5: =1-(CA5-CB5)/CA5 -> 1.002853147 | CH5: Total Heat Flow | CI5: MMkcal/hr | CJ5: =SUM(CH17:CI17) -> -181.2951724 | CK5: =CJ17-CJ20 -> -181.2759458 | CL5: =1-(CJ5-CK5)/CJ5 -> 0.9998939488 | CN5: Total Heat Flow | CO5: MMkcal/hr | CP5: =SUM(CN17:CO17)-SUM(CN20:CO20)-CN23 -> -85.67859528 | CQ5: =SUM(CP17:CS17)-SUM(CP20:CR20)+SUM(CP23:CR23) -> -85.48692882 | CR5: =1-(CP5-CQ5)/CP5 -> 0.9977629599 | CU5: Total Heat Flow | CV5: MMkcal/hr | CW5: =SUM(CU17:DC17)-SUM(CU20:DC20)+SUM(CU23:DC23) -> 131.696774 | CX5: =SUM(DD17:DH17)-SUM(DD20:DH20)+SUM(DD23:DH23) -> 130.1159365 | CY5: =1-(CW5-CX5)/CW5 -> 0.9879963842 | DJ5: Total Heat Flow | DK5: MMkcal/hr | DL5: =SUM(DJ17:DN17)-SUM(DJ20:DN20)+SUM(DJ23:DN23) -> 1411.113097 | DM5: =SUM(DO17:DP17)-SUM(DO20:DP20)+SUM(DO23:DP23) -> 1407.363669 | DN5: =1-(DL5-DM5)/DL5 -> 0.9973429289 | DR5: Total Heat Flow | DS5: MMkcal/hr | DT5: =SUM(DR17:DS17) -> -57.80806934 | DU5: =SUM(DT17)-DT20 -> -58.2440028 | DV5: =1-(DT5-DU5)/DT5 -> 1.007541048 | DX5: Total Heat Flow | DY5: MMkcal/hr | DZ5: =SUM(DX17:DY17) -> -57.80806934 | EA5: =SUM(DZ17)-DZ20 -> -58.2440028 | EB5: =1-(DZ5-EA5)/DZ5 -> 1.007541048 | ED5: Total Heat Flow | EE5: MMkcal/hr | EF5: =SUM(ED17:ED17) -> -3.71219246 | EG5: =SUM(EE17)-EE20 -> -4.807220854 | EH5: =1-(EF5-EG5)/EF5 -> 1.294981579 | EJ5: Total Heat Flow | EK5: MMkcal/hr | EL5: =SUM(EJ17:EJ17)-EJ20 -> -8.375243236 | EM5: =SUM(EL17:EM17)+SUM(EL23:EM23)+EL20 -> -7.854449917 | EN5: =1-(EL5-EM5)/EL5 -> 0.9378175291 | EP5: Total Heat Flow | EQ5: MMkcal/hr | ER5: =SUM(EP17:EP17) -> 50.18521202 | ES5: =SUM(EQ17:ES17)-EQ20+EQ23 -> 50.18878888 | ET5: =1-(ER5-ES5)/ER5 -> 1.000071273 | FC5: Total Heat Flow | FD5: MMkcal/hr | FE5: =SUM(FC17:GB17)-SUM(FC20:GB20)+SUM(FC23:GB23) -> -235.1186308 | FF5: =SUM(GD17:GO17)-SUM(GD20:GO20)+SUM(GD23:GO23) -> -235.7932899 | FG5: =1-(FE5-FF5)/FF5 -> 1.002861231 | GX5: 274 | GY5: =M17 -> 86.38296779
F6: Inlets | O6: Outlets | R6: Inlets | Y6: Outlets | AC6: Inlets | AL6: Outlets | AP6: Inlets | AV6: Outlets | BE6: Inlets | BJ6: Outlets | BQ6: Inlets | BT6: Outlets | BY6: Inlets | CE6: Outlets | CH6: Inlets | CJ6: Outlets | CN6: Inlets | CP6: Outlets | CU6: Inlets | DD6: Outlets | DJ6: Inlets | DO6: Outlets | DR6: Inlet | DS6: Inlet | DT6: Outlets | DX6: Inlet | DY6: Inlet | DZ6: Outlets | ED6: Inlet | EE6: Outlets | EP6: Inlet | EQ6: Outlets | FC6: A100 | FD6: A200 | FG6: A300 | FK6: A400 | FT6: A500 | FW6: A600 | FY6: A800 | GA6: A899 | GB6: A900 | GD6: Outlets | GQ6: A200 Chemicals | GR6: =FD9+FE9+FF9 -> 3031.429547 | GS6: kg/hr | GT6: ethanol | GU6: =GF9 -> 21809.9867 | GV6: kg/hr | GX6: 400 | GY6: =AD17 -> 6.556132059
D7: Description | F7: Feedstock | G7: Rect Btms | H7: Sulfuric | I7: Dil water | J7: Steam | K7: Steam | L7: Ammonia | M7: Dil water | N7: Sulfuric | O7: Flash condn | P7: Hydrolyzate | R7: hydrolyzate | S7: enzyme | T7: DAP | U7: CSL | V7: DAP | W7: CSL | X7: Scrb return | Y7: Beer | Z7: vent | AA7: vent | AC7: Seed nutrs | AD7: water | AE7: glucose | AF7: Prod nutr | AJ7: air | AK7: purch enz | AL7: enzyme | AM7: vent | AN7: vent | BQ7: drying air | BR7: stillage | BT7: liquid | BU7: vent | BV7: solids | BY7: lignin | BZ7: filter vent | CA7: Air | CB7: WWT sludge | CC7: biogas | CD7: FGD lime | CE7: Ash | CF7: Stack Gas | CN7: BFW | CP7: To A200 | CQ7: BD Vent | CR7: Blowdown | CU7: WW in | DB7: caustic | DC7: Air | DD7: biogas | DE7: lagoon | DF7: recycle | DG7: brine | DH7: sludge | DL7: air | DM7: caustic | EJ7: makeup | EK7: air draw | EL7: blowdown | EM7: exhaust | FC7: Feedstock | FD7: Sulfuric | FE7: Ammonia | FF7: Sulfuric | FG7: DAP | FH7: DAP | FI7: CSL | FJ7: CSL | FK7: Glucose | FL7: Seed nutr | FN7: Cnutr | FO7: NH3 | FP7: SO2 | FQ7: CSL | FR7: antifoam | FS7: Air | FT7: Air | FU7: Air | FW7: Air | FX7: Caustic | FY7: Comb Air | FZ7: FGD Lime | GB7: Well Water Input | GD7: enzyme vent | GE7: enzyme vent | GF7: Ethanol | GG7: Scrubber vent | GJ7: WWT evap | GK7: brine | GL7: comb ash | GM7: Gas to Stack | GN7: boiler BD | GO7: Evap Loss | GR7: =FD10+FE10+FF10 -> 0 | GS7: kmol C/hr | GU7: =GF10 -> 941.4768495 | GV7: kmol C/hr | GX7: 615 | GY7: =DD17 -> -65.51985446
B8: 1 | C8: MW | D8: Material Stream | E8: UNITS | F8: a200.105 | G8: a200.516 | H8: a200.232 | I8: a200.211 | J8: a200.216 | K8: a200.215 | L8: a200.273 | M8: a200.274 | N8: a200.233 | O8: a200.260 | P8: a200.301 | R8: 301 | S8: 422 | T8: A300.310 | U8: A300.309 | V8: A300.312 | W8: A300.311 | X8: 551 | Y8: 501 | Z8: 317 | AA8: 305 | AC8: A400.407 | AD8: A400.400 | AE8: A400.401 | AF8: A400.416 | AG8: a400.441 | AH8: A400.442 | AI8: A400.444 | AJ8: A400.450 | AK8: A400.420p | AL8: 422 | AM8: A400.435 | AN8: A400.423 | AP8: 501 | AQ8: 305 | AR8: 317 | AS8: A500.524 | AT8: A500.H505AIR | AU8: a500.evap.557 | AV8: A500.550 | AW8: 551 | AX8: 515 | AY8: 516 | AZ8: A500.4 | BA8: 535 | BB8: 571 | BC8: 560 | BE8: 501 | BF8: 305 | BG8: 317 | BH8: A500.524 | BI8: A500.H505AIR | BJ8: A500.550 | BK8: 551 | BL8: 515 | BM8: A500.508 | BN8: A500.4 | BO8: 516 | BQ8: A500.EVAP.557 | BR8: A500.508 | BS8: a500.evap.sqairin | BT8: A500.535 | BU8: A500.560 | BV8: A500.571 | BW8: a500.evap.sqaircl | BY8: 571 | BZ8: 560 | CA8: A800.804 | CB8: 623 | CC8: 615 | CD8: A800.3 | CE8: A800.809 | CF8: A800.810 | CH8: A800.803 | CI8: A800.801 | CJ8: A800.805 | CN8: A800.A810.811 | CP8: A800.A810.216 | CQ8: A800.A810.821V | CR8: A800.A810.821 | CS8: A800.A810.215 | CU8: 260 | CV8: 944 | CW8: 821 | CX8: 535 | CY8: a600.cip | DB8: A600.632 | DC8: a600.630 | DD8: A600.615 | DE8: A600.622 | DF8: a600.626 | DG8: a600.627 | DH8: A600.623 | DJ8: a600.621 | DK8: a600.617 | DL8: a600.630 | DM8: a600.632 | DO8: a600.620b | DR8: A600.602D | DS8: a600.602w | DT8: a600.602f | DX8: A600.602D | DY8: a600.602w | DZ8: a600.602f | ED8: A600.602c | EE8: a600.602e | EJ8: a900.941 | EK8: a900.948 | EL8: a900.944 | EM8: a900.949 | EP8: a600.629 | EQ8: a600.627 | ER8: a600.cndsat | ES8: a600.640 | EV8: A500.H505Air | EW8: A500.4 | EY8: a900.941 | EZ8: a900.944 | FC8: 101 | FD8: A200.232 | FE8: A200.273 | FF8: A200.233 | FG8: A300.310 | FH8: A300.312 | FI8: a300.309 | FJ8: a300.311 | FK8: 401 | FL8: A400.407 | FN8: A400.440 | FO8: A400.441 | FP8: A400.442 | FQ8: A400.443 | FR8: A400.444 | FS8: A400.450 | FT8: A500.EVAP.557 | FW8: A600.630 | FX8: A600.632 | FY8: A800.804 | FZ8: A800.851 | GB8: 903 | GD8: A400.423 | GE8: A400.435 | GF8: 515 | GG8: A500.550 | GJ8: A600.622 | GK8: A600.627 | GL8: A800.809 | GM8: A800.810 | GN8: A800.A810.821V | GR8: =FD17+FE17+FF17 -> -3.143846431 | GS8: Gcal/hr | GU8: =GF17 -> -138.8894243 | GV8: Gcal/hr | GX8: 626 | GY8: =DF17 -> 218.2961633
B9: 2 | D9: Total Flow | E9: kg/hr | F9: =IF(F8<>"",VLOOKUP(F$8,INDIRECT(LU_MAT),$B9,FALSE),0) -> 104166.667 | G9: 36845.0942 | H9: 1980.28674 | I9: 140999.443 | J9: 24555.0561 | K9: =IF(K8<>"",VLOOKUP(K$8,INDIRECT(LU_MAT),$B9,FALSE),0) -> 3491.01772 | L9: 1050.81748 | M9: 150458.399 | N9: 0.325327049 | O9: 33673.542 | P9: 429873.441 | R9: =IF(R8<>"",VLOOKUP(R$8,INDIRECT(LU_MAT),$B9,FALSE),0) -> 429873.441 | S9: 13836.506 | T9: 26.1890933 | U9: 210.784789 | V9: 116.091951 | W9: 948.53155 | X9: 27192.3949 | Y9: 451055.005 | Z9: 19179.4285 | AA9: 1969.17591 | AC9: =IF(AC8<>"",VLOOKUP(AC$8,INDIRECT(LU_MAT),$B9,FALSE),0) -> 14.0693339 | AD9: 11419.2086 | AE9: 2844.66513 | AF9: 223.984704 | AG9: 109.253077 | AH9: 16.4154968 | AI9: 13.357518 | AJ9: 32582.8288 | AK9: 0 | AL9: 13836.506 | AM9: 1585.98737 | AN9: 31801.3006 | AP9: =IF(AP8<>"",VLOOKUP(AP$8,INDIRECT(LU_MAT),$B9,FALSE),0) -> 451055.005 | AQ9: 1969.17591 | AR9: 19179.4285 | AS9: 26830.8532 | AT9: 1584100.2 | AU9: =IF(AU8<>"",VLOOKUP(AU$8,INDIRECT(LU_MAT),$B9,FALSE),0) -> 12113.9518 | AV9: 21397.6873 | AW9: 27192.3949 | AX9: 21809.9867 | AY9: 36845.0942 | AZ9: =IF(AZ8<>"",VLOOKUP(AZ$8,INDIRECT(LU_MAT),$B9,FALSE),0) -> 1584100.2 | BA9: =IF(BA8<>"",VLOOKUP(BA$8,INDIRECT(LU_MAT),$B9,FALSE),0) -> 355313.188 | BB9: =IF(BB8<>"",VLOOKUP(BB$8,INDIRECT(LU_MAT),$B9,FALSE),0) -> 36537.4012 | BC9: =IF(BC8<>"",VLOOKUP(BC$8,INDIRECT(LU_MAT),$B9,FALSE),0) -> 12052.6684 | BE9: =IF(BE8<>"",VLOOKUP(BE$8,INDIRECT(LU_MAT),$B9,FALSE),0) -> 451055.005 | BF9: 1969.17591 | BG9: 19179.4285 | BH9: 26830.8532 | BI9: 1584100.2 | BJ9: 21397.6873 | BK9: 27192.3949 | BL9: 21809.9867 | BM9: 391789.305 | BN9: =IF(BN8<>"",VLOOKUP(BN$8,INDIRECT(LU_MAT),$B9,FALSE),0) -> 1584100.2 | BO9: 36845.0942 | BQ9: =IF(BQ8<>"",VLOOKUP(BQ$8,INDIRECT(LU_MAT),$B9,FALSE),0) -> 12113.9518 | BR9: 391789.305 | BS9: 809.401349 | BT9: 355313.188 | BU9: 12052.6684 | BV9: 36537.4012 | BW9: 809.401349 | BY9: =IF(BY8<>"",VLOOKUP(BY$8,INDIRECT(LU_MAT),$B9,FALSE),0) -> 36537.4012 | BZ9: 12052.6684 | CA9: 284494.891 | CB9: 9760.03537 | CC9: 21861.0072 | CD9: 4472.25648 | CE9: 5724.06574 | CF9: 363454.174 | CH9: =IF(CH8<>"",VLOOKUP(CH$8,INDIRECT(LU_MAT),$B9,FALSE),0) -> 318408.566 | CI9: =IF(CI8<>"",VLOOKUP(CI$8,INDIRECT(LU_MAT),$B9,FALSE),0) -> 46297.4366 | CJ9: =IF(CJ8<>"",VLOOKUP(CJ$8,INDIRECT(LU_MAT),$B9,FALSE),0) -> 364705.984 | CK9: =IF(CK8<>"",VLOOKUP(CK$8,INDIRECT(LU_MAT),$B9,FALSE),0) -> 0 | CL9: =IF(CL8<>"",VLOOKUP(CL$8,INDIRECT(LU_MAT),$B9,FALSE),0) -> 0 | CN9: =IF(CN8<>"",VLOOKUP(CN$8,INDIRECT(LU_MAT),$B9,FALSE),0) -> 35306.8278 | CO9: 0 | CP9: 24555.0561 | CQ9: 2580.64178 | CR9: 4681.61494 | CS9: 3491.01772 | CU9: =IF(CU8<>"",VLOOKUP(CU$8,INDIRECT(LU_MAT),$B9,FALSE),0) -> 33673.542 | CV9: 17677.4961 | CW9: 4682.04054 | CX9: 355313.188 | CY9: 145 | CZ9: =IF(CZ8<>"",VLOOKUP(CZ$8,INDIRECT(LU_MAT),$B9,FALSE),0) -> 0 | DA9: =IF(DA8<>"",VLOOKUP(DA$8,INDIRECT(LU_MAT),$B9,FALSE),0) -> 0 | DB9: 4504.13205 | DC9: 223184.034 | DD9: 21861.0072 | DE9: 220999.437 | DF9: =IF(DF8<>"",VLOOKUP(DF$8,INDIRECT(LU_MAT),$B9,FALSE),0) -> 376640.161 | DG9: 9921.67597 | DH9: 9760.03537 | DJ9: =IF(DJ8<>"",VLOOKUP(DJ$8,INDIRECT(LU_MAT),$B9,FALSE),0) -> 2172856.75 | DK9: 470427.018 | DL9: 223184.034 | DM9: 4504.13205 | DN9: 0 | DO9: 2870971.94 | DP9: 0 | DR9: =IF(DR8<>"",VLOOKUP(DR$8,INDIRECT(LU_MAT),$B9,FALSE),0) -> 19848.3316 | DS9: =IF(DS8<>"",VLOOKUP(DS$8,INDIRECT(LU_MAT),$B9,FALSE),0) -> 20998.8781 | DT9: =IF(DT8<>"",VLOOKUP(DT$8,INDIRECT(LU_MAT),$B9,FALSE),0) -> 40847.2142 | DU9: =IF(DU8<>"",VLOOKUP(DU$8,INDIRECT(LU_MAT),$B9,FALSE),0) -> 0 | DX9: =IF(DX8<>"",VLOOKUP(DX$8,INDIRECT(LU_MAT),$B9,FALSE),0) -> 19848.3316 | DY9: =IF(DY8<>"",VLOOKUP(DY$8,INDIRECT(LU_MAT),$B9,FALSE),0) -> 20998.8781 | DZ9: =IF(DZ8<>"",VLOOKUP(DZ$8,INDIRECT(LU_MAT),$B9,FALSE),0) -> 40847.2142 | EA9: =IF(EA8<>"",VLOOKUP(EA$8,INDIRECT(LU_MAT),$B9,FALSE),0) -> 0 | ED9: =IF(ED8<>"",VLOOKUP(ED$8,INDIRECT(LU_MAT),$B9,FALSE),0) -> 1073.27861 | EE9: =IF(EE8<>"",VLOOKUP(EE$8,INDIRECT(LU_MAT),$B9,FALSE),0) -> 1073.27861 | EF9: =IF(EF8<>"",VLOOKUP(EF$8,INDIRECT(LU_MAT),$B9,FALSE),0) -> 0 | EG9: =IF(EG8<>"",VLOOKUP(EG$8,INDIRECT(LU_MAT),$B9,FALSE),0) -> 0 | EJ9: =IF(EJ8<>"",VLOOKUP(EJ$8,INDIRECT(LU_MAT),$B9,FALSE),0) -> 155038.884 | EK9: =IF(EK8<>"",VLOOKUP(EK$8,INDIRECT(LU_MAT),$B9,FALSE),0) -> 6548549.37 | EL9: =IF(EL8<>"",VLOOKUP(EL$8,INDIRECT(LU_MAT),$B9,FALSE),0) -> 17676.1242 | EM9: =IF(EM8<>"",VLOOKUP(EM$8,INDIRECT(LU_MAT),$B9,FALSE),0) -> 6686825.34 | EP9: =IF(EP8<>"",VLOOKUP(EP$8,INDIRECT(LU_MAT),$B9,FALSE),0) -> 81295.9158 | EQ9: =IF(EQ8<>"",VLOOKUP(EQ$8,INDIRECT(LU_MAT),$B9,FALSE),0) -> 9921.67597 | ER9: =IF(ER8<>"",VLOOKUP(ER$8,INDIRECT(LU_MAT),$B9,FALSE),0) -> 71353.1477 | ES9: =IF(ES8<>"",VLOOKUP(ES$8,INDIRECT(LU_MAT),$B9,FALSE),0) -> 21.0921078 | EV9: =IF(EV8<>"",VLOOKUP(EV$8,INDIRECT(LU_MAT),$B9,FALSE),0) -> 1584100.2 | EW9: =IF(EW8<>"",VLOOKUP(EW$8,INDIRECT(LU_MAT),$B9,FALSE),0) -> 1584100.2 | EY9: =IF(EY8<>"",VLOOKUP(EY$8,INDIRECT(LU_MAT),$B9,FALSE),0) -> 155038.884 | EZ9: =IF(EZ8<>"",VLOOKUP(EZ$8,INDIRECT(LU_MAT),$B9,FALSE),0) -> 17676.1242 | FA9: =EY9-EZ9 -> 137362.7598 | FC9: =IF(FC8<>"",VLOOKUP(FC$8,INDIRECT(LU_MAT),$B9,FALSE),0) -> 104166.667 | FD9: 1980.28674 | FE9: 1050.81748 | FF9: 0.325327049 | FG9: 26.1890933 | FH9: 116.091951 | FI9: 210.784789 | FJ9: 948.53155 | FK9: 2844.66513 | FL9: 14.0693339 | FM9: 0 | FN9: =IF(FN8<>"",VLOOKUP(FN$8,INDIRECT(LU_MAT),$B9,FALSE),0) -> 67.352044 | FO9: =IF(FO8<>"",VLOOKUP(FO$8,INDIRECT(LU_MAT),$B9,FALSE),0) -> 109.253077 | FP9: 16.4154968 | FQ9: 156.63266 | FR9: 13.357518 | FS9: 32582.8288 | FT9: 12113.9518 | FU9: 0 | FV9: =IF(FV8<>"",VLOOKUP(FV$8,INDIRECT(LU_MAT),$B9,FALSE),0) -> 0 | FW9: 223184.034 | FX9: 4504.13205 | FY9: 284494.891 | FZ9: 894.451296 | GA9: =IF(GA8<>"",VLOOKUP(GA$8,INDIRECT(LU_MAT),$B9,FALSE),0) -> 0 | GB9: 147136.259 | GD9: =IF(GD8<>"",VLOOKUP(GD$8,INDIRECT(LU_MAT),$B9,FALSE),0) -> 31801.3006 | GE9: 1585.98737 | GF9: 21809.9867 | GG9: 21397.6873 | GH9: 0 | GI9: =IF(GI8<>"",VLOOKUP(GI$8,INDIRECT(LU_MAT),$B9,FALSE),0) -> 0 | GJ9: 220999.437 | GK9: 9921.67597 | GL9: 5724.06574 | GM9: 363454.174 | GN9: 2580.64178 | GO9: =FA9 -> 137362.7598 | GX9: 571 | GY9: =BY17 -> -97.28163217
D10: Carbon Flow | E10: kmol/hr | F10: =IF(F8<>"",F96+F97,0) -> 3117.08508 | G10: 9.811728538 | H10: 0 | I10: 0 | J10: 0 | K10: 0 | L10: 0 | M10: 0 | N10: 0 | O10: 19.59903536 | P10: 3107.297775 | R10: =IF(R8<>"",R96+R97,0) -> 3107.297775 | S10: 32.64822865 | T10: 0 | U10: 4.044681962 | V10: 0 | W10: 18.2010688 | X10: 19.17394745 | Y10: 2704.291539 | Z10: 430.8098574 | AA10: 44.16851765 | AC10: =IF(AC8<>"",AC96+AC97,0) -> 0.1508271714 | AD10: 0 | AE10: 80.52830324 | AF10: 5.248677262 | AG10: 0 | AH10: 0 | AI10: 0.8511986528 | AJ10: 0 | AK10: 0 | AL10: 32.64822865 | AM10: 2.160661517 | AN10: 51.96997702 | AP10: =IF(AP8<>"",AP96+AP97,0) -> 2704.291539 | AQ10: 44.16851765 | AR10: 430.8098574 | AS10: 0 | AT10: 0 | AU10: 0 | AV10: 470.5202018 | AW10: 19.17394745 | AX10: 941.4768495 | AY10: 9.811728538 | AZ10: 0 | BA10: 800.7773915 | BB10: 937.4248065 | BC10: 0.08496689198 | BE10: =IF(BE8<>"",BE96+BE97,0) -> 2704.291539 | BF10: 44.16851765 | BG10: 430.8098574 | BH10: 0 | BI10: 0 | BJ10: 470.5202018 | BK10: 19.17394745 | BL10: 941.4768495 | BM10: 1738.287166 | BN10: 0 | BO10: 9.811728538 | BQ10: =IF(BQ8<>"",BQ96+BQ97,0) -> 0 | BR10: 1738.287166 | BS10: 0 | BT10: 800.7773915 | BU10: 0.08496689198 | BV10: 937.4248065 | BW10: 0 | BY10: =IF(BY8<>"",BY96+BY97,0) -> 937.4248065 | BZ10: 0.08496689198 | CA10: 0 | CB10: 83.09201385 | CC10: 659.5544733 | CD10: 0 | CE10: 10.20066178 | CF10: 1669.955603 | CH10: =IF(CH8<>"",CH96+CH97,0) -> 659.6394403 | CI10: =IF(CI8<>"",CI96+CI97,0) -> 1020.516821 | CJ10: =IF(CJ8<>"",CJ96+CJ97,0) -> 1680.156265 | CK10: =IF(CK8<>"",CK96+CK97,0) -> 0 | CL10: =IF(CL8<>"",CL96+CL97,0) -> 0 | CN10: =IF(CN8<>"",CN96+CN97,0) -> 0 | CO10: 0 | CP10: 0 | CQ10: 0 | CR10: 0 | CS10: 0 | CU10: =IF(CU8<>"",CU96+CU97,0) -> 19.59903536 | CV10: 0 | CW10: 0 | CX10: 800.7773915 | CY10: 0 | CZ10: 0 | DA10: 0 | DB10: 0 | DC10: 0 | DD10: 659.5544733 | DE10: 87.8346359 | DF10: 0 | DG10: 3.857385551 | DH10: 83.09201385 | DJ10: =IF(DJ8<>"",DJ96+DJ97,0) -> 951.502598 | DK10: 127.7278684 | DL10: 0 | DM10: 0 | DN10: 0 | DO10: 1082.913182 | DP10: 0 | DR10: =IF(DR8<>"",DR96+DR97,0) -> 664.0345803 | DS10: =IF(DS8<>"",DS96+DS97,0) -> 0 | DT10: =IF(DT8<>"",DT96+DT97,0) -> 664.0345803 | DU10: =IF(DU8<>"",DU96+DU97,0) -> 0 | DX10: =IF(DX8<>"",DX96+DX97,0) -> 664.0345803 | DY10: =IF(DY8<>"",DY96+DY97,0) -> 0 | DZ10: =IF(DZ8<>"",DZ96+DZ97,0) -> 664.0345803 | EA10: =IF(EA8<>"",EA96+EA97,0) -> 0 | ED10: =IF(ED8<>"",ED96+ED97,0) -> 35.90700319 | EE10: =IF(EE8<>"",EE96+EE97,0) -> 46.18635917 | EF10: =IF(EF8<>"",EF96+EF97,0) -> 0 | EG10: =IF(EG8<>"",EG96+EG97,0) -> 0 | EJ10: =IF(EJ8<>"",EJ96+EJ97,0) -> 0 | EK10: =IF(EK8<>"",EK96+EK97,0) -> 0 | EL10: =IF(EL8<>"",EL96+EL97,0) -> 0 | EM10: =IF(EM8<>"",EM96+EM97,0) -> 0 | EP10: =IF(EP8<>"",EP96+EP97,0) -> 3.930016571 | EQ10: =IF(EQ8<>"",EQ96+EQ97,0) -> 3.857385551 | ER10: =IF(ER8<>"",ER96+ER97,0) -> 0 | ES10: =IF(ES8<>"",ES96+ES97,0) -> 0.07263101778 | EV10: =IF(EV8<>"",EV96+EV97,0) -> 0 | EW10: =IF(EW8<>"",EW96+EW97,0) -> 0 | EY10: =IF(EY8<>"",EY96+EY97,0) -> 0 | EZ10: =IF(EZ8<>"",EZ96+EZ97,0) -> 0 | FA10: =IF(FA8<>"",FA96+FA97,0) -> 0 | FC10: =IF(FC8<>"",FC96+FC97,0) -> 3117.08508 | FD10: 0 | FE10: 0 | FF10: 0 | FG10: 0 | FH10: 0 | FI10: 4.044681962 | FJ10: 18.2010688 | FK10: 80.52830324 | FL10: 0.1508271714 | FM10: 0 | FN10: 2.243103188 | FO10: 0 | FP10: 0 | FQ10: 3.005574064 | FR10: 0.8511986528 | FS10: 0 | FT10: 0 | FU10: 0 | FV10: 0 | FW10: 0 | FX10: 0 | FY10: 0 | FZ10: 0 | GA10: 0 | GB10: 0 | GD10: =IF(GD8<>"",GD96+GD97,0) -> 51.96997702 | GE10: 2.160661517 | GF10: 941.4768495 | GG10: 470.5202018 | GH10: 0 | GI10: 0 | GJ10: 87.8346359 | GK10: 3.857385551 | GL10: 10.20066178 | GM10: 1669.955603 | GN10: 0 | GO10: 0 | GQ10: Biomass | GR10: =FC9 -> 104166.667 | GS10: kg/hr | GT10: a500 losses | GU10: =-GL20-GE20-GF20 -> -24.01443355 | GV10: Gcal/hr | GX10: 211 | GY10: =I17 -> 80.95227861
B11: 69 | D11: Temperature | E11: C | F11: =IF(F9<>0,VLOOKUP(F$8,INDIRECT(LU_MAT),$B11,FALSE),0) -> 25 | G11: 113.734339 | H11: 21.7148741 | I11: 33 | J11: 268.1893 | K11: =IF(K9<>0,VLOOKUP(K$8,INDIRECT(LU_MAT),$B11,FALSE),0) -> 268.1893 | L11: 20 | M11: 33 | N11: 20 | O11: 99.6885556 | P11: 77.5750699 | R11: =IF(R9<>0,VLOOKUP(R$8,INDIRECT(LU_MAT),$B11,FALSE),0) -> 77.5750699 | S11: 28.6552157 | T11: 20 | U11: 20 | V11: 20 | W11: 20 | X11: 34.233848 | Y11: 32.3984132 | Z11: 32 | AA11: 32 | AC11: =IF(AC9<>0,VLOOKUP(AC$8,INDIRECT(LU_MAT),$B11,FALSE),0) -> 46.2860779 | AD11: 33 | AE11: 28 | AF11: 33.8677446 | AG11: 28 | AH11: 28 | AI11: 20 | AJ11: 25 | AK11: 0 | AL11: 28.6552157 | AM11: 28 | AN11: 28.0000005 | AP11: =IF(AP9<>0,VLOOKUP(AP$8,INDIRECT(LU_MAT),$B11,FALSE),0) -> 32.3984132 | AQ11: 32 | AR11: 32 | AS11: 33 | AT11: 25 | AU11: =IF(AU9<>0,VLOOKUP(AU$8,INDIRECT(LU_MAT),$B11,FALSE),0) -> 25 | AV11: 33.7051983 | AW11: 34.233848 | AX11: 38 | AY11: 113.734339 | AZ11: =IF(AZ9<>0,VLOOKUP(AZ$8,INDIRECT(LU_MAT),$B11,FALSE),0) -> 85 | BA11: =IF(BA9<>0,VLOOKUP(BA$8,INDIRECT(LU_MAT),$B11,FALSE),0) -> 47.4012042 | BB11: =IF(BB9<>0,VLOOKUP(BB$8,INDIRECT(LU_MAT),$B11,FALSE),0) -> 55.2747371 | BC11: =IF(BC9<>0,VLOOKUP(BC$8,INDIRECT(LU_MAT),$B11,FALSE),0) -> 55.2747371 | BE11: =IF(BE9<>0,VLOOKUP(BE$8,INDIRECT(LU_MAT),$B11,FALSE),0) -> 32.3984132 | BF11: 32 | BG11: 32 | BH11: 33 | BI11: 25 | BJ11: 33.7051983 | BK11: 34.233848 | BL11: 38 | BM11: 47 | BN11: =IF(BN9<>0,VLOOKUP(BN$8,INDIRECT(LU_MAT),$B11,FALSE),0) -> 85 | BO11: 113.734339 | BQ11: =IF(BQ9<>0,VLOOKUP(BQ$8,INDIRECT(LU_MAT),$B11,FALSE),0) -> 25 | BR11: 47 | BS11: 25 | BT11: 47.4012042 | BU11: 55.2747371 | BV11: 55.2747371 | BW11: 40 | BY11: =IF(BY9<>0,VLOOKUP(BY$8,INDIRECT(LU_MAT),$B11,FALSE),0) -> 55.2747371 | BZ11: 55.2747371 | CA11: 25 | CB11: 29.4874602 | CC11: 38.2740529 | CD11: 32.5455727 | CE11: 0 | CF11: 145.319927 | CH11: =IF(CH9<>0,VLOOKUP(CH$8,INDIRECT(LU_MAT),$B11,FALSE),0) -> 191.771178 | CI11: =IF(CI9<>0,VLOOKUP(CI$8,INDIRECT(LU_MAT),$B11,FALSE),0) -> 47.0522432 | CJ11: =IF(CJ9<>0,VLOOKUP(CJ$8,INDIRECT(LU_MAT),$B11,FALSE),0) -> 870 | CK11: =IF(CK9<>0,VLOOKUP(CK$8,INDIRECT(LU_MAT),$B11,FALSE),0) -> 0 | CL11: =IF(CL9<>0,VLOOKUP(CL$8,INDIRECT(LU_MAT),$B11,FALSE),0) -> 0 | CN11: =IF(CN9<>0,VLOOKUP(CN$8,INDIRECT(LU_MAT),$B11,FALSE),0) -> 33 | CO11: 0 | CP11: 265.659106 | CQ11: 99.9906421 | CR11: 100.271837 | CS11: 265.659106 | CU11: =IF(CU9<>0,VLOOKUP(CU$8,INDIRECT(LU_MAT),$B11,FALSE),0) -> 99.6885556 | CV11: 28.1267991 | CW11: 100.271822 | CX11: 47.4012042 | CY11: 33 | CZ11: =IF(CZ9<>0,VLOOKUP(CZ$8,INDIRECT(LU_MAT),$B11,FALSE),0) -> 0 | DA11: =IF(DA9<>0,VLOOKUP(DA$8,INDIRECT(LU_MAT),$B11,FALSE),0) -> 0 | DB11: 20.2517645 | DC11: 25 | DD11: 38.2740529 | DE11: 25 | DF11: =IF(DF9<>0,VLOOKUP(DF$8,INDIRECT(LU_MAT),$B11,FALSE),0) -> 27.087556 | DG11: 100 | DH11: 29.4874602 | DJ11: =IF(DJ9<>0,VLOOKUP(DJ$8,INDIRECT(LU_MAT),$B11,FALSE),0) -> 25.1385271 | DK11: 33.6868285 | DL11: 25 | DM11: 20.2517645 | DN11: 0 | DO11: 25 | DP11: 0 | DR11: =IF(DR9<>0,VLOOKUP(DR$8,INDIRECT(LU_MAT),$B11,FALSE),0) -> 35 | DS11: =IF(DS9<>0,VLOOKUP(DS$8,INDIRECT(LU_MAT),$B11,FALSE),0) -> 35 | DT11: =IF(DT9<>0,VLOOKUP(DT$8,INDIRECT(LU_MAT),$B11,FALSE),0) -> 35 | DU11: =IF(DU9<>0,VLOOKUP(DU$8,INDIRECT(LU_MAT),$B11,FALSE),0) -> 0 | DX11: =IF(DX9<>0,VLOOKUP(DX$8,INDIRECT(LU_MAT),$B11,FALSE),0) -> 35 | DY11: =IF(DY9<>0,VLOOKUP(DY$8,INDIRECT(LU_MAT),$B11,FALSE),0) -> 35 | DZ11: =IF(DZ9<>0,VLOOKUP(DZ$8,INDIRECT(LU_MAT),$B11,FALSE),0) -> 35 | EA11: =IF(EA9<>0,VLOOKUP(EA$8,INDIRECT(LU_MAT),$B11,FALSE),0) -> 0 | ED11: =IF(ED9<>0,VLOOKUP(ED$8,INDIRECT(LU_MAT),$B11,FALSE),0) -> 35 | EE11: =IF(EE9<>0,VLOOKUP(EE$8,INDIRECT(LU_MAT),$B11,FALSE),0) -> 0 | EF11: =IF(EF9<>0,VLOOKUP(EF$8,INDIRECT(LU_MAT),$B11,FALSE),0) -> 0 | EG11: =IF(EG9<>0,VLOOKUP(EG$8,INDIRECT(LU_MAT),$B11,FALSE),0) -> 0 | EJ11: =IF(EJ9<>0,VLOOKUP(EJ$8,INDIRECT(LU_MAT),$B11,FALSE),0) -> 33 | EK11: =IF(EK9<>0,VLOOKUP(EK$8,INDIRECT(LU_MAT),$B11,FALSE),0) -> 25 | EL11: =IF(EL9<>0,VLOOKUP(EL$8,INDIRECT(LU_MAT),$B11,FALSE),0) -> 28.1267991 | EM11: =IF(EM9<>0,VLOOKUP(EM$8,INDIRECT(LU_MAT),$B11,FALSE),0) -> 37.1775422 | EP11: =IF(EP9<>0,VLOOKUP(EP$8,INDIRECT(LU_MAT),$B11,FALSE),0) -> 25.2615187 | EQ11: =IF(EQ9<>0,VLOOKUP(EQ$8,INDIRECT(LU_MAT),$B11,FALSE),0) -> 100 | ER11: =IF(ER9<>0,VLOOKUP(ER$8,INDIRECT(LU_MAT),$B11,FALSE),0) -> 35 | ES11: =IF(ES9<>0,VLOOKUP(ES$8,INDIRECT(LU_MAT),$B11,FALSE),0) -> 86.4130195 | EV11: =IF(EV9<>0,VLOOKUP(EV$8,INDIRECT(LU_MAT),$B11,FALSE),0) -> 25 | EW11: =IF(EW9<>0,VLOOKUP(EW$8,INDIRECT(LU_MAT),$B11,FALSE),0) -> 85 | EY11: =IF(EY9<>0,VLOOKUP(EY$8,INDIRECT(LU_MAT),$B11,FALSE),0) -> 33 | EZ11: =IF(EZ9<>0,VLOOKUP(EZ$8,INDIRECT(LU_MAT),$B11,FALSE),0) -> 28.1267991 | FA11: =EY11-EZ11 -> 4.8732009 | FC11: =IF(FC9<>0,VLOOKUP(FC$8,INDIRECT(LU_MAT),$B11,FALSE),0) -> 25 | FD11: 21.7148741 | FE11: 20 | FF11: 20 | FG11: 20 | FH11: 20 | FI11: 20 | FJ11: 20 | FK11: 28 | FL11: 46.2860779 | FM11: 0 | FN11: =IF(FN9<>0,VLOOKUP(FN$8,INDIRECT(LU_MAT),$B11,FALSE),0) -> 20 | FO11: =IF(FO9<>0,VLOOKUP(FO$8,INDIRECT(LU_MAT),$B11,FALSE),0) -> 28 | FP11: 28 | FQ11: 20 | FR11: 20 | FS11: 25 | FT11: 25 | FU11: 0 | FV11: =IF(FV9<>0,VLOOKUP(FV$8,INDIRECT(LU_MAT),$B11,FALSE),0) -> 0 | FW11: 25 | FX11: 20.2517645 | FY11: 25 | FZ11: 25 | GA11: =IF(GA9<>0,VLOOKUP(GA$8,INDIRECT(LU_MAT),$B11,FALSE),0) -> 0 | GB11: 13 | GD11: =IF(GD9<>0,VLOOKUP(GD$8,INDIRECT(LU_MAT),$B11,FALSE),0) -> 28.0000005 | GE11: 28 | GF11: 38 | GG11: 33.7051983 | GH11: 0 | GI11: =IF(GI9<>0,VLOOKUP(GI$8,INDIRECT(LU_MAT),$B11,FALSE),0) -> 0 | GJ11: 25 | GK11: 100 | GL11: 0 | GM11: 145.319927 | GN11: 99.9906421 | GO11: =FA11 -> 4.8732009 | GR11: =FC10 -> 3117.08508 | GS11: kmol C/hr | GX11: 422 | GY11: =S17 -> 3.581940438
B12: 3 | D12: Flowing Enthalpy | E12: MMkcal/hr | F12: =IF(F9<>0,VLOOKUP(F$8,INDIRECT(LU_MAT),$B12,FALSE),0) -> -194.94874 | G12: -135.662828 | H12: -4.08478684 | I12: -532.990971 | J12: -75.9919342 | K12: =IF(K9<>0,VLOOKUP(K$8,INDIRECT(LU_MAT),$B12,FALSE),0) -> -10.8038519 | L12: -0.976879907 | M12: -568.746704 | N12: -0.000671201475 | O12: -123.837556 | P12: -1405.67936 | R12: =IF(R9<>0,VLOOKUP(R$8,INDIRECT(LU_MAT),$B12,FALSE),0) -> -1405.67936 | S12: -50.0481739 | T12: -0.056333817 | U12: -0.536997167 | V12: -0.249718562 | W12: -2.41648725 | X12: -101.701004 | Y12: -1535.7955 | Z12: -40.688182 | AA12: -4.17728278 | AC12: =IF(AC9<>0,VLOOKUP(AC$8,INDIRECT(LU_MAT),$B12,FALSE),0) -> -0.0242391951 | AD12: -43.1656676 | AE12: -5.64352497 | AF12: -0.509583835 | AG12: -0.0701624364 | AH12: -0.0181593113 | AI12: -0.00930030231 | AJ12: -2.04589725 | AK12: 0 | AL12: -50.0481739 | AM12: -0.320044473 | AN12: -7.22338147 | AP12: =IF(AP9<>0,VLOOKUP(AP$8,INDIRECT(LU_MAT),$B12,FALSE),0) -> -1535.7955 | AQ12: -4.17728278 | AR12: -40.688182 | AS12: -101.423113 | AT12: -99.4666931 | AU12: =IF(AU9<>0,VLOOKUP(AU$8,INDIRECT(LU_MAT),$B12,FALSE),0) -> -0.760643001 | AV12: -45.8460649 | AW12: -101.701004 | AX12: -31.466227 | AY12: -135.662828 | AZ12: =IF(AZ9<>0,VLOOKUP(AZ$8,INDIRECT(LU_MAT),$B12,FALSE),0) -> -76.0874461 | BA12: =IF(BA9<>0,VLOOKUP(BA$8,INDIRECT(LU_MAT),$B12,FALSE),0) -> -1283.789 | BB12: =IF(BB9<>0,VLOOKUP(BB$8,INDIRECT(LU_MAT),$B12,FALSE),0) -> -75.9268632 | BC12: =IF(BC9<>0,VLOOKUP(BC$8,INDIRECT(LU_MAT),$B12,FALSE),0) -> -0.480202298 | BE12: =IF(BE9<>0,VLOOKUP(BE$8,INDIRECT(LU_MAT),$B12,FALSE),0) -> -1535.7955 | BF12: -4.17728278 | BG12: -40.688182 | BH12: -101.423113 | BI12: -99.4666931 | BJ12: -45.8460649 | BK12: -101.701004 | BL12: -31.466227 | BM12: -1359.75773 | BN12: =IF(BN9<>0,VLOOKUP(BN$8,INDIRECT(LU_MAT),$B12,FALSE),0) -> -76.0874461 | BO12: -135.662828 | BQ12: =IF(BQ9<>0,VLOOKUP(BQ$8,INDIRECT(LU_MAT),$B12,FALSE),0) -> -0.760643001 | BR12: -1359.75773 | BS12: -5.24214864e-18 | BT12: -1283.789 | BU12: -0.480202298 | BV12: -75.9268632 | BW12: 0.00293331201 | BY12: =IF(BY9<>0,VLOOKUP(BY$8,INDIRECT(LU_MAT),$B12,FALSE),0) -> -75.9268632 | BZ12: -0.480202298 | CA12: -17.8636213 | CB12: -31.3348079 | CC12: -38.8218293 | CD12: -16.3722318 | CE12: -14.8510199 | CF12: -320.164158 | CH12: =IF(CH9<>0,VLOOKUP(CH$8,INDIRECT(LU_MAT),$B12,FALSE),0) -> -43.9309182 | CI12: =IF(CI9<>0,VLOOKUP(CI$8,INDIRECT(LU_MAT),$B12,FALSE),0) -> -107.261671 | CJ12: =IF(CJ9<>0,VLOOKUP(CJ$8,INDIRECT(LU_MAT),$B12,FALSE),0) -> -239.978337 | CK12: =IF(CK9<>0,VLOOKUP(CK$8,INDIRECT(LU_MAT),$B12,FALSE),0) -> 0 | CL12: =IF(CL9<>0,VLOOKUP(CL$8,INDIRECT(LU_MAT),$B12,FALSE),0) -> 0 | CN12: =IF(CN9<>0,VLOOKUP(CN$8,INDIRECT(LU_MAT),$B12,FALSE),0) -> -133.507738 | CO12: 0 | CP12: -76.2714116 | CQ12: -8.19493622 | CR12: -17.3882002 | CS12: -10.8435855 | CU12: =IF(CU9<>0,VLOOKUP(CU$8,INDIRECT(LU_MAT),$B12,FALSE),0) -> -123.837556 | CV12: -66.9009398 | CW12: -17.389781 | CX12: -1283.789 | CY12: -0.548113448 | CZ12: =IF(CZ9<>0,VLOOKUP(CZ$8,INDIRECT(LU_MAT),$B12,FALSE),0) -> 0 | DA12: =IF(DA9<>0,VLOOKUP(DA$8,INDIRECT(LU_MAT),$B12,FALSE),0) -> 0 | DB12: -12.3111963 | DC12: -14.0138723 | DD12: -38.8218293 | DE12: -22.2019839 | DF12: =IF(DF9<>0,VLOOKUP(DF$8,INDIRECT(LU_MAT),$B12,FALSE),0) -> -1425.78977 | DG12: -25.3073838 | DH12: -31.3348079 | DJ12: =IF(DJ9<>0,VLOOKUP(DJ$8,INDIRECT(LU_MAT),$B12,FALSE),0) -> -8103.32184 | DK12: -1764.2092 | DL12: -14.0138723 | DM12: -12.3111963 | DN12: 0 | DO12: -9915.79634 | DP12: 0 | DR12: =IF(DR9<>0,VLOOKUP(DR$8,INDIRECT(LU_MAT),$B12,FALSE),0) -> -32.0433052 | DS12: =IF(DS9<>0,VLOOKUP(DS$8,INDIRECT(LU_MAT),$B12,FALSE),0) -> -76.5572794 | DT12: =IF(DT9<>0,VLOOKUP(DT$8,INDIRECT(LU_MAT),$B12,FALSE),0) -> -107.360038 | DU12: =IF(DU9<>0,VLOOKUP(DU$8,INDIRECT(LU_MAT),$B12,FALSE),0) -> 0 | DX12: =IF(DX9<>0,VLOOKUP(DX$8,INDIRECT(LU_MAT),$B12,FALSE),0) -> -32.0433052 | DY12: =IF(DY9<>0,VLOOKUP(DY$8,INDIRECT(LU_MAT),$B12,FALSE),0) -> -76.5572794 | DZ12: =IF(DZ9<>0,VLOOKUP(DZ$8,INDIRECT(LU_MAT),$B12,FALSE),0) -> -107.360038 | EA12: =IF(EA9<>0,VLOOKUP(EA$8,INDIRECT(LU_MAT),$B12,FALSE),0) -> 0 | ED12: =IF(ED9<>0,VLOOKUP(ED$8,INDIRECT(LU_MAT),$B12,FALSE),0) -> -1.73270955 | EE12: =IF(EE9<>0,VLOOKUP(EE$8,INDIRECT(LU_MAT),$B12,FALSE),0) -> -1.06756261 | EF12: =IF(EF9<>0,VLOOKUP(EF$8,INDIRECT(LU_MAT),$B12,FALSE),0) -> 0 | EG12: =IF(EG9<>0,VLOOKUP(EG$8,INDIRECT(LU_MAT),$B12,FALSE),0) -> 0 | EJ12: =IF(EJ9<>0,VLOOKUP(EJ$8,INDIRECT(LU_MAT),$B12,FALSE),0) -> -586.061359 | EK12: =IF(EK9<>0,VLOOKUP(EK$8,INDIRECT(LU_MAT),$B12,FALSE),0) -> -411.187721 | EL12: =IF(EL9<>0,VLOOKUP(EL$8,INDIRECT(LU_MAT),$B12,FALSE),0) -> -66.8957479 | EM12: =IF(EM9<>0,VLOOKUP(EM$8,INDIRECT(LU_MAT),$B12,FALSE),0) -> -834.162111 | EP12: =IF(EP9<>0,VLOOKUP(EP$8,INDIRECT(LU_MAT),$B12,FALSE),0) -> -296.080482 | EQ12: =IF(EQ9<>0,VLOOKUP(EQ$8,INDIRECT(LU_MAT),$B12,FALSE),0) -> -25.3073838 | ER12: =IF(ER9<>0,VLOOKUP(ER$8,INDIRECT(LU_MAT),$B12,FALSE),0) -> -269.588854 | ES12: =IF(ES9<>0,VLOOKUP(ES$8,INDIRECT(LU_MAT),$B12,FALSE),0) -> -0.0368295319 | EV12: =IF(EV9<>0,VLOOKUP(EV$8,INDIRECT(LU_MAT),$B12,FALSE),0) -> -99.4666931 | EW12: =IF(EW9<>0,VLOOKUP(EW$8,INDIRECT(LU_MAT),$B12,FALSE),0) -> -76.0874461 | EY12: =IF(EY9<>0,VLOOKUP(EY$8,INDIRECT(LU_MAT),$B12,FALSE),0) -> -586.061359 | EZ12: =IF(EZ9<>0,VLOOKUP(EZ$8,INDIRECT(LU_MAT),$B12,FALSE),0) -> -66.8957479 | FA12: =EY12-EZ12+EY20 -> -420.8357327 | FC12: =IF(FC9<>0,VLOOKUP(FC$8,INDIRECT(LU_MAT),$B12,FALSE),0) -> -194.94874 | FD12: -4.08478684 | FE12: -0.976879907 | FF12: -0.000671201475 | FG12: -0.056333817 | FH12: -0.249718562 | FI12: -0.536997167 | FJ12: -2.41648725 | FK12: -5.64352497 | FL12: -0.0242391951 | FM12: 0 | FN12: =IF(FN9<>0,VLOOKUP(FN$8,INDIRECT(LU_MAT),$B12,FALSE),0) -> -0.112479896 | FO12: =IF(FO9<>0,VLOOKUP(FO$8,INDIRECT(LU_MAT),$B12,FALSE),0) -> -0.0701624364 | FP12: -0.0181593113 | FQ12: -0.399038732 | FR12: -0.00930030231 | FS12: -2.04589725 | FT12: -0.760643001 | FU12: 0 | FV12: =IF(FV9<>0,VLOOKUP(FV$8,INDIRECT(LU_MAT),$B12,FALSE),0) -> 0 | FW12: -14.0138723 | FX12: -12.3111963 | FY12: -17.8636213 | FZ12: -2.84324009 | GA12: =IF(GA9<>0,VLOOKUP(GA$8,INDIRECT(LU_MAT),$B12,FALSE),0) -> 0 | GB12: -558.870396 | GD12: =IF(GD9<>0,VLOOKUP(GD$8,INDIRECT(LU_MAT),$B12,FALSE),0) -> -7.22338147 | GE12: -0.320044473 | GF12: -31.466227 | GG12: -45.8460649 | GH12: 0 | GI12: =IF(GI9<>0,VLOOKUP(GI$8,INDIRECT(LU_MAT),$B12,FALSE),0) -> 0 | GJ12: -22.2019839 | GK12: -25.3073838 | GL12: -14.8510199 | GM12: -320.164158 | GN12: -8.19493622 | GO12: -420.8357327 | GR12: =FC17 -> -315.5718933 | GS12: Gcal/hr | GT12: a400 vent | GU12: =GD9+GE9 -> 33387.28797 | GV12: kg/hr | GX12: 301 | GY12: =R17 -> -146.9890514
D13: Component LHV | E13: MMkcal/hr | F13: =IF(F9<>0,F87,0) -> -327.6864882 | G13: -1.086736315 | H13: 1.142316377 | I13: 0 | J13: 0 | K13: 0 | L13: -4.669096462 | M13: 0 | N13: 0.0001876629316 | O13: -2.109413026 | P13: -326.6902829 | R13: =IF(R9<>0,R87,0) -> -326.6902829 | S13: -3.963920115 | T13: 0 | U13: -0.4511313214 | V13: 0 | W13: -2.030090946 | X13: -2.727759625 | Y13: -327.8152518 | Z13: -2.12891967 | AA13: -0.206059229 | AC13: =IF(AC9<>0,AC87,0) -> -0.04223871834 | AD13: 0 | AE13: -8.187571318 | AF13: -0.5632930116 | AG13: -0.4854441089 | AH13: 0 | AI13: -0.1171617594 | AJ13: 0 | AK13: 0 | AL13: -3.963920115 | AM13: -0.001243030771 | AN13: -0.000913511408 | AP13: =IF(AP9<>0,AP87,0) -> -327.8152518 | AQ13: -0.206059229 | AR13: -2.12891967 | AS13: 0 | AT13: 0 | AU13: =IF(AU9<>0,AU87,0) -> 0 | AV13: -0.02766669076 | AW13: -2.727759625 | AX13: -138.7634703 | AY13: -1.086736315 | AZ13: 0 | BA13: -83.37499586 | BB13: =IF(BB9<>0,BB87,0) -> -104.1584302 | BC13: =IF(BC9<>0,BC87,0) -> -0.01116661664 | BE13: =IF(BE9<>0,BE87,0) -> -327.8152518 | BF13: -0.206059229 | BG13: -2.12891967 | BH13: 0 | BI13: 0 | BJ13: -0.02766669076 | BK13: -2.727759625 | BL13: -138.7634703 | BM13: -187.5445926 | BN13: 0 | BO13: -1.086736315 | BQ13: =IF(BQ9<>0,BQ87,0) -> 0 | BR13: -187.5445926 | BS13: 0 | BT13: -83.37499586 | BU13: -0.01116661664 | BV13: -104.1584302 | BW13: 0 | BY13: =IF(BY9<>0,BY87,0) -> -104.1584302 | BZ13: -0.01116661664 | CA13: 0 | CB13: -9.619815426 | CC13: -65.43414506 | CD13: 0.3148113039 | CE13: 0.2625956695 | CF13: -0.1858155709 | CH13: =IF(CH9<>0,CH87,0) -> -65.44531167 | CI13: =IF(CI9<>0,CI87,0) -> -113.7782455 | CJ13: =IF(CJ9<>0,CJ87,0) -> -1.144557903 | CK13: =IF(CK9<>0,CK87,0) -> 0 | CL13: =IF(CL9<>0,CL87,0) -> 0 | CN13: =IF(CN9<>0,CN87,0) -> 0 | CO13: 0 | CP13: 0 | CQ13: 0 | CR13: 0 | CS13: 0 | CU13: =IF(CU9<>0,CU87,0) -> -2.109413026 | CV13: 0 | CW13: 0 | CX13: -83.37499586 | CY13: 0 | CZ13: =IF(CZ9<>0,CZ87,0) -> 0 | DA13: =IF(DA9<>0,DA87,0) -> 0 | DB13: 1.952920052 | DC13: 0 | DD13: -65.43414506 | DE13: -1.064714597 | DF13: 0 | DG13: 5.824006897 | DH13: -9.619815426 | DJ13: =IF(DJ9<>0,DJ87,0) -> -76.63649902 | DK13: -16.32415987 | DL13: 0 | DM13: 1.952920052 | DN13: 0 | DO13: -75.07243034 | DP13: 0 | DR13: =IF(DR9<>0,DR87,0) -> -68.55566365 | DS13: =IF(DS9<>0,DS87,0) -> -0.1706639858 | DT13: =IF(DT9<>0,DT87,0) -> -69.66348574 | DU13: =IF(DU9<>0,DU87,0) -> 0 | DX13: =IF(DX9<>0,DX87,0) -> -68.55566365 | DY13: =IF(DY9<>0,DY87,0) -> -0.1706639858 | DZ13: =IF(DZ9<>0,DZ87,0) -> -69.66348574 | EA13: =IF(EA9<>0,EA87,0) -> 0 | ED13: =IF(ED9<>0,ED87,0) -> -3.70707868 | EE13: =IF(EE9<>0,EE87,0) -> -5.468406418 | EF13: =IF(EF9<>0,EF87,0) -> 0 | EG13: =IF(EG9<>0,EG87,0) -> 0 | EJ13: =IF(EJ9<>0,EJ87,0) -> 0 | EK13: =IF(EK9<>0,EK87,0) -> 0 | EL13: =IF(EL9<>0,EL87,0) -> 0 | EM13: =IF(EM9<>0,EM87,0) -> 0 | EP13: =IF(EP9<>0,EP87,0) -> 5.821968712 | EQ13: =IF(EQ9<>0,EQ87,0) -> 5.824006897 | ER13: =IF(ER9<>0,ER87,0) -> 0 | ES13: =IF(ES9<>0,ES87,0) -> -0.002038187058 | EV13: =IF(EV9<>0,EV87,0) -> 0 | EW13: =IF(EW9<>0,EW87,0) -> 0 | EY13: =IF(EY9<>0,EY87,0) -> 0 | EZ13: =IF(EZ9<>0,EZ87,0) -> 0 | FA13: 0 | FC13: =IF(FC9<>0,FC87,0) -> -327.6864882 | FD13: 1.142316377 | FE13: -4.669096462 | FF13: 0.0001876629316 | FG13: 0 | FH13: 0 | FI13: -0.4511313214 | FJ13: -2.030090946 | FK13: -8.187571318 | FL13: -0.04223871834 | FM13: 0 | FN13: -0.2280605717 | FO13: -0.4854441089 | FP13: 0 | FQ13: -0.3352324399 | FR13: -0.1171617594 | FS13: 0 | FT13: 0 | FU13: 0 | FV13: 0 | FW13: 0 | FX13: 1.952920052 | FY13: 0 | FZ13: 0.3148113039 | GA13: 0 | GB13: 0 | GD13: =IF(GD9<>0,GD87,0) -> -0.000913511408 | GE13: -0.001243030771 | GF13: -138.7634703 | GG13: -0.02766669076 | GH13: 0 | GI13: 0 | GJ13: -1.064714597 | GK13: 5.824006897 | GL13: 0.2625956695 | GM13: -0.1858155709 | GN13: 0 | GO13: 0 | GU13: =GD10+GE10 -> 54.13063853 | GV13: kmol C/hr | GX13: 516 | GY13: =G17 -> 16.95897735
D14: Latent Heat | E14: MMkcal/hr | F14: =IF(F9<>0,F94,0) -> 12.11459491 | G14: 21.31377567 | H14: 0.08060764904 | I14: 81.99125461 | J14: -1.460192337e-07 | K14: -2.241906892e-08 | L14: 0.2926828453 | M14: 87.49164279 | N14: 1.324245019e-05 | O14: 19.34826136 | P14: 198.5139615 | R14: =IF(R9<>0,R94,0) -> 198.5139615 | S14: 7.590691252 | T14: 0 | U14: 0.06159216448 | V14: 0 | W14: 0.2771647413 | X14: 15.54805685 | Y14: 220.2953029 | Z14: -1.382685312e-09 | AA14: -1.592366331e-10 | AC14: =IF(AC9<>0,AC94,0) -> 0.002335144364 | AD14: 6.640276159 | AE14: 0.2481261538 | AF14: 0.04576869453 | AG14: -2.074265246e-10 | AH14: 0 | AI14: 0 | AJ14: -2.913374298e-09 | AK14: 0 | AL14: 7.590691252 | AM14: -1.488241071e-10 | AN14: -3.522582132e-09 | AP14: =IF(AP9<>0,AP94,0) -> 220.2953029 | AQ14: -1.592366331e-10 | AR14: -1.382685312e-09 | AS14: 15.60215607 | AT14: -1.58809888e-07 | AU14: -1.735788378e-09 | AV14: -2.176904946e-09 | AW14: 15.54805685 | AX14: 0.06432102472 | AY14: 21.31377567 | AZ14: -1.58809888e-07 | BA14: 191.4985226 | BB14: 7.441343249 | BC14: -8.366550149e-10 | BE14: =IF(BE9<>0,BE94,0) -> 220.2953029 | BF14: -1.592366331e-10 | BG14: -1.382685312e-09 | BH14: 15.60215607 | BI14: -1.58809888e-07 | BJ14: -2.176904946e-09 | BK14: 15.54805685 | BL14: 0.06432102472 | BM14: 198.9040334 | BN14: -1.58809888e-07 | BO14: 21.31377567 | BQ14: =IF(BQ9<>0,BQ94,0) -> -1.735788378e-09 | BR14: 198.9040334 | BS14: 0 | BT14: 191.4985226 | BU14: -8.366550149e-10 | BV14: 7.441343249 | BW14: 0 | BY14: =IF(BY9<>0,BY94,0) -> 7.441343249 | BZ14: -8.366550149e-10 | CA14: -2.535483102e-08 | CB14: 4.483895463 | CC14: -2.92117942e-09 | CD14: 2.08049571 | CE14: 0 | CF14: 0.0001881887705 | CH14: =IF(CH9<>0,CH94,0) -> -2.375424718e-08 | CI14: =IF(CI9<>0,CI94,0) -> 11.9252387 | CJ14: =IF(CJ9<>0,CJ94,0) -> -1.825230911e-07 | CK14: =IF(CK9<>0,CK94,0) -> 0 | CL14: =IF(CL9<>0,CL94,0) -> 0 | CN14: =IF(CN9<>0,CN94,0) -> 20.53094002 | CO14: 0 | CP14: -1.460192337e-07 | CQ14: -1.553681908e-08 | CR14: 2.722361694 | CS14: -2.241906892e-08 | CU14: =IF(CU9<>0,CU94,0) -> 19.34826136 | CV14: 10.27928391 | CW14: 2.722609181 | CX14: 191.4985226 | CY14: 0.08431758073 | CZ14: 0 | DA14: 0 | DB14: 1.309624955 | DC14: -1.426208039e-08 | DD14: -2.92117942e-09 | DE14: -1.510251405e-08 | DF14: 219.0164633 | DG14: 2.848202824 | DH14: 4.483895463 | DJ14: =IF(DJ9<>0,DJ94,0) -> 1234.714421 | DK14: 270.1809566 | DL14: -1.426208039e-08 | DM14: 1.309624955 | DN14: 0 | DO14: 1508.065679 | DP14: 0 | DR14: =IF(DR9<>0,DR94,0) -> 1.720256016e-07 | DS14: =IF(DS9<>0,DS94,0) -> 11.19666942 | DT14: =IF(DT9<>0,DT94,0) -> 10.6464203 | DU14: =IF(DU9<>0,DU94,0) -> 0 | DX14: =IF(DX9<>0,DX94,0) -> 1.720256016e-07 | DY14: =IF(DY9<>0,DY94,0) -> 11.19666942 | DZ14: =IF(DZ9<>0,DZ94,0) -> 10.6464203 | EA14: =IF(EA9<>0,EA94,0) -> 0 | ED14: =IF(ED9<>0,ED94,0) -> 9.302111687e-09 | EE14: =IF(EE9<>0,EE94,0) -> 0 | EF14: =IF(EF9<>0,EF94,0) -> 0 | EG14: =IF(EG9<>0,EG94,0) -> 0 | EJ14: =IF(EJ9<>0,EJ94,0) -> 90.15519736 | EK14: =IF(EK9<>0,EK94,0) -> -7.765346855e-07 | EL14: =IF(EL9<>0,EL94,0) -> 10.27848615 | EM14: =IF(EM9<>0,EM94,0) -> -5.801354197e-07 | EP14: =IF(EP9<>0,EP94,0) -> 44.38184131 | EQ14: =IF(EQ9<>0,EQ94,0) -> 2.848202824 | ER14: =IF(ER9<>0,ER94,0) -> 41.49189511 | ES14: =IF(ES9<>0,ES94,0) -> -4.1061507e-11 | EV14: =IF(EV9<>0,EV94,0) -> -1.58809888e-07 | EW14: =IF(EW9<>0,EW94,0) -> -1.58809888e-07 | EY14: =IF(EY9<>0,EY94,0) -> 90.15519736 | EZ14: =IF(EZ9<>0,EZ94,0) -> 10.27848615 | FA14: 79.87671122 | FC14: =IF(FC9<>0,FC94,0) -> 12.11459491 | FD14: 0.08060764904 | FE14: 0.2926828453 | FF14: 1.324245019e-05 | FG14: 0 | FH14: 0 | FI14: 0.06159216448 | FJ14: 0.2771647413 | FK14: 0.2481261538 | FL14: 0.002335144364 | FM14: 0 | FN14: 0 | FO14: -2.074265246e-10 | FP14: 0 | FQ14: 0.04576869453 | FR14: 0 | FS14: -2.913374298e-09 | FT14: -1.735788378e-09 | FU14: 0 | FV14: 0 | FW14: -1.426208039e-08 | FX14: 1.309624955 | FY14: -2.535483102e-08 | FZ14: 0 | GA14: 0 | GB14: 85.55981653 | GD14: =IF(GD9<>0,GD94,0) -> -3.522582132e-09 | GE14: -1.488241071e-10 | GF14: 0.06432102472 | GG14: -2.176904946e-09 | GH14: 0 | GI14: 0 | GJ14: -1.510251405e-08 | GK14: 2.848202824 | GL14: 0 | GM14: 0.0001881887705 | GN14: -1.553681908e-08 | GO14: 79.87671122 | GQ14: A500 Air | GR14: =FT9 -> 12113.9518 | GS14: kg/hr | GU14: =GD17+GE17 -> -0.02665832185 | GV14: Gcal/hr | GX14: 501 | GY14: =BE17 -> -110.3510488
B15: 163 | D15: Ref. enthalpy (25C) | E15: MMkcal/hr | F15: =IF(F9<>0,VLOOKUP(F$8,INDIRECT(LU_MAT),$B15,FALSE)/4.1868*3600/1000000000,0) -> -194.94874 | G15: -138.93089 | H15: -4.08313223 | I15: -534.029947 | J15: -78.7225481 | K15: =IF(K9<>0,VLOOKUP(K$8,INDIRECT(LU_MAT),$B15,FALSE)/4.1868*3600/1000000000,0) -> -11.1920661 | L15: -0.969092677 | M15: -569.855379 | N15: -0.000670788393 | O15: -126.300455 | P15: -1424.49209 | R15: =IF(R9<>0,VLOOKUP(R$8,INDIRECT(LU_MAT),$B15,FALSE)/4.1868*3600/1000000000,0) -> -1424.49209 | S15: -50.0930046 | T15: -0.0563213859 | U15: -0.536286538 | V15: -0.249663457 | W15: -2.41328942 | X15: -101.931568 | Y15: -1538.6266 | Z15: -40.7164102 | AA15: -4.1801793 | AC15: =IF(AC9<>0,VLOOKUP(AC$8,INDIRECT(LU_MAT),$B15,FALSE)/4.1868*3600/1000000000,0) -> -0.0245466814 | AD15: -43.2498117 | AE15: -5.64826705 | AF15: -0.510825798 | AG15: -0.0703260618 | AH15: -0.0181666465 | AI15: -0.00927175373 | AJ15: -2.04589725 | AK15: 0 | AL15: -50.0930046 | AM15: -0.321209769 | AN15: -7.24671795 | AP15: =IF(AP9<>0,VLOOKUP(AP$8,INDIRECT(LU_MAT),$B15,FALSE)/4.1868*3600/1000000000,0) -> -1538.6266 | AQ15: -4.1801793 | AR15: -40.7164102 | AS15: -101.620821 | AT15: -99.4666931 | AU15: =IF(AU9<>0,VLOOKUP(AU$8,INDIRECT(LU_MAT),$B15,FALSE)/4.1868*3600/1000000000,0) -> -0.760643001 | AV15: -45.8850693 | AW15: -101.931568 | AX15: -31.6565021 | AY15: -138.93089 | AZ15: =IF(AZ9<>0,VLOOKUP(AZ$8,INDIRECT(LU_MAT),$B15,FALSE)/4.1868*3600/1000000000,0) -> -99.4666931 | BA15: =IF(BA9<>0,VLOOKUP(BA$8,INDIRECT(LU_MAT),$B15,FALSE)/4.1868*3600/1000000000,0) -> -1290.94304 | BB15: =IF(BB9<>0,VLOOKUP(BB$8,INDIRECT(LU_MAT),$B15,FALSE)/4.1868*3600/1000000000,0) -> -76.4914084 | BC15: =IF(BC9<>0,VLOOKUP(BC$8,INDIRECT(LU_MAT),$B15,FALSE)/4.1868*3600/1000000000,0) -> -0.570789547 | BE15: =IF(BE9<>0,VLOOKUP(BE$8,INDIRECT(LU_MAT),$B15,FALSE)/4.1868*3600/1000000000,0) -> -1538.6266 | BF15: -4.1801793 | BG15: -40.7164102 | BH15: -101.620821 | BI15: -99.4666931 | BJ15: -45.8850693 | BK15: -101.931568 | BL15: -31.6565021 | BM15: -1367.1953 | BN15: =IF(BN9<>0,VLOOKUP(BN$8,INDIRECT(LU_MAT),$B15,FALSE)/4.1868*3600/1000000000,0) -> -99.4666931 | BO15: -138.93089 | BQ15: =IF(BQ9<>0,VLOOKUP(BQ$8,INDIRECT(LU_MAT),$B15,FALSE)/4.1868*3600/1000000000,0) -> -0.760643001 | BR15: -1367.1953 | BS15: -5.24214864e-18 | BT15: -1290.94304 | BU15: -0.570789547 | BV15: -76.4914084 | BW15: -5.24214864e-18 | BY15: =IF(BY9<>0,VLOOKUP(BY$8,INDIRECT(LU_MAT),$B15,FALSE)/4.1868*3600/1000000000,0) -> -76.4914084 | BZ15: -0.570789547 | CA15: -17.8636213 | CB15: -31.3699612 | CC15: -38.9075387 | CD15: -16.4010719 | CE15: -14.988352 | CF15: -331.556335 | CH15: =IF(CH9<>0,VLOOKUP(CH$8,INDIRECT(LU_MAT),$B15,FALSE)/4.1868*3600/1000000000,0) -> -57.3359231 | CI15: =IF(CI9<>0,VLOOKUP(CI$8,INDIRECT(LU_MAT),$B15,FALSE)/4.1868*3600/1000000000,0) -> -107.85352 | CJ15: =IF(CJ9<>0,VLOOKUP(CJ$8,INDIRECT(LU_MAT),$B15,FALSE)/4.1868*3600/1000000000,0) -> -331.323969 | CK15: =IF(CK9<>0,VLOOKUP(CK$8,INDIRECT(LU_MAT),$B15,FALSE)/4.1868*3600/1000000000,0) -> 0 | CL15: =IF(CL9<>0,VLOOKUP(CL$8,INDIRECT(LU_MAT),$B15,FALSE)/4.1868*3600/1000000000,0) -> 0 | CN15: =IF(CN9<>0,VLOOKUP(CN$8,INDIRECT(LU_MAT),$B15,FALSE)/4.1868*3600/1000000000,0) -> -133.78917 | CO15: 0 | CP15: -78.7277518 | CQ15: -8.27398337 | CR15: -17.7401747 | CS15: -11.1928059 | CU15: =IF(CU9<>0,VLOOKUP(CU$8,INDIRECT(LU_MAT),$B15,FALSE)/4.1868*3600/1000000000,0) -> -126.300455 | CV15: -66.9516258 | CW15: -17.7417874 | CX15: -1290.94304 | CY15: -0.549181902 | CZ15: =IF(CZ9<>0,VLOOKUP(CZ$8,INDIRECT(LU_MAT),$B15,FALSE)/4.1868*3600/1000000000,0) -> 0 | DA15: =IF(DA9<>0,VLOOKUP(DA$8,INDIRECT(LU_MAT),$B15,FALSE)/4.1868*3600/1000000000,0) -> 0 | DB15: -12.3048532 | DC15: -14.0138723 | DD15: -38.9075387 | DE15: -22.2019839 | DF15: =IF(DF9<>0,VLOOKUP(DF$8,INDIRECT(LU_MAT),$B15,FALSE)/4.1868*3600/1000000000,0) -> -1426.51007 | DG15: -25.7692152 | DH15: -31.3699612 | DJ15: =IF(DJ9<>0,VLOOKUP(DJ$8,INDIRECT(LU_MAT),$B15,FALSE)/4.1868*3600/1000000000,0) -> -8103.59293 | DK15: -1768.02862 | DL15: -14.0138723 | DM15: -12.3048532 | DN15: 0 | DO15: -9915.79634 | DP15: 0 | DR15: =IF(DR9<>0,VLOOKUP(DR$8,INDIRECT(LU_MAT),$B15,FALSE)/4.1868*3600/1000000000,0) -> -32.1378753 | DS15: =IF(DS9<>0,VLOOKUP(DS$8,INDIRECT(LU_MAT),$B15,FALSE)/4.1868*3600/1000000000,0) -> -76.7411206 | DT15: =IF(DT9<>0,VLOOKUP(DT$8,INDIRECT(LU_MAT),$B15,FALSE)/4.1868*3600/1000000000,0) -> -107.655565 | DU15: =IF(DU9<>0,VLOOKUP(DU$8,INDIRECT(LU_MAT),$B15,FALSE)/4.1868*3600/1000000000,0) -> 0 | DX15: =IF(DX9<>0,VLOOKUP(DX$8,INDIRECT(LU_MAT),$B15,FALSE)/4.1868*3600/1000000000,0) -> -32.1378753 | DY15: =IF(DY9<>0,VLOOKUP(DY$8,INDIRECT(LU_MAT),$B15,FALSE)/4.1868*3600/1000000000,0) -> -76.7411206 | DZ15: =IF(DZ9<>0,VLOOKUP(DZ$8,INDIRECT(LU_MAT),$B15,FALSE)/4.1868*3600/1000000000,0) -> -107.655565 | EA15: =IF(EA9<>0,VLOOKUP(EA$8,INDIRECT(LU_MAT),$B15,FALSE)/4.1868*3600/1000000000,0) -> 0 | ED15: =IF(ED9<>0,VLOOKUP(ED$8,INDIRECT(LU_MAT),$B15,FALSE)/4.1868*3600/1000000000,0) -> -1.73782334 | EE15: =IF(EE9<>0,VLOOKUP(EE$8,INDIRECT(LU_MAT),$B15,FALSE)/4.1868*3600/1000000000,0) -> -1.07152399 | EF15: =IF(EF9<>0,VLOOKUP(EF$8,INDIRECT(LU_MAT),$B15,FALSE)/4.1868*3600/1000000000,0) -> 0 | EG15: =IF(EG9<>0,VLOOKUP(EG$8,INDIRECT(LU_MAT),$B15,FALSE)/4.1868*3600/1000000000,0) -> 0 | EJ15: =IF(EJ9<>0,VLOOKUP(EJ$8,INDIRECT(LU_MAT),$B15,FALSE)/4.1868*3600/1000000000,0) -> -587.203786 | EK15: =IF(EK9<>0,VLOOKUP(EK$8,INDIRECT(LU_MAT),$B15,FALSE)/4.1868*3600/1000000000,0) -> -411.187721 | EL15: =IF(EL9<>0,VLOOKUP(EL$8,INDIRECT(LU_MAT),$B15,FALSE)/4.1868*3600/1000000000,0) -> -66.9464299 | EM15: =IF(EM9<>0,VLOOKUP(EM$8,INDIRECT(LU_MAT),$B15,FALSE)/4.1868*3600/1000000000,0) -> -854.496128 | EP15: =IF(EP9<>0,VLOOKUP(EP$8,INDIRECT(LU_MAT),$B15,FALSE)/4.1868*3600/1000000000,0) -> -296.09908 | EQ15: =IF(EQ9<>0,VLOOKUP(EQ$8,INDIRECT(LU_MAT),$B15,FALSE)/4.1868*3600/1000000000,0) -> -25.7692152 | ER15: =IF(ER9<>0,VLOOKUP(ER$8,INDIRECT(LU_MAT),$B15,FALSE)/4.1868*3600/1000000000,0) -> -270.247292 | ES15: =IF(ES9<>0,VLOOKUP(ES$8,INDIRECT(LU_MAT),$B15,FALSE)/4.1868*3600/1000000000,0) -> -0.0372547769 | EV15: =IF(EV9<>0,VLOOKUP(EV$8,INDIRECT(LU_MAT),$B15,FALSE)/4.1868*3600/1000000000,0) -> -99.4666931 | EW15: =IF(EW9<>0,VLOOKUP(EW$8,INDIRECT(LU_MAT),$B15,FALSE)/4.1868*3600/1000000000,0) -> -99.4666931 | EY15: =IF(EY9<>0,VLOOKUP(EY$8,INDIRECT(LU_MAT),$B15,FALSE)/4.1868*3600/1000000000,0) -> -587.203786 | EZ15: =IF(EZ9<>0,VLOOKUP(EZ$8,INDIRECT(LU_MAT),$B15,FALSE)/4.1868*3600/1000000000,0) -> -66.9464299 | FA15: -520.2573561 | FC15: =IF(FC9<>0,VLOOKUP(FC$8,INDIRECT(LU_MAT),$B15,FALSE)/4.1868*3600/1000000000,0) -> -194.94874 | FD15: -4.08313223 | FE15: -0.969092677 | FF15: -0.000670788393 | FG15: -0.0563213859 | FH15: -0.249663457 | FI15: -0.536286538 | FJ15: -2.41328942 | FK15: -5.64826705 | FL15: -0.0245466814 | FM15: 0 | FN15: =IF(FN9<>0,VLOOKUP(FN$8,INDIRECT(LU_MAT),$B15,FALSE)/4.1868*3600/1000000000,0) -> -0.112315129 | FO15: =IF(FO9<>0,VLOOKUP(FO$8,INDIRECT(LU_MAT),$B15,FALSE)/4.1868*3600/1000000000,0) -> -0.0703260618 | FP15: -0.0181666465 | FQ15: -0.398510669 | FR15: -0.00927175373 | FS15: -2.04589725 | FT15: -0.760643001 | FU15: 0 | FV15: =IF(FV9<>0,VLOOKUP(FV$8,INDIRECT(LU_MAT),$B15,FALSE)/4.1868*3600/1000000000,0) -> 0 | FW15: -14.0138723 | FX15: -12.3048532 | FY15: -17.8636213 | FZ15: -2.84324009 | GA15: =IF(GA9<>0,VLOOKUP(GA$8,INDIRECT(LU_MAT),$B15,FALSE)/4.1868*3600/1000000000,0) -> 0 | GB15: -557.272901 | GD15: =IF(GD9<>0,VLOOKUP(GD$8,INDIRECT(LU_MAT),$B15,FALSE)/4.1868*3600/1000000000,0) -> -7.24671795 | GE15: -0.321209769 | GF15: -31.6565021 | GG15: -45.8850693 | GH15: 0 | GI15: =IF(GI9<>0,VLOOKUP(GI$8,INDIRECT(LU_MAT),$B15,FALSE)/4.1868*3600/1000000000,0) -> 0 | GJ15: -22.2019839 | GK15: -25.7692152 | GL15: -14.988352 | GM15: -331.556335 | GN15: -8.27398337 | GO15: -520.2573561 | GX15: 535 | GY15: =BT17 -> 100.9694868
D16: Sensible Heat | E16: MMkcal/hr | F16: =IF(F9<>0,F15-F12,0) -> 0 | G16: =IF(G9<>0,G15-G12,0) -> -3.268062 | H16: 0.00165461 | I16: -1.038976 | J16: -2.7306139 | K16: =IF(K9<>0,K15-K12,0) -> -0.3882142 | L16: 0.00778723 | M16: -1.108675 | N16: 4.13082e-07 | O16: -2.462899 | P16: -18.81273 | R16: =IF(R9<>0,R15-R12,0) -> -18.81273 | S16: =IF(S9<>0,S15-S12,0) -> -0.0448307 | T16: 1.24311e-05 | U16: 0.000710629 | V16: 5.5105e-05 | W16: 0.00319783 | X16: -0.230564 | Y16: -2.8311 | Z16: -0.0282282 | AA16: -0.00289652 | AC16: =IF(AC9<>0,AC15-AC12,0) -> -0.0003074863 | AD16: =IF(AD9<>0,AD15-AD12,0) -> -0.0841441 | AE16: -0.00474208 | AF16: -0.001241963 | AG16: -0.0001636254 | AH16: -7.3352e-06 | AI16: 2.854858e-05 | AJ16: 0 | AK16: 0 | AL16: -0.0448307 | AM16: -0.001165296 | AN16: -0.02333648 | AP16: =IF(AP9<>0,AP15-AP12,0) -> -2.8311 | AQ16: =IF(AQ9<>0,AQ15-AQ12,0) -> -0.00289652 | AR16: -0.0282282 | AS16: -0.197708 | AT16: 0 | AU16: =IF(AU9<>0,AU15-AU12,0) -> 0 | AV16: -0.0390044 | AW16: -0.230564 | AX16: -0.1902751 | AY16: -3.268062 | AZ16: =IF(AZ9<>0,AZ15-AZ12,0) -> -23.379247 | BA16: =IF(BA9<>0,BA15-BA12,0) -> -7.15404 | BB16: =IF(BB9<>0,BB15-BB12,0) -> -0.5645452 | BC16: =IF(BC9<>0,BC15-BC12,0) -> -0.090587249 | BE16: =IF(BE9<>0,BE15-BE12,0) -> -2.8311 | BF16: =IF(BF9<>0,BF15-BF12,0) -> -0.00289652 | BG16: -0.0282282 | BH16: -0.197708 | BI16: 0 | BJ16: -0.0390044 | BK16: -0.230564 | BL16: -0.1902751 | BM16: -7.43757 | BN16: =IF(BN9<>0,BN15-BN12,0) -> -23.379247 | BO16: -3.268062 | BQ16: =IF(BQ9<>0,BQ15-BQ12,0) -> 0 | BR16: -7.43757 | BS16: 0 | BT16: -7.15404 | BU16: -0.090587249 | BV16: -0.5645452 | BW16: -0.00293331201 | BY16: =IF(BY9<>0,BY15-BY12,0) -> -0.5645452 | BZ16: =IF(BZ9<>0,BZ15-BZ12,0) -> -0.090587249 | CA16: 0 | CB16: -0.0351533 | CC16: -0.0857094 | CD16: -0.0288401 | CE16: -0.1373321 | CF16: -11.392177 | CH16: =IF(CH9<>0,CH15-CH12,0) -> -13.4050049 | CI16: =IF(CI9<>0,CI15-CI12,0) -> -0.591849 | CJ16: =IF(CJ9<>0,CJ15-CJ12,0) -> -91.345632 | CK16: =IF(CK9<>0,CK15-CK12,0) -> 0 | CL16: =IF(CL9<>0,CL15-CL12,0) -> 0 | CN16: =IF(CN9<>0,CN15-CN12,0) -> -0.281432 | CO16: =IF(CO9<>0,CO15-CO12,0) -> 0 | CP16: -2.4563402 | CQ16: -0.07904715 | CR16: -0.3519745 | CS16: =IF(CS9<>0,CS15-CS12,0) -> -0.3492204 | CU16: -2.462899 | CV16: -0.050686 | CW16: -0.3520064 | CX16: -7.15404 | CY16: -0.001068454 | CZ16: =IF(CZ9<>0,CZ15-CZ12,0) -> 0 | DA16: =IF(DA9<>0,DA15-DA12,0) -> 0 | DB16: 0.0063431 | DC16: 0 | DD16: -0.0857094 | DE16: 0 | DF16: =IF(DF9<>0,DF15-DF12,0) -> -0.7203 | DG16: -0.4618314 | DH16: -0.0351533 | DJ16: =IF(DJ9<>0,DJ15-DJ12,0) -> -0.27109 | DK16: -3.81942 | DL16: 0 | DM16: 0.0063431 | DN16: 0 | DO16: 0 | DP16: 0 | DR16: =IF(DR9<>0,DR15-DR12,0) -> -0.0945701 | DS16: =IF(DS9<>0,DS15-DS12,0) -> -0.1838412 | DT16: =IF(DT9<>0,DT15-DT12,0) -> -0.295527 | DU16: =IF(DU9<>0,DU15-DU12,0) -> 0 | DX16: =IF(DX9<>0,DX15-DX12,0) -> -0.0945701 | DY16: =IF(DY9<>0,DY15-DY12,0) -> -0.1838412 | DZ16: =IF(DZ9<>0,DZ15-DZ12,0) -> -0.295527 | EA16: =IF(EA9<>0,EA15-EA12,0) -> 0 | ED16: =IF(ED9<>0,ED15-ED12,0) -> -0.00511379 | EE16: =IF(EE9<>0,EE15-EE12,0) -> -0.00396138 | EF16: =IF(EF9<>0,EF15-EF12,0) -> 0 | EG16: =IF(EG9<>0,EG15-EG12,0) -> 0 | EJ16: =IF(EJ9<>0,EJ15-EJ12,0) -> -1.142427 | EK16: =IF(EK9<>0,EK15-EK12,0) -> 0 | EL16: =IF(EL9<>0,EL15-EL12,0) -> -0.050682 | EM16: =IF(EM9<>0,EM15-EM12,0) -> -20.334017 | EP16: =IF(EP9<>0,EP15-EP12,0) -> -0.018598 | EQ16: =IF(EQ9<>0,EQ15-EQ12,0) -> -0.4618314 | ER16: =IF(ER9<>0,ER15-ER12,0) -> -0.658438 | ES16: =IF(ES9<>0,ES15-ES12,0) -> -0.000425245 | EV16: =IF(EV9<>0,EV15-EV12,0) -> 0 | EW16: =IF(EW9<>0,EW15-EW12,0) -> -23.379247 | EY16: =IF(EY9<>0,EY15-EY12,0) -> -1.142427 | EZ16: =IF(EZ9<>0,EZ15-EZ12,0) -> -0.050682 | FA16: -1.091745 | FC16: =IF(FC9<>0,FC15-FC12,0) -> 0 | FD16: 0.00165461 | FE16: 0.00778723 | FF16: 4.13082e-07 | FG16: 1.24311e-05 | FH16: 5.5105e-05 | FI16: 0.000710629 | FJ16: 0.00319783 | FK16: -0.00474208 | FL16: -0.0003074863 | FM16: 0 | FN16: =IF(FN9<>0,FN15-FN12,0) -> 0.000164767 | FO16: =IF(FO9<>0,FO15-FO12,0) -> -0.0001636254 | FP16: -7.3352e-06 | FQ16: 0.000528063 | FR16: 2.854858e-05 | FS16: 0 | FT16: 0 | FU16: 0 | FV16: =IF(FV9<>0,FV15-FV12,0) -> 0 | FW16: 0 | FX16: 0.0063431 | FY16: 0 | FZ16: 0 | GA16: =IF(GA9<>0,GA15-GA12,0) -> 0 | GB16: 1.597495 | GD16: -0.02333648 | GE16: -0.001165296 | GF16: -0.1902751 | GG16: -0.0390044 | GH16: 0 | GI16: =IF(GI9<>0,GI15-GI12,0) -> 0 | GJ16: 0 | GK16: -0.4618314 | GL16: -0.1373321 | GM16: -11.392177 | GN16: -0.07904715 | GO16: -1.091745 | GQ16: a400 glucose | GR16: =FK9 -> 2844.66513 | GS16: kg/hr | GT16: A600 evap | GU16: =GJ9 -> 220999.437 | GV16: kg/hr | GX16: qm811 | GY16: =CQ20 -> 50.7373149
D17: Total Heat Flow | E17: MMkcal/hr | F17: =IF(F9<>0,(F13+F14+F16),0) -> -315.5718933 | G17: =IF(G9<>0,(G13+G14+G16),0) -> 16.95897735 | H17: 1.224578636 | I17: 80.95227861 | J17: -2.730614046 | K17: =IF(K9<>0,(K13+K14+K16),0) -> -0.3882142224 | L17: -4.368626386 | M17: 86.38296779 | N17: 0.0002013184638 | O17: 14.77594933 | P17: -146.9890514 | R17: =IF(R9<>0,(R13+R14+R16),0) -> -146.9890514 | S17: =IF(S9<>0,(S13+S14+S16),0) -> 3.581940438 | T17: 1.24311e-05 | U17: -0.3888285279 | V17: 5.5105e-05 | W17: -1.749728375 | X17: 12.58973322 | Y17: -110.3510488 | Z17: -2.157147871 | AA17: -0.2089557492 | AC17: =IF(AC9<>0,(AC13+AC14+AC16),0) -> -0.04021106028 | AD17: =IF(AD9<>0,(AD13+AD14+AD16),0) -> 6.556132059 | AE17: -7.944187244 | AF17: -0.5187662801 | AG17: -0.4856077345 | AH17: -7.3352e-06 | AI17: -0.1171332108 | AJ17: -2.913374298e-09 | AK17: 0 | AL17: 3.581940438 | AM17: -0.002408326919 | AN17: -0.02424999493 | AP17: =IF(AP9<>0,(AP13+AP14+AP16),0) -> -110.3510488 | AQ17: =IF(AQ9<>0,(AQ13+AQ14+AQ16),0) -> -0.2089557492 | AR17: -2.157147871 | AS17: 15.40444807 | AT17: -1.58809888e-07 | AU17: =IF(AU9<>0,(AU13+AU14+AU16),0) -> -1.735788378e-09 | AV17: -0.06667109293 | AW17: 12.58973322 | AX17: -138.8894243 | AY17: 16.95897735 | AZ17: =IF(AZ9<>0,(AZ13+AZ14+AZ16),0) -> -23.37924716 | BA17: =IF(BA9<>0,(BA13+BA14+BA16),0) -> 100.9694868 | BB17: =IF(BB9<>0,(BB13+BB14+BB16),0) -> -97.28163217 | BC17: =IF(BC9<>0,(BC13+BC14+BC16),0) -> -0.1017538665 | BE17: =IF(BE9<>0,(BE13+BE14+BE16),0) -> -110.3510488 | BF17: =IF(BF9<>0,(BF13+BF14+BF16),0) -> -0.2089557492 | BG17: -2.157147871 | BH17: 15.40444807 | BI17: -1.58809888e-07 | BJ17: -0.06667109293 | BK17: 12.58973322 | BL17: -138.8894243 | BM17: 3.921870853 | BN17: =IF(BN9<>0,(BN13+BN14+BN16),0) -> -23.37924716 | BO17: 16.95897735 | BQ17: =IF(BQ9<>0,(BQ13+BQ14+BQ16),0) -> -1.735788378e-09 | BR17: 3.921870853 | BS17: 0 | BT17: 100.9694868 | BU17: -0.1017538665 | BV17: -97.28163217 | BW17: -0.00293331201 | BY17: =IF(BY9<>0,(BY13+BY14+BY16),0) -> -97.28163217 | BZ17: =IF(BZ9<>0,(BZ13+BZ14+BZ16),0) -> -0.1017538665 | CA17: -2.535483102e-08 | CB17: -5.171073263 | CC17: -65.51985446 | CD17: 2.366466914 | CE17: 0.1252635695 | CF17: -11.57780438 | CH17: =IF(CH9<>0,(CH13+CH14+CH16),0) -> -78.8503166 | CI17: =IF(CI9<>0,(CI13+CI14+CI16),0) -> -102.4448558 | CJ17: =IF(CJ9<>0,(CJ13+CJ14+CJ16),0) -> -92.49019009 | CK17: =IF(CK9<>0,(CK13+CK14+CK16),0) -> 0 | CL17: =IF(CL9<>0,(CL13+CL14+CL16),0) -> 0 | CN17: =IF(CN9<>0,(CN13+CN14+CN16),0) -> 20.24950802 | CO17: =IF(CO9<>0,(CO13+CO14+CO16),0) -> 0 | CP17: -2.456340346 | CQ17: -0.07904716554 | CR17: 2.370387194 | CS17: =IF(CS9<>0,(CS13+CS14+CS16),0) -> -0.3492204224 | CU17: 14.77594933 | CV17: 10.22859791 | CW17: 2.370602781 | CX17: 100.9694868 | CY17: 0.08324912673 | CZ17: =IF(CZ9<>0,(CZ13+CZ14+CZ16),0) -> 0 | DA17: =IF(DA9<>0,(DA13+DA14+DA16),0) -> 0 | DB17: 3.268888107 | DC17: -1.426208039e-08 | DD17: -65.51985446 | DE17: -1.064714612 | DF17: =IF(DF9<>0,(DF13+DF14+DF16),0) -> 218.2961633 | DG17: 8.21037832 | DH17: -5.171073263 | DJ17: =IF(DJ9<>0,(DJ13+DJ14+DJ16),0) -> 1157.806832 | DK17: 250.0373768 | DL17: -1.426208039e-08 | DM17: 3.268888107 | DN17: 0 | DO17: 1432.993249 | DP17: 0 | DR17: =IF(DR9<>0,(DR13+DR14+DR16),0) -> -68.65023358 | DS17: =IF(DS9<>0,(DS13+DS14+DS16),0) -> 10.84216423 | DT17: =IF(DT9<>0,(DT13+DT14+DT16),0) -> -59.31259244 | DU17: =IF(DU9<>0,(DU13+DU14+DU16),0) -> 0 | DX17: =IF(DX9<>0,(DX13+DX14+DX16),0) -> -68.65023358 | DY17: =IF(DY9<>0,(DY13+DY14+DY16),0) -> 10.84216423 | DZ17: =IF(DZ9<>0,(DZ13+DZ14+DZ16),0) -> -59.31259244 | EA17: =IF(EA9<>0,(EA13+EA14+EA16),0) -> 0 | ED17: =IF(ED9<>0,(ED13+ED14+ED16),0) -> -3.71219246 | EE17: =IF(EE9<>0,(EE13+EE14+EE16),0) -> -5.472367798 | EF17: =IF(EF9<>0,(EF13+EF14+EF16),0) -> 0 | EG17: =IF(EG9<>0,(EG13+EG14+EG16),0) -> 0 | EJ17: =IF(EJ9<>0,(EJ13+EJ14+EJ16),0) -> 89.01277036 | EK17: =IF(EK9<>0,(EK13+EK14+EK16),0) -> -7.765346855e-07 | EL17: =IF(EL9<>0,(EL13+EL14+EL16),0) -> 10.22780415 | EM17: =IF(EM9<>0,(EM13+EM14+EM16),0) -> -20.33401758 | EP17: =IF(EP9<>0,(EP13+EP14+EP16),0) -> 50.18521202 | EQ17: =IF(EQ9<>0,(EQ13+EQ14+EQ16),0) -> 8.21037832 | ER17: =IF(ER9<>0,(ER13+ER14+ER16),0) -> 40.83345711 | ES17: =IF(ES9<>0,(ES13+ES14+ES16),0) -> -0.002463432099 | EV17: =IF(EV9<>0,(EV13+EV14+EV16),0) -> -1.58809888e-07 | EW17: =IF(EW9<>0,(EW13+EW14+EW16),0) -> -23.37924716 | EY17: =IF(EY9<>0,(EY13+EY14+EY16),0) -> 89.01277036 | EZ17: =IF(EZ9<>0,(EZ13+EZ14+EZ16),0) -> 10.22780415 | FA17: =EY17-EZ17-EY20 -> -19.54491218 | FC17: =IF(FC9<>0,(FC13+FC14+FC16),0) -> -315.5718933 | FD17: 1.224578636 | FE17: -4.368626386 | FF17: 0.0002013184638 | FG17: 1.24311e-05 | FH17: 5.5105e-05 | FI17: -0.3888285279 | FJ17: -1.749728375 | FK17: -7.944187244 | FL17: -0.04021106028 | FM17: 0 | FN17: =IF(FN9<>0,(FN13+FN14+FN16),0) -> -0.2278958047 | FO17: =IF(FO9<>0,(FO13+FO14+FO16),0) -> -0.4856077345 | FP17: -7.3352e-06 | FQ17: -0.2889356823 | FR17: -0.1171332108 | FS17: -2.913374298e-09 | FT17: -1.735788378e-09 | FU17: 0 | FV17: =IF(FV9<>0,(FV13+FV14+FV16),0) -> 0 | FW17: -1.426208039e-08 | FX17: 3.268888107 | FY17: -2.535483102e-08 | FZ17: 0.3148113039 | GA17: =IF(GA9<>0,(GA13+GA14+GA16),0) -> 0 | GB17: 87.15731153 | GD17: -0.02424999493 | GE17: -0.002408326919 | GF17: -138.8894243 | GG17: -0.06667109293 | GH17: 0 | GI17: =IF(GI9<>0,(GI13+GI14+GI16),0) -> 0 | GJ17: -1.064714612 | GK17: 8.21037832 | GL17: 0.1252635695 | GM17: -11.57780438 | GN17: -0.07904716554 | GO17: -19.54491218 | GR17: =FK10 -> 80.52830324 | GS17: kmol C/hr | GU17: =GJ10 -> 87.8346359 | GV17: kmol C/hr | GX17: 200 steam | GY17: =J17+K17 -> -3.118828268
GR18: =FK17 -> -7.944187244 | GS18: Gcal/hr | GU18: =GJ17 -> -1.064714612 | GV18: Gcal/hr | GX18: qh-a500 | GY18: =BK20 -> -38.7022987
D19: Heat Stream | E19: UNITS | F19: a200.qh812 | O19: a200.qh244 | Y19: QCH-A300 | Z19: Qc-A300 | AA19: a300.qf300sac | AL19: QCH-A400 | AM19: QC-A400 | AW19: QH-A500 | AX19: A500.CWA500 | BJ19: A500.6 | BK19: QH-A500 | BL19: A500.CWA500 | BT19: a500.evap.qm507 | CE19: A800.QBOILER | CF19: A800.QCOMLOSS | CJ19: A800.QM803 | CN19: A800.QBOILER | CP19: A800.QH812 | CQ19: A800.QM811 | DD19: a600.qt608 | DE19: a600.evapbal | DF19: a600.qt606 | DG19: qh602 | DO19: a600.qt608 | DT19: a600.7 | DZ19: a600.7 | EE19: a600.8 | EJ19: A900.QTTOTAL | EQ19: a600.evapbal | EY19: a900.qwater | GD19: A800.QCOMLOSS | GE19: a500.evap.qm505 | GF19: a500.evap.qm507 | GG19: A600.QT608 | GH19: A600.qt606 | GI19: a600.evapbal | GJ19: a800.a810.qsupxs | GK19: a900.qt914 | GL19: A500 ACC
D20: Heat Stream | E20: MMkcal/hr | F20: =IF(F19<>"",VLOOKUP(F19,INDIRECT(LU_HEAT),2,FALSE),0) -> -2.26180471 | G20: 0 | H20: 0 | I20: 0 | J20: 0 | K20: =IF(K19<>"",VLOOKUP(K19,INDIRECT(LU_HEAT),2,FALSE),0) -> 0 | L20: 0 | M20: 0 | N20: 0 | O20: 7.24147304 | P20: 0 | R20: =IF(R19<>"",VLOOKUP(R19,INDIRECT(LU_HEAT),2,FALSE),0) -> 0 | S20: 0 | T20: 0 | U20: 0 | V20: 0 | W20: 0 | X20: 0 | Y20: 4.87191474 | Z20: 16.5899222 | AA20: 0.361763436 | AC20: =IF(AC19<>"",VLOOKUP(AC19,INDIRECT(LU_HEAT),2,FALSE),0) -> 0 | AD20: 0 | AE20: 0 | AF20: 0 | AG20: 0 | AH20: 0 | AI20: 0 | AJ20: 0 | AK20: 0 | AL20: 8.57237068 | AM20: 1.17197308 | AN20: 0 | AP20: =IF(AP19<>"",VLOOKUP(AP19,INDIRECT(LU_HEAT),2,FALSE),0) -> 0 | AQ20: 0 | AR20: 0 | AS20: 0 | AT20: 0 | AU20: =IF(AU19<>"",VLOOKUP(AU19,INDIRECT(LU_HEAT),2,FALSE),0) -> 0 | AV20: 0 | AW20: -38.7022987 | AX20: 8.20304497 | AY20: 0 | AZ20: =IF(AZ19<>"",VLOOKUP(AZ19,INDIRECT(LU_HEAT),2,FALSE),0) -> 0 | BA20: =IF(BA19<>"",VLOOKUP(BA19,INDIRECT(LU_HEAT),2,FALSE),0) -> 0 | BB20: =IF(BB19<>"",VLOOKUP(BB19,INDIRECT(LU_HEAT),2,FALSE),0) -> 0 | BC20: =IF(BC19<>"",VLOOKUP(BC19,INDIRECT(LU_HEAT),2,FALSE),0) -> 0 | BE20: =IF(BE19<>"",VLOOKUP(BE19,INDIRECT(LU_HEAT),2,FALSE),0) -> 0 | BF20: 0 | BG20: 0 | BH20: 0 | BI20: 0 | BJ20: -3.52349039e-14 | BK20: -38.7022987 | BL20: 8.20304497 | BM20: 0 | BN20: =IF(BN19<>"",VLOOKUP(BN19,INDIRECT(LU_HEAT),2,FALSE),0) -> 0 | BO20: 0 | BQ20: =IF(BQ19<>"",VLOOKUP(BQ19,INDIRECT(LU_HEAT),2,FALSE),0) -> 0 | BR20: 0 | BS20: 0 | BT20: 0.733935919 | BU20: 0 | BV20: 0 | BW20: 0 | BY20: =IF(BY19<>"",VLOOKUP(BY19,INDIRECT(LU_HEAT),2,FALSE),0) -> 0 | BZ20: 0 | CA20: 0 | CB20: 0 | CC20: 0 | CD20: 0 | CE20: 144.630402 | CF20: 10.2201354 | CH20: =IF(CH19<>"",VLOOKUP(CH19,INDIRECT(LU_HEAT),2,FALSE),0) -> 0 | CI20: =IF(CI19<>"",VLOOKUP(CI19,INDIRECT(LU_HEAT),2,FALSE),0) -> 0 | CJ20: =IF(CJ19<>"",VLOOKUP(CJ19,INDIRECT(LU_HEAT),2,FALSE),0) -> 88.7857557 | CK20: =IF(CK19<>"",VLOOKUP(CK19,INDIRECT(LU_HEAT),2,FALSE),0) -> 0 | CL20: =IF(CL19<>"",VLOOKUP(CL19,INDIRECT(LU_HEAT),2,FALSE),0) -> 0 | CN20: =IF(CN19<>"",VLOOKUP(CN19,INDIRECT(LU_HEAT),2,FALSE),0) -> 144.630402 | CO20: 0 | CP20: -2.18607212 | CQ20: 50.7373149 | CR20: 0 | CS20: 0 | CU20: =IF(CU19<>"",VLOOKUP(CU19,INDIRECT(LU_HEAT),2,FALSE),0) -> 0 | CV20: 0 | CW20: 0 | CX20: 0 | CY20: 0 | CZ20: =IF(CZ19<>"",VLOOKUP(CZ19,INDIRECT(LU_HEAT),2,FALSE),0) -> 0 | DA20: =IF(DA19<>"",VLOOKUP(DA19,INDIRECT(LU_HEAT),2,FALSE),0) -> 0 | DB20: 0 | DC20: 0 | DD20: 25.6295793 | DE20: 0.721487629 | DF20: =IF(DF19<>"",VLOOKUP(DF19,INDIRECT(LU_HEAT),2,FALSE),0) -> -1.73373658 | DG20: 6.34382903 | DH20: 0 | DJ20: =IF(DJ19<>"",VLOOKUP(DJ19,INDIRECT(LU_HEAT),2,FALSE),0) -> 0 | DK20: 0 | DL20: 0 | DM20: 0 | DN20: 0 | DO20: 25.6295793 | DP20: 0 | DS20: =IF(DS19<>"",VLOOKUP(DS19,INDIRECT(LU_HEAT),2,FALSE),0) -> 0 | DT20: =IF(DT19<>"",VLOOKUP(DT19,INDIRECT(LU_HEAT),2,FALSE),0) -> -1.06858964 | DU20: =IF(DU19<>"",VLOOKUP(DU19,INDIRECT(LU_HEAT),2,FALSE),0) -> 0 | DY20: =IF(DY19<>"",VLOOKUP(DY19,INDIRECT(LU_HEAT),2,FALSE),0) -> 0 | DZ20: =IF(DZ19<>"",VLOOKUP(DZ19,INDIRECT(LU_HEAT),2,FALSE),0) -> -1.06858964 | EA20: =IF(EA19<>"",VLOOKUP(EA19,INDIRECT(LU_HEAT),2,FALSE),0) -> 0 | EE20: =IF(EE19<>"",VLOOKUP(EE19,INDIRECT(LU_HEAT),2,FALSE),0) -> -0.665146944 | EJ20: =IF(EJ19<>"",VLOOKUP(EJ19,INDIRECT(LU_HEAT),2,FALSE),0) -> 97.3880136 | EK20: =IF(EK19<>"",VLOOKUP(EK19,INDIRECT(LU_HEAT),2,FALSE),0) -> 0 | EL20: =IF(EL19<>"",VLOOKUP(EL19,INDIRECT(LU_WORK),2,FALSE)*859.8576/1000000,0) -> 0 | EQ20: =IF(EQ19<>"",VLOOKUP(EQ19,INDIRECT(LU_HEAT),2,FALSE),0) -> 0.721487629 | EV20: =IF(EV19<>"",VLOOKUP(EV19,INDIRECT(LU_HEAT),2,FALSE),0) -> 0 | EW20: =IF(EW19<>"",VLOOKUP(EW19,INDIRECT(LU_HEAT),2,FALSE),0) -> 0 | EY20: =IF(EY19<>"",VLOOKUP(EY19,INDIRECT(LU_HEAT),2,FALSE),0) -> 98.3298784 | EZ20: =IF(EZ19<>"",VLOOKUP(EZ19,INDIRECT(LU_HEAT),2,FALSE),0) -> 0 | FA20: =IF(FA19<>"",VLOOKUP(FA19,INDIRECT(LU_HEAT),2,FALSE),0) -> 0 | FC20: =IF(FC19<>"",VLOOKUP(FC19,INDIRECT(LU_HEAT),2,FALSE),0) -> 0 | FD20: 0 | FE20: 0 | FF20: 0 | FG20: 0 | FH20: 0 | FI20: 0 | FJ20: 0 | FK20: 0 | FL20: 0 | FM20: 0 | FN20: =IF(FN19<>"",VLOOKUP(FN19,INDIRECT(LU_HEAT),2,FALSE),0) -> 0 | FO20: =IF(FO19<>"",VLOOKUP(FO19,INDIRECT(LU_HEAT),2,FALSE),0) -> 0 | FP20: 0 | FQ20: 0 | FR20: 0 | FS20: 0 | FT20: 0 | FU20: 0 | FV20: =IF(FV19<>"",VLOOKUP(FV19,INDIRECT(LU_HEAT),2,FALSE),0) -> 0 | FW20: 0 | FX20: 0 | FY20: 0 | FZ20: 0 | GA20: =IF(GA19<>"",VLOOKUP(GA19,INDIRECT(LU_HEAT),2,FALSE),0) -> 0 | GB20: 0 | GD20: =IF(GD19<>"",VLOOKUP(GD19,INDIRECT(LU_HEAT),2,FALSE),0) -> 10.2201354 | GE20: 0.0933902336 | GF20: 0.733935919 | GG20: 25.6295793 | GH20: -1.73373658 | GI20: =IF(GI19<>"",VLOOKUP(GI19,INDIRECT(LU_HEAT),2,FALSE),0) -> 0.721487629 | GJ20: =IF(GJ19<>"",VLOOKUP(GJ19,INDIRECT(LU_HEAT),2,FALSE),0) -> -0.0305745035 | GK20: =IF(GK19<>"",VLOOKUP(GK19,INDIRECT(LU_HEAT),2,FALSE),0) -> 1.61837366 | GL20: =EV3 -> 23.18710739 | GM20: =IF(GM19<>"",VLOOKUP(GM19,INDIRECT(LU_HEAT),2,FALSE),0) -> 0 | GN20: =IF(GN19<>"",VLOOKUP(GN19,INDIRECT(LU_HEAT),2,FALSE),0) -> 0 | GO20: =IF(GO19<>"",VLOOKUP(GO19,INDIRECT(LU_HEAT),2,FALSE),0) -> 0 | GQ20: A400 chemicals | GR20: =FL9+FM9+FN9+FO9+FP9+FQ9+FR9 -> 377.0801297 | GS20: kg/hr | GT20: A600 brine | GU20: =GK9 -> 9921.67597 | GV20: kg/hr | GX20: wa200 | GY20: =P23+O23 -> 4.194265921
GR21: =FL10+FM10+FN10+FO10+FP10+FQ10+FR10 -> 6.250703076 | GS21: kmol C/hr | GU21: =GK10 -> 3.857385551 | GV21: kmol C/hr | GX21: wa300 | GY21: =Y23 -> 1.492477021
D22: Work Stream | E22: UNITS | P22: A200.W2 | Y22: A300.Wa300 | AL22: WKA400 | AV22: WKA500 | BJ22: a500.wp-a500 | BT22: A500.EVAP.WM507 | CE22: A800.WCOMBFAN | CN22: QH-A500 | CP22: A800.WTOTAL | CQ22: A800.WPA810 | CR22: LOSS | DD22: wka600 | EL22: A900.WM902 | EM22: A900.WP902 | EQ22: A600.wm640 | EV22: a500.wh505 | FF22: WKA100 | FG22: a900.wm908 | FH22: a200.wptrx | FI22: a900.wmp10 | FJ22: a500.m503.powm503 | FK22: a500.evap.w1 | FL22: wka700 | GD22: a900.wknet | GE22: LOSS | GR22: =SUM(FL17:FR17) -> -1.159790828 | GS22: Gcal/hr | GU22: =GK17 -> 8.21037832 | GV22: Gcal/hr | GX22: wa400 | GY22: =AL23 -> 3.226945804
